Workbook

Sheet Control
A1: Sheets | B1: Text File Names | C1: Description | E1: Notes: 50 sheets maximum
B2: FROM 25-yr OPERATIONS MODEL RUN | E2: Referenced text files must be in same root folder as this spreadsheet
A3: Cat23SP_Flow | B3: Raw Flows\Cat23SP_Flow_toWWTF.txt | C3: Flows from the Category 2/3 Stockpile to the WWTF (monthly)
A4: Cat4SP_Flow | B4: Raw Flows\Cat4SP_Flow_toWWTF.txt | C4: Flows from the Category 4 Stockpile to the WWTF (monthly)
A5: OSP_Flow | B5: Raw Flows\OSP_Flow_toWWTF.txt | C5: Flows from the Ore Surge Pile to the WWTF (monthly)
A6: RTH_Flow | B6: Raw Flows\RTH_Flow_toWWTF.txt | C6: Flows from the Rail Transfer Hopper to the WWTF (monthly)
A7: HR_Flow | B7: Raw Flows\HR_Flow_toWWTF.txt | C7: Flows from the Haul Road Ponds to the WWTF (monthly)
A8: EP_Flow | B8: Raw Flows\EP_toWWTF.txt | C8: Flows from the East Pit to the WWTF (monthly)
A9: CP_Flow | B9: Raw Flows\CP_toWWTF.txt | C9: Flows from the Central Pit to the WWTF (monthly) | F9: Operations run time min: | G9: =MIN(Cat23SP_Flow!$B$5,OSP_Flow!$B$5,Cat4SP_Flow!$B$5,EP_Flow!$B$5,CP_Flow!$B$5,EPCP_Flow!$B$5,HR_Flow!$B$5,RTH_Flow!$B$5,EastPond_Flow!$B$5,WestPond_Flow!$B$5,WWTF_Ops_Flow!$B$5,EastPond_Conc!$B$5,WestPond_Conc!$B$5) -> 2014-12-15T16:57:50
A10: EPCP_Flow | B10: Raw Flows\EPCP_toWWTF.txt | C10: Flows from the combined East/Central Pits to the WWTF (monthly) | F10: Operations run time max: | G10: =MAX(Cat23SP_Flow!$B$5,OSP_Flow!$B$5,Cat4SP_Flow!$B$5,EP_Flow!$B$5,CP_Flow!$B$5,EPCP_Flow!$B$5,HR_Flow!$B$5,RTH_Flow!$B$5,EastPond_Flow!$B$5,WestPond_Flow!$B$5,WWTF_Ops_Flow!$B$5,EastPond_Conc!$B$5,WestPond_Conc!$B$5) -> 2014-12-15T16:57:50
A11: EastPond_Flow | B11: Raw Flows\EastPond_Flow_toWWTF.txt | C11: Flows from the East EQ basin (monthly)
A12: WestPond_Flow | B12: Raw Flows\WestPond_Flow_toWWTF.txt | C12: Flows from the West EQ basin (monthly)
A13: WWTF_Ops_Flow | B13: Raw Flows\WWTF_Influent.txt | C13: Total flows to the operations WWTF (monthly)
A14: EastPond_Conc | B14: Raw Concentrations\Unused\EastPond_Conc_Stats_Output.txt | C14: Concentrations in East EQ basin (monthly)
A15: WestPond_Conc | B15: Raw Concentrations\Unused\WestPond_Conc_Stats_Output.txt | C15: Concentrations in West EQ basin (monthly)
A16: Brine_Conc | B16: Raw Concentrations\WWTP_Brine_Conc_Stats_Output.txt | C16: Concentrations in Plant Site WWTP concentrate (monthly)
B18: FROM 200-yr LONG-TERM MODEL RUN
A19: WP_Flow | B19: Raw Flows\WP_toWWTF_LongTerm.txt | C19: Flows from the West Pit to the WWTF (monthly) | F19: Long-term run time min: | G19: =MIN(Cat1SP_Flow!$B$5,EPupper_Flow!$B$5,EPlower_Flow!$B$5,WP_Flow!$B$5,PlantSite_Brine_Flow!$B$5,WWTF_Reclam_Flow!$B$5,WWTF_LongTerm_Flow!$B$5,Reclam_Conc!$B$5,LongTerm_Conc!$B$5) -> 2014-12-15T22:56:18
A20: Cat1SP_Flow | B20: Raw Flows\Cat1SP_Flow_toWWTF_LongTerm.txt | C20: Flows from the Category 1 Stockpile to the WWTF (monthly) | F20: Long-term run time max: | G20: =MAX(Cat1SP_Flow!$B$5,EPupper_Flow!$B$5,EPlower_Flow!$B$5,WP_Flow!$B$5,PlantSite_Brine_Flow!$B$5,WWTF_Reclam_Flow!$B$5,WWTF_LongTerm_Flow!$B$5,Reclam_Conc!$B$5,LongTerm_Conc!$B$5) -> 2014-12-15T22:56:18
A21: EPupper_Flow | B21: Raw Flows\EPupper_toWWTF_LongTerm.txt | C21: Flows from the East Pit upper porewater to the WWTF (monthly)
A22: EPlower_Flow | B22: Raw Flows\EPlower_toWWTF_LongTerm.txt | C22: Flows from the East Pit lower porewater to the WWTF (monthly)
A23: WWTF_Reclam_Flow | B23: Raw Flows\WWTF_Influent_Reclam.txt | C23: Total flows to the reclamation WWTF (monthly)
A24: WWTF_LongTerm_Flow | B24: Raw Flows\WWTF_Influent_LongTerm.txt | C24: Total flows to the mixed long-term WWTF (monthly)
A25: PlantSite_Brine_Flow | B25: Raw Flows\PlantSite_Brine_toWWTF.txt | C25: Flows from the Plant Site WWTP concentrate (monthly)
A26: Reclam_Conc | B26: Raw Concentrations\Reclam_Conc_Output.txt | C26: Concentrations in mixed reclamation WWTF influent (monthly)
A27: LongTerm_Conc | B27: Raw Concentrations\LongTerm_Conc_Output.txt | C27: Concentrations in mixed long-term WWTF influent (monthly)

Sheet PlotControl
D1: =B2 & " Model " & "Annual Average" & " of Concentration Statistics " & B4 & " in the " & $B$6 -> Mine Site Version 6.0 Model Annual Average of Concentration Statistics V in the East EQ Basin
A2: Model Name: | B2: Mine Site Version 6.0 | D2: =B2 & " Model " & "Annual Average" & " of Concentration Statistics " & B4 & " in the " & $B$8 -> Mine Site Version 6.0 Model Annual Average of Concentration Statistics V in the Long-term WWTF Influent
A4: Constituent to Plot (dropdown): | B4: V | C4: =MATCH(B4,$A$35:$A$61,0) -> 26 | V4: Directory to save PDFs to: | W4: C:\Users\jem4\Desktop\temp
V5: Starting figure caption | W5: Figure H-13-26.2
A6: Ops Location to Plot (dropdown): | B6: East EQ Basin | C6: =MATCH(B6,$A$12:$A$14,0) -> 2
A8: L-T Location to Plot (dropdown): | B8: Long-term WWTF Influent | C8: =MATCH(B8,$A$15:$A$16,0) -> 2
A11: Locations | C11: Number
A12: West EQ Basin | C12: 12
A13: East EQ Basin | C13: 13
A14: WWTP Reject Concentrate | C14: 14
A15: Reclamation WWTF Influent | C15: 15 | D15: X-Axis 0 to 60 years
A16: Long-term WWTF Influent | C16: 16 | D16: X-Axis 0 to 200 years
H32: Concentration plotted in ug/L
B33: Modeled WWTF Target | I33: Annual Project Results (Concentrations) | O33: Annual Project Results (Concentrations)
A34: Constituent | B34: Operations (mg/L) | C34: Reclamation (mg/L) | D34: Long-term Closure (mg/L) | H34: Time | I34: P10 | J34: P50 | K34: P90 | L34: Modeled WWTF Target | N34: Time | O34: P10 | P34: P50 | Q34: P90 | R34: Modeled WWTF Target
A35: Ag | B35: 0.001 | C35: 0.001 | D35: 0.001 | H35: 0 | I35: 0 | J35: 0 | K35: 0 | L35: =VLOOKUP($B$4,$A$35:$D$62,2,FALSE)*1000 -> 50 | N35: 0 | O35: 0 | P35: 0 | Q35: 0 | R35: =VLOOKUP($B$4,$A$35:$D$62,IF($C$8=1,3,IF($C$8=2,4,NA())),FALSE)*1000 -> 50
A36: Al | B36: 0.125 | C36: 0.125 | D36: 0.125 | H36: 1 | I36: =VLOOKUP($H36,Conc_All!$A$5:$J$29,3*($C$6-1)+2)*1000 -> 3.127238583 | J36: =VLOOKUP($H36,Conc_All!$A$5:$J$29,3*($C$6-1)+3)*1000 -> 3.786166083 | K36: =VLOOKUP($H36,Conc_All!$A$5:$J$29,3*($C$6-1)+4)*1000 -> 4.5378825 | L36: =VLOOKUP($B$4,$A$35:$D$62,2,FALSE)*1000 -> 50 | N36: 1 | O36: =VLOOKUP($N36,Conc_All!$L$5:$R$204,3*($C$8-1)+2)*1000 -> 0 | P36: =VLOOKUP($N36,Conc_All!$L$5:$R$204,3*($C$8-1)+3)*1000 -> 0 | Q36: =VLOOKUP($N36,Conc_All!$L$5:$R$204,3*($C$8-1)+4)*1000 -> 0 | R36: =VLOOKUP($B$4,$A$35:$D$62,IF($C$8=1,3,IF($C$8=2,4,NA())),FALSE)*1000 -> 50
A37: Alkalinity | H37: 2 | I37: =VLOOKUP($H37,Conc_All!$A$5:$J$29,3*($C$6-1)+2)*1000 -> 5.823783333 | J37: =VLOOKUP($H37,Conc_All!$A$5:$J$29,3*($C$6-1)+3)*1000 -> 6.527325 | K37: =VLOOKUP($H37,Conc_All!$A$5:$J$29,3*($C$6-1)+4)*1000 -> 7.538366667 | L37: 50 | N37: 2 | O37: =VLOOKUP($N37,Conc_All!$L$5:$R$204,3*($C$8-1)+2)*1000 -> 0 | P37: =VLOOKUP($N37,Conc_All!$L$5:$R$204,3*($C$8-1)+3)*1000 -> 0 | Q37: =VLOOKUP($N37,Conc_All!$L$5:$R$204,3*($C$8-1)+4)*1000 -> 0 | R37: 50
A38: As | B38: 0.01 | C38: 0.01 | D38: 0.01 | H38: 3 | I38: =VLOOKUP($H38,Conc_All!$A$5:$J$29,3*($C$6-1)+2)*1000 -> 5.826 | J38: =VLOOKUP($H38,Conc_All!$A$5:$J$29,3*($C$6-1)+3)*1000 -> 6.542625 | K38: =VLOOKUP($H38,Conc_All!$A$5:$J$29,3*($C$6-1)+4)*1000 -> 7.544591667 | L38: 50 | N38: 3 | O38: =VLOOKUP($N38,Conc_All!$L$5:$R$204,3*($C$8-1)+2)*1000 -> 0 | P38: =VLOOKUP($N38,Conc_All!$L$5:$R$204,3*($C$8-1)+3)*1000 -> 0 | Q38: =VLOOKUP($N38,Conc_All!$L$5:$R$204,3*($C$8-1)+4)*1000 -> 0 | R38: 50
A39: B | B39: 0.5 | C39: 0.5 | D39: 0.5 | H39: 4 | I39: =VLOOKUP($H39,Conc_All!$A$5:$J$29,3*($C$6-1)+2)*1000 -> 5.444566667 | J39: =VLOOKUP($H39,Conc_All!$A$5:$J$29,3*($C$6-1)+3)*1000 -> 6.096958333 | K39: =VLOOKUP($H39,Conc_All!$A$5:$J$29,3*($C$6-1)+4)*1000 -> 7.045175 | L39: 50 | N39: 4 | O39: =VLOOKUP($N39,Conc_All!$L$5:$R$204,3*($C$8-1)+2)*1000 -> 0 | P39: =VLOOKUP($N39,Conc_All!$L$5:$R$204,3*($C$8-1)+3)*1000 -> 0 | Q39: =VLOOKUP($N39,Conc_All!$L$5:$R$204,3*($C$8-1)+4)*1000 -> 0 | R39: 50
A40: Ba | B40: 2 | C40: 2 | D40: 2 | H40: 5 | I40: =VLOOKUP($H40,Conc_All!$A$5:$J$29,3*($C$6-1)+2)*1000 -> 5.548633333 | J40: =VLOOKUP($H40,Conc_All!$A$5:$J$29,3*($C$6-1)+3)*1000 -> 6.194391667 | K40: =VLOOKUP($H40,Conc_All!$A$5:$J$29,3*($C$6-1)+4)*1000 -> 7.091408333 | L40: 50 | N40: 5 | O40: =VLOOKUP($N40,Conc_All!$L$5:$R$204,3*($C$8-1)+2)*1000 -> 0 | P40: =VLOOKUP($N40,Conc_All!$L$5:$R$204,3*($C$8-1)+3)*1000 -> 0 | Q40: =VLOOKUP($N40,Conc_All!$L$5:$R$204,3*($C$8-1)+4)*1000 -> 0 | R40: 50
A41: Be | B41: 0.004 | C41: 0.004 | D41: 0.004 | H41: 6 | I41: =VLOOKUP($H41,Conc_All!$A$5:$J$29,3*($C$6-1)+2)*1000 -> 5.901641667 | J41: =VLOOKUP($H41,Conc_All!$A$5:$J$29,3*($C$6-1)+3)*1000 -> 6.438508333 | K41: =VLOOKUP($H41,Conc_All!$A$5:$J$29,3*($C$6-1)+4)*1000 -> 7.165883333 | L41: 50 | N41: 6 | O41: =VLOOKUP($N41,Conc_All!$L$5:$R$204,3*($C$8-1)+2)*1000 -> 0 | P41: =VLOOKUP($N41,Conc_All!$L$5:$R$204,3*($C$8-1)+3)*1000 -> 0 | Q41: =VLOOKUP($N41,Conc_All!$L$5:$R$204,3*($C$8-1)+4)*1000 -> 0 | R41: 50
A42: Ca | H42: 7 | I42: =VLOOKUP($H42,Conc_All!$A$5:$J$29,3*($C$6-1)+2)*1000 -> 5.662608333 | J42: =VLOOKUP($H42,Conc_All!$A$5:$J$29,3*($C$6-1)+3)*1000 -> 6.224175 | K42: =VLOOKUP($H42,Conc_All!$A$5:$J$29,3*($C$6-1)+4)*1000 -> 7.209666667 | L42: 50 | N42: 7 | O42: =VLOOKUP($N42,Conc_All!$L$5:$R$204,3*($C$8-1)+2)*1000 -> 0 | P42: =VLOOKUP($N42,Conc_All!$L$5:$R$204,3*($C$8-1)+3)*1000 -> 0 | Q42: =VLOOKUP($N42,Conc_All!$L$5:$R$204,3*($C$8-1)+4)*1000 -> 0 | R42: 50
A43: Cd | B43: 0.004 | C43: 0.004 | D43: 0.002 | H43: 8 | I43: =VLOOKUP($H43,Conc_All!$A$5:$J$29,3*($C$6-1)+2)*1000 -> 5.748 | J43: =VLOOKUP($H43,Conc_All!$A$5:$J$29,3*($C$6-1)+3)*1000 -> 6.384516667 | K43: =VLOOKUP($H43,Conc_All!$A$5:$J$29,3*($C$6-1)+4)*1000 -> 7.373608333 | L43: 50 | N43: 8 | O43: =VLOOKUP($N43,Conc_All!$L$5:$R$204,3*($C$8-1)+2)*1000 -> 0 | P43: =VLOOKUP($N43,Conc_All!$L$5:$R$204,3*($C$8-1)+3)*1000 -> 0 | Q43: =VLOOKUP($N43,Conc_All!$L$5:$R$204,3*($C$8-1)+4)*1000 -> 0 | R43: 50
A44: Cl | B44: 230 | C44: 230 | D44: 230 | H44: 9 | I44: =VLOOKUP($H44,Conc_All!$A$5:$J$29,3*($C$6-1)+2)*1000 -> 6.128333333 | J44: =VLOOKUP($H44,Conc_All!$A$5:$J$29,3*($C$6-1)+3)*1000 -> 6.685491667 | K44: =VLOOKUP($H44,Conc_All!$A$5:$J$29,3*($C$6-1)+4)*1000 -> 7.58435 | L44: 50 | N44: 9 | O44: =VLOOKUP($N44,Conc_All!$L$5:$R$204,3*($C$8-1)+2)*1000 -> 0 | P44: =VLOOKUP($N44,Conc_All!$L$5:$R$204,3*($C$8-1)+3)*1000 -> 0 | Q44: =VLOOKUP($N44,Conc_All!$L$5:$R$204,3*($C$8-1)+4)*1000 -> 0 | R44: 50
A45: Co | B45: 0.005 | C45: 0.005 | D45: 0.005 | H45: 10 | I45: =VLOOKUP($H45,Conc_All!$A$5:$J$29,3*($C$6-1)+2)*1000 -> 6.3834 | J45: =VLOOKUP($H45,Conc_All!$A$5:$J$29,3*($C$6-1)+3)*1000 -> 6.968641667 | K45: =VLOOKUP($H45,Conc_All!$A$5:$J$29,3*($C$6-1)+4)*1000 -> 7.674233333 | L45: 50 | N45: 10 | O45: =VLOOKUP($N45,Conc_All!$L$5:$R$204,3*($C$8-1)+2)*1000 -> 0 | P45: =VLOOKUP($N45,Conc_All!$L$5:$R$204,3*($C$8-1)+3)*1000 -> 0 | Q45: =VLOOKUP($N45,Conc_All!$L$5:$R$204,3*($C$8-1)+4)*1000 -> 0 | R45: 50
A46: Cr | B46: 0.011 | C46: 0.011 | D46: 0.011 | H46: 11 | I46: =VLOOKUP($H46,Conc_All!$A$5:$J$29,3*($C$6-1)+2)*1000 -> 5.427441667 | J46: =VLOOKUP($H46,Conc_All!$A$5:$J$29,3*($C$6-1)+3)*1000 -> 6.08665 | K46: =VLOOKUP($H46,Conc_All!$A$5:$J$29,3*($C$6-1)+4)*1000 -> 7.420433333 | L46: 50 | N46: 11 | O46: =VLOOKUP($N46,Conc_All!$L$5:$R$204,3*($C$8-1)+2)*1000 -> 0 | P46: =VLOOKUP($N46,Conc_All!$L$5:$R$204,3*($C$8-1)+3)*1000 -> 0 | Q46: =VLOOKUP($N46,Conc_All!$L$5:$R$204,3*($C$8-1)+4)*1000 -> 0 | R46: 50
A47: Cu | B47: 0.03 | C47: 0.016 | D47: 0.009 | H47: 12 | I47: =VLOOKUP($H47,Conc_All!$A$5:$J$29,3*($C$6-1)+2)*1000 -> 5.378958333 | J47: =VLOOKUP($H47,Conc_All!$A$5:$J$29,3*($C$6-1)+3)*1000 -> 6.091291667 | K47: =VLOOKUP($H47,Conc_All!$A$5:$J$29,3*($C$6-1)+4)*1000 -> 7.759175 | L47: 50 | N47: 12 | O47: =VLOOKUP($N47,Conc_All!$L$5:$R$204,3*($C$8-1)+2)*1000 -> 0 | P47: =VLOOKUP($N47,Conc_All!$L$5:$R$204,3*($C$8-1)+3)*1000 -> 0 | Q47: =VLOOKUP($N47,Conc_All!$L$5:$R$204,3*($C$8-1)+4)*1000 -> 0 | R47: 50
A48: F | B48: 2 | C48: 2 | D48: 2 | H48: 13 | I48: =VLOOKUP($H48,Conc_All!$A$5:$J$29,3*($C$6-1)+2)*1000 -> 5.317175 | J48: =VLOOKUP($H48,Conc_All!$A$5:$J$29,3*($C$6-1)+3)*1000 -> 5.985125 | K48: =VLOOKUP($H48,Conc_All!$A$5:$J$29,3*($C$6-1)+4)*1000 -> 7.909816667 | L48: 50 | N48: 13 | O48: =VLOOKUP($N48,Conc_All!$L$5:$R$204,3*($C$8-1)+2)*1000 -> 0 | P48: =VLOOKUP($N48,Conc_All!$L$5:$R$204,3*($C$8-1)+3)*1000 -> 0 | Q48: =VLOOKUP($N48,Conc_All!$L$5:$R$204,3*($C$8-1)+4)*1000 -> 0 | R48: 50
A49: Fe | B49: 0.3 | C49: 0.3 | D49: 0.3 | H49: 14 | I49: =VLOOKUP($H49,Conc_All!$A$5:$J$29,3*($C$6-1)+2)*1000 -> 6.920866667 | J49: =VLOOKUP($H49,Conc_All!$A$5:$J$29,3*($C$6-1)+3)*1000 -> 7.379358333 | K49: =VLOOKUP($H49,Conc_All!$A$5:$J$29,3*($C$6-1)+4)*1000 -> 8.113975 | L49: 50 | N49: 14 | O49: =VLOOKUP($N49,Conc_All!$L$5:$R$204,3*($C$8-1)+2)*1000 -> 0 | P49: =VLOOKUP($N49,Conc_All!$L$5:$R$204,3*($C$8-1)+3)*1000 -> 0 | Q49: =VLOOKUP($N49,Conc_All!$L$5:$R$204,3*($C$8-1)+4)*1000 -> 0 | R49: 50
A50: K | D50: 0.5 | H50: 15 | I50: =VLOOKUP($H50,Conc_All!$A$5:$J$29,3*($C$6-1)+2)*1000 -> 7.093325 | J50: =VLOOKUP($H50,Conc_All!$A$5:$J$29,3*($C$6-1)+3)*1000 -> 7.498408333 | K50: =VLOOKUP($H50,Conc_All!$A$5:$J$29,3*($C$6-1)+4)*1000 -> 8.215841667 | L50: 50 | N50: 15 | O50: =VLOOKUP($N50,Conc_All!$L$5:$R$204,3*($C$8-1)+2)*1000 -> 0 | P50: =VLOOKUP($N50,Conc_All!$L$5:$R$204,3*($C$8-1)+3)*1000 -> 0 | Q50: =VLOOKUP($N50,Conc_All!$L$5:$R$204,3*($C$8-1)+4)*1000 -> 0 | R50: 50
A51: Mg | H51: 16 | I51: =VLOOKUP($H51,Conc_All!$A$5:$J$29,3*($C$6-1)+2)*1000 -> 4.981791667 | J51: =VLOOKUP($H51,Conc_All!$A$5:$J$29,3*($C$6-1)+3)*1000 -> 5.34365 | K51: =VLOOKUP($H51,Conc_All!$A$5:$J$29,3*($C$6-1)+4)*1000 -> 5.979983333 | L51: 50 | N51: 16 | O51: =VLOOKUP($N51,Conc_All!$L$5:$R$204,3*($C$8-1)+2)*1000 -> 0 | P51: =VLOOKUP($N51,Conc_All!$L$5:$R$204,3*($C$8-1)+3)*1000 -> 0 | Q51: =VLOOKUP($N51,Conc_All!$L$5:$R$204,3*($C$8-1)+4)*1000 -> 0 | R51: 50
A52: Mn | B52: 0.05 | C52: 0.05 | D52: 0.05 | H52: 17 | I52: =VLOOKUP($H52,Conc_All!$A$5:$J$29,3*($C$6-1)+2)*1000 -> 3.283883333 | J52: =VLOOKUP($H52,Conc_All!$A$5:$J$29,3*($C$6-1)+3)*1000 -> 3.762416667 | K52: =VLOOKUP($H52,Conc_All!$A$5:$J$29,3*($C$6-1)+4)*1000 -> 5.306291667 | L52: 50 | N52: 17 | O52: =VLOOKUP($N52,Conc_All!$L$5:$R$204,3*($C$8-1)+2)*1000 -> 0 | P52: =VLOOKUP($N52,Conc_All!$L$5:$R$204,3*($C$8-1)+3)*1000 -> 0 | Q52: =VLOOKUP($N52,Conc_All!$L$5:$R$204,3*($C$8-1)+4)*1000 -> 0 | R52: 50
A53: Na | H53: 18 | I53: =VLOOKUP($H53,Conc_All!$A$5:$J$29,3*($C$6-1)+2)*1000 -> 3.651325 | J53: =VLOOKUP($H53,Conc_All!$A$5:$J$29,3*($C$6-1)+3)*1000 -> 4.111533333 | K53: =VLOOKUP($H53,Conc_All!$A$5:$J$29,3*($C$6-1)+4)*1000 -> 6.609591667 | L53: 50 | N53: 18 | O53: =VLOOKUP($N53,Conc_All!$L$5:$R$204,3*($C$8-1)+2)*1000 -> 0 | P53: =VLOOKUP($N53,Conc_All!$L$5:$R$204,3*($C$8-1)+3)*1000 -> 0 | Q53: =VLOOKUP($N53,Conc_All!$L$5:$R$204,3*($C$8-1)+4)*1000 -> 0 | R53: 50
A54: Ni | B54: 0.1 | C54: 0.09 | D54: 0.05 | H54: 19 | I54: =VLOOKUP($H54,Conc_All!$A$5:$J$29,3*($C$6-1)+2)*1000 -> 4.062425 | J54: =VLOOKUP($H54,Conc_All!$A$5:$J$29,3*($C$6-1)+3)*1000 -> 4.508225 | K54: =VLOOKUP($H54,Conc_All!$A$5:$J$29,3*($C$6-1)+4)*1000 -> 5.701516667 | L54: 50 | N54: 19 | O54: =VLOOKUP($N54,Conc_All!$L$5:$R$204,3*($C$8-1)+2)*1000 -> 0 | P54: =VLOOKUP($N54,Conc_All!$L$5:$R$204,3*($C$8-1)+3)*1000 -> 0 | Q54: =VLOOKUP($N54,Conc_All!$L$5:$R$204,3*($C$8-1)+4)*1000 -> 0 | R54: 50
A55: Pb | B55: 0.019 | C55: 0.007 | D55: 0.003 | H55: 20 | I55: =VLOOKUP($H55,Conc_All!$A$5:$J$29,3*($C$6-1)+2)*1000 -> 4.587833333 | J55: =VLOOKUP($H55,Conc_All!$A$5:$J$29,3*($C$6-1)+3)*1000 -> 5.066483333 | K55: =VLOOKUP($H55,Conc_All!$A$5:$J$29,3*($C$6-1)+4)*1000 -> 6.033191667 | L55: 50 | N55: 20 | O55: =VLOOKUP($N55,Conc_All!$L$5:$R$204,3*($C$8-1)+2)*1000 -> 0 | P55: =VLOOKUP($N55,Conc_All!$L$5:$R$204,3*($C$8-1)+3)*1000 -> 0 | Q55: =VLOOKUP($N55,Conc_All!$L$5:$R$204,3*($C$8-1)+4)*1000 -> 0 | R55: 50
A56: Sb | B56: 0.031 | C56: 0.031 | D56: 0.031 | H56: 21 | I56: =VLOOKUP($H56,Conc_All!$A$5:$J$29,3*($C$6-1)+2)*1000 -> 9.507608333 | J56: =VLOOKUP($H56,Conc_All!$A$5:$J$29,3*($C$6-1)+3)*1000 -> 9.900008333 | K56: =VLOOKUP($H56,Conc_All!$A$5:$J$29,3*($C$6-1)+4)*1000 -> 10.35545 | L56: 50 | N56: 21 | O56: =VLOOKUP($N56,Conc_All!$L$5:$R$204,3*($C$8-1)+2)*1000 -> 0 | P56: =VLOOKUP($N56,Conc_All!$L$5:$R$204,3*($C$8-1)+3)*1000 -> 0 | Q56: =VLOOKUP($N56,Conc_All!$L$5:$R$204,3*($C$8-1)+4)*1000 -> 0 | R56: 50
A57: Se | B57: 0.005 | C57: 0.005 | D57: 0.005 | H57: 22 | I57: =VLOOKUP($H57,Conc_All!$A$5:$J$29,3*($C$6-1)+2)*1000 -> 9.527325 | J57: =VLOOKUP($H57,Conc_All!$A$5:$J$29,3*($C$6-1)+3)*1000 -> 9.63835 | K57: =VLOOKUP($H57,Conc_All!$A$5:$J$29,3*($C$6-1)+4)*1000 -> 9.762233333 | L57: 50 | N57: 22 | O57: =VLOOKUP($N57,Conc_All!$L$5:$R$204,3*($C$8-1)+2)*1000 -> 0 | P57: =VLOOKUP($N57,Conc_All!$L$5:$R$204,3*($C$8-1)+3)*1000 -> 0 | Q57: =VLOOKUP($N57,Conc_All!$L$5:$R$204,3*($C$8-1)+4)*1000 -> 0 | R57: 50
A58: SO4 | B58: 250 | C58: 150 | D58: 9 | H58: 23 | I58: =VLOOKUP($H58,Conc_All!$A$5:$J$29,3*($C$6-1)+2)*1000 -> 9.5283 | J58: =VLOOKUP($H58,Conc_All!$A$5:$J$29,3*($C$6-1)+3)*1000 -> 9.6387 | K58: =VLOOKUP($H58,Conc_All!$A$5:$J$29,3*($C$6-1)+4)*1000 -> 9.7647 | L58: 50 | N58: 23 | O58: =VLOOKUP($N58,Conc_All!$L$5:$R$204,3*($C$8-1)+2)*1000 -> 0 | P58: =VLOOKUP($N58,Conc_All!$L$5:$R$204,3*($C$8-1)+3)*1000 -> 0 | Q58: =VLOOKUP($N58,Conc_All!$L$5:$R$204,3*($C$8-1)+4)*1000 -> 0 | R58: 50
A59: Tl | B59: 0.00056 | C59: 0.00056 | D59: 0.00056 | H59: 24 | I59: =VLOOKUP($H59,Conc_All!$A$5:$J$29,3*($C$6-1)+2)*1000 -> 9.5283 | J59: =VLOOKUP($H59,Conc_All!$A$5:$J$29,3*($C$6-1)+3)*1000 -> 9.6387 | K59: =VLOOKUP($H59,Conc_All!$A$5:$J$29,3*($C$6-1)+4)*1000 -> 9.7647 | L59: 50 | N59: 24 | O59: =VLOOKUP($N59,Conc_All!$L$5:$R$204,3*($C$8-1)+2)*1000 -> 0 | P59: =VLOOKUP($N59,Conc_All!$L$5:$R$204,3*($C$8-1)+3)*1000 -> 0 | Q59: =VLOOKUP($N59,Conc_All!$L$5:$R$204,3*($C$8-1)+4)*1000 -> 0 | R59: 50
A60: V | B60: 0.05 | C60: 0.05 | D60: 0.05 | H60: 25 | I60: =VLOOKUP($H60,Conc_All!$A$5:$J$29,3*($C$6-1)+2)*1000 -> 9.5283 | J60: =VLOOKUP($H60,Conc_All!$A$5:$J$29,3*($C$6-1)+3)*1000 -> 9.6387 | K60: =VLOOKUP($H60,Conc_All!$A$5:$J$29,3*($C$6-1)+4)*1000 -> 9.7647 | L60: 50 | N60: 25 | O60: =VLOOKUP($N60,Conc_All!$L$5:$R$204,3*($C$8-1)+2)*1000 -> 0 | P60: =VLOOKUP($N60,Conc_All!$L$5:$R$204,3*($C$8-1)+3)*1000 -> 0 | Q60: =VLOOKUP($N60,Conc_All!$L$5:$R$204,3*($C$8-1)+4)*1000 -> 0 | R60: 50
A61: Zn | B61: 0.388 | C61: 0.2 | D61: 0.1 | N61: 26 | O61: =VLOOKUP($N61,Conc_All!$L$5:$R$204,3*($C$8-1)+2)*1000 -> 0 | P61: =VLOOKUP($N61,Conc_All!$L$5:$R$204,3*($C$8-1)+3)*1000 -> 0 | Q61: =VLOOKUP($N61,Conc_All!$L$5:$R$204,3*($C$8-1)+4)*1000 -> 0 | R61: 50
A62: Hardness | B62: 250 | C62: 200 | D62: 100 | E62: (not plotted) | N62: 27 | O62: =VLOOKUP($N62,Conc_All!$L$5:$R$204,3*($C$8-1)+2)*1000 -> 0 | P62: =VLOOKUP($N62,Conc_All!$L$5:$R$204,3*($C$8-1)+3)*1000 -> 0 | Q62: =VLOOKUP($N62,Conc_All!$L$5:$R$204,3*($C$8-1)+4)*1000 -> 0 | R62: 50
N63: 28 | O63: =VLOOKUP($N63,Conc_All!$L$5:$R$204,3*($C$8-1)+2)*1000 -> 0 | P63: =VLOOKUP($N63,Conc_All!$L$5:$R$204,3*($C$8-1)+3)*1000 -> 0 | Q63: =VLOOKUP($N63,Conc_All!$L$5:$R$204,3*($C$8-1)+4)*1000 -> 0 | R63: 50
N64: 29 | O64: =VLOOKUP($N64,Conc_All!$L$5:$R$204,3*($C$8-1)+2)*1000 -> 0 | P64: =VLOOKUP($N64,Conc_All!$L$5:$R$204,3*($C$8-1)+3)*1000 -> 0 | Q64: =VLOOKUP($N64,Conc_All!$L$5:$R$204,3*($C$8-1)+4)*1000 -> 0 | R64: 50
N65: 30 | O65: =VLOOKUP($N65,Conc_All!$L$5:$R$204,3*($C$8-1)+2)*1000 -> 0 | P65: =VLOOKUP($N65,Conc_All!$L$5:$R$204,3*($C$8-1)+3)*1000 -> 0 | Q65: =VLOOKUP($N65,Conc_All!$L$5:$R$204,3*($C$8-1)+4)*1000 -> 0 | R65: 50
N66: 31 | O66: =VLOOKUP($N66,Conc_All!$L$5:$R$204,3*($C$8-1)+2)*1000 -> 0 | P66: =VLOOKUP($N66,Conc_All!$L$5:$R$204,3*($C$8-1)+3)*1000 -> 0 | Q66: =VLOOKUP($N66,Conc_All!$L$5:$R$204,3*($C$8-1)+4)*1000 -> 0 | R66: 50
N67: 32 | O67: =VLOOKUP($N67,Conc_All!$L$5:$R$204,3*($C$8-1)+2)*1000 -> 0 | P67: =VLOOKUP($N67,Conc_All!$L$5:$R$204,3*($C$8-1)+3)*1000 -> 0 | Q67: =VLOOKUP($N67,Conc_All!$L$5:$R$204,3*($C$8-1)+4)*1000 -> 0 | R67: 50
N68: 33 | O68: =VLOOKUP($N68,Conc_All!$L$5:$R$204,3*($C$8-1)+2)*1000 -> 0 | P68: =VLOOKUP($N68,Conc_All!$L$5:$R$204,3*($C$8-1)+3)*1000 -> 0 | Q68: =VLOOKUP($N68,Conc_All!$L$5:$R$204,3*($C$8-1)+4)*1000 -> 0 | R68: 50
N69: 34 | O69: =VLOOKUP($N69,Conc_All!$L$5:$R$204,3*($C$8-1)+2)*1000 -> 0 | P69: =VLOOKUP($N69,Conc_All!$L$5:$R$204,3*($C$8-1)+3)*1000 -> 0 | Q69: =VLOOKUP($N69,Conc_All!$L$5:$R$204,3*($C$8-1)+4)*1000 -> 0 | R69: 50
N70: 35 | O70: =VLOOKUP($N70,Conc_All!$L$5:$R$204,3*($C$8-1)+2)*1000 -> 0 | P70: =VLOOKUP($N70,Conc_All!$L$5:$R$204,3*($C$8-1)+3)*1000 -> 0 | Q70: =VLOOKUP($N70,Conc_All!$L$5:$R$204,3*($C$8-1)+4)*1000 -> 0 | R70: 50
N71: 36 | O71: =VLOOKUP($N71,Conc_All!$L$5:$R$204,3*($C$8-1)+2)*1000 -> 0 | P71: =VLOOKUP($N71,Conc_All!$L$5:$R$204,3*($C$8-1)+3)*1000 -> 0 | Q71: =VLOOKUP($N71,Conc_All!$L$5:$R$204,3*($C$8-1)+4)*1000 -> 0 | R71: 50
N72: 37 | O72: =VLOOKUP($N72,Conc_All!$L$5:$R$204,3*($C$8-1)+2)*1000 -> 0 | P72: =VLOOKUP($N72,Conc_All!$L$5:$R$204,3*($C$8-1)+3)*1000 -> 0 | Q72: =VLOOKUP($N72,Conc_All!$L$5:$R$204,3*($C$8-1)+4)*1000 -> 0 | R72: 50
N73: 38 | O73: =VLOOKUP($N73,Conc_All!$L$5:$R$204,3*($C$8-1)+2)*1000 -> 0 | P73: =VLOOKUP($N73,Conc_All!$L$5:$R$204,3*($C$8-1)+3)*1000 -> 0 | Q73: =VLOOKUP($N73,Conc_All!$L$5:$R$204,3*($C$8-1)+4)*1000 -> 0 | R73: 50
N74: 39 | O74: =VLOOKUP($N74,Conc_All!$L$5:$R$204,3*($C$8-1)+2)*1000 -> 0 | P74: =VLOOKUP($N74,Conc_All!$L$5:$R$204,3*($C$8-1)+3)*1000 -> 0 | Q74: =VLOOKUP($N74,Conc_All!$L$5:$R$204,3*($C$8-1)+4)*1000 -> 0 | R74: 50
N75: 40 | O75: =VLOOKUP($N75,Conc_All!$L$5:$R$204,3*($C$8-1)+2)*1000 -> 0 | P75: =VLOOKUP($N75,Conc_All!$L$5:$R$204,3*($C$8-1)+3)*1000 -> 0 | Q75: =VLOOKUP($N75,Conc_All!$L$5:$R$204,3*($C$8-1)+4)*1000 -> 0 | R75: 50
N76: 41 | O76: =VLOOKUP($N76,Conc_All!$L$5:$R$204,3*($C$8-1)+2)*1000 -> 0 | P76: =VLOOKUP($N76,Conc_All!$L$5:$R$204,3*($C$8-1)+3)*1000 -> 0 | Q76: =VLOOKUP($N76,Conc_All!$L$5:$R$204,3*($C$8-1)+4)*1000 -> 0 | R76: 50
N77: 42 | O77: =VLOOKUP($N77,Conc_All!$L$5:$R$204,3*($C$8-1)+2)*1000 -> 0 | P77: =VLOOKUP($N77,Conc_All!$L$5:$R$204,3*($C$8-1)+3)*1000 -> 0 | Q77: =VLOOKUP($N77,Conc_All!$L$5:$R$204,3*($C$8-1)+4)*1000 -> 0 | R77: 50
N78: 43 | O78: =VLOOKUP($N78,Conc_All!$L$5:$R$204,3*($C$8-1)+2)*1000 -> 0 | P78: =VLOOKUP($N78,Conc_All!$L$5:$R$204,3*($C$8-1)+3)*1000 -> 0 | Q78: =VLOOKUP($N78,Conc_All!$L$5:$R$204,3*($C$8-1)+4)*1000 -> 0 | R78: 50
N79: 44 | O79: =VLOOKUP($N79,Conc_All!$L$5:$R$204,3*($C$8-1)+2)*1000 -> 0 | P79: =VLOOKUP($N79,Conc_All!$L$5:$R$204,3*($C$8-1)+3)*1000 -> 0 | Q79: =VLOOKUP($N79,Conc_All!$L$5:$R$204,3*($C$8-1)+4)*1000 -> 0 | R79: 50
N80: 45 | O80: =VLOOKUP($N80,Conc_All!$L$5:$R$204,3*($C$8-1)+2)*1000 -> 0 | P80: =VLOOKUP($N80,Conc_All!$L$5:$R$204,3*($C$8-1)+3)*1000 -> 0 | Q80: =VLOOKUP($N80,Conc_All!$L$5:$R$204,3*($C$8-1)+4)*1000 -> 0 | R80: 50
N81: 46 | O81: =VLOOKUP($N81,Conc_All!$L$5:$R$204,3*($C$8-1)+2)*1000 -> 0 | P81: =VLOOKUP($N81,Conc_All!$L$5:$R$204,3*($C$8-1)+3)*1000 -> 0 | Q81: =VLOOKUP($N81,Conc_All!$L$5:$R$204,3*($C$8-1)+4)*1000 -> 0 | R81: 50
N82: 47 | O82: =VLOOKUP($N82,Conc_All!$L$5:$R$204,3*($C$8-1)+2)*1000 -> 0 | P82: =VLOOKUP($N82,Conc_All!$L$5:$R$204,3*($C$8-1)+3)*1000 -> 0 | Q82: =VLOOKUP($N82,Conc_All!$L$5:$R$204,3*($C$8-1)+4)*1000 -> 0 | R82: 50
N83: 48 | O83: =VLOOKUP($N83,Conc_All!$L$5:$R$204,3*($C$8-1)+2)*1000 -> 0 | P83: =VLOOKUP($N83,Conc_All!$L$5:$R$204,3*($C$8-1)+3)*1000 -> 0 | Q83: =VLOOKUP($N83,Conc_All!$L$5:$R$204,3*($C$8-1)+4)*1000 -> 0 | R83: 50
N84: 49 | O84: =VLOOKUP($N84,Conc_All!$L$5:$R$204,3*($C$8-1)+2)*1000 -> 0 | P84: =VLOOKUP($N84,Conc_All!$L$5:$R$204,3*($C$8-1)+3)*1000 -> 0 | Q84: =VLOOKUP($N84,Conc_All!$L$5:$R$204,3*($C$8-1)+4)*1000 -> 1.635725 | R84: 50
N85: 50 | O85: =VLOOKUP($N85,Conc_All!$L$5:$R$204,3*($C$8-1)+2)*1000 -> 0 | P85: =VLOOKUP($N85,Conc_All!$L$5:$R$204,3*($C$8-1)+3)*1000 -> 0 | Q85: =VLOOKUP($N85,Conc_All!$L$5:$R$204,3*($C$8-1)+4)*1000 -> 9.975183333 | R85: 50
N86: 51 | O86: =VLOOKUP($N86,Conc_All!$L$5:$R$204,3*($C$8-1)+2)*1000 -> 0 | P86: =VLOOKUP($N86,Conc_All!$L$5:$R$204,3*($C$8-1)+3)*1000 -> 0 | Q86: =VLOOKUP($N86,Conc_All!$L$5:$R$204,3*($C$8-1)+4)*1000 -> 10 | R86: 50
N87: 52 | O87: =VLOOKUP($N87,Conc_All!$L$5:$R$204,3*($C$8-1)+2)*1000 -> 0 | P87: =VLOOKUP($N87,Conc_All!$L$5:$R$204,3*($C$8-1)+3)*1000 -> 4.700491667 | Q87: =VLOOKUP($N87,Conc_All!$L$5:$R$204,3*($C$8-1)+4)*1000 -> 10 | R87: 50
N88: 53 | O88: =VLOOKUP($N88,Conc_All!$L$5:$R$204,3*($C$8-1)+2)*1000 -> 0 | P88: =VLOOKUP($N88,Conc_All!$L$5:$R$204,3*($C$8-1)+3)*1000 -> 9.899875 | Q88: =VLOOKUP($N88,Conc_All!$L$5:$R$204,3*($C$8-1)+4)*1000 -> 10 | R88: 50
N89: 54 | O89: =VLOOKUP($N89,Conc_All!$L$5:$R$204,3*($C$8-1)+2)*1000 -> 0 | P89: =VLOOKUP($N89,Conc_All!$L$5:$R$204,3*($C$8-1)+3)*1000 -> 9.964741667 | Q89: =VLOOKUP($N89,Conc_All!$L$5:$R$204,3*($C$8-1)+4)*1000 -> 10 | R89: 50
N90: 55 | O90: =VLOOKUP($N90,Conc_All!$L$5:$R$204,3*($C$8-1)+2)*1000 -> 4.655633333 | P90: =VLOOKUP($N90,Conc_All!$L$5:$R$204,3*($C$8-1)+3)*1000 -> 9.984566667 | Q90: =VLOOKUP($N90,Conc_All!$L$5:$R$204,3*($C$8-1)+4)*1000 -> 10 | R90: 50
N91: 56 | O91: =VLOOKUP($N91,Conc_All!$L$5:$R$204,3*($C$8-1)+2)*1000 -> 9.72935 | P91: =VLOOKUP($N91,Conc_All!$L$5:$R$204,3*($C$8-1)+3)*1000 -> 9.996433333 | Q91: =VLOOKUP($N91,Conc_All!$L$5:$R$204,3*($C$8-1)+4)*1000 -> 10 | R91: 50
N92: 57 | O92: =VLOOKUP($N92,Conc_All!$L$5:$R$204,3*($C$8-1)+2)*1000 -> 9.785641667 | P92: =VLOOKUP($N92,Conc_All!$L$5:$R$204,3*($C$8-1)+3)*1000 -> 9.998683333 | Q92: =VLOOKUP($N92,Conc_All!$L$5:$R$204,3*($C$8-1)+4)*1000 -> 10 | R92: 50
N93: 58 | O93: =VLOOKUP($N93,Conc_All!$L$5:$R$204,3*($C$8-1)+2)*1000 -> 9.804091667 | P93: =VLOOKUP($N93,Conc_All!$L$5:$R$204,3*($C$8-1)+3)*1000 -> 9.999125 | Q93: =VLOOKUP($N93,Conc_All!$L$5:$R$204,3*($C$8-1)+4)*1000 -> 10 | R93: 50
N94: 59 | O94: =VLOOKUP($N94,Conc_All!$L$5:$R$204,3*($C$8-1)+2)*1000 -> 9.816566667 | P94: =VLOOKUP($N94,Conc_All!$L$5:$R$204,3*($C$8-1)+3)*1000 -> 9.999725 | Q94: =VLOOKUP($N94,Conc_All!$L$5:$R$204,3*($C$8-1)+4)*1000 -> 10 | R94: 50
N95: 60 | O95: =VLOOKUP($N95,Conc_All!$L$5:$R$204,3*($C$8-1)+2)*1000 -> 9.815425 | P95: =VLOOKUP($N95,Conc_All!$L$5:$R$204,3*($C$8-1)+3)*1000 -> 9.99955 | Q95: =VLOOKUP($N95,Conc_All!$L$5:$R$204,3*($C$8-1)+4)*1000 -> 10 | R95: 50
N96: 61 | O96: =VLOOKUP($N96,Conc_All!$L$5:$R$204,3*($C$8-1)+2)*1000 -> 9.81865 | P96: =VLOOKUP($N96,Conc_All!$L$5:$R$204,3*($C$8-1)+3)*1000 -> 9.999458333 | Q96: =VLOOKUP($N96,Conc_All!$L$5:$R$204,3*($C$8-1)+4)*1000 -> 10 | R96: 50
N97: 62 | O97: =VLOOKUP($N97,Conc_All!$L$5:$R$204,3*($C$8-1)+2)*1000 -> 9.830225 | P97: =VLOOKUP($N97,Conc_All!$L$5:$R$204,3*($C$8-1)+3)*1000 -> 9.999516667 | Q97: =VLOOKUP($N97,Conc_All!$L$5:$R$204,3*($C$8-1)+4)*1000 -> 10 | R97: 50
N98: 63 | O98: =VLOOKUP($N98,Conc_All!$L$5:$R$204,3*($C$8-1)+2)*1000 -> 9.822616667 | P98: =VLOOKUP($N98,Conc_All!$L$5:$R$204,3*($C$8-1)+3)*1000 -> 9.999683333 | Q98: =VLOOKUP($N98,Conc_All!$L$5:$R$204,3*($C$8-1)+4)*1000 -> 10 | R98: 50
N99: 64 | O99: =VLOOKUP($N99,Conc_All!$L$5:$R$204,3*($C$8-1)+2)*1000 -> 9.831375 | P99: =VLOOKUP($N99,Conc_All!$L$5:$R$204,3*($C$8-1)+3)*1000 -> 9.99985 | Q99: =VLOOKUP($N99,Conc_All!$L$5:$R$204,3*($C$8-1)+4)*1000 -> 10 | R99: 50
N100: 65 | O100: =VLOOKUP($N100,Conc_All!$L$5:$R$204,3*($C$8-1)+2)*1000 -> 9.825241667 | P100: =VLOOKUP($N100,Conc_All!$L$5:$R$204,3*($C$8-1)+3)*1000 -> 9.999783333 | Q100: =VLOOKUP($N100,Conc_All!$L$5:$R$204,3*($C$8-1)+4)*1000 -> 10 | R100: =VLOOKUP($B$4,$A$35:$D$62,IF($C$8=1,3,IF($C$8=2,4,NA())),FALSE)*1000 -> 50
N101: 66 | O101: =VLOOKUP($N101,Conc_All!$L$5:$R$204,3*($C$8-1)+2)*1000 -> 9.819425 | P101: =VLOOKUP($N101,Conc_All!$L$5:$R$204,3*($C$8-1)+3)*1000 -> 9.998925 | Q101: =VLOOKUP($N101,Conc_All!$L$5:$R$204,3*($C$8-1)+4)*1000 -> 10 | R101: 50
N102: 67 | O102: =VLOOKUP($N102,Conc_All!$L$5:$R$204,3*($C$8-1)+2)*1000 -> 9.818308333 | P102: =VLOOKUP($N102,Conc_All!$L$5:$R$204,3*($C$8-1)+3)*1000 -> 9.9976 | Q102: =VLOOKUP($N102,Conc_All!$L$5:$R$204,3*($C$8-1)+4)*1000 -> 10 | R102: 50
N103: 68 | O103: =VLOOKUP($N103,Conc_All!$L$5:$R$204,3*($C$8-1)+2)*1000 -> 9.819825 | P103: =VLOOKUP($N103,Conc_All!$L$5:$R$204,3*($C$8-1)+3)*1000 -> 9.998658333 | Q103: =VLOOKUP($N103,Conc_All!$L$5:$R$204,3*($C$8-1)+4)*1000 -> 10 | R103: 50
N104: 69 | O104: =VLOOKUP($N104,Conc_All!$L$5:$R$204,3*($C$8-1)+2)*1000 -> 9.836566667 | P104: =VLOOKUP($N104,Conc_All!$L$5:$R$204,3*($C$8-1)+3)*1000 -> 9.999583333 | Q104: =VLOOKUP($N104,Conc_All!$L$5:$R$204,3*($C$8-1)+4)*1000 -> 10 | R104: 50
N105: 70 | O105: =VLOOKUP($N105,Conc_All!$L$5:$R$204,3*($C$8-1)+2)*1000 -> 9.8379 | P105: =VLOOKUP($N105,Conc_All!$L$5:$R$204,3*($C$8-1)+3)*1000 -> 9.999725 | Q105: =VLOOKUP($N105,Conc_All!$L$5:$R$204,3*($C$8-1)+4)*1000 -> 10 | R105: 50
N106: 71 | O106: =VLOOKUP($N106,Conc_All!$L$5:$R$204,3*($C$8-1)+2)*1000 -> 9.826233333 | P106: =VLOOKUP($N106,Conc_All!$L$5:$R$204,3*($C$8-1)+3)*1000 -> 9.999683333 | Q106: =VLOOKUP($N106,Conc_All!$L$5:$R$204,3*($C$8-1)+4)*1000 -> 10 | R106: 50
N107: 72 | O107: =VLOOKUP($N107,Conc_All!$L$5:$R$204,3*($C$8-1)+2)*1000 -> 9.820633333 | P107: =VLOOKUP($N107,Conc_All!$L$5:$R$204,3*($C$8-1)+3)*1000 -> 9.999491667 | Q107: =VLOOKUP($N107,Conc_All!$L$5:$R$204,3*($C$8-1)+4)*1000 -> 10 | R107: 50
N108: 73 | O108: =VLOOKUP($N108,Conc_All!$L$5:$R$204,3*($C$8-1)+2)*1000 -> 9.822383333 | P108: =VLOOKUP($N108,Conc_All!$L$5:$R$204,3*($C$8-1)+3)*1000 -> 9.9991 | Q108: =VLOOKUP($N108,Conc_All!$L$5:$R$204,3*($C$8-1)+4)*1000 -> 10 | R108: 50
N109: 74 | O109: =VLOOKUP($N109,Conc_All!$L$5:$R$204,3*($C$8-1)+2)*1000 -> 9.82845 | P109: =VLOOKUP($N109,Conc_All!$L$5:$R$204,3*($C$8-1)+3)*1000 -> 9.997625 | Q109: =VLOOKUP($N109,Conc_All!$L$5:$R$204,3*($C$8-1)+4)*1000 -> 10 | R109: 50
N110: 75 | O110: =VLOOKUP($N110,Conc_All!$L$5:$R$204,3*($C$8-1)+2)*1000 -> 9.825025 | P110: =VLOOKUP($N110,Conc_All!$L$5:$R$204,3*($C$8-1)+3)*1000 -> 9.997691667 | Q110: =VLOOKUP($N110,Conc_All!$L$5:$R$204,3*($C$8-1)+4)*1000 -> 10 | R110: 50
N111: 76 | O111: =VLOOKUP($N111,Conc_All!$L$5:$R$204,3*($C$8-1)+2)*1000 -> 9.827708333 | P111: =VLOOKUP($N111,Conc_All!$L$5:$R$204,3*($C$8-1)+3)*1000 -> 9.997791667 | Q111: =VLOOKUP($N111,Conc_All!$L$5:$R$204,3*($C$8-1)+4)*1000 -> 10 | R111: 50
N112: 77 | O112: =VLOOKUP($N112,Conc_All!$L$5:$R$204,3*($C$8-1)+2)*1000 -> 9.825491667 | P112: =VLOOKUP($N112,Conc_All!$L$5:$R$204,3*($C$8-1)+3)*1000 -> 9.998466667 | Q112: =VLOOKUP($N112,Conc_All!$L$5:$R$204,3*($C$8-1)+4)*1000 -> 10 | R112: 50
N113: 78 | O113: =VLOOKUP($N113,Conc_All!$L$5:$R$204,3*($C$8-1)+2)*1000 -> 9.829216667 | P113: =VLOOKUP($N113,Conc_All!$L$5:$R$204,3*($C$8-1)+3)*1000 -> 9.998425 | Q113: =VLOOKUP($N113,Conc_All!$L$5:$R$204,3*($C$8-1)+4)*1000 -> 10 | R113: 50
N114: 79 | O114: =VLOOKUP($N114,Conc_All!$L$5:$R$204,3*($C$8-1)+2)*1000 -> 9.823391667 | P114: =VLOOKUP($N114,Conc_All!$L$5:$R$204,3*($C$8-1)+3)*1000 -> 9.996508333 | Q114: =VLOOKUP($N114,Conc_All!$L$5:$R$204,3*($C$8-1)+4)*1000 -> 10 | R114: 50
N115: 80 | O115: =VLOOKUP($N115,Conc_All!$L$5:$R$204,3*($C$8-1)+2)*1000 -> 9.829658333 | P115: =VLOOKUP($N115,Conc_All!$L$5:$R$204,3*($C$8-1)+3)*1000 -> 9.9977 | Q115: =VLOOKUP($N115,Conc_All!$L$5:$R$204,3*($C$8-1)+4)*1000 -> 10 | R115: 50
N116: 81 | O116: =VLOOKUP($N116,Conc_All!$L$5:$R$204,3*($C$8-1)+2)*1000 -> 9.820316667 | P116: =VLOOKUP($N116,Conc_All!$L$5:$R$204,3*($C$8-1)+3)*1000 -> 9.998808333 | Q116: =VLOOKUP($N116,Conc_All!$L$5:$R$204,3*($C$8-1)+4)*1000 -> 10 | R116: 50
N117: 82 | O117: =VLOOKUP($N117,Conc_All!$L$5:$R$204,3*($C$8-1)+2)*1000 -> 9.821083333 | P117: =VLOOKUP($N117,Conc_All!$L$5:$R$204,3*($C$8-1)+3)*1000 -> 9.999408333 | Q117: =VLOOKUP($N117,Conc_All!$L$5:$R$204,3*($C$8-1)+4)*1000 -> 10 | R117: 50
N118: 83 | O118: =VLOOKUP($N118,Conc_All!$L$5:$R$204,3*($C$8-1)+2)*1000 -> 9.811525 | P118: =VLOOKUP($N118,Conc_All!$L$5:$R$204,3*($C$8-1)+3)*1000 -> 9.999491667 | Q118: =VLOOKUP($N118,Conc_All!$L$5:$R$204,3*($C$8-1)+4)*1000 -> 10 | R118: 50
N119: 84 | O119: =VLOOKUP($N119,Conc_All!$L$5:$R$204,3*($C$8-1)+2)*1000 -> 9.822758333 | P119: =VLOOKUP($N119,Conc_All!$L$5:$R$204,3*($C$8-1)+3)*1000 -> 9.99915 | Q119: =VLOOKUP($N119,Conc_All!$L$5:$R$204,3*($C$8-1)+4)*1000 -> 10 | R119: 50
N120: 85 | O120: =VLOOKUP($N120,Conc_All!$L$5:$R$204,3*($C$8-1)+2)*1000 -> 9.826666667 | P120: =VLOOKUP($N120,Conc_All!$L$5:$R$204,3*($C$8-1)+3)*1000 -> 9.999191667 | Q120: =VLOOKUP($N120,Conc_All!$L$5:$R$204,3*($C$8-1)+4)*1000 -> 10 | R120: 50
N121: 86 | O121: =VLOOKUP($N121,Conc_All!$L$5:$R$204,3*($C$8-1)+2)*1000 -> 9.814533333 | P121: =VLOOKUP($N121,Conc_All!$L$5:$R$204,3*($C$8-1)+3)*1000 -> 9.999608333 | Q121: =VLOOKUP($N121,Conc_All!$L$5:$R$204,3*($C$8-1)+4)*1000 -> 10 | R121: 50
N122: 87 | O122: =VLOOKUP($N122,Conc_All!$L$5:$R$204,3*($C$8-1)+2)*1000 -> 9.825258333 | P122: =VLOOKUP($N122,Conc_All!$L$5:$R$204,3*($C$8-1)+3)*1000 -> 9.999516667 | Q122: =VLOOKUP($N122,Conc_All!$L$5:$R$204,3*($C$8-1)+4)*1000 -> 10 | R122: 50
N123: 88 | O123: =VLOOKUP($N123,Conc_All!$L$5:$R$204,3*($C$8-1)+2)*1000 -> 9.8252 | P123: =VLOOKUP($N123,Conc_All!$L$5:$R$204,3*($C$8-1)+3)*1000 -> 9.998916667 | Q123: =VLOOKUP($N123,Conc_All!$L$5:$R$204,3*($C$8-1)+4)*1000 -> 10 | R123: 50
N124: 89 | O124: =VLOOKUP($N124,Conc_All!$L$5:$R$204,3*($C$8-1)+2)*1000 -> 9.830566667 | P124: =VLOOKUP($N124,Conc_All!$L$5:$R$204,3*($C$8-1)+3)*1000 -> 9.999433333 | Q124: =VLOOKUP($N124,Conc_All!$L$5:$R$204,3*($C$8-1)+4)*1000 -> 10 | R124: 50
N125: 90 | O125: =VLOOKUP($N125,Conc_All!$L$5:$R$204,3*($C$8-1)+2)*1000 -> 9.823908333 | P125: =VLOOKUP($N125,Conc_All!$L$5:$R$204,3*($C$8-1)+3)*1000 -> 9.999566667 | Q125: =VLOOKUP($N125,Conc_All!$L$5:$R$204,3*($C$8-1)+4)*1000 -> 10 | R125: 50
N126: 91 | O126: =VLOOKUP($N126,Conc_All!$L$5:$R$204,3*($C$8-1)+2)*1000 -> 9.82705 | P126: =VLOOKUP($N126,Conc_All!$L$5:$R$204,3*($C$8-1)+3)*1000 -> 9.999375 | Q126: =VLOOKUP($N126,Conc_All!$L$5:$R$204,3*($C$8-1)+4)*1000 -> 10 | R126: 50
N127: 92 | O127: =VLOOKUP($N127,Conc_All!$L$5:$R$204,3*($C$8-1)+2)*1000 -> 9.823608333 | P127: =VLOOKUP($N127,Conc_All!$L$5:$R$204,3*($C$8-1)+3)*1000 -> 9.999083333 | Q127: =VLOOKUP($N127,Conc_All!$L$5:$R$204,3*($C$8-1)+4)*1000 -> 10 | R127: 50
N128: 93 | O128: =VLOOKUP($N128,Conc_All!$L$5:$R$204,3*($C$8-1)+2)*1000 -> 9.818366667 | P128: =VLOOKUP($N128,Conc_All!$L$5:$R$204,3*($C$8-1)+3)*1000 -> 9.9985 | Q128: =VLOOKUP($N128,Conc_All!$L$5:$R$204,3*($C$8-1)+4)*1000 -> 10 | R128: 50
N129: 94 | O129: =VLOOKUP($N129,Conc_All!$L$5:$R$204,3*($C$8-1)+2)*1000 -> 9.823358333 | P129: =VLOOKUP($N129,Conc_All!$L$5:$R$204,3*($C$8-1)+3)*1000 -> 9.997975 | Q129: =VLOOKUP($N129,Conc_All!$L$5:$R$204,3*($C$8-1)+4)*1000 -> 10 | R129: 50
N130: 95 | O130: =VLOOKUP($N130,Conc_All!$L$5:$R$204,3*($C$8-1)+2)*1000 -> 9.8153 | P130: =VLOOKUP($N130,Conc_All!$L$5:$R$204,3*($C$8-1)+3)*1000 -> 9.999241667 | Q130: =VLOOKUP($N130,Conc_All!$L$5:$R$204,3*($C$8-1)+4)*1000 -> 10 | R130: 50
N131: 96 | O131: =VLOOKUP($N131,Conc_All!$L$5:$R$204,3*($C$8-1)+2)*1000 -> 9.825141667 | P131: =VLOOKUP($N131,Conc_All!$L$5:$R$204,3*($C$8-1)+3)*1000 -> 9.999708333 | Q131: =VLOOKUP($N131,Conc_All!$L$5:$R$204,3*($C$8-1)+4)*1000 -> 10 | R131: 50
N132: 97 | O132: =VLOOKUP($N132,Conc_All!$L$5:$R$204,3*($C$8-1)+2)*1000 -> 9.813133333 | P132: =VLOOKUP($N132,Conc_All!$L$5:$R$204,3*($C$8-1)+3)*1000 -> 9.999866667 | Q132: =VLOOKUP($N132,Conc_All!$L$5:$R$204,3*($C$8-1)+4)*1000 -> 10 | R132: 50
N133: 98 | O133: =VLOOKUP($N133,Conc_All!$L$5:$R$204,3*($C$8-1)+2)*1000 -> 9.817 | P133: =VLOOKUP($N133,Conc_All!$L$5:$R$204,3*($C$8-1)+3)*1000 -> 9.998941667 | Q133: =VLOOKUP($N133,Conc_All!$L$5:$R$204,3*($C$8-1)+4)*1000 -> 10 | R133: 50
N134: 99 | O134: =VLOOKUP($N134,Conc_All!$L$5:$R$204,3*($C$8-1)+2)*1000 -> 9.807841667 | P134: =VLOOKUP($N134,Conc_All!$L$5:$R$204,3*($C$8-1)+3)*1000 -> 9.9964 | Q134: =VLOOKUP($N134,Conc_All!$L$5:$R$204,3*($C$8-1)+4)*1000 -> 10 | R134: 50
N135: 100 | O135: =VLOOKUP($N135,Conc_All!$L$5:$R$204,3*($C$8-1)+2)*1000 -> 9.8114 | P135: =VLOOKUP($N135,Conc_All!$L$5:$R$204,3*($C$8-1)+3)*1000 -> 9.996641667 | Q135: =VLOOKUP($N135,Conc_All!$L$5:$R$204,3*($C$8-1)+4)*1000 -> 10 | R135: 50
N136: 101 | O136: =VLOOKUP($N136,Conc_All!$L$5:$R$204,3*($C$8-1)+2)*1000 -> 9.81995 | P136: =VLOOKUP($N136,Conc_All!$L$5:$R$204,3*($C$8-1)+3)*1000 -> 9.99745 | Q136: =VLOOKUP($N136,Conc_All!$L$5:$R$204,3*($C$8-1)+4)*1000 -> 10 | R136: 50
N137: 102 | O137: =VLOOKUP($N137,Conc_All!$L$5:$R$204,3*($C$8-1)+2)*1000 -> 9.814033333 | P137: =VLOOKUP($N137,Conc_All!$L$5:$R$204,3*($C$8-1)+3)*1000 -> 9.99885 | Q137: =VLOOKUP($N137,Conc_All!$L$5:$R$204,3*($C$8-1)+4)*1000 -> 10 | R137: 50
N138: 103 | O138: =VLOOKUP($N138,Conc_All!$L$5:$R$204,3*($C$8-1)+2)*1000 -> 9.8142 | P138: =VLOOKUP($N138,Conc_All!$L$5:$R$204,3*($C$8-1)+3)*1000 -> 9.999383333 | Q138: =VLOOKUP($N138,Conc_All!$L$5:$R$204,3*($C$8-1)+4)*1000 -> 10 | R138: 50
N139: 104 | O139: =VLOOKUP($N139,Conc_All!$L$5:$R$204,3*($C$8-1)+2)*1000 -> 9.796891667 | P139: =VLOOKUP($N139,Conc_All!$L$5:$R$204,3*($C$8-1)+3)*1000 -> 9.999375 | Q139: =VLOOKUP($N139,Conc_All!$L$5:$R$204,3*($C$8-1)+4)*1000 -> 10 | R139: 50
N140: 105 | O140: =VLOOKUP($N140,Conc_All!$L$5:$R$204,3*($C$8-1)+2)*1000 -> 9.7988 | P140: =VLOOKUP($N140,Conc_All!$L$5:$R$204,3*($C$8-1)+3)*1000 -> 9.9979 | Q140: =VLOOKUP($N140,Conc_All!$L$5:$R$204,3*($C$8-1)+4)*1000 -> 10 | R140: 50
N141: 106 | O141: =VLOOKUP($N141,Conc_All!$L$5:$R$204,3*($C$8-1)+2)*1000 -> 9.814933333 | P141: =VLOOKUP($N141,Conc_All!$L$5:$R$204,3*($C$8-1)+3)*1000 -> 9.997525 | Q141: =VLOOKUP($N141,Conc_All!$L$5:$R$204,3*($C$8-1)+4)*1000 -> 10 | R141: 50
N142: 107 | O142: =VLOOKUP($N142,Conc_All!$L$5:$R$204,3*($C$8-1)+2)*1000 -> 9.807175 | P142: =VLOOKUP($N142,Conc_All!$L$5:$R$204,3*($C$8-1)+3)*1000 -> 9.998683333 | Q142: =VLOOKUP($N142,Conc_All!$L$5:$R$204,3*($C$8-1)+4)*1000 -> 10 | R142: 50
N143: 108 | O143: =VLOOKUP($N143,Conc_All!$L$5:$R$204,3*($C$8-1)+2)*1000 -> 9.810166667 | P143: =VLOOKUP($N143,Conc_All!$L$5:$R$204,3*($C$8-1)+3)*1000 -> 9.998766667 | Q143: =VLOOKUP($N143,Conc_All!$L$5:$R$204,3*($C$8-1)+4)*1000 -> 10 | R143: 50
N144: 109 | O144: =VLOOKUP($N144,Conc_All!$L$5:$R$204,3*($C$8-1)+2)*1000 -> 9.819533333 | P144: =VLOOKUP($N144,Conc_All!$L$5:$R$204,3*($C$8-1)+3)*1000 -> 9.99955 | Q144: =VLOOKUP($N144,Conc_All!$L$5:$R$204,3*($C$8-1)+4)*1000 -> 10 | R144: 50
N145: 110 | O145: =VLOOKUP($N145,Conc_All!$L$5:$R$204,3*($C$8-1)+2)*1000 -> 9.810758333 | P145: =VLOOKUP($N145,Conc_All!$L$5:$R$204,3*($C$8-1)+3)*1000 -> 9.999533333 | Q145: =VLOOKUP($N145,Conc_All!$L$5:$R$204,3*($C$8-1)+4)*1000 -> 10 | R145: 50
N146: 111 | O146: =VLOOKUP($N146,Conc_All!$L$5:$R$204,3*($C$8-1)+2)*1000 -> 9.813891667 | P146: =VLOOKUP($N146,Conc_All!$L$5:$R$204,3*($C$8-1)+3)*1000 -> 9.999125 | Q146: =VLOOKUP($N146,Conc_All!$L$5:$R$204,3*($C$8-1)+4)*1000 -> 10 | R146: 50
N147: 112 | O147: =VLOOKUP($N147,Conc_All!$L$5:$R$204,3*($C$8-1)+2)*1000 -> 9.817916667 | P147: =VLOOKUP($N147,Conc_All!$L$5:$R$204,3*($C$8-1)+3)*1000 -> 9.997858333 | Q147: =VLOOKUP($N147,Conc_All!$L$5:$R$204,3*($C$8-1)+4)*1000 -> 10 | R147: 50
N148: 113 | O148: =VLOOKUP($N148,Conc_All!$L$5:$R$204,3*($C$8-1)+2)*1000 -> 9.812375 | P148: =VLOOKUP($N148,Conc_All!$L$5:$R$204,3*($C$8-1)+3)*1000 -> 9.996275 | Q148: =VLOOKUP($N148,Conc_All!$L$5:$R$204,3*($C$8-1)+4)*1000 -> 10 | R148: 50
N149: 114 | O149: =VLOOKUP($N149,Conc_All!$L$5:$R$204,3*($C$8-1)+2)*1000 -> 9.8111 | P149: =VLOOKUP($N149,Conc_All!$L$5:$R$204,3*($C$8-1)+3)*1000 -> 9.996008333 | Q149: =VLOOKUP($N149,Conc_All!$L$5:$R$204,3*($C$8-1)+4)*1000 -> 10 | R149: 50
N150: 115 | O150: =VLOOKUP($N150,Conc_All!$L$5:$R$204,3*($C$8-1)+2)*1000 -> 9.811216667 | P150: =VLOOKUP($N150,Conc_All!$L$5:$R$204,3*($C$8-1)+3)*1000 -> 9.997283333 | Q150: =VLOOKUP($N150,Conc_All!$L$5:$R$204,3*($C$8-1)+4)*1000 -> 10 | R150: 50
N151: 116 | O151: =VLOOKUP($N151,Conc_All!$L$5:$R$204,3*($C$8-1)+2)*1000 -> 9.808483333 | P151: =VLOOKUP($N151,Conc_All!$L$5:$R$204,3*($C$8-1)+3)*1000 -> 9.998241667 | Q151: =VLOOKUP($N151,Conc_All!$L$5:$R$204,3*($C$8-1)+4)*1000 -> 10 | R151: 50
N152: 117 | O152: =VLOOKUP($N152,Conc_All!$L$5:$R$204,3*($C$8-1)+2)*1000 -> 9.805533333 | P152: =VLOOKUP($N152,Conc_All!$L$5:$R$204,3*($C$8-1)+3)*1000 -> 9.99805 | Q152: =VLOOKUP($N152,Conc_All!$L$5:$R$204,3*($C$8-1)+4)*1000 -> 10 | R152: 50
N153: 118 | O153: =VLOOKUP($N153,Conc_All!$L$5:$R$204,3*($C$8-1)+2)*1000 -> 9.810425 | P153: =VLOOKUP($N153,Conc_All!$L$5:$R$204,3*($C$8-1)+3)*1000 -> 9.99795 | Q153: =VLOOKUP($N153,Conc_All!$L$5:$R$204,3*($C$8-1)+4)*1000 -> 10 | R153: 50
N154: 119 | O154: =VLOOKUP($N154,Conc_All!$L$5:$R$204,3*($C$8-1)+2)*1000 -> 9.817725 | P154: =VLOOKUP($N154,Conc_All!$L$5:$R$204,3*($C$8-1)+3)*1000 -> 9.997833333 | Q154: =VLOOKUP($N154,Conc_All!$L$5:$R$204,3*($C$8-1)+4)*1000 -> 10 | R154: 50
N155: 120 | O155: =VLOOKUP($N155,Conc_All!$L$5:$R$204,3*($C$8-1)+2)*1000 -> 9.8055 | P155: =VLOOKUP($N155,Conc_All!$L$5:$R$204,3*($C$8-1)+3)*1000 -> 9.99785 | Q155: =VLOOKUP($N155,Conc_All!$L$5:$R$204,3*($C$8-1)+4)*1000 -> 10 | R155: 50
N156: 121 | O156: =VLOOKUP($N156,Conc_All!$L$5:$R$204,3*($C$8-1)+2)*1000 -> 9.805475 | P156: =VLOOKUP($N156,Conc_All!$L$5:$R$204,3*($C$8-1)+3)*1000 -> 9.996275 | Q156: =VLOOKUP($N156,Conc_All!$L$5:$R$204,3*($C$8-1)+4)*1000 -> 10 | R156: 50
N157: 122 | O157: =VLOOKUP($N157,Conc_All!$L$5:$R$204,3*($C$8-1)+2)*1000 -> 9.79925 | P157: =VLOOKUP($N157,Conc_All!$L$5:$R$204,3*($C$8-1)+3)*1000 -> 9.997433333 | Q157: =VLOOKUP($N157,Conc_All!$L$5:$R$204,3*($C$8-1)+4)*1000 -> 10 | R157: 50
N158: 123 | O158: =VLOOKUP($N158,Conc_All!$L$5:$R$204,3*($C$8-1)+2)*1000 -> 9.810141667 | P158: =VLOOKUP($N158,Conc_All!$L$5:$R$204,3*($C$8-1)+3)*1000 -> 9.998158333 | Q158: =VLOOKUP($N158,Conc_All!$L$5:$R$204,3*($C$8-1)+4)*1000 -> 10 | R158: 50
N159: 124 | O159: =VLOOKUP($N159,Conc_All!$L$5:$R$204,3*($C$8-1)+2)*1000 -> 9.809041667 | P159: =VLOOKUP($N159,Conc_All!$L$5:$R$204,3*($C$8-1)+3)*1000 -> 9.998008333 | Q159: =VLOOKUP($N159,Conc_All!$L$5:$R$204,3*($C$8-1)+4)*1000 -> 10 | R159: 50
N160: 125 | O160: =VLOOKUP($N160,Conc_All!$L$5:$R$204,3*($C$8-1)+2)*1000 -> 9.808375 | P160: =VLOOKUP($N160,Conc_All!$L$5:$R$204,3*($C$8-1)+3)*1000 -> 9.998133333 | Q160: =VLOOKUP($N160,Conc_All!$L$5:$R$204,3*($C$8-1)+4)*1000 -> 10 | R160: 50
N161: 126 | O161: =VLOOKUP($N161,Conc_All!$L$5:$R$204,3*($C$8-1)+2)*1000 -> 9.809183333 | P161: =VLOOKUP($N161,Conc_All!$L$5:$R$204,3*($C$8-1)+3)*1000 -> 9.998358333 | Q161: =VLOOKUP($N161,Conc_All!$L$5:$R$204,3*($C$8-1)+4)*1000 -> 10 | R161: 50
N162: 127 | O162: =VLOOKUP($N162,Conc_All!$L$5:$R$204,3*($C$8-1)+2)*1000 -> 9.794041667 | P162: =VLOOKUP($N162,Conc_All!$L$5:$R$204,3*($C$8-1)+3)*1000 -> 9.996333333 | Q162: =VLOOKUP($N162,Conc_All!$L$5:$R$204,3*($C$8-1)+4)*1000 -> 10 | R162: 50
N163: 128 | O163: =VLOOKUP($N163,Conc_All!$L$5:$R$204,3*($C$8-1)+2)*1000 -> 9.796833333 | P163: =VLOOKUP($N163,Conc_All!$L$5:$R$204,3*($C$8-1)+3)*1000 -> 9.9961 | Q163: =VLOOKUP($N163,Conc_All!$L$5:$R$204,3*($C$8-1)+4)*1000 -> 10 | R163: 50
N164: 129 | O164: =VLOOKUP($N164,Conc_All!$L$5:$R$204,3*($C$8-1)+2)*1000 -> 9.797483333 | P164: =VLOOKUP($N164,Conc_All!$L$5:$R$204,3*($C$8-1)+3)*1000 -> 9.994916667 | Q164: =VLOOKUP($N164,Conc_All!$L$5:$R$204,3*($C$8-1)+4)*1000 -> 10 | R164: =VLOOKUP($B$4,$A$35:$D$62,IF($C$8=1,3,IF($C$8=2,4,NA())),FALSE)*1000 -> 50
N165: 130 | O165: =VLOOKUP($N165,Conc_All!$L$5:$R$204,3*($C$8-1)+2)*1000 -> 9.795233333 | P165: =VLOOKUP($N165,Conc_All!$L$5:$R$204,3*($C$8-1)+3)*1000 -> 9.993041667 | Q165: =VLOOKUP($N165,Conc_All!$L$5:$R$204,3*($C$8-1)+4)*1000 -> 10 | R165: 50
N166: 131 | O166: =VLOOKUP($N166,Conc_All!$L$5:$R$204,3*($C$8-1)+2)*1000 -> 9.785925 | P166: =VLOOKUP($N166,Conc_All!$L$5:$R$204,3*($C$8-1)+3)*1000 -> 9.992183333 | Q166: =VLOOKUP($N166,Conc_All!$L$5:$R$204,3*($C$8-1)+4)*1000 -> 10 | R166: 50
N167: 132 | O167: =VLOOKUP($N167,Conc_All!$L$5:$R$204,3*($C$8-1)+2)*1000 -> 9.808183333 | P167: =VLOOKUP($N167,Conc_All!$L$5:$R$204,3*($C$8-1)+3)*1000 -> 9.993175 | Q167: =VLOOKUP($N167,Conc_All!$L$5:$R$204,3*($C$8-1)+4)*1000 -> 10 | R167: 50
N168: 133 | O168: =VLOOKUP($N168,Conc_All!$L$5:$R$204,3*($C$8-1)+2)*1000 -> 9.7853 | P168: =VLOOKUP($N168,Conc_All!$L$5:$R$204,3*($C$8-1)+3)*1000 -> 9.991608333 | Q168: =VLOOKUP($N168,Conc_All!$L$5:$R$204,3*($C$8-1)+4)*1000 -> 10 | R168: 50
N169: 134 | O169: =VLOOKUP($N169,Conc_All!$L$5:$R$204,3*($C$8-1)+2)*1000 -> 9.800358333 | P169: =VLOOKUP($N169,Conc_All!$L$5:$R$204,3*($C$8-1)+3)*1000 -> 9.993675 | Q169: =VLOOKUP($N169,Conc_All!$L$5:$R$204,3*($C$8-1)+4)*1000 -> 10 | R169: 50
N170: 135 | O170: =VLOOKUP($N170,Conc_All!$L$5:$R$204,3*($C$8-1)+2)*1000 -> 9.791916667 | P170: =VLOOKUP($N170,Conc_All!$L$5:$R$204,3*($C$8-1)+3)*1000 -> 9.9937 | Q170: =VLOOKUP($N170,Conc_All!$L$5:$R$204,3*($C$8-1)+4)*1000 -> 10 | R170: 50
N171: 136 | O171: =VLOOKUP($N171,Conc_All!$L$5:$R$204,3*($C$8-1)+2)*1000 -> 9.79825 | P171: =VLOOKUP($N171,Conc_All!$L$5:$R$204,3*($C$8-1)+3)*1000 -> 9.993808333 | Q171: =VLOOKUP($N171,Conc_All!$L$5:$R$204,3*($C$8-1)+4)*1000 -> 10 | R171: 50
N172: 137 | O172: =VLOOKUP($N172,Conc_All!$L$5:$R$204,3*($C$8-1)+2)*1000 -> 9.792625 | P172: =VLOOKUP($N172,Conc_All!$L$5:$R$204,3*($C$8-1)+3)*1000 -> 9.993425 | Q172: =VLOOKUP($N172,Conc_All!$L$5:$R$204,3*($C$8-1)+4)*1000 -> 10 | R172: 50
N173: 138 | O173: =VLOOKUP($N173,Conc_All!$L$5:$R$204,3*($C$8-1)+2)*1000 -> 9.788075 | P173: =VLOOKUP($N173,Conc_All!$L$5:$R$204,3*($C$8-1)+3)*1000 -> 9.993875 | Q173: =VLOOKUP($N173,Conc_All!$L$5:$R$204,3*($C$8-1)+4)*1000 -> 10 | R173: 50
N174: 139 | O174: =VLOOKUP($N174,Conc_All!$L$5:$R$204,3*($C$8-1)+2)*1000 -> 9.77735 | P174: =VLOOKUP($N174,Conc_All!$L$5:$R$204,3*($C$8-1)+3)*1000 -> 9.994441667 | Q174: =VLOOKUP($N174,Conc_All!$L$5:$R$204,3*($C$8-1)+4)*1000 -> 10 | R174: 50
N175: 140 | O175: =VLOOKUP($N175,Conc_All!$L$5:$R$204,3*($C$8-1)+2)*1000 -> 9.766666667 | P175: =VLOOKUP($N175,Conc_All!$L$5:$R$204,3*($C$8-1)+3)*1000 -> 9.994091667 | Q175: =VLOOKUP($N175,Conc_All!$L$5:$R$204,3*($C$8-1)+4)*1000 -> 10 | R175: 50
N176: 141 | O176: =VLOOKUP($N176,Conc_All!$L$5:$R$204,3*($C$8-1)+2)*1000 -> 9.776883333 | P176: =VLOOKUP($N176,Conc_All!$L$5:$R$204,3*($C$8-1)+3)*1000 -> 9.993591667 | Q176: =VLOOKUP($N176,Conc_All!$L$5:$R$204,3*($C$8-1)+4)*1000 -> 10 | R176: 50
N177: 142 | O177: =VLOOKUP($N177,Conc_All!$L$5:$R$204,3*($C$8-1)+2)*1000 -> 9.77445 | P177: =VLOOKUP($N177,Conc_All!$L$5:$R$204,3*($C$8-1)+3)*1000 -> 9.992791667 | Q177: =VLOOKUP($N177,Conc_All!$L$5:$R$204,3*($C$8-1)+4)*1000 -> 10 | R177: 50
N178: 143 | O178: =VLOOKUP($N178,Conc_All!$L$5:$R$204,3*($C$8-1)+2)*1000 -> 9.791766667 | P178: =VLOOKUP($N178,Conc_All!$L$5:$R$204,3*($C$8-1)+3)*1000 -> 9.993175 | Q178: =VLOOKUP($N178,Conc_All!$L$5:$R$204,3*($C$8-1)+4)*1000 -> 10 | R178: 50
N179: 144 | O179: =VLOOKUP($N179,Conc_All!$L$5:$R$204,3*($C$8-1)+2)*1000 -> 9.7783 | P179: =VLOOKUP($N179,Conc_All!$L$5:$R$204,3*($C$8-1)+3)*1000 -> 9.993041667 | Q179: =VLOOKUP($N179,Conc_All!$L$5:$R$204,3*($C$8-1)+4)*1000 -> 10 | R179: 50
N180: 145 | O180: =VLOOKUP($N180,Conc_All!$L$5:$R$204,3*($C$8-1)+2)*1000 -> 9.756783333 | P180: =VLOOKUP($N180,Conc_All!$L$5:$R$204,3*($C$8-1)+3)*1000 -> 9.992241667 | Q180: =VLOOKUP($N180,Conc_All!$L$5:$R$204,3*($C$8-1)+4)*1000 -> 10 | R180: 50
N181: 146 | O181: =VLOOKUP($N181,Conc_All!$L$5:$R$204,3*($C$8-1)+2)*1000 -> 9.753158333 | P181: =VLOOKUP($N181,Conc_All!$L$5:$R$204,3*($C$8-1)+3)*1000 -> 9.992941667 | Q181: =VLOOKUP($N181,Conc_All!$L$5:$R$204,3*($C$8-1)+4)*1000 -> 10 | R181: 50
N182: 147 | O182: =VLOOKUP($N182,Conc_All!$L$5:$R$204,3*($C$8-1)+2)*1000 -> 9.763825 | P182: =VLOOKUP($N182,Conc_All!$L$5:$R$204,3*($C$8-1)+3)*1000 -> 9.9934 | Q182: =VLOOKUP($N182,Conc_All!$L$5:$R$204,3*($C$8-1)+4)*1000 -> 10 | R182: 50
N183: 148 | O183: =VLOOKUP($N183,Conc_All!$L$5:$R$204,3*($C$8-1)+2)*1000 -> 9.763141667 | P183: =VLOOKUP($N183,Conc_All!$L$5:$R$204,3*($C$8-1)+3)*1000 -> 9.993758333 | Q183: =VLOOKUP($N183,Conc_All!$L$5:$R$204,3*($C$8-1)+4)*1000 -> 10 | R183: 50
N184: 149 | O184: =VLOOKUP($N184,Conc_All!$L$5:$R$204,3*($C$8-1)+2)*1000 -> 9.772083333 | P184: =VLOOKUP($N184,Conc_All!$L$5:$R$204,3*($C$8-1)+3)*1000 -> 9.995633333 | Q184: =VLOOKUP($N184,Conc_All!$L$5:$R$204,3*($C$8-1)+4)*1000 -> 10 | R184: 50
N185: 150 | O185: =VLOOKUP($N185,Conc_All!$L$5:$R$204,3*($C$8-1)+2)*1000 -> 9.758016667 | P185: =VLOOKUP($N185,Conc_All!$L$5:$R$204,3*($C$8-1)+3)*1000 -> 9.996283333 | Q185: =VLOOKUP($N185,Conc_All!$L$5:$R$204,3*($C$8-1)+4)*1000 -> 10 | R185: 50
N186: 151 | O186: =VLOOKUP($N186,Conc_All!$L$5:$R$204,3*($C$8-1)+2)*1000 -> 9.772791667 | P186: =VLOOKUP($N186,Conc_All!$L$5:$R$204,3*($C$8-1)+3)*1000 -> 9.997783333 | Q186: =VLOOKUP($N186,Conc_All!$L$5:$R$204,3*($C$8-1)+4)*1000 -> 10 | R186: 50
N187: 152 | O187: =VLOOKUP($N187,Conc_All!$L$5:$R$204,3*($C$8-1)+2)*1000 -> 9.785825 | P187: =VLOOKUP($N187,Conc_All!$L$5:$R$204,3*($C$8-1)+3)*1000 -> 9.997108333 | Q187: =VLOOKUP($N187,Conc_All!$L$5:$R$204,3*($C$8-1)+4)*1000 -> 10 | R187: 50
N188: 153 | O188: =VLOOKUP($N188,Conc_All!$L$5:$R$204,3*($C$8-1)+2)*1000 -> 9.7775 | P188: =VLOOKUP($N188,Conc_All!$L$5:$R$204,3*($C$8-1)+3)*1000 -> 9.995516667 | Q188: =VLOOKUP($N188,Conc_All!$L$5:$R$204,3*($C$8-1)+4)*1000 -> 10 | R188: 50
N189: 154 | O189: =VLOOKUP($N189,Conc_All!$L$5:$R$204,3*($C$8-1)+2)*1000 -> 9.771308333 | P189: =VLOOKUP($N189,Conc_All!$L$5:$R$204,3*($C$8-1)+3)*1000 -> 9.994933333 | Q189: =VLOOKUP($N189,Conc_All!$L$5:$R$204,3*($C$8-1)+4)*1000 -> 10 | R189: 50
N190: 155 | O190: =VLOOKUP($N190,Conc_All!$L$5:$R$204,3*($C$8-1)+2)*1000 -> 9.770391667 | P190: =VLOOKUP($N190,Conc_All!$L$5:$R$204,3*($C$8-1)+3)*1000 -> 9.9952 | Q190: =VLOOKUP($N190,Conc_All!$L$5:$R$204,3*($C$8-1)+4)*1000 -> 10 | R190: 50
N191: 156 | O191: =VLOOKUP($N191,Conc_All!$L$5:$R$204,3*($C$8-1)+2)*1000 -> 9.771158333 | P191: =VLOOKUP($N191,Conc_All!$L$5:$R$204,3*($C$8-1)+3)*1000 -> 9.993616667 | Q191: =VLOOKUP($N191,Conc_All!$L$5:$R$204,3*($C$8-1)+4)*1000 -> 10 | R191: 50
N192: 157 | O192: =VLOOKUP($N192,Conc_All!$L$5:$R$204,3*($C$8-1)+2)*1000 -> 9.758741667 | P192: =VLOOKUP($N192,Conc_All!$L$5:$R$204,3*($C$8-1)+3)*1000 -> 9.992708333 | Q192: =VLOOKUP($N192,Conc_All!$L$5:$R$204,3*($C$8-1)+4)*1000 -> 10 | R192: 50
N193: 158 | O193: =VLOOKUP($N193,Conc_All!$L$5:$R$204,3*($C$8-1)+2)*1000 -> 9.75305 | P193: =VLOOKUP($N193,Conc_All!$L$5:$R$204,3*($C$8-1)+3)*1000 -> 9.991158333 | Q193: =VLOOKUP($N193,Conc_All!$L$5:$R$204,3*($C$8-1)+4)*1000 -> 10 | R193: 50
N194: 159 | O194: =VLOOKUP($N194,Conc_All!$L$5:$R$204,3*($C$8-1)+2)*1000 -> 9.746583333 | P194: =VLOOKUP($N194,Conc_All!$L$5:$R$204,3*($C$8-1)+3)*1000 -> 9.992133333 | Q194: =VLOOKUP($N194,Conc_All!$L$5:$R$204,3*($C$8-1)+4)*1000 -> 10 | R194: 50
N195: 160 | O195: =VLOOKUP($N195,Conc_All!$L$5:$R$204,3*($C$8-1)+2)*1000 -> 9.7624 | P195: =VLOOKUP($N195,Conc_All!$L$5:$R$204,3*($C$8-1)+3)*1000 -> 9.991966667 | Q195: =VLOOKUP($N195,Conc_All!$L$5:$R$204,3*($C$8-1)+4)*1000 -> 10 | R195: 50
N196: 161 | O196: =VLOOKUP($N196,Conc_All!$L$5:$R$204,3*($C$8-1)+2)*1000 -> 9.7507 | P196: =VLOOKUP($N196,Conc_All!$L$5:$R$204,3*($C$8-1)+3)*1000 -> 9.992041667 | Q196: =VLOOKUP($N196,Conc_All!$L$5:$R$204,3*($C$8-1)+4)*1000 -> 10 | R196: 50
N197: 162 | O197: =VLOOKUP($N197,Conc_All!$L$5:$R$204,3*($C$8-1)+2)*1000 -> 9.735875 | P197: =VLOOKUP($N197,Conc_All!$L$5:$R$204,3*($C$8-1)+3)*1000 -> 9.991066667 | Q197: =VLOOKUP($N197,Conc_All!$L$5:$R$204,3*($C$8-1)+4)*1000 -> 10 | R197: 50
N198: 163 | O198: =VLOOKUP($N198,Conc_All!$L$5:$R$204,3*($C$8-1)+2)*1000 -> 9.74715 | P198: =VLOOKUP($N198,Conc_All!$L$5:$R$204,3*($C$8-1)+3)*1000 -> 9.991825 | Q198: =VLOOKUP($N198,Conc_All!$L$5:$R$204,3*($C$8-1)+4)*1000 -> 10 | R198: 50
N199: 164 | O199: =VLOOKUP($N199,Conc_All!$L$5:$R$204,3*($C$8-1)+2)*1000 -> 9.759725 | P199: =VLOOKUP($N199,Conc_All!$L$5:$R$204,3*($C$8-1)+3)*1000 -> 9.992041667 | Q199: =VLOOKUP($N199,Conc_All!$L$5:$R$204,3*($C$8-1)+4)*1000 -> 10 | R199: 50
N200: 165 | O200: =VLOOKUP($N200,Conc_All!$L$5:$R$204,3*($C$8-1)+2)*1000 -> 9.746158333 | P200: =VLOOKUP($N200,Conc_All!$L$5:$R$204,3*($C$8-1)+3)*1000 -> 9.9921 | Q200: =VLOOKUP($N200,Conc_All!$L$5:$R$204,3*($C$8-1)+4)*1000 -> 10 | R200: 50
N201: 166 | O201: =VLOOKUP($N201,Conc_All!$L$5:$R$204,3*($C$8-1)+2)*1000 -> 9.740183333 | P201: =VLOOKUP($N201,Conc_All!$L$5:$R$204,3*($C$8-1)+3)*1000 -> 9.992733333 | Q201: =VLOOKUP($N201,Conc_All!$L$5:$R$204,3*($C$8-1)+4)*1000 -> 10 | R201: 50
N202: 167 | O202: =VLOOKUP($N202,Conc_All!$L$5:$R$204,3*($C$8-1)+2)*1000 -> 9.735016667 | P202: =VLOOKUP($N202,Conc_All!$L$5:$R$204,3*($C$8-1)+3)*1000 -> 9.993541667 | Q202: =VLOOKUP($N202,Conc_All!$L$5:$R$204,3*($C$8-1)+4)*1000 -> 10 | R202: 50
N203: 168 | O203: =VLOOKUP($N203,Conc_All!$L$5:$R$204,3*($C$8-1)+2)*1000 -> 9.715325 | P203: =VLOOKUP($N203,Conc_All!$L$5:$R$204,3*($C$8-1)+3)*1000 -> 9.993166667 | Q203: =VLOOKUP($N203,Conc_All!$L$5:$R$204,3*($C$8-1)+4)*1000 -> 10 | R203: 50
N204: 169 | O204: =VLOOKUP($N204,Conc_All!$L$5:$R$204,3*($C$8-1)+2)*1000 -> 9.724316667 | P204: =VLOOKUP($N204,Conc_All!$L$5:$R$204,3*($C$8-1)+3)*1000 -> 9.992216667 | Q204: =VLOOKUP($N204,Conc_All!$L$5:$R$204,3*($C$8-1)+4)*1000 -> 10 | R204: 50
N205: 170 | O205: =VLOOKUP($N205,Conc_All!$L$5:$R$204,3*($C$8-1)+2)*1000 -> 9.745391667 | P205: =VLOOKUP($N205,Conc_All!$L$5:$R$204,3*($C$8-1)+3)*1000 -> 9.992008333 | Q205: =VLOOKUP($N205,Conc_All!$L$5:$R$204,3*($C$8-1)+4)*1000 -> 10 | R205: 50
N206: 171 | O206: =VLOOKUP($N206,Conc_All!$L$5:$R$204,3*($C$8-1)+2)*1000 -> 9.747241667 | P206: =VLOOKUP($N206,Conc_All!$L$5:$R$204,3*($C$8-1)+3)*1000 -> 9.992058333 | Q206: =VLOOKUP($N206,Conc_All!$L$5:$R$204,3*($C$8-1)+4)*1000 -> 10 | R206: 50
N207: 172 | O207: =VLOOKUP($N207,Conc_All!$L$5:$R$204,3*($C$8-1)+2)*1000 -> 9.724425 | P207: =VLOOKUP($N207,Conc_All!$L$5:$R$204,3*($C$8-1)+3)*1000 -> 9.991483333 | Q207: =VLOOKUP($N207,Conc_All!$L$5:$R$204,3*($C$8-1)+4)*1000 -> 10 | R207: 50
N208: 173 | O208: =VLOOKUP($N208,Conc_All!$L$5:$R$204,3*($C$8-1)+2)*1000 -> 9.726541667 | P208: =VLOOKUP($N208,Conc_All!$L$5:$R$204,3*($C$8-1)+3)*1000 -> 9.991966667 | Q208: =VLOOKUP($N208,Conc_All!$L$5:$R$204,3*($C$8-1)+4)*1000 -> 10 | R208: 50
N209: 174 | O209: =VLOOKUP($N209,Conc_All!$L$5:$R$204,3*($C$8-1)+2)*1000 -> 9.711725 | P209: =VLOOKUP($N209,Conc_All!$L$5:$R$204,3*($C$8-1)+3)*1000 -> 9.992225 | Q209: =VLOOKUP($N209,Conc_All!$L$5:$R$204,3*($C$8-1)+4)*1000 -> 10 | R209: 50
N210: 175 | O210: =VLOOKUP($N210,Conc_All!$L$5:$R$204,3*($C$8-1)+2)*1000 -> 9.715516667 | P210: =VLOOKUP($N210,Conc_All!$L$5:$R$204,3*($C$8-1)+3)*1000 -> 9.992616667 | Q210: =VLOOKUP($N210,Conc_All!$L$5:$R$204,3*($C$8-1)+4)*1000 -> 10 | R210: 50
N211: 176 | O211: =VLOOKUP($N211,Conc_All!$L$5:$R$204,3*($C$8-1)+2)*1000 -> 9.7306 | P211: =VLOOKUP($N211,Conc_All!$L$5:$R$204,3*($C$8-1)+3)*1000 -> 9.993041667 | Q211: =VLOOKUP($N211,Conc_All!$L$5:$R$204,3*($C$8-1)+4)*1000 -> 10 | R211: 50
N212: 177 | O212: =VLOOKUP($N212,Conc_All!$L$5:$R$204,3*($C$8-1)+2)*1000 -> 9.737991667 | P212: =VLOOKUP($N212,Conc_All!$L$5:$R$204,3*($C$8-1)+3)*1000 -> 9.99225 | Q212: =VLOOKUP($N212,Conc_All!$L$5:$R$204,3*($C$8-1)+4)*1000 -> 10 | R212: 50
N213: 178 | O213: =VLOOKUP($N213,Conc_All!$L$5:$R$204,3*($C$8-1)+2)*1000 -> 9.701575 | P213: =VLOOKUP($N213,Conc_All!$L$5:$R$204,3*($C$8-1)+3)*1000 -> 9.992133333 | Q213: =VLOOKUP($N213,Conc_All!$L$5:$R$204,3*($C$8-1)+4)*1000 -> 10 | R213: 50
N214: 179 | O214: =VLOOKUP($N214,Conc_All!$L$5:$R$204,3*($C$8-1)+2)*1000 -> 9.719891667 | P214: =VLOOKUP($N214,Conc_All!$L$5:$R$204,3*($C$8-1)+3)*1000 -> 9.991883333 | Q214: =VLOOKUP($N214,Conc_All!$L$5:$R$204,3*($C$8-1)+4)*1000 -> 10 | R214: 50
N215: 180 | O215: =VLOOKUP($N215,Conc_All!$L$5:$R$204,3*($C$8-1)+2)*1000 -> 9.712133333 | P215: =VLOOKUP($N215,Conc_All!$L$5:$R$204,3*($C$8-1)+3)*1000 -> 9.991 | Q215: =VLOOKUP($N215,Conc_All!$L$5:$R$204,3*($C$8-1)+4)*1000 -> 10 | R215: 50
N216: 181 | O216: =VLOOKUP($N216,Conc_All!$L$5:$R$204,3*($C$8-1)+2)*1000 -> 9.695833333 | P216: =VLOOKUP($N216,Conc_All!$L$5:$R$204,3*($C$8-1)+3)*1000 -> 9.992675 | Q216: =VLOOKUP($N216,Conc_All!$L$5:$R$204,3*($C$8-1)+4)*1000 -> 10 | R216: 50
N217: 182 | O217: =VLOOKUP($N217,Conc_All!$L$5:$R$204,3*($C$8-1)+2)*1000 -> 9.723666667 | P217: =VLOOKUP($N217,Conc_All!$L$5:$R$204,3*($C$8-1)+3)*1000 -> 9.989958333 | Q217: =VLOOKUP($N217,Conc_All!$L$5:$R$204,3*($C$8-1)+4)*1000 -> 10 | R217: 50
N218: 183 | O218: =VLOOKUP($N218,Conc_All!$L$5:$R$204,3*($C$8-1)+2)*1000 -> 9.7179 | P218: =VLOOKUP($N218,Conc_All!$L$5:$R$204,3*($C$8-1)+3)*1000 -> 9.989141667 | Q218: =VLOOKUP($N218,Conc_All!$L$5:$R$204,3*($C$8-1)+4)*1000 -> 10 | R218: 50
N219: 184 | O219: =VLOOKUP($N219,Conc_All!$L$5:$R$204,3*($C$8-1)+2)*1000 -> 9.722858333 | P219: =VLOOKUP($N219,Conc_All!$L$5:$R$204,3*($C$8-1)+3)*1000 -> 9.991191667 | Q219: =VLOOKUP($N219,Conc_All!$L$5:$R$204,3*($C$8-1)+4)*1000 -> 10 | R219: 50
... 16 more rows

Sheet Labels
D1: =B2 & " Model " & "Annual Average" & " of Concentration Statistics " & B4 & " in the " & "West EQ Basin" -> Mine Site Version 5.0 Model Annual Average of Concentration Statistics SO4 in the West EQ Basin
A2: Model Name: | B2: Mine Site Version 5.0 | D2: =B2 & " Model " & "Annual Average" & " of Concentration Statistics " & B4 & " in the " & "East EQ Basin" -> Mine Site Version 5.0 Model Annual Average of Concentration Statistics SO4 in the East EQ Basin
D3: =B2 & " Model " & "Annual Average" & " of Concentration Statistics " & B4 & " in the " & "Plant Site WWTP Reject Concentrate" -> Mine Site Version 5.0 Model Annual Average of Concentration Statistics SO4 in the Plant Site WWTP Reject Concentrate
A4: Constituent to Plot (dropdown): | B4: SO4 | C4: =MATCH(B4,$A$29:$A$55,0) -> 24
A5: Locations
A6: Category 1 Stockpile Seepage | C6: long-term
A7: Category 2/3 Stockpile Seepage | C7: operations
A8: Ore Surge Pile Seepage | C8: operations
A9: Category 4 Stockpile Seepage | C9: operations
A10: East Pit operations | C10: operations
A11: Central Pit operations | C11: operations
A12: East/Central Pit operations | C12: operations
A13: East Pit upper porewater | C13: long-term
A14: East Pit lower porewater | C14: long-term
A15: West Pit | C15: long-term
A16: Haul Road Runoff | C16: operations
A17: Rail Transfer Hopper Runoff | C17: operations
A18: WWTP Concentrate | C18: long-term
A19: East Pond | C19: operations
A20: West Pond | C20: operations
A21: Operations WWTF | C21: operations
A22: Reclamation WWTF | C22: long-term
A23: Long-term WWTF | C23: long-term
I27: Annual Project Results (Concentrations) | L27: Annual Project Results (Concentrations) | O27: Annual Project Results (Concentrations)
A28: Constituent | B28: Partridge Standard (ug/L) | C28: Colby Standard (ug/L) | D28: Hardness Based "A" | E28: Hardness Based "B" | H28: Time | I28: P10 | J28: P50 | K28: P90 | L28: P10 | M28: P50 | N28: P90 | O28: P10 | P28: P50 | Q28: P90
A29: Ag | B29: 1 | C29: 1 | H29: 0 | I29: 0 | J29: 0 | K29: 0 | L29: 0 | M29: 0 | N29: 0 | O29: 0 | P29: 0 | Q29: 0
A30: Al | B30: 125 | C30: 125 | H30: 1 | I30: =VLOOKUP($H30,Conc_All!$A$5:$J$29,2) -> 0.007138258333 | J30: =VLOOKUP($H30,Conc_All!$A$5:$J$29,3) -> 0.008740641667 | K30: =VLOOKUP($H30,Conc_All!$A$5:$J$29,4) -> 0.04512919167 | L30: =VLOOKUP($H30,Conc_All!$A$5:$J$29,5) -> 0.003127238583 | M30: =VLOOKUP($H30,Conc_All!$A$5:$J$29,6) -> 0.003786166083 | N30: =VLOOKUP($H30,Conc_All!$A$5:$J$29,7) -> 0.0045378825 | O30: =VLOOKUP($H30,Conc_All!$A$5:$J$29,8) -> 0.003907558333 | P30: =VLOOKUP($H30,Conc_All!$A$5:$J$29,9) -> 0.003920291667 | Q30: =VLOOKUP($H30,Conc_All!$A$5:$J$29,10) -> 0.003933625
A31: Alkalinity | H31: 2 | I31: =VLOOKUP($H31,Conc_All!$A$5:$J$29,2) -> 0.008512633333 | J31: =VLOOKUP($H31,Conc_All!$A$5:$J$29,3) -> 0.01053508333 | K31: =VLOOKUP($H31,Conc_All!$A$5:$J$29,4) -> 0.05623966667 | L31: =VLOOKUP($H31,Conc_All!$A$5:$J$29,5) -> 0.005823783333 | M31: =VLOOKUP($H31,Conc_All!$A$5:$J$29,6) -> 0.006527325 | N31: =VLOOKUP($H31,Conc_All!$A$5:$J$29,7) -> 0.007538366667 | O31: =VLOOKUP($H31,Conc_All!$A$5:$J$29,8) -> 0.004275333333 | P31: =VLOOKUP($H31,Conc_All!$A$5:$J$29,9) -> 0.004299658333 | Q31: =VLOOKUP($H31,Conc_All!$A$5:$J$29,10) -> 0.004326033333
A32: As | B32: 53 | C32: 2 | H32: 3 | I32: =VLOOKUP($H32,Conc_All!$A$5:$J$29,2) -> 0.008506633333 | J32: =VLOOKUP($H32,Conc_All!$A$5:$J$29,3) -> 0.0105875 | K32: =VLOOKUP($H32,Conc_All!$A$5:$J$29,4) -> 0.05768641667 | L32: =VLOOKUP($H32,Conc_All!$A$5:$J$29,5) -> 0.005826 | M32: =VLOOKUP($H32,Conc_All!$A$5:$J$29,6) -> 0.006542625 | N32: =VLOOKUP($H32,Conc_All!$A$5:$J$29,7) -> 0.007544591667 | O32: =VLOOKUP($H32,Conc_All!$A$5:$J$29,8) -> 0.00426455 | P32: =VLOOKUP($H32,Conc_All!$A$5:$J$29,9) -> 0.004289975 | Q32: =VLOOKUP($H32,Conc_All!$A$5:$J$29,10) -> 0.004314233333
A33: B | B33: 500 | C33: 500 | H33: 4 | I33: =VLOOKUP($H33,Conc_All!$A$5:$J$29,2) -> 0.008669483333 | J33: =VLOOKUP($H33,Conc_All!$A$5:$J$29,3) -> 0.01084258333 | K33: =VLOOKUP($H33,Conc_All!$A$5:$J$29,4) -> 0.05977166667 | L33: =VLOOKUP($H33,Conc_All!$A$5:$J$29,5) -> 0.005444566667 | M33: =VLOOKUP($H33,Conc_All!$A$5:$J$29,6) -> 0.006096958333 | N33: =VLOOKUP($H33,Conc_All!$A$5:$J$29,7) -> 0.007045175 | O33: =VLOOKUP($H33,Conc_All!$A$5:$J$29,8) -> 0.004111875 | P33: =VLOOKUP($H33,Conc_All!$A$5:$J$29,9) -> 0.004161408333 | Q33: =VLOOKUP($H33,Conc_All!$A$5:$J$29,10) -> 0.004211791667
A34: Ba | C34: 2000 | H34: 5 | I34: =VLOOKUP($H34,Conc_All!$A$5:$J$29,2) -> 0.008701158333 | J34: =VLOOKUP($H34,Conc_All!$A$5:$J$29,3) -> 0.01087591667 | K34: =VLOOKUP($H34,Conc_All!$A$5:$J$29,4) -> 0.05981016667 | L34: =VLOOKUP($H34,Conc_All!$A$5:$J$29,5) -> 0.005548633333 | M34: =VLOOKUP($H34,Conc_All!$A$5:$J$29,6) -> 0.006194391667 | N34: =VLOOKUP($H34,Conc_All!$A$5:$J$29,7) -> 0.007091408333 | O34: =VLOOKUP($H34,Conc_All!$A$5:$J$29,8) -> 0.003788075 | P34: =VLOOKUP($H34,Conc_All!$A$5:$J$29,9) -> 0.003885066667 | Q34: =VLOOKUP($H34,Conc_All!$A$5:$J$29,10) -> 0.003994066667
A35: Be | C35: 4 | H35: 6 | I35: =VLOOKUP($H35,Conc_All!$A$5:$J$29,2) -> 0.008777108333 | J35: =VLOOKUP($H35,Conc_All!$A$5:$J$29,3) -> 0.01079241667 | K35: =VLOOKUP($H35,Conc_All!$A$5:$J$29,4) -> 0.055522 | L35: =VLOOKUP($H35,Conc_All!$A$5:$J$29,5) -> 0.005901641667 | M35: =VLOOKUP($H35,Conc_All!$A$5:$J$29,6) -> 0.006438508333 | N35: =VLOOKUP($H35,Conc_All!$A$5:$J$29,7) -> 0.007165883333 | O35: =VLOOKUP($H35,Conc_All!$A$5:$J$29,8) -> 0.003693925 | P35: =VLOOKUP($H35,Conc_All!$A$5:$J$29,9) -> 0.0039869 | Q35: =VLOOKUP($H35,Conc_All!$A$5:$J$29,10) -> 0.004258825
A36: Ca | H36: 7 | I36: =VLOOKUP($H36,Conc_All!$A$5:$J$29,2) -> 0.009443025 | J36: =VLOOKUP($H36,Conc_All!$A$5:$J$29,3) -> 0.01280958333 | K36: =VLOOKUP($H36,Conc_All!$A$5:$J$29,4) -> 0.05007858333 | L36: =VLOOKUP($H36,Conc_All!$A$5:$J$29,5) -> 0.005662608333 | M36: =VLOOKUP($H36,Conc_All!$A$5:$J$29,6) -> 0.006224175 | N36: =VLOOKUP($H36,Conc_All!$A$5:$J$29,7) -> 0.007209666667 | O36: =VLOOKUP($H36,Conc_All!$A$5:$J$29,8) -> 0.004566291667 | P36: =VLOOKUP($H36,Conc_All!$A$5:$J$29,9) -> 0.005005816667 | Q36: =VLOOKUP($H36,Conc_All!$A$5:$J$29,10) -> 0.005467233333
A37: Cd | C37: 5 | D37: 0.7852 | E37: -2.715 | H37: 8 | I37: =VLOOKUP($H37,Conc_All!$A$5:$J$29,2) -> 0.01263616667 | J37: =VLOOKUP($H37,Conc_All!$A$5:$J$29,3) -> 0.01809808333 | K37: =VLOOKUP($H37,Conc_All!$A$5:$J$29,4) -> 0.05488608333 | L37: =VLOOKUP($H37,Conc_All!$A$5:$J$29,5) -> 0.005748 | M37: =VLOOKUP($H37,Conc_All!$A$5:$J$29,6) -> 0.006384516667 | N37: =VLOOKUP($H37,Conc_All!$A$5:$J$29,7) -> 0.007373608333 | O37: =VLOOKUP($H37,Conc_All!$A$5:$J$29,8) -> 0.005356958333 | P37: =VLOOKUP($H37,Conc_All!$A$5:$J$29,9) -> 0.006044041667 | Q37: =VLOOKUP($H37,Conc_All!$A$5:$J$29,10) -> 0.006744
A38: Cl | B38: 230000 | C38: 230000 | H38: 9 | I38: =VLOOKUP($H38,Conc_All!$A$5:$J$29,2) -> 0.01782483333 | J38: =VLOOKUP($H38,Conc_All!$A$5:$J$29,3) -> 0.02228983333 | K38: =VLOOKUP($H38,Conc_All!$A$5:$J$29,4) -> 0.05940991667 | L38: =VLOOKUP($H38,Conc_All!$A$5:$J$29,5) -> 0.006128333333 | M38: =VLOOKUP($H38,Conc_All!$A$5:$J$29,6) -> 0.006685491667 | N38: =VLOOKUP($H38,Conc_All!$A$5:$J$29,7) -> 0.00758435 | O38: =VLOOKUP($H38,Conc_All!$A$5:$J$29,8) -> 0.005605975 | P38: =VLOOKUP($H38,Conc_All!$A$5:$J$29,9) -> 0.006411791667 | Q38: =VLOOKUP($H38,Conc_All!$A$5:$J$29,10) -> 0.007267633333
A39: Co | B39: 5 | C39: 2.8 | H39: 10 | I39: =VLOOKUP($H39,Conc_All!$A$5:$J$29,2) -> 0.02154291667 | J39: =VLOOKUP($H39,Conc_All!$A$5:$J$29,3) -> 0.02559116667 | K39: =VLOOKUP($H39,Conc_All!$A$5:$J$29,4) -> 0.06280433333 | L39: =VLOOKUP($H39,Conc_All!$A$5:$J$29,5) -> 0.0063834 | M39: =VLOOKUP($H39,Conc_All!$A$5:$J$29,6) -> 0.006968641667 | N39: =VLOOKUP($H39,Conc_All!$A$5:$J$29,7) -> 0.007674233333 | O39: =VLOOKUP($H39,Conc_All!$A$5:$J$29,8) -> 0.005793925 | P39: =VLOOKUP($H39,Conc_All!$A$5:$J$29,9) -> 0.006670366667 | Q39: =VLOOKUP($H39,Conc_All!$A$5:$J$29,10) -> 0.007559675
A40: Cr | B40: 11 | C40: 11 | H40: 11 | I40: =VLOOKUP($H40,Conc_All!$A$5:$J$29,2) -> 0.02518841667 | J40: =VLOOKUP($H40,Conc_All!$A$5:$J$29,3) -> 0.02856108333 | K40: =VLOOKUP($H40,Conc_All!$A$5:$J$29,4) -> 0.06143916667 | L40: =VLOOKUP($H40,Conc_All!$A$5:$J$29,5) -> 0.005427441667 | M40: =VLOOKUP($H40,Conc_All!$A$5:$J$29,6) -> 0.00608665 | N40: =VLOOKUP($H40,Conc_All!$A$5:$J$29,7) -> 0.007420433333 | O40: =VLOOKUP($H40,Conc_All!$A$5:$J$29,8) -> 0.006269925 | P40: =VLOOKUP($H40,Conc_All!$A$5:$J$29,9) -> 0.007047066667 | Q40: =VLOOKUP($H40,Conc_All!$A$5:$J$29,10) -> 0.007853683333
A41: Cu | D41: 0.8545 | E41: -1.702 | H41: 12 | I41: =VLOOKUP($H41,Conc_All!$A$5:$J$29,2) -> 0.03048175 | J41: =VLOOKUP($H41,Conc_All!$A$5:$J$29,3) -> 0.03303375 | K41: =VLOOKUP($H41,Conc_All!$A$5:$J$29,4) -> 0.03568216667 | L41: =VLOOKUP($H41,Conc_All!$A$5:$J$29,5) -> 0.005378958333 | M41: =VLOOKUP($H41,Conc_All!$A$5:$J$29,6) -> 0.006091291667 | N41: =VLOOKUP($H41,Conc_All!$A$5:$J$29,7) -> 0.007759175 | O41: =VLOOKUP($H41,Conc_All!$A$5:$J$29,8) -> 0.006645358333 | P41: =VLOOKUP($H41,Conc_All!$A$5:$J$29,9) -> 0.007415466667 | Q41: =VLOOKUP($H41,Conc_All!$A$5:$J$29,10) -> 0.008236825
A42: F | C42: 4000 | H42: 13 | I42: =VLOOKUP($H42,Conc_All!$A$5:$J$29,2) -> 0.03312225 | J42: =VLOOKUP($H42,Conc_All!$A$5:$J$29,3) -> 0.03619141667 | K42: =VLOOKUP($H42,Conc_All!$A$5:$J$29,4) -> 0.03916058333 | L42: =VLOOKUP($H42,Conc_All!$A$5:$J$29,5) -> 0.005317175 | M42: =VLOOKUP($H42,Conc_All!$A$5:$J$29,6) -> 0.005985125 | N42: =VLOOKUP($H42,Conc_All!$A$5:$J$29,7) -> 0.007909816667 | O42: =VLOOKUP($H42,Conc_All!$A$5:$J$29,8) -> 0.007161283333 | P42: =VLOOKUP($H42,Conc_All!$A$5:$J$29,9) -> 0.007853208333 | Q42: =VLOOKUP($H42,Conc_All!$A$5:$J$29,10) -> 0.008521091667
A43: Fe | C43: 300 | H43: 14 | I43: =VLOOKUP($H43,Conc_All!$A$5:$J$29,2) -> 0.03616016667 | J43: =VLOOKUP($H43,Conc_All!$A$5:$J$29,3) -> 0.03919933333 | K43: =VLOOKUP($H43,Conc_All!$A$5:$J$29,4) -> 0.04226708333 | L43: =VLOOKUP($H43,Conc_All!$A$5:$J$29,5) -> 0.006920866667 | M43: =VLOOKUP($H43,Conc_All!$A$5:$J$29,6) -> 0.007379358333 | N43: =VLOOKUP($H43,Conc_All!$A$5:$J$29,7) -> 0.008113975 | O43: =VLOOKUP($H43,Conc_All!$A$5:$J$29,8) -> 0.006654783333 | P43: =VLOOKUP($H43,Conc_All!$A$5:$J$29,9) -> 0.007642575 | Q43: =VLOOKUP($H43,Conc_All!$A$5:$J$29,10) -> 0.008755108333
A44: K | H44: 15 | I44: =VLOOKUP($H44,Conc_All!$A$5:$J$29,2) -> 0.03903608333 | J44: =VLOOKUP($H44,Conc_All!$A$5:$J$29,3) -> 0.04274608333 | K44: =VLOOKUP($H44,Conc_All!$A$5:$J$29,4) -> 0.04648466667 | L44: =VLOOKUP($H44,Conc_All!$A$5:$J$29,5) -> 0.007093325 | M44: =VLOOKUP($H44,Conc_All!$A$5:$J$29,6) -> 0.007498408333 | N44: =VLOOKUP($H44,Conc_All!$A$5:$J$29,7) -> 0.008215841667 | O44: =VLOOKUP($H44,Conc_All!$A$5:$J$29,8) -> 0.006821875 | P44: =VLOOKUP($H44,Conc_All!$A$5:$J$29,9) -> 0.007859725 | Q44: =VLOOKUP($H44,Conc_All!$A$5:$J$29,10) -> 0.00880085
A45: Mg | H45: 16 | I45: =VLOOKUP($H45,Conc_All!$A$5:$J$29,2) -> 0.04293483333 | J45: =VLOOKUP($H45,Conc_All!$A$5:$J$29,3) -> 0.04699758333 | K45: =VLOOKUP($H45,Conc_All!$A$5:$J$29,4) -> 0.05068675 | L45: =VLOOKUP($H45,Conc_All!$A$5:$J$29,5) -> 0.004981791667 | M45: =VLOOKUP($H45,Conc_All!$A$5:$J$29,6) -> 0.00534365 | N45: =VLOOKUP($H45,Conc_All!$A$5:$J$29,7) -> 0.005979983333 | O45: =VLOOKUP($H45,Conc_All!$A$5:$J$29,8) -> 0.008404875 | P45: =VLOOKUP($H45,Conc_All!$A$5:$J$29,9) -> 0.008690358333 | Q45: =VLOOKUP($H45,Conc_All!$A$5:$J$29,10) -> 0.008974066667
A46: Mn | C46: 50 | H46: 17 | I46: =VLOOKUP($H46,Conc_All!$A$5:$J$29,2) -> 0.046799 | J46: =VLOOKUP($H46,Conc_All!$A$5:$J$29,3) -> 0.05087258333 | K46: =VLOOKUP($H46,Conc_All!$A$5:$J$29,4) -> 0.054626 | L46: =VLOOKUP($H46,Conc_All!$A$5:$J$29,5) -> 0.003283883333 | M46: =VLOOKUP($H46,Conc_All!$A$5:$J$29,6) -> 0.003762416667 | N46: =VLOOKUP($H46,Conc_All!$A$5:$J$29,7) -> 0.005306291667 | O46: =VLOOKUP($H46,Conc_All!$A$5:$J$29,8) -> 0.008699166667 | P46: =VLOOKUP($H46,Conc_All!$A$5:$J$29,9) -> 0.008879583333 | Q46: =VLOOKUP($H46,Conc_All!$A$5:$J$29,10) -> 0.009061491667
A47: Na | H47: 18 | I47: =VLOOKUP($H47,Conc_All!$A$5:$J$29,2) -> 0.04969183333 | J47: =VLOOKUP($H47,Conc_All!$A$5:$J$29,3) -> 0.05378875 | K47: =VLOOKUP($H47,Conc_All!$A$5:$J$29,4) -> 0.05759908333 | L47: =VLOOKUP($H47,Conc_All!$A$5:$J$29,5) -> 0.003651325 | M47: =VLOOKUP($H47,Conc_All!$A$5:$J$29,6) -> 0.004111533333 | N47: =VLOOKUP($H47,Conc_All!$A$5:$J$29,7) -> 0.006609591667 | O47: =VLOOKUP($H47,Conc_All!$A$5:$J$29,8) -> 0.008627066667 | P47: =VLOOKUP($H47,Conc_All!$A$5:$J$29,9) -> 0.0088569 | Q47: =VLOOKUP($H47,Conc_All!$A$5:$J$29,10) -> 0.009084166667
A48: Ni | D48: 0.846 | E48: 0.0584 | H48: 19 | I48: =VLOOKUP($H48,Conc_All!$A$5:$J$29,2) -> 0.05010741667 | J48: =VLOOKUP($H48,Conc_All!$A$5:$J$29,3) -> 0.05410866667 | K48: =VLOOKUP($H48,Conc_All!$A$5:$J$29,4) -> 0.05803041667 | L48: =VLOOKUP($H48,Conc_All!$A$5:$J$29,5) -> 0.004062425 | M48: =VLOOKUP($H48,Conc_All!$A$5:$J$29,6) -> 0.004508225 | N48: =VLOOKUP($H48,Conc_All!$A$5:$J$29,7) -> 0.005701516667 | O48: =VLOOKUP($H48,Conc_All!$A$5:$J$29,8) -> 0.006829008333 | P48: =VLOOKUP($H48,Conc_All!$A$5:$J$29,9) -> 0.007527691667 | Q48: =VLOOKUP($H48,Conc_All!$A$5:$J$29,10) -> 0.008167316667
A49: Pb | D49: 1.273 | E49: -4.705 | H49: 20 | I49: =VLOOKUP($H49,Conc_All!$A$5:$J$29,2) -> 0.0325295 | J49: =VLOOKUP($H49,Conc_All!$A$5:$J$29,3) -> 0.03509433333 | K49: =VLOOKUP($H49,Conc_All!$A$5:$J$29,4) -> 0.037633 | L49: =VLOOKUP($H49,Conc_All!$A$5:$J$29,5) -> 0.004587833333 | M49: =VLOOKUP($H49,Conc_All!$A$5:$J$29,6) -> 0.005066483333 | N49: =VLOOKUP($H49,Conc_All!$A$5:$J$29,7) -> 0.006033191667 | O49: =VLOOKUP($H49,Conc_All!$A$5:$J$29,8) -> 0.00851295 | P49: =VLOOKUP($H49,Conc_All!$A$5:$J$29,9) -> 0.008786708333 | Q49: =VLOOKUP($H49,Conc_All!$A$5:$J$29,10) -> 0.009053541667
A50: Sb | B50: 31 | C50: 5.5 | H50: 21 | I50: =VLOOKUP($H50,Conc_All!$A$5:$J$29,2) -> 0.003757685684 | J50: =VLOOKUP($H50,Conc_All!$A$5:$J$29,3) -> 0.004214736522 | K50: =VLOOKUP($H50,Conc_All!$A$5:$J$29,4) -> 0.004724838358 | L50: =VLOOKUP($H50,Conc_All!$A$5:$J$29,5) -> 0.009507608333 | M50: =VLOOKUP($H50,Conc_All!$A$5:$J$29,6) -> 0.009900008333 | N50: =VLOOKUP($H50,Conc_All!$A$5:$J$29,7) -> 0.01035545 | O50: =VLOOKUP($H50,Conc_All!$A$5:$J$29,8) -> 0.006512908333 | P50: =VLOOKUP($H50,Conc_All!$A$5:$J$29,9) -> 0.0070979 | Q50: =VLOOKUP($H50,Conc_All!$A$5:$J$29,10) -> 0.0076895
A51: Se | B51: 5 | C51: 5 | H51: 22 | I51: =VLOOKUP($H51,Conc_All!$A$5:$J$29,2) -> 2.8231e-07 | J51: =VLOOKUP($H51,Conc_All!$A$5:$J$29,3) -> 8.3226e-07 | K51: =VLOOKUP($H51,Conc_All!$A$5:$J$29,4) -> 3.365e-06 | L51: =VLOOKUP($H51,Conc_All!$A$5:$J$29,5) -> 0.009527325 | M51: =VLOOKUP($H51,Conc_All!$A$5:$J$29,6) -> 0.00963835 | N51: =VLOOKUP($H51,Conc_All!$A$5:$J$29,7) -> 0.009762233333 | O51: =VLOOKUP($H51,Conc_All!$A$5:$J$29,8) -> 0.006313208333 | P51: =VLOOKUP($H51,Conc_All!$A$5:$J$29,9) -> 0.006855925 | Q51: =VLOOKUP($H51,Conc_All!$A$5:$J$29,10) -> 0.007390725
A52: SO4 | C52: 250000 | H52: 23 | I52: 0 | J52: 0 | K52: 0 | L52: 0 | M52: 0 | N52: 0 | O52: =VLOOKUP($H52,Conc_All!$A$5:$J$29,8) -> 0.006292658333 | P52: =VLOOKUP($H52,Conc_All!$A$5:$J$29,9) -> 0.006755916667 | Q52: =VLOOKUP($H52,Conc_All!$A$5:$J$29,10) -> 0.007232241667
A53: Tl | B53: 0.56 | C53: 0.28 | H53: 24 | O53: =VLOOKUP($H53,Conc_All!$A$5:$J$29,8) -> 0.006098683333 | P53: =VLOOKUP($H53,Conc_All!$A$5:$J$29,9) -> 0.006579875 | Q53: =VLOOKUP($H53,Conc_All!$A$5:$J$29,10) -> 0.007042891667
A54: V | H54: 25 | O54: =VLOOKUP($H54,Conc_All!$A$5:$J$29,8) -> 0.005876641667 | P54: =VLOOKUP($H54,Conc_All!$A$5:$J$29,9) -> 0.006314866667 | Q54: =VLOOKUP($H54,Conc_All!$A$5:$J$29,10) -> 0.006757975
A55: Zn | D55: 0.8473 | E55: 0.884

Sheet Conc_All
B1: Values shown for constituent selected on PlotControl tab | M1: Values shown for constituent selected on PlotControl tab | P1: Values shown for constituent selected on PlotControl tab
B2: West Pond | E2: East Pond | H2: Plant Site Concentrate | M2: Reclamation WWTF Influent | P2: Long-term WWTF Influent
B3: Annual Project Results | E3: Annual Project Results | H3: Annual Project Results | M3: Annual Project Results | P3: Annual Project Results
A4: Time | B4: P10 | C4: P50 | D4: P90 | E4: P10 | F4: P50 | G4: P90 | H4: P10 | I4: P50 | J4: P90 | L4: Time | M4: P10 | N4: P50 | O4: P90 | P4: P10 | Q4: P50 | R4: P90
A5: 1 | B5: =AVERAGE(OFFSET(WestPond_Conc!$C$10,12*($A5-1),4*(PlotControl!$C$4-1),12,1)) -> 0.007138258333 | C5: =AVERAGE(OFFSET(WestPond_Conc!$D$10,12*($A5-1),4*(PlotControl!$C$4-1),12,1)) -> 0.008740641667 | D5: =AVERAGE(OFFSET(WestPond_Conc!$E$10,12*($A5-1),4*(PlotControl!$C$4-1),12,1)) -> 0.04512919167 | E5: =AVERAGE(OFFSET(EastPond_Conc!$C$10,12*($A5-1),4*(PlotControl!$C$4-1),12,1)) -> 0.003127238583 | F5: =AVERAGE(OFFSET(EastPond_Conc!$D$10,12*($A5-1),4*(PlotControl!$C$4-1),12,1)) -> 0.003786166083 | G5: =AVERAGE(OFFSET(EastPond_Conc!$E$10,12*($A5-1),4*(PlotControl!$C$4-1),12,1)) -> 0.0045378825 | H5: =AVERAGE(OFFSET(Brine_Conc!$C$10,12*($A5-1),4*(PlotControl!$C$4-1),12,1)) -> 0.003907558333 | I5: =AVERAGE(OFFSET(Brine_Conc!$D$10,12*($A5-1),4*(PlotControl!$C$4-1),12,1)) -> 0.003920291667 | J5: =AVERAGE(OFFSET(Brine_Conc!$E$10,12*($A5-1),4*(PlotControl!$C$4-1),12,1)) -> 0.003933625 | L5: 1 | M5: =AVERAGE(OFFSET(Reclam_Conc!$C$10,12*($L5-1),4*(PlotControl!$C$4-1),12,1)) -> 0 | N5: =AVERAGE(OFFSET(Reclam_Conc!$D$10,12*($L5-1),4*(PlotControl!$C$4-1),12,1)) -> 0 | O5: =AVERAGE(OFFSET(Reclam_Conc!$E$10,12*($L5-1),4*(PlotControl!$C$4-1),12,1)) -> 0 | P5: =AVERAGE(OFFSET(LongTerm_Conc!$C$10,12*($L5-1),4*(PlotControl!$C$4-1),12,1)) -> 0 | Q5: =AVERAGE(OFFSET(LongTerm_Conc!$D$10,12*($L5-1),4*(PlotControl!$C$4-1),12,1)) -> 0 | R5: =AVERAGE(OFFSET(LongTerm_Conc!$E$10,12*($L5-1),4*(PlotControl!$C$4-1),12,1)) -> 0
A6: 2 | B6: =AVERAGE(OFFSET(WestPond_Conc!$C$10,12*($A6-1),4*(PlotControl!$C$4-1),12,1)) -> 0.008512633333 | C6: =AVERAGE(OFFSET(WestPond_Conc!$D$10,12*($A6-1),4*(PlotControl!$C$4-1),12,1)) -> 0.01053508333 | D6: =AVERAGE(OFFSET(WestPond_Conc!$E$10,12*($A6-1),4*(PlotControl!$C$4-1),12,1)) -> 0.05623966667 | E6: =AVERAGE(OFFSET(EastPond_Conc!$C$10,12*($A6-1),4*(PlotControl!$C$4-1),12,1)) -> 0.005823783333 | F6: =AVERAGE(OFFSET(EastPond_Conc!$D$10,12*($A6-1),4*(PlotControl!$C$4-1),12,1)) -> 0.006527325 | G6: =AVERAGE(OFFSET(EastPond_Conc!$E$10,12*($A6-1),4*(PlotControl!$C$4-1),12,1)) -> 0.007538366667 | H6: =AVERAGE(OFFSET(Brine_Conc!$C$10,12*($A6-1),4*(PlotControl!$C$4-1),12,1)) -> 0.004275333333 | I6: =AVERAGE(OFFSET(Brine_Conc!$D$10,12*($A6-1),4*(PlotControl!$C$4-1),12,1)) -> 0.004299658333 | J6: =AVERAGE(OFFSET(Brine_Conc!$E$10,12*($A6-1),4*(PlotControl!$C$4-1),12,1)) -> 0.004326033333 | L6: 2 | M6: =AVERAGE(OFFSET(Reclam_Conc!$C$10,12*($L6-1),4*(PlotControl!$C$4-1),12,1)) -> 0 | N6: =AVERAGE(OFFSET(Reclam_Conc!$D$10,12*($L6-1),4*(PlotControl!$C$4-1),12,1)) -> 0 | O6: =AVERAGE(OFFSET(Reclam_Conc!$E$10,12*($L6-1),4*(PlotControl!$C$4-1),12,1)) -> 0 | P6: =AVERAGE(OFFSET(LongTerm_Conc!$C$10,12*($L6-1),4*(PlotControl!$C$4-1),12,1)) -> 0 | Q6: =AVERAGE(OFFSET(LongTerm_Conc!$D$10,12*($L6-1),4*(PlotControl!$C$4-1),12,1)) -> 0 | R6: =AVERAGE(OFFSET(LongTerm_Conc!$E$10,12*($L6-1),4*(PlotControl!$C$4-1),12,1)) -> 0
A7: 3 | B7: =AVERAGE(OFFSET(WestPond_Conc!$C$10,12*($A7-1),4*(PlotControl!$C$4-1),12,1)) -> 0.008506633333 | C7: =AVERAGE(OFFSET(WestPond_Conc!$D$10,12*($A7-1),4*(PlotControl!$C$4-1),12,1)) -> 0.0105875 | D7: =AVERAGE(OFFSET(WestPond_Conc!$E$10,12*($A7-1),4*(PlotControl!$C$4-1),12,1)) -> 0.05768641667 | E7: =AVERAGE(OFFSET(EastPond_Conc!$C$10,12*($A7-1),4*(PlotControl!$C$4-1),12,1)) -> 0.005826 | F7: =AVERAGE(OFFSET(EastPond_Conc!$D$10,12*($A7-1),4*(PlotControl!$C$4-1),12,1)) -> 0.006542625 | G7: =AVERAGE(OFFSET(EastPond_Conc!$E$10,12*($A7-1),4*(PlotControl!$C$4-1),12,1)) -> 0.007544591667 | H7: =AVERAGE(OFFSET(Brine_Conc!$C$10,12*($A7-1),4*(PlotControl!$C$4-1),12,1)) -> 0.00426455 | I7: =AVERAGE(OFFSET(Brine_Conc!$D$10,12*($A7-1),4*(PlotControl!$C$4-1),12,1)) -> 0.004289975 | J7: =AVERAGE(OFFSET(Brine_Conc!$E$10,12*($A7-1),4*(PlotControl!$C$4-1),12,1)) -> 0.004314233333 | L7: 3 | M7: =AVERAGE(OFFSET(Reclam_Conc!$C$10,12*($L7-1),4*(PlotControl!$C$4-1),12,1)) -> 0 | N7: =AVERAGE(OFFSET(Reclam_Conc!$D$10,12*($L7-1),4*(PlotControl!$C$4-1),12,1)) -> 0 | O7: =AVERAGE(OFFSET(Reclam_Conc!$E$10,12*($L7-1),4*(PlotControl!$C$4-1),12,1)) -> 0 | P7: =AVERAGE(OFFSET(LongTerm_Conc!$C$10,12*($L7-1),4*(PlotControl!$C$4-1),12,1)) -> 0 | Q7: =AVERAGE(OFFSET(LongTerm_Conc!$D$10,12*($L7-1),4*(PlotControl!$C$4-1),12,1)) -> 0 | R7: =AVERAGE(OFFSET(LongTerm_Conc!$E$10,12*($L7-1),4*(PlotControl!$C$4-1),12,1)) -> 0
A8: 4 | B8: =AVERAGE(OFFSET(WestPond_Conc!$C$10,12*($A8-1),4*(PlotControl!$C$4-1),12,1)) -> 0.008669483333 | C8: =AVERAGE(OFFSET(WestPond_Conc!$D$10,12*($A8-1),4*(PlotControl!$C$4-1),12,1)) -> 0.01084258333 | D8: =AVERAGE(OFFSET(WestPond_Conc!$E$10,12*($A8-1),4*(PlotControl!$C$4-1),12,1)) -> 0.05977166667 | E8: =AVERAGE(OFFSET(EastPond_Conc!$C$10,12*($A8-1),4*(PlotControl!$C$4-1),12,1)) -> 0.005444566667 | F8: =AVERAGE(OFFSET(EastPond_Conc!$D$10,12*($A8-1),4*(PlotControl!$C$4-1),12,1)) -> 0.006096958333 | G8: =AVERAGE(OFFSET(EastPond_Conc!$E$10,12*($A8-1),4*(PlotControl!$C$4-1),12,1)) -> 0.007045175 | H8: =AVERAGE(OFFSET(Brine_Conc!$C$10,12*($A8-1),4*(PlotControl!$C$4-1),12,1)) -> 0.004111875 | I8: =AVERAGE(OFFSET(Brine_Conc!$D$10,12*($A8-1),4*(PlotControl!$C$4-1),12,1)) -> 0.004161408333 | J8: =AVERAGE(OFFSET(Brine_Conc!$E$10,12*($A8-1),4*(PlotControl!$C$4-1),12,1)) -> 0.004211791667 | L8: 4 | M8: =AVERAGE(OFFSET(Reclam_Conc!$C$10,12*($L8-1),4*(PlotControl!$C$4-1),12,1)) -> 0 | N8: =AVERAGE(OFFSET(Reclam_Conc!$D$10,12*($L8-1),4*(PlotControl!$C$4-1),12,1)) -> 0 | O8: =AVERAGE(OFFSET(Reclam_Conc!$E$10,12*($L8-1),4*(PlotControl!$C$4-1),12,1)) -> 0 | P8: =AVERAGE(OFFSET(LongTerm_Conc!$C$10,12*($L8-1),4*(PlotControl!$C$4-1),12,1)) -> 0 | Q8: =AVERAGE(OFFSET(LongTerm_Conc!$D$10,12*($L8-1),4*(PlotControl!$C$4-1),12,1)) -> 0 | R8: =AVERAGE(OFFSET(LongTerm_Conc!$E$10,12*($L8-1),4*(PlotControl!$C$4-1),12,1)) -> 0
A9: 5 | B9: =AVERAGE(OFFSET(WestPond_Conc!$C$10,12*($A9-1),4*(PlotControl!$C$4-1),12,1)) -> 0.008701158333 | C9: =AVERAGE(OFFSET(WestPond_Conc!$D$10,12*($A9-1),4*(PlotControl!$C$4-1),12,1)) -> 0.01087591667 | D9: =AVERAGE(OFFSET(WestPond_Conc!$E$10,12*($A9-1),4*(PlotControl!$C$4-1),12,1)) -> 0.05981016667 | E9: =AVERAGE(OFFSET(EastPond_Conc!$C$10,12*($A9-1),4*(PlotControl!$C$4-1),12,1)) -> 0.005548633333 | F9: =AVERAGE(OFFSET(EastPond_Conc!$D$10,12*($A9-1),4*(PlotControl!$C$4-1),12,1)) -> 0.006194391667 | G9: =AVERAGE(OFFSET(EastPond_Conc!$E$10,12*($A9-1),4*(PlotControl!$C$4-1),12,1)) -> 0.007091408333 | H9: =AVERAGE(OFFSET(Brine_Conc!$C$10,12*($A9-1),4*(PlotControl!$C$4-1),12,1)) -> 0.003788075 | I9: =AVERAGE(OFFSET(Brine_Conc!$D$10,12*($A9-1),4*(PlotControl!$C$4-1),12,1)) -> 0.003885066667 | J9: =AVERAGE(OFFSET(Brine_Conc!$E$10,12*($A9-1),4*(PlotControl!$C$4-1),12,1)) -> 0.003994066667 | L9: 5 | M9: =AVERAGE(OFFSET(Reclam_Conc!$C$10,12*($L9-1),4*(PlotControl!$C$4-1),12,1)) -> 0 | N9: =AVERAGE(OFFSET(Reclam_Conc!$D$10,12*($L9-1),4*(PlotControl!$C$4-1),12,1)) -> 0 | O9: =AVERAGE(OFFSET(Reclam_Conc!$E$10,12*($L9-1),4*(PlotControl!$C$4-1),12,1)) -> 0 | P9: =AVERAGE(OFFSET(LongTerm_Conc!$C$10,12*($L9-1),4*(PlotControl!$C$4-1),12,1)) -> 0 | Q9: =AVERAGE(OFFSET(LongTerm_Conc!$D$10,12*($L9-1),4*(PlotControl!$C$4-1),12,1)) -> 0 | R9: =AVERAGE(OFFSET(LongTerm_Conc!$E$10,12*($L9-1),4*(PlotControl!$C$4-1),12,1)) -> 0
A10: 6 | B10: =AVERAGE(OFFSET(WestPond_Conc!$C$10,12*($A10-1),4*(PlotControl!$C$4-1),12,1)) -> 0.008777108333 | C10: =AVERAGE(OFFSET(WestPond_Conc!$D$10,12*($A10-1),4*(PlotControl!$C$4-1),12,1)) -> 0.01079241667 | D10: =AVERAGE(OFFSET(WestPond_Conc!$E$10,12*($A10-1),4*(PlotControl!$C$4-1),12,1)) -> 0.055522 | E10: =AVERAGE(OFFSET(EastPond_Conc!$C$10,12*($A10-1),4*(PlotControl!$C$4-1),12,1)) -> 0.005901641667 | F10: =AVERAGE(OFFSET(EastPond_Conc!$D$10,12*($A10-1),4*(PlotControl!$C$4-1),12,1)) -> 0.006438508333 | G10: =AVERAGE(OFFSET(EastPond_Conc!$E$10,12*($A10-1),4*(PlotControl!$C$4-1),12,1)) -> 0.007165883333 | H10: =AVERAGE(OFFSET(Brine_Conc!$C$10,12*($A10-1),4*(PlotControl!$C$4-1),12,1)) -> 0.003693925 | I10: =AVERAGE(OFFSET(Brine_Conc!$D$10,12*($A10-1),4*(PlotControl!$C$4-1),12,1)) -> 0.0039869 | J10: =AVERAGE(OFFSET(Brine_Conc!$E$10,12*($A10-1),4*(PlotControl!$C$4-1),12,1)) -> 0.004258825 | L10: 6 | M10: =AVERAGE(OFFSET(Reclam_Conc!$C$10,12*($L10-1),4*(PlotControl!$C$4-1),12,1)) -> 0 | N10: =AVERAGE(OFFSET(Reclam_Conc!$D$10,12*($L10-1),4*(PlotControl!$C$4-1),12,1)) -> 0 | O10: =AVERAGE(OFFSET(Reclam_Conc!$E$10,12*($L10-1),4*(PlotControl!$C$4-1),12,1)) -> 0 | P10: =AVERAGE(OFFSET(LongTerm_Conc!$C$10,12*($L10-1),4*(PlotControl!$C$4-1),12,1)) -> 0 | Q10: =AVERAGE(OFFSET(LongTerm_Conc!$D$10,12*($L10-1),4*(PlotControl!$C$4-1),12,1)) -> 0 | R10: =AVERAGE(OFFSET(LongTerm_Conc!$E$10,12*($L10-1),4*(PlotControl!$C$4-1),12,1)) -> 0
A11: 7 | B11: =AVERAGE(OFFSET(WestPond_Conc!$C$10,12*($A11-1),4*(PlotControl!$C$4-1),12,1)) -> 0.009443025 | C11: =AVERAGE(OFFSET(WestPond_Conc!$D$10,12*($A11-1),4*(PlotControl!$C$4-1),12,1)) -> 0.01280958333 | D11: =AVERAGE(OFFSET(WestPond_Conc!$E$10,12*($A11-1),4*(PlotControl!$C$4-1),12,1)) -> 0.05007858333 | E11: =AVERAGE(OFFSET(EastPond_Conc!$C$10,12*($A11-1),4*(PlotControl!$C$4-1),12,1)) -> 0.005662608333 | F11: =AVERAGE(OFFSET(EastPond_Conc!$D$10,12*($A11-1),4*(PlotControl!$C$4-1),12,1)) -> 0.006224175 | G11: =AVERAGE(OFFSET(EastPond_Conc!$E$10,12*($A11-1),4*(PlotControl!$C$4-1),12,1)) -> 0.007209666667 | H11: =AVERAGE(OFFSET(Brine_Conc!$C$10,12*($A11-1),4*(PlotControl!$C$4-1),12,1)) -> 0.004566291667 | I11: =AVERAGE(OFFSET(Brine_Conc!$D$10,12*($A11-1),4*(PlotControl!$C$4-1),12,1)) -> 0.005005816667 | J11: =AVERAGE(OFFSET(Brine_Conc!$E$10,12*($A11-1),4*(PlotControl!$C$4-1),12,1)) -> 0.005467233333 | L11: 7 | M11: =AVERAGE(OFFSET(Reclam_Conc!$C$10,12*($L11-1),4*(PlotControl!$C$4-1),12,1)) -> 0 | N11: =AVERAGE(OFFSET(Reclam_Conc!$D$10,12*($L11-1),4*(PlotControl!$C$4-1),12,1)) -> 0 | O11: =AVERAGE(OFFSET(Reclam_Conc!$E$10,12*($L11-1),4*(PlotControl!$C$4-1),12,1)) -> 0 | P11: =AVERAGE(OFFSET(LongTerm_Conc!$C$10,12*($L11-1),4*(PlotControl!$C$4-1),12,1)) -> 0 | Q11: =AVERAGE(OFFSET(LongTerm_Conc!$D$10,12*($L11-1),4*(PlotControl!$C$4-1),12,1)) -> 0 | R11: =AVERAGE(OFFSET(LongTerm_Conc!$E$10,12*($L11-1),4*(PlotControl!$C$4-1),12,1)) -> 0
A12: 8 | B12: =AVERAGE(OFFSET(WestPond_Conc!$C$10,12*($A12-1),4*(PlotControl!$C$4-1),12,1)) -> 0.01263616667 | C12: =AVERAGE(OFFSET(WestPond_Conc!$D$10,12*($A12-1),4*(PlotControl!$C$4-1),12,1)) -> 0.01809808333 | D12: =AVERAGE(OFFSET(WestPond_Conc!$E$10,12*($A12-1),4*(PlotControl!$C$4-1),12,1)) -> 0.05488608333 | E12: =AVERAGE(OFFSET(EastPond_Conc!$C$10,12*($A12-1),4*(PlotControl!$C$4-1),12,1)) -> 0.005748 | F12: =AVERAGE(OFFSET(EastPond_Conc!$D$10,12*($A12-1),4*(PlotControl!$C$4-1),12,1)) -> 0.006384516667 | G12: =AVERAGE(OFFSET(EastPond_Conc!$E$10,12*($A12-1),4*(PlotControl!$C$4-1),12,1)) -> 0.007373608333 | H12: =AVERAGE(OFFSET(Brine_Conc!$C$10,12*($A12-1),4*(PlotControl!$C$4-1),12,1)) -> 0.005356958333 | I12: =AVERAGE(OFFSET(Brine_Conc!$D$10,12*($A12-1),4*(PlotControl!$C$4-1),12,1)) -> 0.006044041667 | J12: =AVERAGE(OFFSET(Brine_Conc!$E$10,12*($A12-1),4*(PlotControl!$C$4-1),12,1)) -> 0.006744 | L12: 8 | M12: =AVERAGE(OFFSET(Reclam_Conc!$C$10,12*($L12-1),4*(PlotControl!$C$4-1),12,1)) -> 0 | N12: =AVERAGE(OFFSET(Reclam_Conc!$D$10,12*($L12-1),4*(PlotControl!$C$4-1),12,1)) -> 0 | O12: =AVERAGE(OFFSET(Reclam_Conc!$E$10,12*($L12-1),4*(PlotControl!$C$4-1),12,1)) -> 0 | P12: =AVERAGE(OFFSET(LongTerm_Conc!$C$10,12*($L12-1),4*(PlotControl!$C$4-1),12,1)) -> 0 | Q12: =AVERAGE(OFFSET(LongTerm_Conc!$D$10,12*($L12-1),4*(PlotControl!$C$4-1),12,1)) -> 0 | R12: =AVERAGE(OFFSET(LongTerm_Conc!$E$10,12*($L12-1),4*(PlotControl!$C$4-1),12,1)) -> 0
A13: 9 | B13: =AVERAGE(OFFSET(WestPond_Conc!$C$10,12*($A13-1),4*(PlotControl!$C$4-1),12,1)) -> 0.01782483333 | C13: =AVERAGE(OFFSET(WestPond_Conc!$D$10,12*($A13-1),4*(PlotControl!$C$4-1),12,1)) -> 0.02228983333 | D13: =AVERAGE(OFFSET(WestPond_Conc!$E$10,12*($A13-1),4*(PlotControl!$C$4-1),12,1)) -> 0.05940991667 | E13: =AVERAGE(OFFSET(EastPond_Conc!$C$10,12*($A13-1),4*(PlotControl!$C$4-1),12,1)) -> 0.006128333333 | F13: =AVERAGE(OFFSET(EastPond_Conc!$D$10,12*($A13-1),4*(PlotControl!$C$4-1),12,1)) -> 0.006685491667 | G13: =AVERAGE(OFFSET(EastPond_Conc!$E$10,12*($A13-1),4*(PlotControl!$C$4-1),12,1)) -> 0.00758435 | H13: =AVERAGE(OFFSET(Brine_Conc!$C$10,12*($A13-1),4*(PlotControl!$C$4-1),12,1)) -> 0.005605975 | I13: =AVERAGE(OFFSET(Brine_Conc!$D$10,12*($A13-1),4*(PlotControl!$C$4-1),12,1)) -> 0.006411791667 | J13: =AVERAGE(OFFSET(Brine_Conc!$E$10,12*($A13-1),4*(PlotControl!$C$4-1),12,1)) -> 0.007267633333 | L13: 9 | M13: =AVERAGE(OFFSET(Reclam_Conc!$C$10,12*($L13-1),4*(PlotControl!$C$4-1),12,1)) -> 0 | N13: =AVERAGE(OFFSET(Reclam_Conc!$D$10,12*($L13-1),4*(PlotControl!$C$4-1),12,1)) -> 0 | O13: =AVERAGE(OFFSET(Reclam_Conc!$E$10,12*($L13-1),4*(PlotControl!$C$4-1),12,1)) -> 0 | P13: =AVERAGE(OFFSET(LongTerm_Conc!$C$10,12*($L13-1),4*(PlotControl!$C$4-1),12,1)) -> 0 | Q13: =AVERAGE(OFFSET(LongTerm_Conc!$D$10,12*($L13-1),4*(PlotControl!$C$4-1),12,1)) -> 0 | R13: =AVERAGE(OFFSET(LongTerm_Conc!$E$10,12*($L13-1),4*(PlotControl!$C$4-1),12,1)) -> 0
A14: 10 | B14: =AVERAGE(OFFSET(WestPond_Conc!$C$10,12*($A14-1),4*(PlotControl!$C$4-1),12,1)) -> 0.02154291667 | C14: =AVERAGE(OFFSET(WestPond_Conc!$D$10,12*($A14-1),4*(PlotControl!$C$4-1),12,1)) -> 0.02559116667 | D14: =AVERAGE(OFFSET(WestPond_Conc!$E$10,12*($A14-1),4*(PlotControl!$C$4-1),12,1)) -> 0.06280433333 | E14: =AVERAGE(OFFSET(EastPond_Conc!$C$10,12*($A14-1),4*(PlotControl!$C$4-1),12,1)) -> 0.0063834 | F14: =AVERAGE(OFFSET(EastPond_Conc!$D$10,12*($A14-1),4*(PlotControl!$C$4-1),12,1)) -> 0.006968641667 | G14: =AVERAGE(OFFSET(EastPond_Conc!$E$10,12*($A14-1),4*(PlotControl!$C$4-1),12,1)) -> 0.007674233333 | H14: =AVERAGE(OFFSET(Brine_Conc!$C$10,12*($A14-1),4*(PlotControl!$C$4-1),12,1)) -> 0.005793925 | I14: =AVERAGE(OFFSET(Brine_Conc!$D$10,12*($A14-1),4*(PlotControl!$C$4-1),12,1)) -> 0.006670366667 | J14: =AVERAGE(OFFSET(Brine_Conc!$E$10,12*($A14-1),4*(PlotControl!$C$4-1),12,1)) -> 0.007559675 | L14: 10 | M14: =AVERAGE(OFFSET(Reclam_Conc!$C$10,12*($L14-1),4*(PlotControl!$C$4-1),12,1)) -> 0 | N14: =AVERAGE(OFFSET(Reclam_Conc!$D$10,12*($L14-1),4*(PlotControl!$C$4-1),12,1)) -> 0 | O14: =AVERAGE(OFFSET(Reclam_Conc!$E$10,12*($L14-1),4*(PlotControl!$C$4-1),12,1)) -> 0 | P14: =AVERAGE(OFFSET(LongTerm_Conc!$C$10,12*($L14-1),4*(PlotControl!$C$4-1),12,1)) -> 0 | Q14: =AVERAGE(OFFSET(LongTerm_Conc!$D$10,12*($L14-1),4*(PlotControl!$C$4-1),12,1)) -> 0 | R14: =AVERAGE(OFFSET(LongTerm_Conc!$E$10,12*($L14-1),4*(PlotControl!$C$4-1),12,1)) -> 0
A15: 11 | B15: =AVERAGE(OFFSET(WestPond_Conc!$C$10,12*($A15-1),4*(PlotControl!$C$4-1),12,1)) -> 0.02518841667 | C15: =AVERAGE(OFFSET(WestPond_Conc!$D$10,12*($A15-1),4*(PlotControl!$C$4-1),12,1)) -> 0.02856108333 | D15: =AVERAGE(OFFSET(WestPond_Conc!$E$10,12*($A15-1),4*(PlotControl!$C$4-1),12,1)) -> 0.06143916667 | E15: =AVERAGE(OFFSET(EastPond_Conc!$C$10,12*($A15-1),4*(PlotControl!$C$4-1),12,1)) -> 0.005427441667 | F15: =AVERAGE(OFFSET(EastPond_Conc!$D$10,12*($A15-1),4*(PlotControl!$C$4-1),12,1)) -> 0.00608665 | G15: =AVERAGE(OFFSET(EastPond_Conc!$E$10,12*($A15-1),4*(PlotControl!$C$4-1),12,1)) -> 0.007420433333 | H15: =AVERAGE(OFFSET(Brine_Conc!$C$10,12*($A15-1),4*(PlotControl!$C$4-1),12,1)) -> 0.006269925 | I15: =AVERAGE(OFFSET(Brine_Conc!$D$10,12*($A15-1),4*(PlotControl!$C$4-1),12,1)) -> 0.007047066667 | J15: =AVERAGE(OFFSET(Brine_Conc!$E$10,12*($A15-1),4*(PlotControl!$C$4-1),12,1)) -> 0.007853683333 | L15: 11 | M15: =AVERAGE(OFFSET(Reclam_Conc!$C$10,12*($L15-1),4*(PlotControl!$C$4-1),12,1)) -> 0 | N15: =AVERAGE(OFFSET(Reclam_Conc!$D$10,12*($L15-1),4*(PlotControl!$C$4-1),12,1)) -> 0 | O15: =AVERAGE(OFFSET(Reclam_Conc!$E$10,12*($L15-1),4*(PlotControl!$C$4-1),12,1)) -> 0 | P15: =AVERAGE(OFFSET(LongTerm_Conc!$C$10,12*($L15-1),4*(PlotControl!$C$4-1),12,1)) -> 0 | Q15: =AVERAGE(OFFSET(LongTerm_Conc!$D$10,12*($L15-1),4*(PlotControl!$C$4-1),12,1)) -> 0 | R15: =AVERAGE(OFFSET(LongTerm_Conc!$E$10,12*($L15-1),4*(PlotControl!$C$4-1),12,1)) -> 0
A16: 12 | B16: =AVERAGE(OFFSET(WestPond_Conc!$C$10,12*($A16-1),4*(PlotControl!$C$4-1),12,1)) -> 0.03048175 | C16: =AVERAGE(OFFSET(WestPond_Conc!$D$10,12*($A16-1),4*(PlotControl!$C$4-1),12,1)) -> 0.03303375 | D16: =AVERAGE(OFFSET(WestPond_Conc!$E$10,12*($A16-1),4*(PlotControl!$C$4-1),12,1)) -> 0.03568216667 | E16: =AVERAGE(OFFSET(EastPond_Conc!$C$10,12*($A16-1),4*(PlotControl!$C$4-1),12,1)) -> 0.005378958333 | F16: =AVERAGE(OFFSET(EastPond_Conc!$D$10,12*($A16-1),4*(PlotControl!$C$4-1),12,1)) -> 0.006091291667 | G16: =AVERAGE(OFFSET(EastPond_Conc!$E$10,12*($A16-1),4*(PlotControl!$C$4-1),12,1)) -> 0.007759175 | H16: =AVERAGE(OFFSET(Brine_Conc!$C$10,12*($A16-1),4*(PlotControl!$C$4-1),12,1)) -> 0.006645358333 | I16: =AVERAGE(OFFSET(Brine_Conc!$D$10,12*($A16-1),4*(PlotControl!$C$4-1),12,1)) -> 0.007415466667 | J16: =AVERAGE(OFFSET(Brine_Conc!$E$10,12*($A16-1),4*(PlotControl!$C$4-1),12,1)) -> 0.008236825 | L16: 12 | M16: =AVERAGE(OFFSET(Reclam_Conc!$C$10,12*($L16-1),4*(PlotControl!$C$4-1),12,1)) -> 0 | N16: =AVERAGE(OFFSET(Reclam_Conc!$D$10,12*($L16-1),4*(PlotControl!$C$4-1),12,1)) -> 0 | O16: =AVERAGE(OFFSET(Reclam_Conc!$E$10,12*($L16-1),4*(PlotControl!$C$4-1),12,1)) -> 0 | P16: =AVERAGE(OFFSET(LongTerm_Conc!$C$10,12*($L16-1),4*(PlotControl!$C$4-1),12,1)) -> 0 | Q16: =AVERAGE(OFFSET(LongTerm_Conc!$D$10,12*($L16-1),4*(PlotControl!$C$4-1),12,1)) -> 0 | R16: =AVERAGE(OFFSET(LongTerm_Conc!$E$10,12*($L16-1),4*(PlotControl!$C$4-1),12,1)) -> 0
A17: 13 | B17: =AVERAGE(OFFSET(WestPond_Conc!$C$10,12*($A17-1),4*(PlotControl!$C$4-1),12,1)) -> 0.03312225 | C17: =AVERAGE(OFFSET(WestPond_Conc!$D$10,12*($A17-1),4*(PlotControl!$C$4-1),12,1)) -> 0.03619141667 | D17: =AVERAGE(OFFSET(WestPond_Conc!$E$10,12*($A17-1),4*(PlotControl!$C$4-1),12,1)) -> 0.03916058333 | E17: =AVERAGE(OFFSET(EastPond_Conc!$C$10,12*($A17-1),4*(PlotControl!$C$4-1),12,1)) -> 0.005317175 | F17: =AVERAGE(OFFSET(EastPond_Conc!$D$10,12*($A17-1),4*(PlotControl!$C$4-1),12,1)) -> 0.005985125 | G17: =AVERAGE(OFFSET(EastPond_Conc!$E$10,12*($A17-1),4*(PlotControl!$C$4-1),12,1)) -> 0.007909816667 | H17: =AVERAGE(OFFSET(Brine_Conc!$C$10,12*($A17-1),4*(PlotControl!$C$4-1),12,1)) -> 0.007161283333 | I17: =AVERAGE(OFFSET(Brine_Conc!$D$10,12*($A17-1),4*(PlotControl!$C$4-1),12,1)) -> 0.007853208333 | J17: =AVERAGE(OFFSET(Brine_Conc!$E$10,12*($A17-1),4*(PlotControl!$C$4-1),12,1)) -> 0.008521091667 | L17: 13 | M17: =AVERAGE(OFFSET(Reclam_Conc!$C$10,12*($L17-1),4*(PlotControl!$C$4-1),12,1)) -> 0 | N17: =AVERAGE(OFFSET(Reclam_Conc!$D$10,12*($L17-1),4*(PlotControl!$C$4-1),12,1)) -> 0 | O17: =AVERAGE(OFFSET(Reclam_Conc!$E$10,12*($L17-1),4*(PlotControl!$C$4-1),12,1)) -> 0 | P17: =AVERAGE(OFFSET(LongTerm_Conc!$C$10,12*($L17-1),4*(PlotControl!$C$4-1),12,1)) -> 0 | Q17: =AVERAGE(OFFSET(LongTerm_Conc!$D$10,12*($L17-1),4*(PlotControl!$C$4-1),12,1)) -> 0 | R17: =AVERAGE(OFFSET(LongTerm_Conc!$E$10,12*($L17-1),4*(PlotControl!$C$4-1),12,1)) -> 0
A18: 14 | B18: =AVERAGE(OFFSET(WestPond_Conc!$C$10,12*($A18-1),4*(PlotControl!$C$4-1),12,1)) -> 0.03616016667 | C18: =AVERAGE(OFFSET(WestPond_Conc!$D$10,12*($A18-1),4*(PlotControl!$C$4-1),12,1)) -> 0.03919933333 | D18: =AVERAGE(OFFSET(WestPond_Conc!$E$10,12*($A18-1),4*(PlotControl!$C$4-1),12,1)) -> 0.04226708333 | E18: =AVERAGE(OFFSET(EastPond_Conc!$C$10,12*($A18-1),4*(PlotControl!$C$4-1),12,1)) -> 0.006920866667 | F18: =AVERAGE(OFFSET(EastPond_Conc!$D$10,12*($A18-1),4*(PlotControl!$C$4-1),12,1)) -> 0.007379358333 | G18: =AVERAGE(OFFSET(EastPond_Conc!$E$10,12*($A18-1),4*(PlotControl!$C$4-1),12,1)) -> 0.008113975 | H18: =AVERAGE(OFFSET(Brine_Conc!$C$10,12*($A18-1),4*(PlotControl!$C$4-1),12,1)) -> 0.006654783333 | I18: =AVERAGE(OFFSET(Brine_Conc!$D$10,12*($A18-1),4*(PlotControl!$C$4-1),12,1)) -> 0.007642575 | J18: =AVERAGE(OFFSET(Brine_Conc!$E$10,12*($A18-1),4*(PlotControl!$C$4-1),12,1)) -> 0.008755108333 | L18: 14 | M18: =AVERAGE(OFFSET(Reclam_Conc!$C$10,12*($L18-1),4*(PlotControl!$C$4-1),12,1)) -> 0 | N18: =AVERAGE(OFFSET(Reclam_Conc!$D$10,12*($L18-1),4*(PlotControl!$C$4-1),12,1)) -> 0 | O18: =AVERAGE(OFFSET(Reclam_Conc!$E$10,12*($L18-1),4*(PlotControl!$C$4-1),12,1)) -> 0 | P18: =AVERAGE(OFFSET(LongTerm_Conc!$C$10,12*($L18-1),4*(PlotControl!$C$4-1),12,1)) -> 0 | Q18: =AVERAGE(OFFSET(LongTerm_Conc!$D$10,12*($L18-1),4*(PlotControl!$C$4-1),12,1)) -> 0 | R18: =AVERAGE(OFFSET(LongTerm_Conc!$E$10,12*($L18-1),4*(PlotControl!$C$4-1),12,1)) -> 0
A19: 15 | B19: =AVERAGE(OFFSET(WestPond_Conc!$C$10,12*($A19-1),4*(PlotControl!$C$4-1),12,1)) -> 0.03903608333 | C19: =AVERAGE(OFFSET(WestPond_Conc!$D$10,12*($A19-1),4*(PlotControl!$C$4-1),12,1)) -> 0.04274608333 | D19: =AVERAGE(OFFSET(WestPond_Conc!$E$10,12*($A19-1),4*(PlotControl!$C$4-1),12,1)) -> 0.04648466667 | E19: =AVERAGE(OFFSET(EastPond_Conc!$C$10,12*($A19-1),4*(PlotControl!$C$4-1),12,1)) -> 0.007093325 | F19: =AVERAGE(OFFSET(EastPond_Conc!$D$10,12*($A19-1),4*(PlotControl!$C$4-1),12,1)) -> 0.007498408333 | G19: =AVERAGE(OFFSET(EastPond_Conc!$E$10,12*($A19-1),4*(PlotControl!$C$4-1),12,1)) -> 0.008215841667 | H19: =AVERAGE(OFFSET(Brine_Conc!$C$10,12*($A19-1),4*(PlotControl!$C$4-1),12,1)) -> 0.006821875 | I19: =AVERAGE(OFFSET(Brine_Conc!$D$10,12*($A19-1),4*(PlotControl!$C$4-1),12,1)) -> 0.007859725 | J19: =AVERAGE(OFFSET(Brine_Conc!$E$10,12*($A19-1),4*(PlotControl!$C$4-1),12,1)) -> 0.00880085 | L19: 15 | M19: =AVERAGE(OFFSET(Reclam_Conc!$C$10,12*($L19-1),4*(PlotControl!$C$4-1),12,1)) -> 0 | N19: =AVERAGE(OFFSET(Reclam_Conc!$D$10,12*($L19-1),4*(PlotControl!$C$4-1),12,1)) -> 0 | O19: =AVERAGE(OFFSET(Reclam_Conc!$E$10,12*($L19-1),4*(PlotControl!$C$4-1),12,1)) -> 0 | P19: =AVERAGE(OFFSET(LongTerm_Conc!$C$10,12*($L19-1),4*(PlotControl!$C$4-1),12,1)) -> 0 | Q19: =AVERAGE(OFFSET(LongTerm_Conc!$D$10,12*($L19-1),4*(PlotControl!$C$4-1),12,1)) -> 0 | R19: =AVERAGE(OFFSET(LongTerm_Conc!$E$10,12*($L19-1),4*(PlotControl!$C$4-1),12,1)) -> 0
A20: 16 | B20: =AVERAGE(OFFSET(WestPond_Conc!$C$10,12*($A20-1),4*(PlotControl!$C$4-1),12,1)) -> 0.04293483333 | C20: =AVERAGE(OFFSET(WestPond_Conc!$D$10,12*($A20-1),4*(PlotControl!$C$4-1),12,1)) -> 0.04699758333 | D20: =AVERAGE(OFFSET(WestPond_Conc!$E$10,12*($A20-1),4*(PlotControl!$C$4-1),12,1)) -> 0.05068675 | E20: =AVERAGE(OFFSET(EastPond_Conc!$C$10,12*($A20-1),4*(PlotControl!$C$4-1),12,1)) -> 0.004981791667 | F20: =AVERAGE(OFFSET(EastPond_Conc!$D$10,12*($A20-1),4*(PlotControl!$C$4-1),12,1)) -> 0.00534365 | G20: =AVERAGE(OFFSET(EastPond_Conc!$E$10,12*($A20-1),4*(PlotControl!$C$4-1),12,1)) -> 0.005979983333 | H20: =AVERAGE(OFFSET(Brine_Conc!$C$10,12*($A20-1),4*(PlotControl!$C$4-1),12,1)) -> 0.008404875 | I20: =AVERAGE(OFFSET(Brine_Conc!$D$10,12*($A20-1),4*(PlotControl!$C$4-1),12,1)) -> 0.008690358333 | J20: =AVERAGE(OFFSET(Brine_Conc!$E$10,12*($A20-1),4*(PlotControl!$C$4-1),12,1)) -> 0.008974066667 | L20: 16 | M20: =AVERAGE(OFFSET(Reclam_Conc!$C$10,12*($L20-1),4*(PlotControl!$C$4-1),12,1)) -> 0 | N20: =AVERAGE(OFFSET(Reclam_Conc!$D$10,12*($L20-1),4*(PlotControl!$C$4-1),12,1)) -> 0 | O20: =AVERAGE(OFFSET(Reclam_Conc!$E$10,12*($L20-1),4*(PlotControl!$C$4-1),12,1)) -> 0 | P20: =AVERAGE(OFFSET(LongTerm_Conc!$C$10,12*($L20-1),4*(PlotControl!$C$4-1),12,1)) -> 0 | Q20: =AVERAGE(OFFSET(LongTerm_Conc!$D$10,12*($L20-1),4*(PlotControl!$C$4-1),12,1)) -> 0 | R20: =AVERAGE(OFFSET(LongTerm_Conc!$E$10,12*($L20-1),4*(PlotControl!$C$4-1),12,1)) -> 0
A21: 17 | B21: =AVERAGE(OFFSET(WestPond_Conc!$C$10,12*($A21-1),4*(PlotControl!$C$4-1),12,1)) -> 0.046799 | C21: =AVERAGE(OFFSET(WestPond_Conc!$D$10,12*($A21-1),4*(PlotControl!$C$4-1),12,1)) -> 0.05087258333 | D21: =AVERAGE(OFFSET(WestPond_Conc!$E$10,12*($A21-1),4*(PlotControl!$C$4-1),12,1)) -> 0.054626 | E21: =AVERAGE(OFFSET(EastPond_Conc!$C$10,12*($A21-1),4*(PlotControl!$C$4-1),12,1)) -> 0.003283883333 | F21: =AVERAGE(OFFSET(EastPond_Conc!$D$10,12*($A21-1),4*(PlotControl!$C$4-1),12,1)) -> 0.003762416667 | G21: =AVERAGE(OFFSET(EastPond_Conc!$E$10,12*($A21-1),4*(PlotControl!$C$4-1),12,1)) -> 0.005306291667 | H21: =AVERAGE(OFFSET(Brine_Conc!$C$10,12*($A21-1),4*(PlotControl!$C$4-1),12,1)) -> 0.008699166667 | I21: =AVERAGE(OFFSET(Brine_Conc!$D$10,12*($A21-1),4*(PlotControl!$C$4-1),12,1)) -> 0.008879583333 | J21: =AVERAGE(OFFSET(Brine_Conc!$E$10,12*($A21-1),4*(PlotControl!$C$4-1),12,1)) -> 0.009061491667 | L21: 17 | M21: =AVERAGE(OFFSET(Reclam_Conc!$C$10,12*($L21-1),4*(PlotControl!$C$4-1),12,1)) -> 0 | N21: =AVERAGE(OFFSET(Reclam_Conc!$D$10,12*($L21-1),4*(PlotControl!$C$4-1),12,1)) -> 0 | O21: =AVERAGE(OFFSET(Reclam_Conc!$E$10,12*($L21-1),4*(PlotControl!$C$4-1),12,1)) -> 0 | P21: =AVERAGE(OFFSET(LongTerm_Conc!$C$10,12*($L21-1),4*(PlotControl!$C$4-1),12,1)) -> 0 | Q21: =AVERAGE(OFFSET(LongTerm_Conc!$D$10,12*($L21-1),4*(PlotControl!$C$4-1),12,1)) -> 0 | R21: =AVERAGE(OFFSET(LongTerm_Conc!$E$10,12*($L21-1),4*(PlotControl!$C$4-1),12,1)) -> 0
A22: 18 | B22: =AVERAGE(OFFSET(WestPond_Conc!$C$10,12*($A22-1),4*(PlotControl!$C$4-1),12,1)) -> 0.04969183333 | C22: =AVERAGE(OFFSET(WestPond_Conc!$D$10,12*($A22-1),4*(PlotControl!$C$4-1),12,1)) -> 0.05378875 | D22: =AVERAGE(OFFSET(WestPond_Conc!$E$10,12*($A22-1),4*(PlotControl!$C$4-1),12,1)) -> 0.05759908333 | E22: =AVERAGE(OFFSET(EastPond_Conc!$C$10,12*($A22-1),4*(PlotControl!$C$4-1),12,1)) -> 0.003651325 | F22: =AVERAGE(OFFSET(EastPond_Conc!$D$10,12*($A22-1),4*(PlotControl!$C$4-1),12,1)) -> 0.004111533333 | G22: =AVERAGE(OFFSET(EastPond_Conc!$E$10,12*($A22-1),4*(PlotControl!$C$4-1),12,1)) -> 0.006609591667 | H22: =AVERAGE(OFFSET(Brine_Conc!$C$10,12*($A22-1),4*(PlotControl!$C$4-1),12,1)) -> 0.008627066667 | I22: =AVERAGE(OFFSET(Brine_Conc!$D$10,12*($A22-1),4*(PlotControl!$C$4-1),12,1)) -> 0.0088569 | J22: =AVERAGE(OFFSET(Brine_Conc!$E$10,12*($A22-1),4*(PlotControl!$C$4-1),12,1)) -> 0.009084166667 | L22: 18 | M22: =AVERAGE(OFFSET(Reclam_Conc!$C$10,12*($L22-1),4*(PlotControl!$C$4-1),12,1)) -> 0 | N22: =AVERAGE(OFFSET(Reclam_Conc!$D$10,12*($L22-1),4*(PlotControl!$C$4-1),12,1)) -> 0 | O22: =AVERAGE(OFFSET(Reclam_Conc!$E$10,12*($L22-1),4*(PlotControl!$C$4-1),12,1)) -> 0 | P22: =AVERAGE(OFFSET(LongTerm_Conc!$C$10,12*($L22-1),4*(PlotControl!$C$4-1),12,1)) -> 0 | Q22: =AVERAGE(OFFSET(LongTerm_Conc!$D$10,12*($L22-1),4*(PlotControl!$C$4-1),12,1)) -> 0 | R22: =AVERAGE(OFFSET(LongTerm_Conc!$E$10,12*($L22-1),4*(PlotControl!$C$4-1),12,1)) -> 0
A23: 19 | B23: =AVERAGE(OFFSET(WestPond_Conc!$C$10,12*($A23-1),4*(PlotControl!$C$4-1),12,1)) -> 0.05010741667 | C23: =AVERAGE(OFFSET(WestPond_Conc!$D$10,12*($A23-1),4*(PlotControl!$C$4-1),12,1)) -> 0.05410866667 | D23: =AVERAGE(OFFSET(WestPond_Conc!$E$10,12*($A23-1),4*(PlotControl!$C$4-1),12,1)) -> 0.05803041667 | E23: =AVERAGE(OFFSET(EastPond_Conc!$C$10,12*($A23-1),4*(PlotControl!$C$4-1),12,1)) -> 0.004062425 | F23: =AVERAGE(OFFSET(EastPond_Conc!$D$10,12*($A23-1),4*(PlotControl!$C$4-1),12,1)) -> 0.004508225 | G23: =AVERAGE(OFFSET(EastPond_Conc!$E$10,12*($A23-1),4*(PlotControl!$C$4-1),12,1)) -> 0.005701516667 | H23: =AVERAGE(OFFSET(Brine_Conc!$C$10,12*($A23-1),4*(PlotControl!$C$4-1),12,1)) -> 0.006829008333 | I23: =AVERAGE(OFFSET(Brine_Conc!$D$10,12*($A23-1),4*(PlotControl!$C$4-1),12,1)) -> 0.007527691667 | J23: =AVERAGE(OFFSET(Brine_Conc!$E$10,12*($A23-1),4*(PlotControl!$C$4-1),12,1)) -> 0.008167316667 | L23: 19 | M23: =AVERAGE(OFFSET(Reclam_Conc!$C$10,12*($L23-1),4*(PlotControl!$C$4-1),12,1)) -> 0 | N23: =AVERAGE(OFFSET(Reclam_Conc!$D$10,12*($L23-1),4*(PlotControl!$C$4-1),12,1)) -> 0 | O23: =AVERAGE(OFFSET(Reclam_Conc!$E$10,12*($L23-1),4*(PlotControl!$C$4-1),12,1)) -> 0 | P23: =AVERAGE(OFFSET(LongTerm_Conc!$C$10,12*($L23-1),4*(PlotControl!$C$4-1),12,1)) -> 0 | Q23: =AVERAGE(OFFSET(LongTerm_Conc!$D$10,12*($L23-1),4*(PlotControl!$C$4-1),12,1)) -> 0 | R23: =AVERAGE(OFFSET(LongTerm_Conc!$E$10,12*($L23-1),4*(PlotControl!$C$4-1),12,1)) -> 0
A24: 20 | B24: =AVERAGE(OFFSET(WestPond_Conc!$C$10,12*($A24-1),4*(PlotControl!$C$4-1),12,1)) -> 0.0325295 | C24: =AVERAGE(OFFSET(WestPond_Conc!$D$10,12*($A24-1),4*(PlotControl!$C$4-1),12,1)) -> 0.03509433333 | D24: =AVERAGE(OFFSET(WestPond_Conc!$E$10,12*($A24-1),4*(PlotControl!$C$4-1),12,1)) -> 0.037633 | E24: =AVERAGE(OFFSET(EastPond_Conc!$C$10,12*($A24-1),4*(PlotControl!$C$4-1),12,1)) -> 0.004587833333 | F24: =AVERAGE(OFFSET(EastPond_Conc!$D$10,12*($A24-1),4*(PlotControl!$C$4-1),12,1)) -> 0.005066483333 | G24: =AVERAGE(OFFSET(EastPond_Conc!$E$10,12*($A24-1),4*(PlotControl!$C$4-1),12,1)) -> 0.006033191667 | H24: =AVERAGE(OFFSET(Brine_Conc!$C$10,12*($A24-1),4*(PlotControl!$C$4-1),12,1)) -> 0.00851295 | I24: =AVERAGE(OFFSET(Brine_Conc!$D$10,12*($A24-1),4*(PlotControl!$C$4-1),12,1)) -> 0.008786708333 | J24: =AVERAGE(OFFSET(Brine_Conc!$E$10,12*($A24-1),4*(PlotControl!$C$4-1),12,1)) -> 0.009053541667 | L24: 20 | M24: =AVERAGE(OFFSET(Reclam_Conc!$C$10,12*($L24-1),4*(PlotControl!$C$4-1),12,1)) -> 0 | N24: =AVERAGE(OFFSET(Reclam_Conc!$D$10,12*($L24-1),4*(PlotControl!$C$4-1),12,1)) -> 0 | O24: =AVERAGE(OFFSET(Reclam_Conc!$E$10,12*($L24-1),4*(PlotControl!$C$4-1),12,1)) -> 0 | P24: =AVERAGE(OFFSET(LongTerm_Conc!$C$10,12*($L24-1),4*(PlotControl!$C$4-1),12,1)) -> 0 | Q24: =AVERAGE(OFFSET(LongTerm_Conc!$D$10,12*($L24-1),4*(PlotControl!$C$4-1),12,1)) -> 0 | R24: =AVERAGE(OFFSET(LongTerm_Conc!$E$10,12*($L24-1),4*(PlotControl!$C$4-1),12,1)) -> 0
A25: 21 | B25: =AVERAGE(OFFSET(WestPond_Conc!$C$10,12*($A25-1),4*(PlotControl!$C$4-1),12,1)) -> 0.003757685684 | C25: =AVERAGE(OFFSET(WestPond_Conc!$D$10,12*($A25-1),4*(PlotControl!$C$4-1),12,1)) -> 0.004214736522 | D25: =AVERAGE(OFFSET(WestPond_Conc!$E$10,12*($A25-1),4*(PlotControl!$C$4-1),12,1)) -> 0.004724838358 | E25: =AVERAGE(OFFSET(EastPond_Conc!$C$10,12*($A25-1),4*(PlotControl!$C$4-1),12,1)) -> 0.009507608333 | F25: =AVERAGE(OFFSET(EastPond_Conc!$D$10,12*($A25-1),4*(PlotControl!$C$4-1),12,1)) -> 0.009900008333 | G25: =AVERAGE(OFFSET(EastPond_Conc!$E$10,12*($A25-1),4*(PlotControl!$C$4-1),12,1)) -> 0.01035545 | H25: =AVERAGE(OFFSET(Brine_Conc!$C$10,12*($A25-1),4*(PlotControl!$C$4-1),12,1)) -> 0.006512908333 | I25: =AVERAGE(OFFSET(Brine_Conc!$D$10,12*($A25-1),4*(PlotControl!$C$4-1),12,1)) -> 0.0070979 | J25: =AVERAGE(OFFSET(Brine_Conc!$E$10,12*($A25-1),4*(PlotControl!$C$4-1),12,1)) -> 0.0076895 | L25: 21 | M25: =AVERAGE(OFFSET(Reclam_Conc!$C$10,12*($L25-1),4*(PlotControl!$C$4-1),12,1)) -> 0.001312166667 | N25: =AVERAGE(OFFSET(Reclam_Conc!$D$10,12*($L25-1),4*(PlotControl!$C$4-1),12,1)) -> 0.002122166667 | O25: =AVERAGE(OFFSET(Reclam_Conc!$E$10,12*($L25-1),4*(PlotControl!$C$4-1),12,1)) -> 0.002920816667 | P25: =AVERAGE(OFFSET(LongTerm_Conc!$C$10,12*($L25-1),4*(PlotControl!$C$4-1),12,1)) -> 0 | Q25: =AVERAGE(OFFSET(LongTerm_Conc!$D$10,12*($L25-1),4*(PlotControl!$C$4-1),12,1)) -> 0 | R25: =AVERAGE(OFFSET(LongTerm_Conc!$E$10,12*($L25-1),4*(PlotControl!$C$4-1),12,1)) -> 0
A26: 22 | B26: =AVERAGE(OFFSET(WestPond_Conc!$C$10,12*($A26-1),4*(PlotControl!$C$4-1),12,1)) -> 2.8231e-07 | C26: =AVERAGE(OFFSET(WestPond_Conc!$D$10,12*($A26-1),4*(PlotControl!$C$4-1),12,1)) -> 8.3226e-07 | D26: =AVERAGE(OFFSET(WestPond_Conc!$E$10,12*($A26-1),4*(PlotControl!$C$4-1),12,1)) -> 3.365e-06 | E26: =AVERAGE(OFFSET(EastPond_Conc!$C$10,12*($A26-1),4*(PlotControl!$C$4-1),12,1)) -> 0.009527325 | F26: =AVERAGE(OFFSET(EastPond_Conc!$D$10,12*($A26-1),4*(PlotControl!$C$4-1),12,1)) -> 0.00963835 | G26: =AVERAGE(OFFSET(EastPond_Conc!$E$10,12*($A26-1),4*(PlotControl!$C$4-1),12,1)) -> 0.009762233333 | H26: =AVERAGE(OFFSET(Brine_Conc!$C$10,12*($A26-1),4*(PlotControl!$C$4-1),12,1)) -> 0.006313208333 | I26: =AVERAGE(OFFSET(Brine_Conc!$D$10,12*($A26-1),4*(PlotControl!$C$4-1),12,1)) -> 0.006855925 | J26: =AVERAGE(OFFSET(Brine_Conc!$E$10,12*($A26-1),4*(PlotControl!$C$4-1),12,1)) -> 0.007390725 | L26: 22 | M26: =AVERAGE(OFFSET(Reclam_Conc!$C$10,12*($L26-1),4*(PlotControl!$C$4-1),12,1)) -> 0.009647075 | N26: =AVERAGE(OFFSET(Reclam_Conc!$D$10,12*($L26-1),4*(PlotControl!$C$4-1),12,1)) -> 0.009704283333 | O26: =AVERAGE(OFFSET(Reclam_Conc!$E$10,12*($L26-1),4*(PlotControl!$C$4-1),12,1)) -> 0.009755825 | P26: =AVERAGE(OFFSET(LongTerm_Conc!$C$10,12*($L26-1),4*(PlotControl!$C$4-1),12,1)) -> 0 | Q26: =AVERAGE(OFFSET(LongTerm_Conc!$D$10,12*($L26-1),4*(PlotControl!$C$4-1),12,1)) -> 0 | R26: =AVERAGE(OFFSET(LongTerm_Conc!$E$10,12*($L26-1),4*(PlotControl!$C$4-1),12,1)) -> 0
A27: 23 | B27: =AVERAGE(OFFSET(WestPond_Conc!$C$10,12*($A27-1),4*(PlotControl!$C$4-1),12,1)) -> 2.8231e-07 | C27: =AVERAGE(OFFSET(WestPond_Conc!$D$10,12*($A27-1),4*(PlotControl!$C$4-1),12,1)) -> 8.3226e-07 | D27: =AVERAGE(OFFSET(WestPond_Conc!$E$10,12*($A27-1),4*(PlotControl!$C$4-1),12,1)) -> 3.365e-06 | E27: =AVERAGE(OFFSET(EastPond_Conc!$C$10,12*($A27-1),4*(PlotControl!$C$4-1),12,1)) -> 0.0095283 | F27: =AVERAGE(OFFSET(EastPond_Conc!$D$10,12*($A27-1),4*(PlotControl!$C$4-1),12,1)) -> 0.0096387 | G27: =AVERAGE(OFFSET(EastPond_Conc!$E$10,12*($A27-1),4*(PlotControl!$C$4-1),12,1)) -> 0.0097647 | H27: =AVERAGE(OFFSET(Brine_Conc!$C$10,12*($A27-1),4*(PlotControl!$C$4-1),12,1)) -> 0.006292658333 | I27: =AVERAGE(OFFSET(Brine_Conc!$D$10,12*($A27-1),4*(PlotControl!$C$4-1),12,1)) -> 0.006755916667 | J27: =AVERAGE(OFFSET(Brine_Conc!$E$10,12*($A27-1),4*(PlotControl!$C$4-1),12,1)) -> 0.007232241667 | L27: 23 | M27: =AVERAGE(OFFSET(Reclam_Conc!$C$10,12*($L27-1),4*(PlotControl!$C$4-1),12,1)) -> 0.009647708333 | N27: =AVERAGE(OFFSET(Reclam_Conc!$D$10,12*($L27-1),4*(PlotControl!$C$4-1),12,1)) -> 0.009696791667 | O27: =AVERAGE(OFFSET(Reclam_Conc!$E$10,12*($L27-1),4*(PlotControl!$C$4-1),12,1)) -> 0.009741183333 | P27: =AVERAGE(OFFSET(LongTerm_Conc!$C$10,12*($L27-1),4*(PlotControl!$C$4-1),12,1)) -> 0 | Q27: =AVERAGE(OFFSET(LongTerm_Conc!$D$10,12*($L27-1),4*(PlotControl!$C$4-1),12,1)) -> 0 | R27: =AVERAGE(OFFSET(LongTerm_Conc!$E$10,12*($L27-1),4*(PlotControl!$C$4-1),12,1)) -> 0
A28: 24 | B28: =AVERAGE(OFFSET(WestPond_Conc!$C$10,12*($A28-1),4*(PlotControl!$C$4-1),12,1)) -> 2.8231e-07 | C28: =AVERAGE(OFFSET(WestPond_Conc!$D$10,12*($A28-1),4*(PlotControl!$C$4-1),12,1)) -> 8.3226e-07 | D28: =AVERAGE(OFFSET(WestPond_Conc!$E$10,12*($A28-1),4*(PlotControl!$C$4-1),12,1)) -> 3.365e-06 | E28: =AVERAGE(OFFSET(EastPond_Conc!$C$10,12*($A28-1),4*(PlotControl!$C$4-1),12,1)) -> 0.0095283 | F28: =AVERAGE(OFFSET(EastPond_Conc!$D$10,12*($A28-1),4*(PlotControl!$C$4-1),12,1)) -> 0.0096387 | G28: =AVERAGE(OFFSET(EastPond_Conc!$E$10,12*($A28-1),4*(PlotControl!$C$4-1),12,1)) -> 0.0097647 | H28: =AVERAGE(OFFSET(Brine_Conc!$C$10,12*($A28-1),4*(PlotControl!$C$4-1),12,1)) -> 0.006098683333 | I28: =AVERAGE(OFFSET(Brine_Conc!$D$10,12*($A28-1),4*(PlotControl!$C$4-1),12,1)) -> 0.006579875 | J28: =AVERAGE(OFFSET(Brine_Conc!$E$10,12*($A28-1),4*(PlotControl!$C$4-1),12,1)) -> 0.007042891667 | L28: 24 | M28: =AVERAGE(OFFSET(Reclam_Conc!$C$10,12*($L28-1),4*(PlotControl!$C$4-1),12,1)) -> 0.009630633333 | N28: =AVERAGE(OFFSET(Reclam_Conc!$D$10,12*($L28-1),4*(PlotControl!$C$4-1),12,1)) -> 0.009681125 | O28: =AVERAGE(OFFSET(Reclam_Conc!$E$10,12*($L28-1),4*(PlotControl!$C$4-1),12,1)) -> 0.009725641667 | P28: =AVERAGE(OFFSET(LongTerm_Conc!$C$10,12*($L28-1),4*(PlotControl!$C$4-1),12,1)) -> 0 | Q28: =AVERAGE(OFFSET(LongTerm_Conc!$D$10,12*($L28-1),4*(PlotControl!$C$4-1),12,1)) -> 0 | R28: =AVERAGE(OFFSET(LongTerm_Conc!$E$10,12*($L28-1),4*(PlotControl!$C$4-1),12,1)) -> 0
A29: 25 | B29: =AVERAGE(OFFSET(WestPond_Conc!$C$10,12*($A29-1),4*(PlotControl!$C$4-1),12,1)) -> 2.8231e-07 | C29: =AVERAGE(OFFSET(WestPond_Conc!$D$10,12*($A29-1),4*(PlotControl!$C$4-1),12,1)) -> 8.3226e-07 | D29: =AVERAGE(OFFSET(WestPond_Conc!$E$10,12*($A29-1),4*(PlotControl!$C$4-1),12,1)) -> 3.365e-06 | E29: =AVERAGE(OFFSET(EastPond_Conc!$C$10,12*($A29-1),4*(PlotControl!$C$4-1),12,1)) -> 0.0095283 | F29: =AVERAGE(OFFSET(EastPond_Conc!$D$10,12*($A29-1),4*(PlotControl!$C$4-1),12,1)) -> 0.0096387 | G29: =AVERAGE(OFFSET(EastPond_Conc!$E$10,12*($A29-1),4*(PlotControl!$C$4-1),12,1)) -> 0.0097647 | H29: =AVERAGE(OFFSET(Brine_Conc!$C$10,12*($A29-1),4*(PlotControl!$C$4-1),12,1)) -> 0.005876641667 | I29: =AVERAGE(OFFSET(Brine_Conc!$D$10,12*($A29-1),4*(PlotControl!$C$4-1),12,1)) -> 0.006314866667 | J29: =AVERAGE(OFFSET(Brine_Conc!$E$10,12*($A29-1),4*(PlotControl!$C$4-1),12,1)) -> 0.006757975 | L29: 25 | M29: =AVERAGE(OFFSET(Reclam_Conc!$C$10,12*($L29-1),4*(PlotControl!$C$4-1),12,1)) -> 0.009609816667 | N29: =AVERAGE(OFFSET(Reclam_Conc!$D$10,12*($L29-1),4*(PlotControl!$C$4-1),12,1)) -> 0.009658191667 | O29: =AVERAGE(OFFSET(Reclam_Conc!$E$10,12*($L29-1),4*(PlotControl!$C$4-1),12,1)) -> 0.009701175 | P29: =AVERAGE(OFFSET(LongTerm_Conc!$C$10,12*($L29-1),4*(PlotControl!$C$4-1),12,1)) -> 0 | Q29: =AVERAGE(OFFSET(LongTerm_Conc!$D$10,12*($L29-1),4*(PlotControl!$C$4-1),12,1)) -> 0 | R29: =AVERAGE(OFFSET(LongTerm_Conc!$E$10,12*($L29-1),4*(PlotControl!$C$4-1),12,1)) -> 0
L30: 26 | M30: =AVERAGE(OFFSET(Reclam_Conc!$C$10,12*($L30-1),4*(PlotControl!$C$4-1),12,1)) -> 0.009587858333 | N30: =AVERAGE(OFFSET(Reclam_Conc!$D$10,12*($L30-1),4*(PlotControl!$C$4-1),12,1)) -> 0.009629066667 | O30: =AVERAGE(OFFSET(Reclam_Conc!$E$10,12*($L30-1),4*(PlotControl!$C$4-1),12,1)) -> 0.009664475 | P30: =AVERAGE(OFFSET(LongTerm_Conc!$C$10,12*($L30-1),4*(PlotControl!$C$4-1),12,1)) -> 0 | Q30: =AVERAGE(OFFSET(LongTerm_Conc!$D$10,12*($L30-1),4*(PlotControl!$C$4-1),12,1)) -> 0 | R30: =AVERAGE(OFFSET(LongTerm_Conc!$E$10,12*($L30-1),4*(PlotControl!$C$4-1),12,1)) -> 0
L31: 27 | M31: =AVERAGE(OFFSET(Reclam_Conc!$C$10,12*($L31-1),4*(PlotControl!$C$4-1),12,1)) -> 0.00953745 | N31: =AVERAGE(OFFSET(Reclam_Conc!$D$10,12*($L31-1),4*(PlotControl!$C$4-1),12,1)) -> 0.009574741667 | O31: =AVERAGE(OFFSET(Reclam_Conc!$E$10,12*($L31-1),4*(PlotControl!$C$4-1),12,1)) -> 0.009606633333 | P31: =AVERAGE(OFFSET(LongTerm_Conc!$C$10,12*($L31-1),4*(PlotControl!$C$4-1),12,1)) -> 0 | Q31: =AVERAGE(OFFSET(LongTerm_Conc!$D$10,12*($L31-1),4*(PlotControl!$C$4-1),12,1)) -> 0 | R31: =AVERAGE(OFFSET(LongTerm_Conc!$E$10,12*($L31-1),4*(PlotControl!$C$4-1),12,1)) -> 0
L32: 28 | M32: =AVERAGE(OFFSET(Reclam_Conc!$C$10,12*($L32-1),4*(PlotControl!$C$4-1),12,1)) -> 0.009479725 | N32: =AVERAGE(OFFSET(Reclam_Conc!$D$10,12*($L32-1),4*(PlotControl!$C$4-1),12,1)) -> 0.009512958333 | O32: =AVERAGE(OFFSET(Reclam_Conc!$E$10,12*($L32-1),4*(PlotControl!$C$4-1),12,1)) -> 0.009539858333 | P32: =AVERAGE(OFFSET(LongTerm_Conc!$C$10,12*($L32-1),4*(PlotControl!$C$4-1),12,1)) -> 0 | Q32: =AVERAGE(OFFSET(LongTerm_Conc!$D$10,12*($L32-1),4*(PlotControl!$C$4-1),12,1)) -> 0 | R32: =AVERAGE(OFFSET(LongTerm_Conc!$E$10,12*($L32-1),4*(PlotControl!$C$4-1),12,1)) -> 0
L33: 29 | M33: =AVERAGE(OFFSET(Reclam_Conc!$C$10,12*($L33-1),4*(PlotControl!$C$4-1),12,1)) -> 0.0094305 | N33: =AVERAGE(OFFSET(Reclam_Conc!$D$10,12*($L33-1),4*(PlotControl!$C$4-1),12,1)) -> 0.009461333333 | O33: =AVERAGE(OFFSET(Reclam_Conc!$E$10,12*($L33-1),4*(PlotControl!$C$4-1),12,1)) -> 0.0094879 | P33: =AVERAGE(OFFSET(LongTerm_Conc!$C$10,12*($L33-1),4*(PlotControl!$C$4-1),12,1)) -> 0 | Q33: =AVERAGE(OFFSET(LongTerm_Conc!$D$10,12*($L33-1),4*(PlotControl!$C$4-1),12,1)) -> 0 | R33: =AVERAGE(OFFSET(LongTerm_Conc!$E$10,12*($L33-1),4*(PlotControl!$C$4-1),12,1)) -> 0
L34: 30 | M34: =AVERAGE(OFFSET(Reclam_Conc!$C$10,12*($L34-1),4*(PlotControl!$C$4-1),12,1)) -> 0.009398291667 | N34: =AVERAGE(OFFSET(Reclam_Conc!$D$10,12*($L34-1),4*(PlotControl!$C$4-1),12,1)) -> 0.00942795 | O34: =AVERAGE(OFFSET(Reclam_Conc!$E$10,12*($L34-1),4*(PlotControl!$C$4-1),12,1)) -> 0.009456475 | P34: =AVERAGE(OFFSET(LongTerm_Conc!$C$10,12*($L34-1),4*(PlotControl!$C$4-1),12,1)) -> 0 | Q34: =AVERAGE(OFFSET(LongTerm_Conc!$D$10,12*($L34-1),4*(PlotControl!$C$4-1),12,1)) -> 0 | R34: =AVERAGE(OFFSET(LongTerm_Conc!$E$10,12*($L34-1),4*(PlotControl!$C$4-1),12,1)) -> 0
L35: 31 | M35: =AVERAGE(OFFSET(Reclam_Conc!$C$10,12*($L35-1),4*(PlotControl!$C$4-1),12,1)) -> 0.009382858333 | N35: =AVERAGE(OFFSET(Reclam_Conc!$D$10,12*($L35-1),4*(PlotControl!$C$4-1),12,1)) -> 0.009408683333 | O35: =AVERAGE(OFFSET(Reclam_Conc!$E$10,12*($L35-1),4*(PlotControl!$C$4-1),12,1)) -> 0.009444225 | P35: =AVERAGE(OFFSET(LongTerm_Conc!$C$10,12*($L35-1),4*(PlotControl!$C$4-1),12,1)) -> 0 | Q35: =AVERAGE(OFFSET(LongTerm_Conc!$D$10,12*($L35-1),4*(PlotControl!$C$4-1),12,1)) -> 0 | R35: =AVERAGE(OFFSET(LongTerm_Conc!$E$10,12*($L35-1),4*(PlotControl!$C$4-1),12,1)) -> 0
L36: 32 | M36: =AVERAGE(OFFSET(Reclam_Conc!$C$10,12*($L36-1),4*(PlotControl!$C$4-1),12,1)) -> 0.009371591667 | N36: =AVERAGE(OFFSET(Reclam_Conc!$D$10,12*($L36-1),4*(PlotControl!$C$4-1),12,1)) -> 0.009398025 | O36: =AVERAGE(OFFSET(Reclam_Conc!$E$10,12*($L36-1),4*(PlotControl!$C$4-1),12,1)) -> 0.009442816667 | P36: =AVERAGE(OFFSET(LongTerm_Conc!$C$10,12*($L36-1),4*(PlotControl!$C$4-1),12,1)) -> 0 | Q36: =AVERAGE(OFFSET(LongTerm_Conc!$D$10,12*($L36-1),4*(PlotControl!$C$4-1),12,1)) -> 0 | R36: =AVERAGE(OFFSET(LongTerm_Conc!$E$10,12*($L36-1),4*(PlotControl!$C$4-1),12,1)) -> 0
L37: 33 | M37: =AVERAGE(OFFSET(Reclam_Conc!$C$10,12*($L37-1),4*(PlotControl!$C$4-1),12,1)) -> 0.009367725 | N37: =AVERAGE(OFFSET(Reclam_Conc!$D$10,12*($L37-1),4*(PlotControl!$C$4-1),12,1)) -> 0.009393591667 | O37: =AVERAGE(OFFSET(Reclam_Conc!$E$10,12*($L37-1),4*(PlotControl!$C$4-1),12,1)) -> 0.0094427 | P37: =AVERAGE(OFFSET(LongTerm_Conc!$C$10,12*($L37-1),4*(PlotControl!$C$4-1),12,1)) -> 0 | Q37: =AVERAGE(OFFSET(LongTerm_Conc!$D$10,12*($L37-1),4*(PlotControl!$C$4-1),12,1)) -> 0 | R37: =AVERAGE(OFFSET(LongTerm_Conc!$E$10,12*($L37-1),4*(PlotControl!$C$4-1),12,1)) -> 0
L38: 34 | M38: =AVERAGE(OFFSET(Reclam_Conc!$C$10,12*($L38-1),4*(PlotControl!$C$4-1),12,1)) -> 0.009363758333 | N38: =AVERAGE(OFFSET(Reclam_Conc!$D$10,12*($L38-1),4*(PlotControl!$C$4-1),12,1)) -> 0.009388783333 | O38: =AVERAGE(OFFSET(Reclam_Conc!$E$10,12*($L38-1),4*(PlotControl!$C$4-1),12,1)) -> 0.0094427 | P38: =AVERAGE(OFFSET(LongTerm_Conc!$C$10,12*($L38-1),4*(PlotControl!$C$4-1),12,1)) -> 0 | Q38: =AVERAGE(OFFSET(LongTerm_Conc!$D$10,12*($L38-1),4*(PlotControl!$C$4-1),12,1)) -> 0 | R38: =AVERAGE(OFFSET(LongTerm_Conc!$E$10,12*($L38-1),4*(PlotControl!$C$4-1),12,1)) -> 0
L39: 35 | M39: =AVERAGE(OFFSET(Reclam_Conc!$C$10,12*($L39-1),4*(PlotControl!$C$4-1),12,1)) -> 0.009349866667 | N39: =AVERAGE(OFFSET(Reclam_Conc!$D$10,12*($L39-1),4*(PlotControl!$C$4-1),12,1)) -> 0.009379558333 | O39: =AVERAGE(OFFSET(Reclam_Conc!$E$10,12*($L39-1),4*(PlotControl!$C$4-1),12,1)) -> 0.0094427 | P39: =AVERAGE(OFFSET(LongTerm_Conc!$C$10,12*($L39-1),4*(PlotControl!$C$4-1),12,1)) -> 0 | Q39: =AVERAGE(OFFSET(LongTerm_Conc!$D$10,12*($L39-1),4*(PlotControl!$C$4-1),12,1)) -> 0 | R39: =AVERAGE(OFFSET(LongTerm_Conc!$E$10,12*($L39-1),4*(PlotControl!$C$4-1),12,1)) -> 0
L40: 36 | M40: =AVERAGE(OFFSET(Reclam_Conc!$C$10,12*($L40-1),4*(PlotControl!$C$4-1),12,1)) -> 0.009321658333 | N40: =AVERAGE(OFFSET(Reclam_Conc!$D$10,12*($L40-1),4*(PlotControl!$C$4-1),12,1)) -> 0.009377 | O40: =AVERAGE(OFFSET(Reclam_Conc!$E$10,12*($L40-1),4*(PlotControl!$C$4-1),12,1)) -> 0.0094427 | P40: =AVERAGE(OFFSET(LongTerm_Conc!$C$10,12*($L40-1),4*(PlotControl!$C$4-1),12,1)) -> 0 | Q40: =AVERAGE(OFFSET(LongTerm_Conc!$D$10,12*($L40-1),4*(PlotControl!$C$4-1),12,1)) -> 0 | R40: =AVERAGE(OFFSET(LongTerm_Conc!$E$10,12*($L40-1),4*(PlotControl!$C$4-1),12,1)) -> 0
L41: 37 | M41: =AVERAGE(OFFSET(Reclam_Conc!$C$10,12*($L41-1),4*(PlotControl!$C$4-1),12,1)) -> 0.009301066667 | N41: =AVERAGE(OFFSET(Reclam_Conc!$D$10,12*($L41-1),4*(PlotControl!$C$4-1),12,1)) -> 0.009377 | O41: =AVERAGE(OFFSET(Reclam_Conc!$E$10,12*($L41-1),4*(PlotControl!$C$4-1),12,1)) -> 0.0094427 | P41: =AVERAGE(OFFSET(LongTerm_Conc!$C$10,12*($L41-1),4*(PlotControl!$C$4-1),12,1)) -> 0 | Q41: =AVERAGE(OFFSET(LongTerm_Conc!$D$10,12*($L41-1),4*(PlotControl!$C$4-1),12,1)) -> 0 | R41: =AVERAGE(OFFSET(LongTerm_Conc!$E$10,12*($L41-1),4*(PlotControl!$C$4-1),12,1)) -> 0
L42: 38 | M42: =AVERAGE(OFFSET(Reclam_Conc!$C$10,12*($L42-1),4*(PlotControl!$C$4-1),12,1)) -> 0.009289166667 | N42: =AVERAGE(OFFSET(Reclam_Conc!$D$10,12*($L42-1),4*(PlotControl!$C$4-1),12,1)) -> 0.009377 | O42: =AVERAGE(OFFSET(Reclam_Conc!$E$10,12*($L42-1),4*(PlotControl!$C$4-1),12,1)) -> 0.0094427 | P42: =AVERAGE(OFFSET(LongTerm_Conc!$C$10,12*($L42-1),4*(PlotControl!$C$4-1),12,1)) -> 0 | Q42: =AVERAGE(OFFSET(LongTerm_Conc!$D$10,12*($L42-1),4*(PlotControl!$C$4-1),12,1)) -> 0 | R42: =AVERAGE(OFFSET(LongTerm_Conc!$E$10,12*($L42-1),4*(PlotControl!$C$4-1),12,1)) -> 0
L43: 39 | M43: =AVERAGE(OFFSET(Reclam_Conc!$C$10,12*($L43-1),4*(PlotControl!$C$4-1),12,1)) -> 0.009286108333 | N43: =AVERAGE(OFFSET(Reclam_Conc!$D$10,12*($L43-1),4*(PlotControl!$C$4-1),12,1)) -> 0.009377 | O43: =AVERAGE(OFFSET(Reclam_Conc!$E$10,12*($L43-1),4*(PlotControl!$C$4-1),12,1)) -> 0.0094427 | P43: =AVERAGE(OFFSET(LongTerm_Conc!$C$10,12*($L43-1),4*(PlotControl!$C$4-1),12,1)) -> 0 | Q43: =AVERAGE(OFFSET(LongTerm_Conc!$D$10,12*($L43-1),4*(PlotControl!$C$4-1),12,1)) -> 0 | R43: =AVERAGE(OFFSET(LongTerm_Conc!$E$10,12*($L43-1),4*(PlotControl!$C$4-1),12,1)) -> 0
L44: 40 | M44: =AVERAGE(OFFSET(Reclam_Conc!$C$10,12*($L44-1),4*(PlotControl!$C$4-1),12,1)) -> 0.009284616667 | N44: =AVERAGE(OFFSET(Reclam_Conc!$D$10,12*($L44-1),4*(PlotControl!$C$4-1),12,1)) -> 0.009377 | O44: =AVERAGE(OFFSET(Reclam_Conc!$E$10,12*($L44-1),4*(PlotControl!$C$4-1),12,1)) -> 0.0094427 | P44: =AVERAGE(OFFSET(LongTerm_Conc!$C$10,12*($L44-1),4*(PlotControl!$C$4-1),12,1)) -> 0 | Q44: =AVERAGE(OFFSET(LongTerm_Conc!$D$10,12*($L44-1),4*(PlotControl!$C$4-1),12,1)) -> 0 | R44: =AVERAGE(OFFSET(LongTerm_Conc!$E$10,12*($L44-1),4*(PlotControl!$C$4-1),12,1)) -> 0
L45: 41 | M45: =AVERAGE(OFFSET(Reclam_Conc!$C$10,12*($L45-1),4*(PlotControl!$C$4-1),12,1)) -> 0.0092831 | N45: =AVERAGE(OFFSET(Reclam_Conc!$D$10,12*($L45-1),4*(PlotControl!$C$4-1),12,1)) -> 0.009377 | O45: =AVERAGE(OFFSET(Reclam_Conc!$E$10,12*($L45-1),4*(PlotControl!$C$4-1),12,1)) -> 0.0094427 | P45: =AVERAGE(OFFSET(LongTerm_Conc!$C$10,12*($L45-1),4*(PlotControl!$C$4-1),12,1)) -> 0 | Q45: =AVERAGE(OFFSET(LongTerm_Conc!$D$10,12*($L45-1),4*(PlotControl!$C$4-1),12,1)) -> 0 | R45: =AVERAGE(OFFSET(LongTerm_Conc!$E$10,12*($L45-1),4*(PlotControl!$C$4-1),12,1)) -> 0
L46: 42 | M46: =AVERAGE(OFFSET(Reclam_Conc!$C$10,12*($L46-1),4*(PlotControl!$C$4-1),12,1)) -> 0.009281366667 | N46: =AVERAGE(OFFSET(Reclam_Conc!$D$10,12*($L46-1),4*(PlotControl!$C$4-1),12,1)) -> 0.009377116667 | O46: =AVERAGE(OFFSET(Reclam_Conc!$E$10,12*($L46-1),4*(PlotControl!$C$4-1),12,1)) -> 0.009443916667 | P46: =AVERAGE(OFFSET(LongTerm_Conc!$C$10,12*($L46-1),4*(PlotControl!$C$4-1),12,1)) -> 0 | Q46: =AVERAGE(OFFSET(LongTerm_Conc!$D$10,12*($L46-1),4*(PlotControl!$C$4-1),12,1)) -> 0 | R46: =AVERAGE(OFFSET(LongTerm_Conc!$E$10,12*($L46-1),4*(PlotControl!$C$4-1),12,1)) -> 0
L47: 43 | M47: =AVERAGE(OFFSET(Reclam_Conc!$C$10,12*($L47-1),4*(PlotControl!$C$4-1),12,1)) -> 0.0092801 | N47: =AVERAGE(OFFSET(Reclam_Conc!$D$10,12*($L47-1),4*(PlotControl!$C$4-1),12,1)) -> 0.009377475 | O47: =AVERAGE(OFFSET(Reclam_Conc!$E$10,12*($L47-1),4*(PlotControl!$C$4-1),12,1)) -> 0.009447 | P47: =AVERAGE(OFFSET(LongTerm_Conc!$C$10,12*($L47-1),4*(PlotControl!$C$4-1),12,1)) -> 0 | Q47: =AVERAGE(OFFSET(LongTerm_Conc!$D$10,12*($L47-1),4*(PlotControl!$C$4-1),12,1)) -> 0 | R47: =AVERAGE(OFFSET(LongTerm_Conc!$E$10,12*($L47-1),4*(PlotControl!$C$4-1),12,1)) -> 0
L48: 44 | M48: =AVERAGE(OFFSET(Reclam_Conc!$C$10,12*($L48-1),4*(PlotControl!$C$4-1),12,1)) -> 0.009279391667 | N48: =AVERAGE(OFFSET(Reclam_Conc!$D$10,12*($L48-1),4*(PlotControl!$C$4-1),12,1)) -> 0.009377891667 | O48: =AVERAGE(OFFSET(Reclam_Conc!$E$10,12*($L48-1),4*(PlotControl!$C$4-1),12,1)) -> 0.009448825 | P48: =AVERAGE(OFFSET(LongTerm_Conc!$C$10,12*($L48-1),4*(PlotControl!$C$4-1),12,1)) -> 0 | Q48: =AVERAGE(OFFSET(LongTerm_Conc!$D$10,12*($L48-1),4*(PlotControl!$C$4-1),12,1)) -> 0 | R48: =AVERAGE(OFFSET(LongTerm_Conc!$E$10,12*($L48-1),4*(PlotControl!$C$4-1),12,1)) -> 0
L49: 45 | M49: =AVERAGE(OFFSET(Reclam_Conc!$C$10,12*($L49-1),4*(PlotControl!$C$4-1),12,1)) -> 0.009280566667 | N49: =AVERAGE(OFFSET(Reclam_Conc!$D$10,12*($L49-1),4*(PlotControl!$C$4-1),12,1)) -> 0.009378658333 | O49: =AVERAGE(OFFSET(Reclam_Conc!$E$10,12*($L49-1),4*(PlotControl!$C$4-1),12,1)) -> 0.0094555 | P49: =AVERAGE(OFFSET(LongTerm_Conc!$C$10,12*($L49-1),4*(PlotControl!$C$4-1),12,1)) -> 0 | Q49: =AVERAGE(OFFSET(LongTerm_Conc!$D$10,12*($L49-1),4*(PlotControl!$C$4-1),12,1)) -> 0 | R49: =AVERAGE(OFFSET(LongTerm_Conc!$E$10,12*($L49-1),4*(PlotControl!$C$4-1),12,1)) -> 0
L50: 46 | M50: =AVERAGE(OFFSET(Reclam_Conc!$C$10,12*($L50-1),4*(PlotControl!$C$4-1),12,1)) -> 0.0092818 | N50: =AVERAGE(OFFSET(Reclam_Conc!$D$10,12*($L50-1),4*(PlotControl!$C$4-1),12,1)) -> 0.009379791667 | O50: =AVERAGE(OFFSET(Reclam_Conc!$E$10,12*($L50-1),4*(PlotControl!$C$4-1),12,1)) -> 0.009461941667 | P50: =AVERAGE(OFFSET(LongTerm_Conc!$C$10,12*($L50-1),4*(PlotControl!$C$4-1),12,1)) -> 0 | Q50: =AVERAGE(OFFSET(LongTerm_Conc!$D$10,12*($L50-1),4*(PlotControl!$C$4-1),12,1)) -> 0 | R50: =AVERAGE(OFFSET(LongTerm_Conc!$E$10,12*($L50-1),4*(PlotControl!$C$4-1),12,1)) -> 0
L51: 47 | M51: =AVERAGE(OFFSET(Reclam_Conc!$C$10,12*($L51-1),4*(PlotControl!$C$4-1),12,1)) -> 0.00928335 | N51: =AVERAGE(OFFSET(Reclam_Conc!$D$10,12*($L51-1),4*(PlotControl!$C$4-1),12,1)) -> 0.009380491667 | O51: =AVERAGE(OFFSET(Reclam_Conc!$E$10,12*($L51-1),4*(PlotControl!$C$4-1),12,1)) -> 0.009465291667 | P51: =AVERAGE(OFFSET(LongTerm_Conc!$C$10,12*($L51-1),4*(PlotControl!$C$4-1),12,1)) -> 0 | Q51: =AVERAGE(OFFSET(LongTerm_Conc!$D$10,12*($L51-1),4*(PlotControl!$C$4-1),12,1)) -> 0 | R51: =AVERAGE(OFFSET(LongTerm_Conc!$E$10,12*($L51-1),4*(PlotControl!$C$4-1),12,1)) -> 0
L52: 48 | M52: =AVERAGE(OFFSET(Reclam_Conc!$C$10,12*($L52-1),4*(PlotControl!$C$4-1),12,1)) -> 0.009284541667 | N52: =AVERAGE(OFFSET(Reclam_Conc!$D$10,12*($L52-1),4*(PlotControl!$C$4-1),12,1)) -> 0.009381583333 | O52: =AVERAGE(OFFSET(Reclam_Conc!$E$10,12*($L52-1),4*(PlotControl!$C$4-1),12,1)) -> 0.0094807 | P52: =AVERAGE(OFFSET(LongTerm_Conc!$C$10,12*($L52-1),4*(PlotControl!$C$4-1),12,1)) -> 0 | Q52: =AVERAGE(OFFSET(LongTerm_Conc!$D$10,12*($L52-1),4*(PlotControl!$C$4-1),12,1)) -> 0 | R52: =AVERAGE(OFFSET(LongTerm_Conc!$E$10,12*($L52-1),4*(PlotControl!$C$4-1),12,1)) -> 0
L53: 49 | M53: =AVERAGE(OFFSET(Reclam_Conc!$C$10,12*($L53-1),4*(PlotControl!$C$4-1),12,1)) -> 0.0092846 | N53: =AVERAGE(OFFSET(Reclam_Conc!$D$10,12*($L53-1),4*(PlotControl!$C$4-1),12,1)) -> 0.0093816 | O53: =AVERAGE(OFFSET(Reclam_Conc!$E$10,12*($L53-1),4*(PlotControl!$C$4-1),12,1)) -> 0.0094838 | P53: =AVERAGE(OFFSET(LongTerm_Conc!$C$10,12*($L53-1),4*(PlotControl!$C$4-1),12,1)) -> 0 | Q53: =AVERAGE(OFFSET(LongTerm_Conc!$D$10,12*($L53-1),4*(PlotControl!$C$4-1),12,1)) -> 0 | R53: =AVERAGE(OFFSET(LongTerm_Conc!$E$10,12*($L53-1),4*(PlotControl!$C$4-1),12,1)) -> 0.001635725
L54: 50 | M54: =AVERAGE(OFFSET(Reclam_Conc!$C$10,12*($L54-1),4*(PlotControl!$C$4-1),12,1)) -> 0.0092846 | N54: =AVERAGE(OFFSET(Reclam_Conc!$D$10,12*($L54-1),4*(PlotControl!$C$4-1),12,1)) -> 0.0093816 | O54: =AVERAGE(OFFSET(Reclam_Conc!$E$10,12*($L54-1),4*(PlotControl!$C$4-1),12,1)) -> 0.0094838 | P54: =AVERAGE(OFFSET(LongTerm_Conc!$C$10,12*($L54-1),4*(PlotControl!$C$4-1),12,1)) -> 0 | Q54: =AVERAGE(OFFSET(LongTerm_Conc!$D$10,12*($L54-1),4*(PlotControl!$C$4-1),12,1)) -> 0 | R54: =AVERAGE(OFFSET(LongTerm_Conc!$E$10,12*($L54-1),4*(PlotControl!$C$4-1),12,1)) -> 0.009975183333
L55: 51 | M55: =AVERAGE(OFFSET(Reclam_Conc!$C$10,12*($L55-1),4*(PlotControl!$C$4-1),12,1)) -> 0.0092846 | N55: =AVERAGE(OFFSET(Reclam_Conc!$D$10,12*($L55-1),4*(PlotControl!$C$4-1),12,1)) -> 0.0093816 | O55: =AVERAGE(OFFSET(Reclam_Conc!$E$10,12*($L55-1),4*(PlotControl!$C$4-1),12,1)) -> 0.0094838 | P55: =AVERAGE(OFFSET(LongTerm_Conc!$C$10,12*($L55-1),4*(PlotControl!$C$4-1),12,1)) -> 0 | Q55: =AVERAGE(OFFSET(LongTerm_Conc!$D$10,12*($L55-1),4*(PlotControl!$C$4-1),12,1)) -> 0 | R55: =AVERAGE(OFFSET(LongTerm_Conc!$E$10,12*($L55-1),4*(PlotControl!$C$4-1),12,1)) -> 0.01
L56: 52 | M56: =AVERAGE(OFFSET(Reclam_Conc!$C$10,12*($L56-1),4*(PlotControl!$C$4-1),12,1)) -> 0.0092846 | N56: =AVERAGE(OFFSET(Reclam_Conc!$D$10,12*($L56-1),4*(PlotControl!$C$4-1),12,1)) -> 0.0093816 | O56: =AVERAGE(OFFSET(Reclam_Conc!$E$10,12*($L56-1),4*(PlotControl!$C$4-1),12,1)) -> 0.0094838 | P56: =AVERAGE(OFFSET(LongTerm_Conc!$C$10,12*($L56-1),4*(PlotControl!$C$4-1),12,1)) -> 0 | Q56: =AVERAGE(OFFSET(LongTerm_Conc!$D$10,12*($L56-1),4*(PlotControl!$C$4-1),12,1)) -> 0.004700491667 | R56: =AVERAGE(OFFSET(LongTerm_Conc!$E$10,12*($L56-1),4*(PlotControl!$C$4-1),12,1)) -> 0.01
L57: 53 | M57: =AVERAGE(OFFSET(Reclam_Conc!$C$10,12*($L57-1),4*(PlotControl!$C$4-1),12,1)) -> 0.0092846 | N57: =AVERAGE(OFFSET(Reclam_Conc!$D$10,12*($L57-1),4*(PlotControl!$C$4-1),12,1)) -> 0.0093816 | O57: =AVERAGE(OFFSET(Reclam_Conc!$E$10,12*($L57-1),4*(PlotControl!$C$4-1),12,1)) -> 0.0094838 | P57: =AVERAGE(OFFSET(LongTerm_Conc!$C$10,12*($L57-1),4*(PlotControl!$C$4-1),12,1)) -> 0 | Q57: =AVERAGE(OFFSET(LongTerm_Conc!$D$10,12*($L57-1),4*(PlotControl!$C$4-1),12,1)) -> 0.009899875 | R57: =AVERAGE(OFFSET(LongTerm_Conc!$E$10,12*($L57-1),4*(PlotControl!$C$4-1),12,1)) -> 0.01
L58: 54 | M58: =AVERAGE(OFFSET(Reclam_Conc!$C$10,12*($L58-1),4*(PlotControl!$C$4-1),12,1)) -> 0.0092846 | N58: =AVERAGE(OFFSET(Reclam_Conc!$D$10,12*($L58-1),4*(PlotControl!$C$4-1),12,1)) -> 0.0093816 | O58: =AVERAGE(OFFSET(Reclam_Conc!$E$10,12*($L58-1),4*(PlotControl!$C$4-1),12,1)) -> 0.0094838 | P58: =AVERAGE(OFFSET(LongTerm_Conc!$C$10,12*($L58-1),4*(PlotControl!$C$4-1),12,1)) -> 0 | Q58: =AVERAGE(OFFSET(LongTerm_Conc!$D$10,12*($L58-1),4*(PlotControl!$C$4-1),12,1)) -> 0.009964741667 | R58: =AVERAGE(OFFSET(LongTerm_Conc!$E$10,12*($L58-1),4*(PlotControl!$C$4-1),12,1)) -> 0.01
L59: 55 | M59: =AVERAGE(OFFSET(Reclam_Conc!$C$10,12*($L59-1),4*(PlotControl!$C$4-1),12,1)) -> 0.0092846 | N59: =AVERAGE(OFFSET(Reclam_Conc!$D$10,12*($L59-1),4*(PlotControl!$C$4-1),12,1)) -> 0.0093816 | O59: =AVERAGE(OFFSET(Reclam_Conc!$E$10,12*($L59-1),4*(PlotControl!$C$4-1),12,1)) -> 0.0094838 | P59: =AVERAGE(OFFSET(LongTerm_Conc!$C$10,12*($L59-1),4*(PlotControl!$C$4-1),12,1)) -> 0.004655633333 | Q59: =AVERAGE(OFFSET(LongTerm_Conc!$D$10,12*($L59-1),4*(PlotControl!$C$4-1),12,1)) -> 0.009984566667 | R59: =AVERAGE(OFFSET(LongTerm_Conc!$E$10,12*($L59-1),4*(PlotControl!$C$4-1),12,1)) -> 0.01
L60: 56 | M60: =AVERAGE(OFFSET(Reclam_Conc!$C$10,12*($L60-1),4*(PlotControl!$C$4-1),12,1)) -> 0.0092846 | N60: =AVERAGE(OFFSET(Reclam_Conc!$D$10,12*($L60-1),4*(PlotControl!$C$4-1),12,1)) -> 0.0093816 | O60: =AVERAGE(OFFSET(Reclam_Conc!$E$10,12*($L60-1),4*(PlotControl!$C$4-1),12,1)) -> 0.0094838 | P60: =AVERAGE(OFFSET(LongTerm_Conc!$C$10,12*($L60-1),4*(PlotControl!$C$4-1),12,1)) -> 0.00972935 | Q60: =AVERAGE(OFFSET(LongTerm_Conc!$D$10,12*($L60-1),4*(PlotControl!$C$4-1),12,1)) -> 0.009996433333 | R60: =AVERAGE(OFFSET(LongTerm_Conc!$E$10,12*($L60-1),4*(PlotControl!$C$4-1),12,1)) -> 0.01
L61: 57 | M61: =AVERAGE(OFFSET(Reclam_Conc!$C$10,12*($L61-1),4*(PlotControl!$C$4-1),12,1)) -> 0.0092846 | N61: =AVERAGE(OFFSET(Reclam_Conc!$D$10,12*($L61-1),4*(PlotControl!$C$4-1),12,1)) -> 0.0093816 | O61: =AVERAGE(OFFSET(Reclam_Conc!$E$10,12*($L61-1),4*(PlotControl!$C$4-1),12,1)) -> 0.0094838 | P61: =AVERAGE(OFFSET(LongTerm_Conc!$C$10,12*($L61-1),4*(PlotControl!$C$4-1),12,1)) -> 0.009785641667 | Q61: =AVERAGE(OFFSET(LongTerm_Conc!$D$10,12*($L61-1),4*(PlotControl!$C$4-1),12,1)) -> 0.009998683333 | R61: =AVERAGE(OFFSET(LongTerm_Conc!$E$10,12*($L61-1),4*(PlotControl!$C$4-1),12,1)) -> 0.01
L62: 58 | M62: =AVERAGE(OFFSET(Reclam_Conc!$C$10,12*($L62-1),4*(PlotControl!$C$4-1),12,1)) -> 0.0092846 | N62: =AVERAGE(OFFSET(Reclam_Conc!$D$10,12*($L62-1),4*(PlotControl!$C$4-1),12,1)) -> 0.0093816 | O62: =AVERAGE(OFFSET(Reclam_Conc!$E$10,12*($L62-1),4*(PlotControl!$C$4-1),12,1)) -> 0.0094838 | P62: =AVERAGE(OFFSET(LongTerm_Conc!$C$10,12*($L62-1),4*(PlotControl!$C$4-1),12,1)) -> 0.009804091667 | Q62: =AVERAGE(OFFSET(LongTerm_Conc!$D$10,12*($L62-1),4*(PlotControl!$C$4-1),12,1)) -> 0.009999125 | R62: =AVERAGE(OFFSET(LongTerm_Conc!$E$10,12*($L62-1),4*(PlotControl!$C$4-1),12,1)) -> 0.01
L63: 59 | M63: =AVERAGE(OFFSET(Reclam_Conc!$C$10,12*($L63-1),4*(PlotControl!$C$4-1),12,1)) -> 0.0092846 | N63: =AVERAGE(OFFSET(Reclam_Conc!$D$10,12*($L63-1),4*(PlotControl!$C$4-1),12,1)) -> 0.0093816 | O63: =AVERAGE(OFFSET(Reclam_Conc!$E$10,12*($L63-1),4*(PlotControl!$C$4-1),12,1)) -> 0.0094838 | P63: =AVERAGE(OFFSET(LongTerm_Conc!$C$10,12*($L63-1),4*(PlotControl!$C$4-1),12,1)) -> 0.009816566667 | Q63: =AVERAGE(OFFSET(LongTerm_Conc!$D$10,12*($L63-1),4*(PlotControl!$C$4-1),12,1)) -> 0.009999725 | R63: =AVERAGE(OFFSET(LongTerm_Conc!$E$10,12*($L63-1),4*(PlotControl!$C$4-1),12,1)) -> 0.01
L64: 60 | M64: =AVERAGE(OFFSET(Reclam_Conc!$C$10,12*($L64-1),4*(PlotControl!$C$4-1),12,1)) -> 0.0092846 | N64: =AVERAGE(OFFSET(Reclam_Conc!$D$10,12*($L64-1),4*(PlotControl!$C$4-1),12,1)) -> 0.0093816 | O64: =AVERAGE(OFFSET(Reclam_Conc!$E$10,12*($L64-1),4*(PlotControl!$C$4-1),12,1)) -> 0.0094838 | P64: =AVERAGE(OFFSET(LongTerm_Conc!$C$10,12*($L64-1),4*(PlotControl!$C$4-1),12,1)) -> 0.009815425 | Q64: =AVERAGE(OFFSET(LongTerm_Conc!$D$10,12*($L64-1),4*(PlotControl!$C$4-1),12,1)) -> 0.00999955 | R64: =AVERAGE(OFFSET(LongTerm_Conc!$E$10,12*($L64-1),4*(PlotControl!$C$4-1),12,1)) -> 0.01
L65: 61 | M65: =AVERAGE(OFFSET(Reclam_Conc!$C$10,12*($L65-1),4*(PlotControl!$C$4-1),12,1)) -> 0.0092846 | N65: =AVERAGE(OFFSET(Reclam_Conc!$D$10,12*($L65-1),4*(PlotControl!$C$4-1),12,1)) -> 0.0093816 | O65: =AVERAGE(OFFSET(Reclam_Conc!$E$10,12*($L65-1),4*(PlotControl!$C$4-1),12,1)) -> 0.0094838 | P65: =AVERAGE(OFFSET(LongTerm_Conc!$C$10,12*($L65-1),4*(PlotControl!$C$4-1),12,1)) -> 0.00981865 | Q65: =AVERAGE(OFFSET(LongTerm_Conc!$D$10,12*($L65-1),4*(PlotControl!$C$4-1),12,1)) -> 0.009999458333 | R65: =AVERAGE(OFFSET(LongTerm_Conc!$E$10,12*($L65-1),4*(PlotControl!$C$4-1),12,1)) -> 0.01
L66: 62 | M66: =AVERAGE(OFFSET(Reclam_Conc!$C$10,12*($L66-1),4*(PlotControl!$C$4-1),12,1)) -> 0.0092846 | N66: =AVERAGE(OFFSET(Reclam_Conc!$D$10,12*($L66-1),4*(PlotControl!$C$4-1),12,1)) -> 0.0093816 | O66: =AVERAGE(OFFSET(Reclam_Conc!$E$10,12*($L66-1),4*(PlotControl!$C$4-1),12,1)) -> 0.0094838 | P66: =AVERAGE(OFFSET(LongTerm_Conc!$C$10,12*($L66-1),4*(PlotControl!$C$4-1),12,1)) -> 0.009830225 | Q66: =AVERAGE(OFFSET(LongTerm_Conc!$D$10,12*($L66-1),4*(PlotControl!$C$4-1),12,1)) -> 0.009999516667 | R66: =AVERAGE(OFFSET(LongTerm_Conc!$E$10,12*($L66-1),4*(PlotControl!$C$4-1),12,1)) -> 0.01
L67: 63 | M67: =AVERAGE(OFFSET(Reclam_Conc!$C$10,12*($L67-1),4*(PlotControl!$C$4-1),12,1)) -> 0.0092846 | N67: =AVERAGE(OFFSET(Reclam_Conc!$D$10,12*($L67-1),4*(PlotControl!$C$4-1),12,1)) -> 0.0093816 | O67: =AVERAGE(OFFSET(Reclam_Conc!$E$10,12*($L67-1),4*(PlotControl!$C$4-1),12,1)) -> 0.0094838 | P67: =AVERAGE(OFFSET(LongTerm_Conc!$C$10,12*($L67-1),4*(PlotControl!$C$4-1),12,1)) -> 0.009822616667 | Q67: =AVERAGE(OFFSET(LongTerm_Conc!$D$10,12*($L67-1),4*(PlotControl!$C$4-1),12,1)) -> 0.009999683333 | R67: =AVERAGE(OFFSET(LongTerm_Conc!$E$10,12*($L67-1),4*(PlotControl!$C$4-1),12,1)) -> 0.01
L68: 64 | M68: =AVERAGE(OFFSET(Reclam_Conc!$C$10,12*($L68-1),4*(PlotControl!$C$4-1),12,1)) -> 0.0092846 | N68: =AVERAGE(OFFSET(Reclam_Conc!$D$10,12*($L68-1),4*(PlotControl!$C$4-1),12,1)) -> 0.0093816 | O68: =AVERAGE(OFFSET(Reclam_Conc!$E$10,12*($L68-1),4*(PlotControl!$C$4-1),12,1)) -> 0.0094838 | P68: =AVERAGE(OFFSET(LongTerm_Conc!$C$10,12*($L68-1),4*(PlotControl!$C$4-1),12,1)) -> 0.009831375 | Q68: =AVERAGE(OFFSET(LongTerm_Conc!$D$10,12*($L68-1),4*(PlotControl!$C$4-1),12,1)) -> 0.00999985 | R68: =AVERAGE(OFFSET(LongTerm_Conc!$E$10,12*($L68-1),4*(PlotControl!$C$4-1),12,1)) -> 0.01
L69: 65 | M69: =AVERAGE(OFFSET(Reclam_Conc!$C$10,12*($L69-1),4*(PlotControl!$C$4-1),12,1)) -> 0.0092846 | N69: =AVERAGE(OFFSET(Reclam_Conc!$D$10,12*($L69-1),4*(PlotControl!$C$4-1),12,1)) -> 0.0093816 | O69: =AVERAGE(OFFSET(Reclam_Conc!$E$10,12*($L69-1),4*(PlotControl!$C$4-1),12,1)) -> 0.0094838 | P69: =AVERAGE(OFFSET(LongTerm_Conc!$C$10,12*($L69-1),4*(PlotControl!$C$4-1),12,1)) -> 0.009825241667 | Q69: =AVERAGE(OFFSET(LongTerm_Conc!$D$10,12*($L69-1),4*(PlotControl!$C$4-1),12,1)) -> 0.009999783333 | R69: =AVERAGE(OFFSET(LongTerm_Conc!$E$10,12*($L69-1),4*(PlotControl!$C$4-1),12,1)) -> 0.01
L70: 66 | M70: =AVERAGE(OFFSET(Reclam_Conc!$C$10,12*($L70-1),4*(PlotControl!$C$4-1),12,1)) -> 0.0092846 | N70: =AVERAGE(OFFSET(Reclam_Conc!$D$10,12*($L70-1),4*(PlotControl!$C$4-1),12,1)) -> 0.0093816 | O70: =AVERAGE(OFFSET(Reclam_Conc!$E$10,12*($L70-1),4*(PlotControl!$C$4-1),12,1)) -> 0.0094838 | P70: =AVERAGE(OFFSET(LongTerm_Conc!$C$10,12*($L70-1),4*(PlotControl!$C$4-1),12,1)) -> 0.009819425 | Q70: =AVERAGE(OFFSET(LongTerm_Conc!$D$10,12*($L70-1),4*(PlotControl!$C$4-1),12,1)) -> 0.009998925 | R70: =AVERAGE(OFFSET(LongTerm_Conc!$E$10,12*($L70-1),4*(PlotControl!$C$4-1),12,1)) -> 0.01
L71: 67 | M71: =AVERAGE(OFFSET(Reclam_Conc!$C$10,12*($L71-1),4*(PlotControl!$C$4-1),12,1)) -> 0.0092846 | N71: =AVERAGE(OFFSET(Reclam_Conc!$D$10,12*($L71-1),4*(PlotControl!$C$4-1),12,1)) -> 0.0093816 | O71: =AVERAGE(OFFSET(Reclam_Conc!$E$10,12*($L71-1),4*(PlotControl!$C$4-1),12,1)) -> 0.0094838 | P71: =AVERAGE(OFFSET(LongTerm_Conc!$C$10,12*($L71-1),4*(PlotControl!$C$4-1),12,1)) -> 0.009818308333 | Q71: =AVERAGE(OFFSET(LongTerm_Conc!$D$10,12*($L71-1),4*(PlotControl!$C$4-1),12,1)) -> 0.0099976 | R71: =AVERAGE(OFFSET(LongTerm_Conc!$E$10,12*($L71-1),4*(PlotControl!$C$4-1),12,1)) -> 0.01
L72: 68 | M72: =AVERAGE(OFFSET(Reclam_Conc!$C$10,12*($L72-1),4*(PlotControl!$C$4-1),12,1)) -> 0.0092846 | N72: =AVERAGE(OFFSET(Reclam_Conc!$D$10,12*($L72-1),4*(PlotControl!$C$4-1),12,1)) -> 0.0093816 | O72: =AVERAGE(OFFSET(Reclam_Conc!$E$10,12*($L72-1),4*(PlotControl!$C$4-1),12,1)) -> 0.0094838 | P72: =AVERAGE(OFFSET(LongTerm_Conc!$C$10,12*($L72-1),4*(PlotControl!$C$4-1),12,1)) -> 0.009819825 | Q72: =AVERAGE(OFFSET(LongTerm_Conc!$D$10,12*($L72-1),4*(PlotControl!$C$4-1),12,1)) -> 0.009998658333 | R72: =AVERAGE(OFFSET(LongTerm_Conc!$E$10,12*($L72-1),4*(PlotControl!$C$4-1),12,1)) -> 0.01
L73: 69 | M73: =AVERAGE(OFFSET(Reclam_Conc!$C$10,12*($L73-1),4*(PlotControl!$C$4-1),12,1)) -> 0.0092846 | N73: =AVERAGE(OFFSET(Reclam_Conc!$D$10,12*($L73-1),4*(PlotControl!$C$4-1),12,1)) -> 0.0093816 | O73: =AVERAGE(OFFSET(Reclam_Conc!$E$10,12*($L73-1),4*(PlotControl!$C$4-1),12,1)) -> 0.0094838 | P73: =AVERAGE(OFFSET(LongTerm_Conc!$C$10,12*($L73-1),4*(PlotControl!$C$4-1),12,1)) -> 0.009836566667 | Q73: =AVERAGE(OFFSET(LongTerm_Conc!$D$10,12*($L73-1),4*(PlotControl!$C$4-1),12,1)) -> 0.009999583333 | R73: =AVERAGE(OFFSET(LongTerm_Conc!$E$10,12*($L73-1),4*(PlotControl!$C$4-1),12,1)) -> 0.01
L74: 70 | M74: =AVERAGE(OFFSET(Reclam_Conc!$C$10,12*($L74-1),4*(PlotControl!$C$4-1),12,1)) -> 0.0092846 | N74: =AVERAGE(OFFSET(Reclam_Conc!$D$10,12*($L74-1),4*(PlotControl!$C$4-1),12,1)) -> 0.0093816 | O74: =AVERAGE(OFFSET(Reclam_Conc!$E$10,12*($L74-1),4*(PlotControl!$C$4-1),12,1)) -> 0.0094838 | P74: =AVERAGE(OFFSET(LongTerm_Conc!$C$10,12*($L74-1),4*(PlotControl!$C$4-1),12,1)) -> 0.0098379 | Q74: =AVERAGE(OFFSET(LongTerm_Conc!$D$10,12*($L74-1),4*(PlotControl!$C$4-1),12,1)) -> 0.009999725 | R74: =AVERAGE(OFFSET(LongTerm_Conc!$E$10,12*($L74-1),4*(PlotControl!$C$4-1),12,1)) -> 0.01
L75: 71 | M75: =AVERAGE(OFFSET(Reclam_Conc!$C$10,12*($L75-1),4*(PlotControl!$C$4-1),12,1)) -> 0.0092846 | N75: =AVERAGE(OFFSET(Reclam_Conc!$D$10,12*($L75-1),4*(PlotControl!$C$4-1),12,1)) -> 0.0093816 | O75: =AVERAGE(OFFSET(Reclam_Conc!$E$10,12*($L75-1),4*(PlotControl!$C$4-1),12,1)) -> 0.0094838 | P75: =AVERAGE(OFFSET(LongTerm_Conc!$C$10,12*($L75-1),4*(PlotControl!$C$4-1),12,1)) -> 0.009826233333 | Q75: =AVERAGE(OFFSET(LongTerm_Conc!$D$10,12*($L75-1),4*(PlotControl!$C$4-1),12,1)) -> 0.009999683333 | R75: =AVERAGE(OFFSET(LongTerm_Conc!$E$10,12*($L75-1),4*(PlotControl!$C$4-1),12,1)) -> 0.01
L76: 72 | M76: =AVERAGE(OFFSET(Reclam_Conc!$C$10,12*($L76-1),4*(PlotControl!$C$4-1),12,1)) -> 0.0092846 | N76: =AVERAGE(OFFSET(Reclam_Conc!$D$10,12*($L76-1),4*(PlotControl!$C$4-1),12,1)) -> 0.0093816 | O76: =AVERAGE(OFFSET(Reclam_Conc!$E$10,12*($L76-1),4*(PlotControl!$C$4-1),12,1)) -> 0.0094838 | P76: =AVERAGE(OFFSET(LongTerm_Conc!$C$10,12*($L76-1),4*(PlotControl!$C$4-1),12,1)) -> 0.009820633333 | Q76: =AVERAGE(OFFSET(LongTerm_Conc!$D$10,12*($L76-1),4*(PlotControl!$C$4-1),12,1)) -> 0.009999491667 | R76: =AVERAGE(OFFSET(LongTerm_Conc!$E$10,12*($L76-1),4*(PlotControl!$C$4-1),12,1)) -> 0.01
L77: 73 | M77: =AVERAGE(OFFSET(Reclam_Conc!$C$10,12*($L77-1),4*(PlotControl!$C$4-1),12,1)) -> 0.0092846 | N77: =AVERAGE(OFFSET(Reclam_Conc!$D$10,12*($L77-1),4*(PlotControl!$C$4-1),12,1)) -> 0.0093816 | O77: =AVERAGE(OFFSET(Reclam_Conc!$E$10,12*($L77-1),4*(PlotControl!$C$4-1),12,1)) -> 0.0094838 | P77: =AVERAGE(OFFSET(LongTerm_Conc!$C$10,12*($L77-1),4*(PlotControl!$C$4-1),12,1)) -> 0.009822383333 | Q77: =AVERAGE(OFFSET(LongTerm_Conc!$D$10,12*($L77-1),4*(PlotControl!$C$4-1),12,1)) -> 0.0099991 | R77: =AVERAGE(OFFSET(LongTerm_Conc!$E$10,12*($L77-1),4*(PlotControl!$C$4-1),12,1)) -> 0.01
L78: 74 | M78: =AVERAGE(OFFSET(Reclam_Conc!$C$10,12*($L78-1),4*(PlotControl!$C$4-1),12,1)) -> 0.0092846 | N78: =AVERAGE(OFFSET(Reclam_Conc!$D$10,12*($L78-1),4*(PlotControl!$C$4-1),12,1)) -> 0.0093816 | O78: =AVERAGE(OFFSET(Reclam_Conc!$E$10,12*($L78-1),4*(PlotControl!$C$4-1),12,1)) -> 0.0094838 | P78: =AVERAGE(OFFSET(LongTerm_Conc!$C$10,12*($L78-1),4*(PlotControl!$C$4-1),12,1)) -> 0.00982845 | Q78: =AVERAGE(OFFSET(LongTerm_Conc!$D$10,12*($L78-1),4*(PlotControl!$C$4-1),12,1)) -> 0.009997625 | R78: =AVERAGE(OFFSET(LongTerm_Conc!$E$10,12*($L78-1),4*(PlotControl!$C$4-1),12,1)) -> 0.01
L79: 75 | M79: =AVERAGE(OFFSET(Reclam_Conc!$C$10,12*($L79-1),4*(PlotControl!$C$4-1),12,1)) -> 0.0092846 | N79: =AVERAGE(OFFSET(Reclam_Conc!$D$10,12*($L79-1),4*(PlotControl!$C$4-1),12,1)) -> 0.0093816 | O79: =AVERAGE(OFFSET(Reclam_Conc!$E$10,12*($L79-1),4*(PlotControl!$C$4-1),12,1)) -> 0.0094838 | P79: =AVERAGE(OFFSET(LongTerm_Conc!$C$10,12*($L79-1),4*(PlotControl!$C$4-1),12,1)) -> 0.009825025 | Q79: =AVERAGE(OFFSET(LongTerm_Conc!$D$10,12*($L79-1),4*(PlotControl!$C$4-1),12,1)) -> 0.009997691667 | R79: =AVERAGE(OFFSET(LongTerm_Conc!$E$10,12*($L79-1),4*(PlotControl!$C$4-1),12,1)) -> 0.01
L80: 76 | M80: =AVERAGE(OFFSET(Reclam_Conc!$C$10,12*($L80-1),4*(PlotControl!$C$4-1),12,1)) -> 0.0092846 | N80: =AVERAGE(OFFSET(Reclam_Conc!$D$10,12*($L80-1),4*(PlotControl!$C$4-1),12,1)) -> 0.0093816 | O80: =AVERAGE(OFFSET(Reclam_Conc!$E$10,12*($L80-1),4*(PlotControl!$C$4-1),12,1)) -> 0.0094838 | P80: =AVERAGE(OFFSET(LongTerm_Conc!$C$10,12*($L80-1),4*(PlotControl!$C$4-1),12,1)) -> 0.009827708333 | Q80: =AVERAGE(OFFSET(LongTerm_Conc!$D$10,12*($L80-1),4*(PlotControl!$C$4-1),12,1)) -> 0.009997791667 | R80: =AVERAGE(OFFSET(LongTerm_Conc!$E$10,12*($L80-1),4*(PlotControl!$C$4-1),12,1)) -> 0.01
L81: 77 | M81: =AVERAGE(OFFSET(Reclam_Conc!$C$10,12*($L81-1),4*(PlotControl!$C$4-1),12,1)) -> 0.0092846 | N81: =AVERAGE(OFFSET(Reclam_Conc!$D$10,12*($L81-1),4*(PlotControl!$C$4-1),12,1)) -> 0.0093816 | O81: =AVERAGE(OFFSET(Reclam_Conc!$E$10,12*($L81-1),4*(PlotControl!$C$4-1),12,1)) -> 0.0094838 | P81: =AVERAGE(OFFSET(LongTerm_Conc!$C$10,12*($L81-1),4*(PlotControl!$C$4-1),12,1)) -> 0.009825491667 | Q81: =AVERAGE(OFFSET(LongTerm_Conc!$D$10,12*($L81-1),4*(PlotControl!$C$4-1),12,1)) -> 0.009998466667 | R81: =AVERAGE(OFFSET(LongTerm_Conc!$E$10,12*($L81-1),4*(PlotControl!$C$4-1),12,1)) -> 0.01
L82: 78 | M82: =AVERAGE(OFFSET(Reclam_Conc!$C$10,12*($L82-1),4*(PlotControl!$C$4-1),12,1)) -> 0.0092846 | N82: =AVERAGE(OFFSET(Reclam_Conc!$D$10,12*($L82-1),4*(PlotControl!$C$4-1),12,1)) -> 0.0093816 | O82: =AVERAGE(OFFSET(Reclam_Conc!$E$10,12*($L82-1),4*(PlotControl!$C$4-1),12,1)) -> 0.0094838 | P82: =AVERAGE(OFFSET(LongTerm_Conc!$C$10,12*($L82-1),4*(PlotControl!$C$4-1),12,1)) -> 0.009829216667 | Q82: =AVERAGE(OFFSET(LongTerm_Conc!$D$10,12*($L82-1),4*(PlotControl!$C$4-1),12,1)) -> 0.009998425 | R82: =AVERAGE(OFFSET(LongTerm_Conc!$E$10,12*($L82-1),4*(PlotControl!$C$4-1),12,1)) -> 0.01
L83: 79 | M83: =AVERAGE(OFFSET(Reclam_Conc!$C$10,12*($L83-1),4*(PlotControl!$C$4-1),12,1)) -> 0.0092846 | N83: =AVERAGE(OFFSET(Reclam_Conc!$D$10,12*($L83-1),4*(PlotControl!$C$4-1),12,1)) -> 0.0093816 | O83: =AVERAGE(OFFSET(Reclam_Conc!$E$10,12*($L83-1),4*(PlotControl!$C$4-1),12,1)) -> 0.0094838 | P83: =AVERAGE(OFFSET(LongTerm_Conc!$C$10,12*($L83-1),4*(PlotControl!$C$4-1),12,1)) -> 0.009823391667 | Q83: =AVERAGE(OFFSET(LongTerm_Conc!$D$10,12*($L83-1),4*(PlotControl!$C$4-1),12,1)) -> 0.009996508333 | R83: =AVERAGE(OFFSET(LongTerm_Conc!$E$10,12*($L83-1),4*(PlotControl!$C$4-1),12,1)) -> 0.01
L84: 80 | M84: =AVERAGE(OFFSET(Reclam_Conc!$C$10,12*($L84-1),4*(PlotControl!$C$4-1),12,1)) -> 0.0092846 | N84: =AVERAGE(OFFSET(Reclam_Conc!$D$10,12*($L84-1),4*(PlotControl!$C$4-1),12,1)) -> 0.0093816 | O84: =AVERAGE(OFFSET(Reclam_Conc!$E$10,12*($L84-1),4*(PlotControl!$C$4-1),12,1)) -> 0.0094838 | P84: =AVERAGE(OFFSET(LongTerm_Conc!$C$10,12*($L84-1),4*(PlotControl!$C$4-1),12,1)) -> 0.009829658333 | Q84: =AVERAGE(OFFSET(LongTerm_Conc!$D$10,12*($L84-1),4*(PlotControl!$C$4-1),12,1)) -> 0.0099977 | R84: =AVERAGE(OFFSET(LongTerm_Conc!$E$10,12*($L84-1),4*(PlotControl!$C$4-1),12,1)) -> 0.01
L85: 81 | M85: =AVERAGE(OFFSET(Reclam_Conc!$C$10,12*($L85-1),4*(PlotControl!$C$4-1),12,1)) -> 0.0092846 | N85: =AVERAGE(OFFSET(Reclam_Conc!$D$10,12*($L85-1),4*(PlotControl!$C$4-1),12,1)) -> 0.0093816 | O85: =AVERAGE(OFFSET(Reclam_Conc!$E$10,12*($L85-1),4*(PlotControl!$C$4-1),12,1)) -> 0.0094838 | P85: =AVERAGE(OFFSET(LongTerm_Conc!$C$10,12*($L85-1),4*(PlotControl!$C$4-1),12,1)) -> 0.009820316667 | Q85: =AVERAGE(OFFSET(LongTerm_Conc!$D$10,12*($L85-1),4*(PlotControl!$C$4-1),12,1)) -> 0.009998808333 | R85: =AVERAGE(OFFSET(LongTerm_Conc!$E$10,12*($L85-1),4*(PlotControl!$C$4-1),12,1)) -> 0.01
L86: 82 | M86: =AVERAGE(OFFSET(Reclam_Conc!$C$10,12*($L86-1),4*(PlotControl!$C$4-1),12,1)) -> 0.0092846 | N86: =AVERAGE(OFFSET(Reclam_Conc!$D$10,12*($L86-1),4*(PlotControl!$C$4-1),12,1)) -> 0.0093816 | O86: =AVERAGE(OFFSET(Reclam_Conc!$E$10,12*($L86-1),4*(PlotControl!$C$4-1),12,1)) -> 0.0094838 | P86: =AVERAGE(OFFSET(LongTerm_Conc!$C$10,12*($L86-1),4*(PlotControl!$C$4-1),12,1)) -> 0.009821083333 | Q86: =AVERAGE(OFFSET(LongTerm_Conc!$D$10,12*($L86-1),4*(PlotControl!$C$4-1),12,1)) -> 0.009999408333 | R86: =AVERAGE(OFFSET(LongTerm_Conc!$E$10,12*($L86-1),4*(PlotControl!$C$4-1),12,1)) -> 0.01
L87: 83 | M87: =AVERAGE(OFFSET(Reclam_Conc!$C$10,12*($L87-1),4*(PlotControl!$C$4-1),12,1)) -> 0.0092846 | N87: =AVERAGE(OFFSET(Reclam_Conc!$D$10,12*($L87-1),4*(PlotControl!$C$4-1),12,1)) -> 0.0093816 | O87: =AVERAGE(OFFSET(Reclam_Conc!$E$10,12*($L87-1),4*(PlotControl!$C$4-1),12,1)) -> 0.0094838 | P87: =AVERAGE(OFFSET(LongTerm_Conc!$C$10,12*($L87-1),4*(PlotControl!$C$4-1),12,1)) -> 0.009811525 | Q87: =AVERAGE(OFFSET(LongTerm_Conc!$D$10,12*($L87-1),4*(PlotControl!$C$4-1),12,1)) -> 0.009999491667 | R87: =AVERAGE(OFFSET(LongTerm_Conc!$E$10,12*($L87-1),4*(PlotControl!$C$4-1),12,1)) -> 0.01
L88: 84 | M88: =AVERAGE(OFFSET(Reclam_Conc!$C$10,12*($L88-1),4*(PlotControl!$C$4-1),12,1)) -> 0.0092846 | N88: =AVERAGE(OFFSET(Reclam_Conc!$D$10,12*($L88-1),4*(PlotControl!$C$4-1),12,1)) -> 0.0093816 | O88: =AVERAGE(OFFSET(Reclam_Conc!$E$10,12*($L88-1),4*(PlotControl!$C$4-1),12,1)) -> 0.0094838 | P88: =AVERAGE(OFFSET(LongTerm_Conc!$C$10,12*($L88-1),4*(PlotControl!$C$4-1),12,1)) -> 0.009822758333 | Q88: =AVERAGE(OFFSET(LongTerm_Conc!$D$10,12*($L88-1),4*(PlotControl!$C$4-1),12,1)) -> 0.00999915 | R88: =AVERAGE(OFFSET(LongTerm_Conc!$E$10,12*($L88-1),4*(PlotControl!$C$4-1),12,1)) -> 0.01
L89: 85 | M89: =AVERAGE(OFFSET(Reclam_Conc!$C$10,12*($L89-1),4*(PlotControl!$C$4-1),12,1)) -> 0.0092846 | N89: =AVERAGE(OFFSET(Reclam_Conc!$D$10,12*($L89-1),4*(PlotControl!$C$4-1),12,1)) -> 0.0093816 | O89: =AVERAGE(OFFSET(Reclam_Conc!$E$10,12*($L89-1),4*(PlotControl!$C$4-1),12,1)) -> 0.0094838 | P89: =AVERAGE(OFFSET(LongTerm_Conc!$C$10,12*($L89-1),4*(PlotControl!$C$4-1),12,1)) -> 0.009826666667 | Q89: =AVERAGE(OFFSET(LongTerm_Conc!$D$10,12*($L89-1),4*(PlotControl!$C$4-1),12,1)) -> 0.009999191667 | R89: =AVERAGE(OFFSET(LongTerm_Conc!$E$10,12*($L89-1),4*(PlotControl!$C$4-1),12,1)) -> 0.01
L90: 86 | M90: =AVERAGE(OFFSET(Reclam_Conc!$C$10,12*($L90-1),4*(PlotControl!$C$4-1),12,1)) -> 0.0092846 | N90: =AVERAGE(OFFSET(Reclam_Conc!$D$10,12*($L90-1),4*(PlotControl!$C$4-1),12,1)) -> 0.0093816 | O90: =AVERAGE(OFFSET(Reclam_Conc!$E$10,12*($L90-1),4*(PlotControl!$C$4-1),12,1)) -> 0.0094838 | P90: =AVERAGE(OFFSET(LongTerm_Conc!$C$10,12*($L90-1),4*(PlotControl!$C$4-1),12,1)) -> 0.009814533333 | Q90: =AVERAGE(OFFSET(LongTerm_Conc!$D$10,12*($L90-1),4*(PlotControl!$C$4-1),12,1)) -> 0.009999608333 | R90: =AVERAGE(OFFSET(LongTerm_Conc!$E$10,12*($L90-1),4*(PlotControl!$C$4-1),12,1)) -> 0.01
L91: 87 | M91: =AVERAGE(OFFSET(Reclam_Conc!$C$10,12*($L91-1),4*(PlotControl!$C$4-1),12,1)) -> 0.0092846 | N91: =AVERAGE(OFFSET(Reclam_Conc!$D$10,12*($L91-1),4*(PlotControl!$C$4-1),12,1)) -> 0.0093816 | O91: =AVERAGE(OFFSET(Reclam_Conc!$E$10,12*($L91-1),4*(PlotControl!$C$4-1),12,1)) -> 0.0094838 | P91: =AVERAGE(OFFSET(LongTerm_Conc!$C$10,12*($L91-1),4*(PlotControl!$C$4-1),12,1)) -> 0.009825258333 | Q91: =AVERAGE(OFFSET(LongTerm_Conc!$D$10,12*($L91-1),4*(PlotControl!$C$4-1),12,1)) -> 0.009999516667 | R91: =AVERAGE(OFFSET(LongTerm_Conc!$E$10,12*($L91-1),4*(PlotControl!$C$4-1),12,1)) -> 0.01
L92: 88 | M92: =AVERAGE(OFFSET(Reclam_Conc!$C$10,12*($L92-1),4*(PlotControl!$C$4-1),12,1)) -> 0.0092846 | N92: =AVERAGE(OFFSET(Reclam_Conc!$D$10,12*($L92-1),4*(PlotControl!$C$4-1),12,1)) -> 0.0093816 | O92: =AVERAGE(OFFSET(Reclam_Conc!$E$10,12*($L92-1),4*(PlotControl!$C$4-1),12,1)) -> 0.0094838 | P92: =AVERAGE(OFFSET(LongTerm_Conc!$C$10,12*($L92-1),4*(PlotControl!$C$4-1),12,1)) -> 0.0098252 | Q92: =AVERAGE(OFFSET(LongTerm_Conc!$D$10,12*($L92-1),4*(PlotControl!$C$4-1),12,1)) -> 0.009998916667 | R92: =AVERAGE(OFFSET(LongTerm_Conc!$E$10,12*($L92-1),4*(PlotControl!$C$4-1),12,1)) -> 0.01
L93: 89 | M93: =AVERAGE(OFFSET(Reclam_Conc!$C$10,12*($L93-1),4*(PlotControl!$C$4-1),12,1)) -> 0.0092846 | N93: =AVERAGE(OFFSET(Reclam_Conc!$D$10,12*($L93-1),4*(PlotControl!$C$4-1),12,1)) -> 0.0093816 | O93: =AVERAGE(OFFSET(Reclam_Conc!$E$10,12*($L93-1),4*(PlotControl!$C$4-1),12,1)) -> 0.0094838 | P93: =AVERAGE(OFFSET(LongTerm_Conc!$C$10,12*($L93-1),4*(PlotControl!$C$4-1),12,1)) -> 0.009830566667 | Q93: =AVERAGE(OFFSET(LongTerm_Conc!$D$10,12*($L93-1),4*(PlotControl!$C$4-1),12,1)) -> 0.009999433333 | R93: =AVERAGE(OFFSET(LongTerm_Conc!$E$10,12*($L93-1),4*(PlotControl!$C$4-1),12,1)) -> 0.01
L94: 90 | M94: =AVERAGE(OFFSET(Reclam_Conc!$C$10,12*($L94-1),4*(PlotControl!$C$4-1),12,1)) -> 0.0092846 | N94: =AVERAGE(OFFSET(Reclam_Conc!$D$10,12*($L94-1),4*(PlotControl!$C$4-1),12,1)) -> 0.0093816 | O94: =AVERAGE(OFFSET(Reclam_Conc!$E$10,12*($L94-1),4*(PlotControl!$C$4-1),12,1)) -> 0.0094838 | P94: =AVERAGE(OFFSET(LongTerm_Conc!$C$10,12*($L94-1),4*(PlotControl!$C$4-1),12,1)) -> 0.009823908333 | Q94: =AVERAGE(OFFSET(LongTerm_Conc!$D$10,12*($L94-1),4*(PlotControl!$C$4-1),12,1)) -> 0.009999566667 | R94: =AVERAGE(OFFSET(LongTerm_Conc!$E$10,12*($L94-1),4*(PlotControl!$C$4-1),12,1)) -> 0.01
L95: 91 | M95: =AVERAGE(OFFSET(Reclam_Conc!$C$10,12*($L95-1),4*(PlotControl!$C$4-1),12,1)) -> 0.0092846 | N95: =AVERAGE(OFFSET(Reclam_Conc!$D$10,12*($L95-1),4*(PlotControl!$C$4-1),12,1)) -> 0.0093816 | O95: =AVERAGE(OFFSET(Reclam_Conc!$E$10,12*($L95-1),4*(PlotControl!$C$4-1),12,1)) -> 0.0094838 | P95: =AVERAGE(OFFSET(LongTerm_Conc!$C$10,12*($L95-1),4*(PlotControl!$C$4-1),12,1)) -> 0.00982705 | Q95: =AVERAGE(OFFSET(LongTerm_Conc!$D$10,12*($L95-1),4*(PlotControl!$C$4-1),12,1)) -> 0.009999375 | R95: =AVERAGE(OFFSET(LongTerm_Conc!$E$10,12*($L95-1),4*(PlotControl!$C$4-1),12,1)) -> 0.01
L96: 92 | M96: =AVERAGE(OFFSET(Reclam_Conc!$C$10,12*($L96-1),4*(PlotControl!$C$4-1),12,1)) -> 0.0092846 | N96: =AVERAGE(OFFSET(Reclam_Conc!$D$10,12*($L96-1),4*(PlotControl!$C$4-1),12,1)) -> 0.0093816 | O96: =AVERAGE(OFFSET(Reclam_Conc!$E$10,12*($L96-1),4*(PlotControl!$C$4-1),12,1)) -> 0.0094838 | P96: =AVERAGE(OFFSET(LongTerm_Conc!$C$10,12*($L96-1),4*(PlotControl!$C$4-1),12,1)) -> 0.009823608333 | Q96: =AVERAGE(OFFSET(LongTerm_Conc!$D$10,12*($L96-1),4*(PlotControl!$C$4-1),12,1)) -> 0.009999083333 | R96: =AVERAGE(OFFSET(LongTerm_Conc!$E$10,12*($L96-1),4*(PlotControl!$C$4-1),12,1)) -> 0.01
L97: 93 | M97: =AVERAGE(OFFSET(Reclam_Conc!$C$10,12*($L97-1),4*(PlotControl!$C$4-1),12,1)) -> 0.0092846 | N97: =AVERAGE(OFFSET(Reclam_Conc!$D$10,12*($L97-1),4*(PlotControl!$C$4-1),12,1)) -> 0.0093816 | O97: =AVERAGE(OFFSET(Reclam_Conc!$E$10,12*($L97-1),4*(PlotControl!$C$4-1),12,1)) -> 0.0094838 | P97: =AVERAGE(OFFSET(LongTerm_Conc!$C$10,12*($L97-1),4*(PlotControl!$C$4-1),12,1)) -> 0.009818366667 | Q97: =AVERAGE(OFFSET(LongTerm_Conc!$D$10,12*($L97-1),4*(PlotControl!$C$4-1),12,1)) -> 0.0099985 | R97: =AVERAGE(OFFSET(LongTerm_Conc!$E$10,12*($L97-1),4*(PlotControl!$C$4-1),12,1)) -> 0.01
L98: 94 | M98: =AVERAGE(OFFSET(Reclam_Conc!$C$10,12*($L98-1),4*(PlotControl!$C$4-1),12,1)) -> 0.0092846 | N98: =AVERAGE(OFFSET(Reclam_Conc!$D$10,12*($L98-1),4*(PlotControl!$C$4-1),12,1)) -> 0.0093816 | O98: =AVERAGE(OFFSET(Reclam_Conc!$E$10,12*($L98-1),4*(PlotControl!$C$4-1),12,1)) -> 0.0094838 | P98: =AVERAGE(OFFSET(LongTerm_Conc!$C$10,12*($L98-1),4*(PlotControl!$C$4-1),12,1)) -> 0.009823358333 | Q98: =AVERAGE(OFFSET(LongTerm_Conc!$D$10,12*($L98-1),4*(PlotControl!$C$4-1),12,1)) -> 0.009997975 | R98: =AVERAGE(OFFSET(LongTerm_Conc!$E$10,12*($L98-1),4*(PlotControl!$C$4-1),12,1)) -> 0.01
L99: 95 | M99: =AVERAGE(OFFSET(Reclam_Conc!$C$10,12*($L99-1),4*(PlotControl!$C$4-1),12,1)) -> 0.0092846 | N99: =AVERAGE(OFFSET(Reclam_Conc!$D$10,12*($L99-1),4*(PlotControl!$C$4-1),12,1)) -> 0.0093816 | O99: =AVERAGE(OFFSET(Reclam_Conc!$E$10,12*($L99-1),4*(PlotControl!$C$4-1),12,1)) -> 0.0094838 | P99: =AVERAGE(OFFSET(LongTerm_Conc!$C$10,12*($L99-1),4*(PlotControl!$C$4-1),12,1)) -> 0.0098153 | Q99: =AVERAGE(OFFSET(LongTerm_Conc!$D$10,12*($L99-1),4*(PlotControl!$C$4-1),12,1)) -> 0.009999241667 | R99: =AVERAGE(OFFSET(LongTerm_Conc!$E$10,12*($L99-1),4*(PlotControl!$C$4-1),12,1)) -> 0.01
L100: 96 | M100: =AVERAGE(OFFSET(Reclam_Conc!$C$10,12*($L100-1),4*(PlotControl!$C$4-1),12,1)) -> 0.0092846 | N100: =AVERAGE(OFFSET(Reclam_Conc!$D$10,12*($L100-1),4*(PlotControl!$C$4-1),12,1)) -> 0.0093816 | O100: =AVERAGE(OFFSET(Reclam_Conc!$E$10,12*($L100-1),4*(PlotControl!$C$4-1),12,1)) -> 0.0094838 | P100: =AVERAGE(OFFSET(LongTerm_Conc!$C$10,12*($L100-1),4*(PlotControl!$C$4-1),12,1)) -> 0.009825141667 | Q100: =AVERAGE(OFFSET(LongTerm_Conc!$D$10,12*($L100-1),4*(PlotControl!$C$4-1),12,1)) -> 0.009999708333 | R100: =AVERAGE(OFFSET(LongTerm_Conc!$E$10,12*($L100-1),4*(PlotControl!$C$4-1),12,1)) -> 0.01
L101: 97 | M101: =AVERAGE(OFFSET(Reclam_Conc!$C$10,12*($L101-1),4*(PlotControl!$C$4-1),12,1)) -> 0.0092846 | N101: =AVERAGE(OFFSET(Reclam_Conc!$D$10,12*($L101-1),4*(PlotControl!$C$4-1),12,1)) -> 0.0093816 | O101: =AVERAGE(OFFSET(Reclam_Conc!$E$10,12*($L101-1),4*(PlotControl!$C$4-1),12,1)) -> 0.0094838 | P101: =AVERAGE(OFFSET(LongTerm_Conc!$C$10,12*($L101-1),4*(PlotControl!$C$4-1),12,1)) -> 0.009813133333 | Q101: =AVERAGE(OFFSET(LongTerm_Conc!$D$10,12*($L101-1),4*(PlotControl!$C$4-1),12,1)) -> 0.009999866667 | R101: =AVERAGE(OFFSET(LongTerm_Conc!$E$10,12*($L101-1),4*(PlotControl!$C$4-1),12,1)) -> 0.01
L102: 98 | M102: =AVERAGE(OFFSET(Reclam_Conc!$C$10,12*($L102-1),4*(PlotControl!$C$4-1),12,1)) -> 0.0092846 | N102: =AVERAGE(OFFSET(Reclam_Conc!$D$10,12*($L102-1),4*(PlotControl!$C$4-1),12,1)) -> 0.0093816 | O102: =AVERAGE(OFFSET(Reclam_Conc!$E$10,12*($L102-1),4*(PlotControl!$C$4-1),12,1)) -> 0.0094838 | P102: =AVERAGE(OFFSET(LongTerm_Conc!$C$10,12*($L102-1),4*(PlotControl!$C$4-1),12,1)) -> 0.009817 | Q102: =AVERAGE(OFFSET(LongTerm_Conc!$D$10,12*($L102-1),4*(PlotControl!$C$4-1),12,1)) -> 0.009998941667 | R102: =AVERAGE(OFFSET(LongTerm_Conc!$E$10,12*($L102-1),4*(PlotControl!$C$4-1),12,1)) -> 0.01
L103: 99 | M103: =AVERAGE(OFFSET(Reclam_Conc!$C$10,12*($L103-1),4*(PlotControl!$C$4-1),12,1)) -> 0.0092846 | N103: =AVERAGE(OFFSET(Reclam_Conc!$D$10,12*($L103-1),4*(PlotControl!$C$4-1),12,1)) -> 0.0093816 | O103: =AVERAGE(OFFSET(Reclam_Conc!$E$10,12*($L103-1),4*(PlotControl!$C$4-1),12,1)) -> 0.0094838 | P103: =AVERAGE(OFFSET(LongTerm_Conc!$C$10,12*($L103-1),4*(PlotControl!$C$4-1),12,1)) -> 0.009807841667 | Q103: =AVERAGE(OFFSET(LongTerm_Conc!$D$10,12*($L103-1),4*(PlotControl!$C$4-1),12,1)) -> 0.0099964 | R103: =AVERAGE(OFFSET(LongTerm_Conc!$E$10,12*($L103-1),4*(PlotControl!$C$4-1),12,1)) -> 0.01
L104: 100 | M104: =AVERAGE(OFFSET(Reclam_Conc!$C$10,12*($L104-1),4*(PlotControl!$C$4-1),12,1)) -> 0.0092846 | N104: =AVERAGE(OFFSET(Reclam_Conc!$D$10,12*($L104-1),4*(PlotControl!$C$4-1),12,1)) -> 0.0093816 | O104: =AVERAGE(OFFSET(Reclam_Conc!$E$10,12*($L104-1),4*(PlotControl!$C$4-1),12,1)) -> 0.0094838 | P104: =AVERAGE(OFFSET(LongTerm_Conc!$C$10,12*($L104-1),4*(PlotControl!$C$4-1),12,1)) -> 0.0098114 | Q104: =AVERAGE(OFFSET(LongTerm_Conc!$D$10,12*($L104-1),4*(PlotControl!$C$4-1),12,1)) -> 0.009996641667 | R104: =AVERAGE(OFFSET(LongTerm_Conc!$E$10,12*($L104-1),4*(PlotControl!$C$4-1),12,1)) -> 0.01
L105: 101 | M105: =AVERAGE(OFFSET(Reclam_Conc!$C$10,12*($L105-1),4*(PlotControl!$C$4-1),12,1)) -> 0.0092846 | N105: =AVERAGE(OFFSET(Reclam_Conc!$D$10,12*($L105-1),4*(PlotControl!$C$4-1),12,1)) -> 0.0093816 | O105: =AVERAGE(OFFSET(Reclam_Conc!$E$10,12*($L105-1),4*(PlotControl!$C$4-1),12,1)) -> 0.0094838 | P105: =AVERAGE(OFFSET(LongTerm_Conc!$C$10,12*($L105-1),4*(PlotControl!$C$4-1),12,1)) -> 0.00981995 | Q105: =AVERAGE(OFFSET(LongTerm_Conc!$D$10,12*($L105-1),4*(PlotControl!$C$4-1),12,1)) -> 0.00999745 | R105: =AVERAGE(OFFSET(LongTerm_Conc!$E$10,12*($L105-1),4*(PlotControl!$C$4-1),12,1)) -> 0.01
L106: 102 | M106: =AVERAGE(OFFSET(Reclam_Conc!$C$10,12*($L106-1),4*(PlotControl!$C$4-1),12,1)) -> 0.0092846 | N106: =AVERAGE(OFFSET(Reclam_Conc!$D$10,12*($L106-1),4*(PlotControl!$C$4-1),12,1)) -> 0.0093816 | O106: =AVERAGE(OFFSET(Reclam_Conc!$E$10,12*($L106-1),4*(PlotControl!$C$4-1),12,1)) -> 0.0094838 | P106: =AVERAGE(OFFSET(LongTerm_Conc!$C$10,12*($L106-1),4*(PlotControl!$C$4-1),12,1)) -> 0.009814033333 | Q106: =AVERAGE(OFFSET(LongTerm_Conc!$D$10,12*($L106-1),4*(PlotControl!$C$4-1),12,1)) -> 0.00999885 | R106: =AVERAGE(OFFSET(LongTerm_Conc!$E$10,12*($L106-1),4*(PlotControl!$C$4-1),12,1)) -> 0.01
L107: 103 | M107: =AVERAGE(OFFSET(Reclam_Conc!$C$10,12*($L107-1),4*(PlotControl!$C$4-1),12,1)) -> 0.0092846 | N107: =AVERAGE(OFFSET(Reclam_Conc!$D$10,12*($L107-1),4*(PlotControl!$C$4-1),12,1)) -> 0.0093816 | O107: =AVERAGE(OFFSET(Reclam_Conc!$E$10,12*($L107-1),4*(PlotControl!$C$4-1),12,1)) -> 0.0094838 | P107: =AVERAGE(OFFSET(LongTerm_Conc!$C$10,12*($L107-1),4*(PlotControl!$C$4-1),12,1)) -> 0.0098142 | Q107: =AVERAGE(OFFSET(LongTerm_Conc!$D$10,12*($L107-1),4*(PlotControl!$C$4-1),12,1)) -> 0.009999383333 | R107: =AVERAGE(OFFSET(LongTerm_Conc!$E$10,12*($L107-1),4*(PlotControl!$C$4-1),12,1)) -> 0.01
L108: 104 | M108: =AVERAGE(OFFSET(Reclam_Conc!$C$10,12*($L108-1),4*(PlotControl!$C$4-1),12,1)) -> 0.0092846 | N108: =AVERAGE(OFFSET(Reclam_Conc!$D$10,12*($L108-1),4*(PlotControl!$C$4-1),12,1)) -> 0.0093816 | O108: =AVERAGE(OFFSET(Reclam_Conc!$E$10,12*($L108-1),4*(PlotControl!$C$4-1),12,1)) -> 0.0094838 | P108: =AVERAGE(OFFSET(LongTerm_Conc!$C$10,12*($L108-1),4*(PlotControl!$C$4-1),12,1)) -> 0.009796891667 | Q108: =AVERAGE(OFFSET(LongTerm_Conc!$D$10,12*($L108-1),4*(PlotControl!$C$4-1),12,1)) -> 0.009999375 | R108: =AVERAGE(OFFSET(LongTerm_Conc!$E$10,12*($L108-1),4*(PlotControl!$C$4-1),12,1)) -> 0.01
L109: 105 | M109: =AVERAGE(OFFSET(Reclam_Conc!$C$10,12*($L109-1),4*(PlotControl!$C$4-1),12,1)) -> 0.0092846 | N109: =AVERAGE(OFFSET(Reclam_Conc!$D$10,12*($L109-1),4*(PlotControl!$C$4-1),12,1)) -> 0.0093816 | O109: =AVERAGE(OFFSET(Reclam_Conc!$E$10,12*($L109-1),4*(PlotControl!$C$4-1),12,1)) -> 0.0094838 | P109: =AVERAGE(OFFSET(LongTerm_Conc!$C$10,12*($L109-1),4*(PlotControl!$C$4-1),12,1)) -> 0.0097988 | Q109: =AVERAGE(OFFSET(LongTerm_Conc!$D$10,12*($L109-1),4*(PlotControl!$C$4-1),12,1)) -> 0.0099979 | R109: =AVERAGE(OFFSET(LongTerm_Conc!$E$10,12*($L109-1),4*(PlotControl!$C$4-1),12,1)) -> 0.01
L110: 106 | M110: =AVERAGE(OFFSET(Reclam_Conc!$C$10,12*($L110-1),4*(PlotControl!$C$4-1),12,1)) -> 0.0092846 | N110: =AVERAGE(OFFSET(Reclam_Conc!$D$10,12*($L110-1),4*(PlotControl!$C$4-1),12,1)) -> 0.0093816 | O110: =AVERAGE(OFFSET(Reclam_Conc!$E$10,12*($L110-1),4*(PlotControl!$C$4-1),12,1)) -> 0.0094838 | P110: =AVERAGE(OFFSET(LongTerm_Conc!$C$10,12*($L110-1),4*(PlotControl!$C$4-1),12,1)) -> 0.009814933333 | Q110: =AVERAGE(OFFSET(LongTerm_Conc!$D$10,12*($L110-1),4*(PlotControl!$C$4-1),12,1)) -> 0.009997525 | R110: =AVERAGE(OFFSET(LongTerm_Conc!$E$10,12*($L110-1),4*(PlotControl!$C$4-1),12,1)) -> 0.01
L111: 107 | M111: =AVERAGE(OFFSET(Reclam_Conc!$C$10,12*($L111-1),4*(PlotControl!$C$4-1),12,1)) -> 0.0092846 | N111: =AVERAGE(OFFSET(Reclam_Conc!$D$10,12*($L111-1),4*(PlotControl!$C$4-1),12,1)) -> 0.0093816 | O111: =AVERAGE(OFFSET(Reclam_Conc!$E$10,12*($L111-1),4*(PlotControl!$C$4-1),12,1)) -> 0.0094838 | P111: =AVERAGE(OFFSET(LongTerm_Conc!$C$10,12*($L111-1),4*(PlotControl!$C$4-1),12,1)) -> 0.009807175 | Q111: =AVERAGE(OFFSET(LongTerm_Conc!$D$10,12*($L111-1),4*(PlotControl!$C$4-1),12,1)) -> 0.009998683333 | R111: =AVERAGE(OFFSET(LongTerm_Conc!$E$10,12*($L111-1),4*(PlotControl!$C$4-1),12,1)) -> 0.01
L112: 108 | M112: =AVERAGE(OFFSET(Reclam_Conc!$C$10,12*($L112-1),4*(PlotControl!$C$4-1),12,1)) -> 0.0092846 | N112: =AVERAGE(OFFSET(Reclam_Conc!$D$10,12*($L112-1),4*(PlotControl!$C$4-1),12,1)) -> 0.0093816 | O112: =AVERAGE(OFFSET(Reclam_Conc!$E$10,12*($L112-1),4*(PlotControl!$C$4-1),12,1)) -> 0.0094838 | P112: =AVERAGE(OFFSET(LongTerm_Conc!$C$10,12*($L112-1),4*(PlotControl!$C$4-1),12,1)) -> 0.009810166667 | Q112: =AVERAGE(OFFSET(LongTerm_Conc!$D$10,12*($L112-1),4*(PlotControl!$C$4-1),12,1)) -> 0.009998766667 | R112: =AVERAGE(OFFSET(LongTerm_Conc!$E$10,12*($L112-1),4*(PlotControl!$C$4-1),12,1)) -> 0.01
L113: 109 | M113: =AVERAGE(OFFSET(Reclam_Conc!$C$10,12*($L113-1),4*(PlotControl!$C$4-1),12,1)) -> 0.0092846 | N113: =AVERAGE(OFFSET(Reclam_Conc!$D$10,12*($L113-1),4*(PlotControl!$C$4-1),12,1)) -> 0.0093816 | O113: =AVERAGE(OFFSET(Reclam_Conc!$E$10,12*($L113-1),4*(PlotControl!$C$4-1),12,1)) -> 0.0094838 | P113: =AVERAGE(OFFSET(LongTerm_Conc!$C$10,12*($L113-1),4*(PlotControl!$C$4-1),12,1)) -> 0.009819533333 | Q113: =AVERAGE(OFFSET(LongTerm_Conc!$D$10,12*($L113-1),4*(PlotControl!$C$4-1),12,1)) -> 0.00999955 | R113: =AVERAGE(OFFSET(LongTerm_Conc!$E$10,12*($L113-1),4*(PlotControl!$C$4-1),12,1)) -> 0.01
L114: 110 | M114: =AVERAGE(OFFSET(Reclam_Conc!$C$10,12*($L114-1),4*(PlotControl!$C$4-1),12,1)) -> 0.0092846 | N114: =AVERAGE(OFFSET(Reclam_Conc!$D$10,12*($L114-1),4*(PlotControl!$C$4-1),12,1)) -> 0.0093816 | O114: =AVERAGE(OFFSET(Reclam_Conc!$E$10,12*($L114-1),4*(PlotControl!$C$4-1),12,1)) -> 0.0094838 | P114: =AVERAGE(OFFSET(LongTerm_Conc!$C$10,12*($L114-1),4*(PlotControl!$C$4-1),12,1)) -> 0.009810758333 | Q114: =AVERAGE(OFFSET(LongTerm_Conc!$D$10,12*($L114-1),4*(PlotControl!$C$4-1),12,1)) -> 0.009999533333 | R114: =AVERAGE(OFFSET(LongTerm_Conc!$E$10,12*($L114-1),4*(PlotControl!$C$4-1),12,1)) -> 0.01
L115: 111 | M115: =AVERAGE(OFFSET(Reclam_Conc!$C$10,12*($L115-1),4*(PlotControl!$C$4-1),12,1)) -> 0.0092846 | N115: =AVERAGE(OFFSET(Reclam_Conc!$D$10,12*($L115-1),4*(PlotControl!$C$4-1),12,1)) -> 0.0093816 | O115: =AVERAGE(OFFSET(Reclam_Conc!$E$10,12*($L115-1),4*(PlotControl!$C$4-1),12,1)) -> 0.0094838 | P115: =AVERAGE(OFFSET(LongTerm_Conc!$C$10,12*($L115-1),4*(PlotControl!$C$4-1),12,1)) -> 0.009813891667 | Q115: =AVERAGE(OFFSET(LongTerm_Conc!$D$10,12*($L115-1),4*(PlotControl!$C$4-1),12,1)) -> 0.009999125 | R115: =AVERAGE(OFFSET(LongTerm_Conc!$E$10,12*($L115-1),4*(PlotControl!$C$4-1),12,1)) -> 0.01
L116: 112 | M116: =AVERAGE(OFFSET(Reclam_Conc!$C$10,12*($L116-1),4*(PlotControl!$C$4-1),12,1)) -> 0.0092846 | N116: =AVERAGE(OFFSET(Reclam_Conc!$D$10,12*($L116-1),4*(PlotControl!$C$4-1),12,1)) -> 0.0093816 | O116: =AVERAGE(OFFSET(Reclam_Conc!$E$10,12*($L116-1),4*(PlotControl!$C$4-1),12,1)) -> 0.0094838 | P116: =AVERAGE(OFFSET(LongTerm_Conc!$C$10,12*($L116-1),4*(PlotControl!$C$4-1),12,1)) -> 0.009817916667 | Q116: =AVERAGE(OFFSET(LongTerm_Conc!$D$10,12*($L116-1),4*(PlotControl!$C$4-1),12,1)) -> 0.009997858333 | R116: =AVERAGE(OFFSET(LongTerm_Conc!$E$10,12*($L116-1),4*(PlotControl!$C$4-1),12,1)) -> 0.01
L117: 113 | M117: =AVERAGE(OFFSET(Reclam_Conc!$C$10,12*($L117-1),4*(PlotControl!$C$4-1),12,1)) -> 0.0092846 | N117: =AVERAGE(OFFSET(Reclam_Conc!$D$10,12*($L117-1),4*(PlotControl!$C$4-1),12,1)) -> 0.0093816 | O117: =AVERAGE(OFFSET(Reclam_Conc!$E$10,12*($L117-1),4*(PlotControl!$C$4-1),12,1)) -> 0.0094838 | P117: =AVERAGE(OFFSET(LongTerm_Conc!$C$10,12*($L117-1),4*(PlotControl!$C$4-1),12,1)) -> 0.009812375 | Q117: =AVERAGE(OFFSET(LongTerm_Conc!$D$10,12*($L117-1),4*(PlotControl!$C$4-1),12,1)) -> 0.009996275 | R117: =AVERAGE(OFFSET(LongTerm_Conc!$E$10,12*($L117-1),4*(PlotControl!$C$4-1),12,1)) -> 0.01
L118: 114 | M118: =AVERAGE(OFFSET(Reclam_Conc!$C$10,12*($L118-1),4*(PlotControl!$C$4-1),12,1)) -> 0.0092846 | N118: =AVERAGE(OFFSET(Reclam_Conc!$D$10,12*($L118-1),4*(PlotControl!$C$4-1),12,1)) -> 0.0093816 | O118: =AVERAGE(OFFSET(Reclam_Conc!$E$10,12*($L118-1),4*(PlotControl!$C$4-1),12,1)) -> 0.0094838 | P118: =AVERAGE(OFFSET(LongTerm_Conc!$C$10,12*($L118-1),4*(PlotControl!$C$4-1),12,1)) -> 0.0098111 | Q118: =AVERAGE(OFFSET(LongTerm_Conc!$D$10,12*($L118-1),4*(PlotControl!$C$4-1),12,1)) -> 0.009996008333 | R118: =AVERAGE(OFFSET(LongTerm_Conc!$E$10,12*($L118-1),4*(PlotControl!$C$4-1),12,1)) -> 0.01
L119: 115 | M119: =AVERAGE(OFFSET(Reclam_Conc!$C$10,12*($L119-1),4*(PlotControl!$C$4-1),12,1)) -> 0.0092846 | N119: =AVERAGE(OFFSET(Reclam_Conc!$D$10,12*($L119-1),4*(PlotControl!$C$4-1),12,1)) -> 0.0093816 | O119: =AVERAGE(OFFSET(Reclam_Conc!$E$10,12*($L119-1),4*(PlotControl!$C$4-1),12,1)) -> 0.0094838 | P119: =AVERAGE(OFFSET(LongTerm_Conc!$C$10,12*($L119-1),4*(PlotControl!$C$4-1),12,1)) -> 0.009811216667 | Q119: =AVERAGE(OFFSET(LongTerm_Conc!$D$10,12*($L119-1),4*(PlotControl!$C$4-1),12,1)) -> 0.009997283333 | R119: =AVERAGE(OFFSET(LongTerm_Conc!$E$10,12*($L119-1),4*(PlotControl!$C$4-1),12,1)) -> 0.01
L120: 116 | M120: =AVERAGE(OFFSET(Reclam_Conc!$C$10,12*($L120-1),4*(PlotControl!$C$4-1),12,1)) -> 0.0092846 | N120: =AVERAGE(OFFSET(Reclam_Conc!$D$10,12*($L120-1),4*(PlotControl!$C$4-1),12,1)) -> 0.0093816 | O120: =AVERAGE(OFFSET(Reclam_Conc!$E$10,12*($L120-1),4*(PlotControl!$C$4-1),12,1)) -> 0.0094838 | P120: =AVERAGE(OFFSET(LongTerm_Conc!$C$10,12*($L120-1),4*(PlotControl!$C$4-1),12,1)) -> 0.009808483333 | Q120: =AVERAGE(OFFSET(LongTerm_Conc!$D$10,12*($L120-1),4*(PlotControl!$C$4-1),12,1)) -> 0.009998241667 | R120: =AVERAGE(OFFSET(LongTerm_Conc!$E$10,12*($L120-1),4*(PlotControl!$C$4-1),12,1)) -> 0.01
L121: 117 | M121: =AVERAGE(OFFSET(Reclam_Conc!$C$10,12*($L121-1),4*(PlotControl!$C$4-1),12,1)) -> 0.0092846 | N121: =AVERAGE(OFFSET(Reclam_Conc!$D$10,12*($L121-1),4*(PlotControl!$C$4-1),12,1)) -> 0.0093816 | O121: =AVERAGE(OFFSET(Reclam_Conc!$E$10,12*($L121-1),4*(PlotControl!$C$4-1),12,1)) -> 0.0094838 | P121: =AVERAGE(OFFSET(LongTerm_Conc!$C$10,12*($L121-1),4*(PlotControl!$C$4-1),12,1)) -> 0.009805533333 | Q121: =AVERAGE(OFFSET(LongTerm_Conc!$D$10,12*($L121-1),4*(PlotControl!$C$4-1),12,1)) -> 0.00999805 | R121: =AVERAGE(OFFSET(LongTerm_Conc!$E$10,12*($L121-1),4*(PlotControl!$C$4-1),12,1)) -> 0.01
L122: 118 | M122: =AVERAGE(OFFSET(Reclam_Conc!$C$10,12*($L122-1),4*(PlotControl!$C$4-1),12,1)) -> 0.0092846 | N122: =AVERAGE(OFFSET(Reclam_Conc!$D$10,12*($L122-1),4*(PlotControl!$C$4-1),12,1)) -> 0.0093816 | O122: =AVERAGE(OFFSET(Reclam_Conc!$E$10,12*($L122-1),4*(PlotControl!$C$4-1),12,1)) -> 0.0094838 | P122: =AVERAGE(OFFSET(LongTerm_Conc!$C$10,12*($L122-1),4*(PlotControl!$C$4-1),12,1)) -> 0.009810425 | Q122: =AVERAGE(OFFSET(LongTerm_Conc!$D$10,12*($L122-1),4*(PlotControl!$C$4-1),12,1)) -> 0.00999795 | R122: =AVERAGE(OFFSET(LongTerm_Conc!$E$10,12*($L122-1),4*(PlotControl!$C$4-1),12,1)) -> 0.01
L123: 119 | M123: =AVERAGE(OFFSET(Reclam_Conc!$C$10,12*($L123-1),4*(PlotControl!$C$4-1),12,1)) -> 0.0092846 | N123: =AVERAGE(OFFSET(Reclam_Conc!$D$10,12*($L123-1),4*(PlotControl!$C$4-1),12,1)) -> 0.0093816 | O123: =AVERAGE(OFFSET(Reclam_Conc!$E$10,12*($L123-1),4*(PlotControl!$C$4-1),12,1)) -> 0.0094838 | P123: =AVERAGE(OFFSET(LongTerm_Conc!$C$10,12*($L123-1),4*(PlotControl!$C$4-1),12,1)) -> 0.009817725 | Q123: =AVERAGE(OFFSET(LongTerm_Conc!$D$10,12*($L123-1),4*(PlotControl!$C$4-1),12,1)) -> 0.009997833333 | R123: =AVERAGE(OFFSET(LongTerm_Conc!$E$10,12*($L123-1),4*(PlotControl!$C$4-1),12,1)) -> 0.01
L124: 120 | M124: =AVERAGE(OFFSET(Reclam_Conc!$C$10,12*($L124-1),4*(PlotControl!$C$4-1),12,1)) -> 0.0092846 | N124: =AVERAGE(OFFSET(Reclam_Conc!$D$10,12*($L124-1),4*(PlotControl!$C$4-1),12,1)) -> 0.0093816 | O124: =AVERAGE(OFFSET(Reclam_Conc!$E$10,12*($L124-1),4*(PlotControl!$C$4-1),12,1)) -> 0.0094838 | P124: =AVERAGE(OFFSET(LongTerm_Conc!$C$10,12*($L124-1),4*(PlotControl!$C$4-1),12,1)) -> 0.0098055 | Q124: =AVERAGE(OFFSET(LongTerm_Conc!$D$10,12*($L124-1),4*(PlotControl!$C$4-1),12,1)) -> 0.00999785 | R124: =AVERAGE(OFFSET(LongTerm_Conc!$E$10,12*($L124-1),4*(PlotControl!$C$4-1),12,1)) -> 0.01
L125: 121 | M125: =AVERAGE(OFFSET(Reclam_Conc!$C$10,12*($L125-1),4*(PlotControl!$C$4-1),12,1)) -> 0.0092846 | N125: =AVERAGE(OFFSET(Reclam_Conc!$D$10,12*($L125-1),4*(PlotControl!$C$4-1),12,1)) -> 0.0093816 | O125: =AVERAGE(OFFSET(Reclam_Conc!$E$10,12*($L125-1),4*(PlotControl!$C$4-1),12,1)) -> 0.0094838 | P125: =AVERAGE(OFFSET(LongTerm_Conc!$C$10,12*($L125-1),4*(PlotControl!$C$4-1),12,1)) -> 0.009805475 | Q125: =AVERAGE(OFFSET(LongTerm_Conc!$D$10,12*($L125-1),4*(PlotControl!$C$4-1),12,1)) -> 0.009996275 | R125: =AVERAGE(OFFSET(LongTerm_Conc!$E$10,12*($L125-1),4*(PlotControl!$C$4-1),12,1)) -> 0.01
L126: 122 | M126: =AVERAGE(OFFSET(Reclam_Conc!$C$10,12*($L126-1),4*(PlotControl!$C$4-1),12,1)) -> 0.0092846 | N126: =AVERAGE(OFFSET(Reclam_Conc!$D$10,12*($L126-1),4*(PlotControl!$C$4-1),12,1)) -> 0.0093816 | O126: =AVERAGE(OFFSET(Reclam_Conc!$E$10,12*($L126-1),4*(PlotControl!$C$4-1),12,1)) -> 0.0094838 | P126: =AVERAGE(OFFSET(LongTerm_Conc!$C$10,12*($L126-1),4*(PlotControl!$C$4-1),12,1)) -> 0.00979925 | Q126: =AVERAGE(OFFSET(LongTerm_Conc!$D$10,12*($L126-1),4*(PlotControl!$C$4-1),12,1)) -> 0.009997433333 | R126: =AVERAGE(OFFSET(LongTerm_Conc!$E$10,12*($L126-1),4*(PlotControl!$C$4-1),12,1)) -> 0.01
L127: 123 | M127: =AVERAGE(OFFSET(Reclam_Conc!$C$10,12*($L127-1),4*(PlotControl!$C$4-1),12,1)) -> 0.0092846 | N127: =AVERAGE(OFFSET(Reclam_Conc!$D$10,12*($L127-1),4*(PlotControl!$C$4-1),12,1)) -> 0.0093816 | O127: =AVERAGE(OFFSET(Reclam_Conc!$E$10,12*($L127-1),4*(PlotControl!$C$4-1),12,1)) -> 0.0094838 | P127: =AVERAGE(OFFSET(LongTerm_Conc!$C$10,12*($L127-1),4*(PlotControl!$C$4-1),12,1)) -> 0.009810141667 | Q127: =AVERAGE(OFFSET(LongTerm_Conc!$D$10,12*($L127-1),4*(PlotControl!$C$4-1),12,1)) -> 0.009998158333 | R127: =AVERAGE(OFFSET(LongTerm_Conc!$E$10,12*($L127-1),4*(PlotControl!$C$4-1),12,1)) -> 0.01
L128: 124 | M128: =AVERAGE(OFFSET(Reclam_Conc!$C$10,12*($L128-1),4*(PlotControl!$C$4-1),12,1)) -> 0.0092846 | N128: =AVERAGE(OFFSET(Reclam_Conc!$D$10,12*($L128-1),4*(PlotControl!$C$4-1),12,1)) -> 0.0093816 | O128: =AVERAGE(OFFSET(Reclam_Conc!$E$10,12*($L128-1),4*(PlotControl!$C$4-1),12,1)) -> 0.0094838 | P128: =AVERAGE(OFFSET(LongTerm_Conc!$C$10,12*($L128-1),4*(PlotControl!$C$4-1),12,1)) -> 0.009809041667 | Q128: =AVERAGE(OFFSET(LongTerm_Conc!$D$10,12*($L128-1),4*(PlotControl!$C$4-1),12,1)) -> 0.009998008333 | R128: =AVERAGE(OFFSET(LongTerm_Conc!$E$10,12*($L128-1),4*(PlotControl!$C$4-1),12,1)) -> 0.01
L129: 125 | M129: =AVERAGE(OFFSET(Reclam_Conc!$C$10,12*($L129-1),4*(PlotControl!$C$4-1),12,1)) -> 0.0092846 | N129: =AVERAGE(OFFSET(Reclam_Conc!$D$10,12*($L129-1),4*(PlotControl!$C$4-1),12,1)) -> 0.0093816 | O129: =AVERAGE(OFFSET(Reclam_Conc!$E$10,12*($L129-1),4*(PlotControl!$C$4-1),12,1)) -> 0.0094838 | P129: =AVERAGE(OFFSET(LongTerm_Conc!$C$10,12*($L129-1),4*(PlotControl!$C$4-1),12,1)) -> 0.009808375 | Q129: =AVERAGE(OFFSET(LongTerm_Conc!$D$10,12*($L129-1),4*(PlotControl!$C$4-1),12,1)) -> 0.009998133333 | R129: =AVERAGE(OFFSET(LongTerm_Conc!$E$10,12*($L129-1),4*(PlotControl!$C$4-1),12,1)) -> 0.01
L130: 126 | M130: =AVERAGE(OFFSET(Reclam_Conc!$C$10,12*($L130-1),4*(PlotControl!$C$4-1),12,1)) -> 0.0092846 | N130: =AVERAGE(OFFSET(Reclam_Conc!$D$10,12*($L130-1),4*(PlotControl!$C$4-1),12,1)) -> 0.0093816 | O130: =AVERAGE(OFFSET(Reclam_Conc!$E$10,12*($L130-1),4*(PlotControl!$C$4-1),12,1)) -> 0.0094838 | P130: =AVERAGE(OFFSET(LongTerm_Conc!$C$10,12*($L130-1),4*(PlotControl!$C$4-1),12,1)) -> 0.009809183333 | Q130: =AVERAGE(OFFSET(LongTerm_Conc!$D$10,12*($L130-1),4*(PlotControl!$C$4-1),12,1)) -> 0.009998358333 | R130: =AVERAGE(OFFSET(LongTerm_Conc!$E$10,12*($L130-1),4*(PlotControl!$C$4-1),12,1)) -> 0.01
L131: 127 | M131: =AVERAGE(OFFSET(Reclam_Conc!$C$10,12*($L131-1),4*(PlotControl!$C$4-1),12,1)) -> 0.0092846 | N131: =AVERAGE(OFFSET(Reclam_Conc!$D$10,12*($L131-1),4*(PlotControl!$C$4-1),12,1)) -> 0.0093816 | O131: =AVERAGE(OFFSET(Reclam_Conc!$E$10,12*($L131-1),4*(PlotControl!$C$4-1),12,1)) -> 0.0094838 | P131: =AVERAGE(OFFSET(LongTerm_Conc!$C$10,12*($L131-1),4*(PlotControl!$C$4-1),12,1)) -> 0.009794041667 | Q131: =AVERAGE(OFFSET(LongTerm_Conc!$D$10,12*($L131-1),4*(PlotControl!$C$4-1),12,1)) -> 0.009996333333 | R131: =AVERAGE(OFFSET(LongTerm_Conc!$E$10,12*($L131-1),4*(PlotControl!$C$4-1),12,1)) -> 0.01
L132: 128 | M132: =AVERAGE(OFFSET(Reclam_Conc!$C$10,12*($L132-1),4*(PlotControl!$C$4-1),12,1)) -> 0.0092846 | N132: =AVERAGE(OFFSET(Reclam_Conc!$D$10,12*($L132-1),4*(PlotControl!$C$4-1),12,1)) -> 0.0093816 | O132: =AVERAGE(OFFSET(Reclam_Conc!$E$10,12*($L132-1),4*(PlotControl!$C$4-1),12,1)) -> 0.0094838 | P132: =AVERAGE(OFFSET(LongTerm_Conc!$C$10,12*($L132-1),4*(PlotControl!$C$4-1),12,1)) -> 0.009796833333 | Q132: =AVERAGE(OFFSET(LongTerm_Conc!$D$10,12*($L132-1),4*(PlotControl!$C$4-1),12,1)) -> 0.0099961 | R132: =AVERAGE(OFFSET(LongTerm_Conc!$E$10,12*($L132-1),4*(PlotControl!$C$4-1),12,1)) -> 0.01
L133: 129 | M133: =AVERAGE(OFFSET(Reclam_Conc!$C$10,12*($L133-1),4*(PlotControl!$C$4-1),12,1)) -> 0.0092846 | N133: =AVERAGE(OFFSET(Reclam_Conc!$D$10,12*($L133-1),4*(PlotControl!$C$4-1),12,1)) -> 0.0093816 | O133: =AVERAGE(OFFSET(Reclam_Conc!$E$10,12*($L133-1),4*(PlotControl!$C$4-1),12,1)) -> 0.0094838 | P133: =AVERAGE(OFFSET(LongTerm_Conc!$C$10,12*($L133-1),4*(PlotControl!$C$4-1),12,1)) -> 0.009797483333 | Q133: =AVERAGE(OFFSET(LongTerm_Conc!$D$10,12*($L133-1),4*(PlotControl!$C$4-1),12,1)) -> 0.009994916667 | R133: =AVERAGE(OFFSET(LongTerm_Conc!$E$10,12*($L133-1),4*(PlotControl!$C$4-1),12,1)) -> 0.01
L134: 130 | M134: =AVERAGE(OFFSET(Reclam_Conc!$C$10,12*($L134-1),4*(PlotControl!$C$4-1),12,1)) -> 0.0092846 | N134: =AVERAGE(OFFSET(Reclam_Conc!$D$10,12*($L134-1),4*(PlotControl!$C$4-1),12,1)) -> 0.0093816 | O134: =AVERAGE(OFFSET(Reclam_Conc!$E$10,12*($L134-1),4*(PlotControl!$C$4-1),12,1)) -> 0.0094838 | P134: =AVERAGE(OFFSET(LongTerm_Conc!$C$10,12*($L134-1),4*(PlotControl!$C$4-1),12,1)) -> 0.009795233333 | Q134: =AVERAGE(OFFSET(LongTerm_Conc!$D$10,12*($L134-1),4*(PlotControl!$C$4-1),12,1)) -> 0.009993041667 | R134: =AVERAGE(OFFSET(LongTerm_Conc!$E$10,12*($L134-1),4*(PlotControl!$C$4-1),12,1)) -> 0.01
L135: 131 | M135: =AVERAGE(OFFSET(Reclam_Conc!$C$10,12*($L135-1),4*(PlotControl!$C$4-1),12,1)) -> 0.0092846 | N135: =AVERAGE(OFFSET(Reclam_Conc!$D$10,12*($L135-1),4*(PlotControl!$C$4-1),12,1)) -> 0.0093816 | O135: =AVERAGE(OFFSET(Reclam_Conc!$E$10,12*($L135-1),4*(PlotControl!$C$4-1),12,1)) -> 0.0094838 | P135: =AVERAGE(OFFSET(LongTerm_Conc!$C$10,12*($L135-1),4*(PlotControl!$C$4-1),12,1)) -> 0.009785925 | Q135: =AVERAGE(OFFSET(LongTerm_Conc!$D$10,12*($L135-1),4*(PlotControl!$C$4-1),12,1)) -> 0.009992183333 | R135: =AVERAGE(OFFSET(LongTerm_Conc!$E$10,12*($L135-1),4*(PlotControl!$C$4-1),12,1)) -> 0.01
L136: 132 | M136: =AVERAGE(OFFSET(Reclam_Conc!$C$10,12*($L136-1),4*(PlotControl!$C$4-1),12,1)) -> 0.0092846 | N136: =AVERAGE(OFFSET(Reclam_Conc!$D$10,12*($L136-1),4*(PlotControl!$C$4-1),12,1)) -> 0.0093816 | O136: =AVERAGE(OFFSET(Reclam_Conc!$E$10,12*($L136-1),4*(PlotControl!$C$4-1),12,1)) -> 0.0094838 | P136: =AVERAGE(OFFSET(LongTerm_Conc!$C$10,12*($L136-1),4*(PlotControl!$C$4-1),12,1)) -> 0.009808183333 | Q136: =AVERAGE(OFFSET(LongTerm_Conc!$D$10,12*($L136-1),4*(PlotControl!$C$4-1),12,1)) -> 0.009993175 | R136: =AVERAGE(OFFSET(LongTerm_Conc!$E$10,12*($L136-1),4*(PlotControl!$C$4-1),12,1)) -> 0.01
L137: 133 | M137: =AVERAGE(OFFSET(Reclam_Conc!$C$10,12*($L137-1),4*(PlotControl!$C$4-1),12,1)) -> 0.0092846 | N137: =AVERAGE(OFFSET(Reclam_Conc!$D$10,12*($L137-1),4*(PlotControl!$C$4-1),12,1)) -> 0.0093816 | O137: =AVERAGE(OFFSET(Reclam_Conc!$E$10,12*($L137-1),4*(PlotControl!$C$4-1),12,1)) -> 0.0094838 | P137: =AVERAGE(OFFSET(LongTerm_Conc!$C$10,12*($L137-1),4*(PlotControl!$C$4-1),12,1)) -> 0.0097853 | Q137: =AVERAGE(OFFSET(LongTerm_Conc!$D$10,12*($L137-1),4*(PlotControl!$C$4-1),12,1)) -> 0.009991608333 | R137: =AVERAGE(OFFSET(LongTerm_Conc!$E$10,12*($L137-1),4*(PlotControl!$C$4-1),12,1)) -> 0.01
L138: 134 | M138: =AVERAGE(OFFSET(Reclam_Conc!$C$10,12*($L138-1),4*(PlotControl!$C$4-1),12,1)) -> 0.0092846 | N138: =AVERAGE(OFFSET(Reclam_Conc!$D$10,12*($L138-1),4*(PlotControl!$C$4-1),12,1)) -> 0.0093816 | O138: =AVERAGE(OFFSET(Reclam_Conc!$E$10,12*($L138-1),4*(PlotControl!$C$4-1),12,1)) -> 0.0094838 | P138: =AVERAGE(OFFSET(LongTerm_Conc!$C$10,12*($L138-1),4*(PlotControl!$C$4-1),12,1)) -> 0.009800358333 | Q138: =AVERAGE(OFFSET(LongTerm_Conc!$D$10,12*($L138-1),4*(PlotControl!$C$4-1),12,1)) -> 0.009993675 | R138: =AVERAGE(OFFSET(LongTerm_Conc!$E$10,12*($L138-1),4*(PlotControl!$C$4-1),12,1)) -> 0.01
L139: 135 | M139: =AVERAGE(OFFSET(Reclam_Conc!$C$10,12*($L139-1),4*(PlotControl!$C$4-1),12,1)) -> 0.0092846 | N139: =AVERAGE(OFFSET(Reclam_Conc!$D$10,12*($L139-1),4*(PlotControl!$C$4-1),12,1)) -> 0.0093816 | O139: =AVERAGE(OFFSET(Reclam_Conc!$E$10,12*($L139-1),4*(PlotControl!$C$4-1),12,1)) -> 0.0094838 | P139: =AVERAGE(OFFSET(LongTerm_Conc!$C$10,12*($L139-1),4*(PlotControl!$C$4-1),12,1)) -> 0.009791916667 | Q139: =AVERAGE(OFFSET(LongTerm_Conc!$D$10,12*($L139-1),4*(PlotControl!$C$4-1),12,1)) -> 0.0099937 | R139: =AVERAGE(OFFSET(LongTerm_Conc!$E$10,12*($L139-1),4*(PlotControl!$C$4-1),12,1)) -> 0.01
L140: 136 | M140: =AVERAGE(OFFSET(Reclam_Conc!$C$10,12*($L140-1),4*(PlotControl!$C$4-1),12,1)) -> 0.0092846 | N140: =AVERAGE(OFFSET(Reclam_Conc!$D$10,12*($L140-1),4*(PlotControl!$C$4-1),12,1)) -> 0.0093816 | O140: =AVERAGE(OFFSET(Reclam_Conc!$E$10,12*($L140-1),4*(PlotControl!$C$4-1),12,1)) -> 0.0094838 | P140: =AVERAGE(OFFSET(LongTerm_Conc!$C$10,12*($L140-1),4*(PlotControl!$C$4-1),12,1)) -> 0.00979825 | Q140: =AVERAGE(OFFSET(LongTerm_Conc!$D$10,12*($L140-1),4*(PlotControl!$C$4-1),12,1)) -> 0.009993808333 | R140: =AVERAGE(OFFSET(LongTerm_Conc!$E$10,12*($L140-1),4*(PlotControl!$C$4-1),12,1)) -> 0.01
L141: 137 | M141: =AVERAGE(OFFSET(Reclam_Conc!$C$10,12*($L141-1),4*(PlotControl!$C$4-1),12,1)) -> 0.0092846 | N141: =AVERAGE(OFFSET(Reclam_Conc!$D$10,12*($L141-1),4*(PlotControl!$C$4-1),12,1)) -> 0.0093816 | O141: =AVERAGE(OFFSET(Reclam_Conc!$E$10,12*($L141-1),4*(PlotControl!$C$4-1),12,1)) -> 0.0094838 | P141: =AVERAGE(OFFSET(LongTerm_Conc!$C$10,12*($L141-1),4*(PlotControl!$C$4-1),12,1)) -> 0.009792625 | Q141: =AVERAGE(OFFSET(LongTerm_Conc!$D$10,12*($L141-1),4*(PlotControl!$C$4-1),12,1)) -> 0.009993425 | R141: =AVERAGE(OFFSET(LongTerm_Conc!$E$10,12*($L141-1),4*(PlotControl!$C$4-1),12,1)) -> 0.01
L142: 138 | M142: =AVERAGE(OFFSET(Reclam_Conc!$C$10,12*($L142-1),4*(PlotControl!$C$4-1),12,1)) -> 0.0092846 | N142: =AVERAGE(OFFSET(Reclam_Conc!$D$10,12*($L142-1),4*(PlotControl!$C$4-1),12,1)) -> 0.0093816 | O142: =AVERAGE(OFFSET(Reclam_Conc!$E$10,12*($L142-1),4*(PlotControl!$C$4-1),12,1)) -> 0.0094838 | P142: =AVERAGE(OFFSET(LongTerm_Conc!$C$10,12*($L142-1),4*(PlotControl!$C$4-1),12,1)) -> 0.009788075 | Q142: =AVERAGE(OFFSET(LongTerm_Conc!$D$10,12*($L142-1),4*(PlotControl!$C$4-1),12,1)) -> 0.009993875 | R142: =AVERAGE(OFFSET(LongTerm_Conc!$E$10,12*($L142-1),4*(PlotControl!$C$4-1),12,1)) -> 0.01
L143: 139 | M143: =AVERAGE(OFFSET(Reclam_Conc!$C$10,12*($L143-1),4*(PlotControl!$C$4-1),12,1)) -> 0.0092846 | N143: =AVERAGE(OFFSET(Reclam_Conc!$D$10,12*($L143-1),4*(PlotControl!$C$4-1),12,1)) -> 0.0093816 | O143: =AVERAGE(OFFSET(Reclam_Conc!$E$10,12*($L143-1),4*(PlotControl!$C$4-1),12,1)) -> 0.0094838 | P143: =AVERAGE(OFFSET(LongTerm_Conc!$C$10,12*($L143-1),4*(PlotControl!$C$4-1),12,1)) -> 0.00977735 | Q143: =AVERAGE(OFFSET(LongTerm_Conc!$D$10,12*($L143-1),4*(PlotControl!$C$4-1),12,1)) -> 0.009994441667 | R143: =AVERAGE(OFFSET(LongTerm_Conc!$E$10,12*($L143-1),4*(PlotControl!$C$4-1),12,1)) -> 0.01
L144: 140 | M144: =AVERAGE(OFFSET(Reclam_Conc!$C$10,12*($L144-1),4*(PlotControl!$C$4-1),12,1)) -> 0.0092846 | N144: =AVERAGE(OFFSET(Reclam_Conc!$D$10,12*($L144-1),4*(PlotControl!$C$4-1),12,1)) -> 0.0093816 | O144: =AVERAGE(OFFSET(Reclam_Conc!$E$10,12*($L144-1),4*(PlotControl!$C$4-1),12,1)) -> 0.0094838 | P144: =AVERAGE(OFFSET(LongTerm_Conc!$C$10,12*($L144-1),4*(PlotControl!$C$4-1),12,1)) -> 0.009766666667 | Q144: =AVERAGE(OFFSET(LongTerm_Conc!$D$10,12*($L144-1),4*(PlotControl!$C$4-1),12,1)) -> 0.009994091667 | R144: =AVERAGE(OFFSET(LongTerm_Conc!$E$10,12*($L144-1),4*(PlotControl!$C$4-1),12,1)) -> 0.01
L145: 141 | M145: =AVERAGE(OFFSET(Reclam_Conc!$C$10,12*($L145-1),4*(PlotControl!$C$4-1),12,1)) -> 0.0092846 | N145: =AVERAGE(OFFSET(Reclam_Conc!$D$10,12*($L145-1),4*(PlotControl!$C$4-1),12,1)) -> 0.0093816 | O145: =AVERAGE(OFFSET(Reclam_Conc!$E$10,12*($L145-1),4*(PlotControl!$C$4-1),12,1)) -> 0.0094838 | P145: =AVERAGE(OFFSET(LongTerm_Conc!$C$10,12*($L145-1),4*(PlotControl!$C$4-1),12,1)) -> 0.009776883333 | Q145: =AVERAGE(OFFSET(LongTerm_Conc!$D$10,12*($L145-1),4*(PlotControl!$C$4-1),12,1)) -> 0.009993591667 | R145: =AVERAGE(OFFSET(LongTerm_Conc!$E$10,12*($L145-1),4*(PlotControl!$C$4-1),12,1)) -> 0.01
L146: 142 | M146: =AVERAGE(OFFSET(Reclam_Conc!$C$10,12*($L146-1),4*(PlotControl!$C$4-1),12,1)) -> 0.0092846 | N146: =AVERAGE(OFFSET(Reclam_Conc!$D$10,12*($L146-1),4*(PlotControl!$C$4-1),12,1)) -> 0.0093816 | O146: =AVERAGE(OFFSET(Reclam_Conc!$E$10,12*($L146-1),4*(PlotControl!$C$4-1),12,1)) -> 0.0094838 | P146: =AVERAGE(OFFSET(LongTerm_Conc!$C$10,12*($L146-1),4*(PlotControl!$C$4-1),12,1)) -> 0.00977445 | Q146: =AVERAGE(OFFSET(LongTerm_Conc!$D$10,12*($L146-1),4*(PlotControl!$C$4-1),12,1)) -> 0.009992791667 | R146: =AVERAGE(OFFSET(LongTerm_Conc!$E$10,12*($L146-1),4*(PlotControl!$C$4-1),12,1)) -> 0.01
L147: 143 | M147: =AVERAGE(OFFSET(Reclam_Conc!$C$10,12*($L147-1),4*(PlotControl!$C$4-1),12,1)) -> 0.0092846 | N147: =AVERAGE(OFFSET(Reclam_Conc!$D$10,12*($L147-1),4*(PlotControl!$C$4-1),12,1)) -> 0.0093816 | O147: =AVERAGE(OFFSET(Reclam_Conc!$E$10,12*($L147-1),4*(PlotControl!$C$4-1),12,1)) -> 0.0094838 | P147: =AVERAGE(OFFSET(LongTerm_Conc!$C$10,12*($L147-1),4*(PlotControl!$C$4-1),12,1)) -> 0.009791766667 | Q147: =AVERAGE(OFFSET(LongTerm_Conc!$D$10,12*($L147-1),4*(PlotControl!$C$4-1),12,1)) -> 0.009993175 | R147: =AVERAGE(OFFSET(LongTerm_Conc!$E$10,12*($L147-1),4*(PlotControl!$C$4-1),12,1)) -> 0.01
L148: 144 | M148: =AVERAGE(OFFSET(Reclam_Conc!$C$10,12*($L148-1),4*(PlotControl!$C$4-1),12,1)) -> 0.0092846 | N148: =AVERAGE(OFFSET(Reclam_Conc!$D$10,12*($L148-1),4*(PlotControl!$C$4-1),12,1)) -> 0.0093816 | O148: =AVERAGE(OFFSET(Reclam_Conc!$E$10,12*($L148-1),4*(PlotControl!$C$4-1),12,1)) -> 0.0094838 | P148: =AVERAGE(OFFSET(LongTerm_Conc!$C$10,12*($L148-1),4*(PlotControl!$C$4-1),12,1)) -> 0.0097783 | Q148: =AVERAGE(OFFSET(LongTerm_Conc!$D$10,12*($L148-1),4*(PlotControl!$C$4-1),12,1)) -> 0.009993041667 | R148: =AVERAGE(OFFSET(LongTerm_Conc!$E$10,12*($L148-1),4*(PlotControl!$C$4-1),12,1)) -> 0.01
L149: 145 | M149: =AVERAGE(OFFSET(Reclam_Conc!$C$10,12*($L149-1),4*(PlotControl!$C$4-1),12,1)) -> 0.0092846 | N149: =AVERAGE(OFFSET(Reclam_Conc!$D$10,12*($L149-1),4*(PlotControl!$C$4-1),12,1)) -> 0.0093816 | O149: =AVERAGE(OFFSET(Reclam_Conc!$E$10,12*($L149-1),4*(PlotControl!$C$4-1),12,1)) -> 0.0094838 | P149: =AVERAGE(OFFSET(LongTerm_Conc!$C$10,12*($L149-1),4*(PlotControl!$C$4-1),12,1)) -> 0.009756783333 | Q149: =AVERAGE(OFFSET(LongTerm_Conc!$D$10,12*($L149-1),4*(PlotControl!$C$4-1),12,1)) -> 0.009992241667 | R149: =AVERAGE(OFFSET(LongTerm_Conc!$E$10,12*($L149-1),4*(PlotControl!$C$4-1),12,1)) -> 0.01
L150: 146 | M150: =AVERAGE(OFFSET(Reclam_Conc!$C$10,12*($L150-1),4*(PlotControl!$C$4-1),12,1)) -> 0.0092846 | N150: =AVERAGE(OFFSET(Reclam_Conc!$D$10,12*($L150-1),4*(PlotControl!$C$4-1),12,1)) -> 0.0093816 | O150: =AVERAGE(OFFSET(Reclam_Conc!$E$10,12*($L150-1),4*(PlotControl!$C$4-1),12,1)) -> 0.0094838 | P150: =AVERAGE(OFFSET(LongTerm_Conc!$C$10,12*($L150-1),4*(PlotControl!$C$4-1),12,1)) -> 0.009753158333 | Q150: =AVERAGE(OFFSET(LongTerm_Conc!$D$10,12*($L150-1),4*(PlotControl!$C$4-1),12,1)) -> 0.009992941667 | R150: =AVERAGE(OFFSET(LongTerm_Conc!$E$10,12*($L150-1),4*(PlotControl!$C$4-1),12,1)) -> 0.01
L151: 147 | M151: =AVERAGE(OFFSET(Reclam_Conc!$C$10,12*($L151-1),4*(PlotControl!$C$4-1),12,1)) -> 0.0092846 | N151: =AVERAGE(OFFSET(Reclam_Conc!$D$10,12*($L151-1),4*(PlotControl!$C$4-1),12,1)) -> 0.0093816 | O151: =AVERAGE(OFFSET(Reclam_Conc!$E$10,12*($L151-1),4*(PlotControl!$C$4-1),12,1)) -> 0.0094838 | P151: =AVERAGE(OFFSET(LongTerm_Conc!$C$10,12*($L151-1),4*(PlotControl!$C$4-1),12,1)) -> 0.009763825 | Q151: =AVERAGE(OFFSET(LongTerm_Conc!$D$10,12*($L151-1),4*(PlotControl!$C$4-1),12,1)) -> 0.0099934 | R151: =AVERAGE(OFFSET(LongTerm_Conc!$E$10,12*($L151-1),4*(PlotControl!$C$4-1),12,1)) -> 0.01
L152: 148 | M152: =AVERAGE(OFFSET(Reclam_Conc!$C$10,12*($L152-1),4*(PlotControl!$C$4-1),12,1)) -> 0.0092846 | N152: =AVERAGE(OFFSET(Reclam_Conc!$D$10,12*($L152-1),4*(PlotControl!$C$4-1),12,1)) -> 0.0093816 | O152: =AVERAGE(OFFSET(Reclam_Conc!$E$10,12*($L152-1),4*(PlotControl!$C$4-1),12,1)) -> 0.0094838 | P152: =AVERAGE(OFFSET(LongTerm_Conc!$C$10,12*($L152-1),4*(PlotControl!$C$4-1),12,1)) -> 0.009763141667 | Q152: =AVERAGE(OFFSET(LongTerm_Conc!$D$10,12*($L152-1),4*(PlotControl!$C$4-1),12,1)) -> 0.009993758333 | R152: =AVERAGE(OFFSET(LongTerm_Conc!$E$10,12*($L152-1),4*(PlotControl!$C$4-1),12,1)) -> 0.01
L153: 149 | M153: =AVERAGE(OFFSET(Reclam_Conc!$C$10,12*($L153-1),4*(PlotControl!$C$4-1),12,1)) -> 0.0092846 | N153: =AVERAGE(OFFSET(Reclam_Conc!$D$10,12*($L153-1),4*(PlotControl!$C$4-1),12,1)) -> 0.0093816 | O153: =AVERAGE(OFFSET(Reclam_Conc!$E$10,12*($L153-1),4*(PlotControl!$C$4-1),12,1)) -> 0.0094838 | P153: =AVERAGE(OFFSET(LongTerm_Conc!$C$10,12*($L153-1),4*(PlotControl!$C$4-1),12,1)) -> 0.009772083333 | Q153: =AVERAGE(OFFSET(LongTerm_Conc!$D$10,12*($L153-1),4*(PlotControl!$C$4-1),12,1)) -> 0.009995633333 | R153: =AVERAGE(OFFSET(LongTerm_Conc!$E$10,12*($L153-1),4*(PlotControl!$C$4-1),12,1)) -> 0.01
L154: 150 | M154: =AVERAGE(OFFSET(Reclam_Conc!$C$10,12*($L154-1),4*(PlotControl!$C$4-1),12,1)) -> 0.0092846 | N154: =AVERAGE(OFFSET(Reclam_Conc!$D$10,12*($L154-1),4*(PlotControl!$C$4-1),12,1)) -> 0.0093816 | O154: =AVERAGE(OFFSET(Reclam_Conc!$E$10,12*($L154-1),4*(PlotControl!$C$4-1),12,1)) -> 0.0094838 | P154: =AVERAGE(OFFSET(LongTerm_Conc!$C$10,12*($L154-1),4*(PlotControl!$C$4-1),12,1)) -> 0.009758016667 | Q154: =AVERAGE(OFFSET(LongTerm_Conc!$D$10,12*($L154-1),4*(PlotControl!$C$4-1),12,1)) -> 0.009996283333 | R154: =AVERAGE(OFFSET(LongTerm_Conc!$E$10,12*($L154-1),4*(PlotControl!$C$4-1),12,1)) -> 0.01
L155: 151 | M155: =AVERAGE(OFFSET(Reclam_Conc!$C$10,12*($L155-1),4*(PlotControl!$C$4-1),12,1)) -> 0.0092846 | N155: =AVERAGE(OFFSET(Reclam_Conc!$D$10,12*($L155-1),4*(PlotControl!$C$4-1),12,1)) -> 0.0093816 | O155: =AVERAGE(OFFSET(Reclam_Conc!$E$10,12*($L155-1),4*(PlotControl!$C$4-1),12,1)) -> 0.0094838 | P155: =AVERAGE(OFFSET(LongTerm_Conc!$C$10,12*($L155-1),4*(PlotControl!$C$4-1),12,1)) -> 0.009772791667 | Q155: =AVERAGE(OFFSET(LongTerm_Conc!$D$10,12*($L155-1),4*(PlotControl!$C$4-1),12,1)) -> 0.009997783333 | R155: =AVERAGE(OFFSET(LongTerm_Conc!$E$10,12*($L155-1),4*(PlotControl!$C$4-1),12,1)) -> 0.01
L156: 152 | M156: =AVERAGE(OFFSET(Reclam_Conc!$C$10,12*($L156-1),4*(PlotControl!$C$4-1),12,1)) -> 0.0092846 | N156: =AVERAGE(OFFSET(Reclam_Conc!$D$10,12*($L156-1),4*(PlotControl!$C$4-1),12,1)) -> 0.0093816 | O156: =AVERAGE(OFFSET(Reclam_Conc!$E$10,12*($L156-1),4*(PlotControl!$C$4-1),12,1)) -> 0.0094838 | P156: =AVERAGE(OFFSET(LongTerm_Conc!$C$10,12*($L156-1),4*(PlotControl!$C$4-1),12,1)) -> 0.009785825 | Q156: =AVERAGE(OFFSET(LongTerm_Conc!$D$10,12*($L156-1),4*(PlotControl!$C$4-1),12,1)) -> 0.009997108333 | R156: =AVERAGE(OFFSET(LongTerm_Conc!$E$10,12*($L156-1),4*(PlotControl!$C$4-1),12,1)) -> 0.01
L157: 153 | M157: =AVERAGE(OFFSET(Reclam_Conc!$C$10,12*($L157-1),4*(PlotControl!$C$4-1),12,1)) -> 0.0092846 | N157: =AVERAGE(OFFSET(Reclam_Conc!$D$10,12*($L157-1),4*(PlotControl!$C$4-1),12,1)) -> 0.0093816 | O157: =AVERAGE(OFFSET(Reclam_Conc!$E$10,12*($L157-1),4*(PlotControl!$C$4-1),12,1)) -> 0.0094838 | P157: =AVERAGE(OFFSET(LongTerm_Conc!$C$10,12*($L157-1),4*(PlotControl!$C$4-1),12,1)) -> 0.0097775 | Q157: =AVERAGE(OFFSET(LongTerm_Conc!$D$10,12*($L157-1),4*(PlotControl!$C$4-1),12,1)) -> 0.009995516667 | R157: =AVERAGE(OFFSET(LongTerm_Conc!$E$10,12*($L157-1),4*(PlotControl!$C$4-1),12,1)) -> 0.01
L158: 154 | M158: =AVERAGE(OFFSET(Reclam_Conc!$C$10,12*($L158-1),4*(PlotControl!$C$4-1),12,1)) -> 0.0092846 | N158: =AVERAGE(OFFSET(Reclam_Conc!$D$10,12*($L158-1),4*(PlotControl!$C$4-1),12,1)) -> 0.0093816 | O158: =AVERAGE(OFFSET(Reclam_Conc!$E$10,12*($L158-1),4*(PlotControl!$C$4-1),12,1)) -> 0.0094838 | P158: =AVERAGE(OFFSET(LongTerm_Conc!$C$10,12*($L158-1),4*(PlotControl!$C$4-1),12,1)) -> 0.009771308333 | Q158: =AVERAGE(OFFSET(LongTerm_Conc!$D$10,12*($L158-1),4*(PlotControl!$C$4-1),12,1)) -> 0.009994933333 | R158: =AVERAGE(OFFSET(LongTerm_Conc!$E$10,12*($L158-1),4*(PlotControl!$C$4-1),12,1)) -> 0.01
L159: 155 | M159: =AVERAGE(OFFSET(Reclam_Conc!$C$10,12*($L159-1),4*(PlotControl!$C$4-1),12,1)) -> 0.0092846 | N159: =AVERAGE(OFFSET(Reclam_Conc!$D$10,12*($L159-1),4*(PlotControl!$C$4-1),12,1)) -> 0.0093816 | O159: =AVERAGE(OFFSET(Reclam_Conc!$E$10,12*($L159-1),4*(PlotControl!$C$4-1),12,1)) -> 0.0094838 | P159: =AVERAGE(OFFSET(LongTerm_Conc!$C$10,12*($L159-1),4*(PlotControl!$C$4-1),12,1)) -> 0.009770391667 | Q159: =AVERAGE(OFFSET(LongTerm_Conc!$D$10,12*($L159-1),4*(PlotControl!$C$4-1),12,1)) -> 0.0099952 | R159: =AVERAGE(OFFSET(LongTerm_Conc!$E$10,12*($L159-1),4*(PlotControl!$C$4-1),12,1)) -> 0.01
L160: 156 | M160: =AVERAGE(OFFSET(Reclam_Conc!$C$10,12*($L160-1),4*(PlotControl!$C$4-1),12,1)) -> 0.0092846 | N160: =AVERAGE(OFFSET(Reclam_Conc!$D$10,12*($L160-1),4*(PlotControl!$C$4-1),12,1)) -> 0.0093816 | O160: =AVERAGE(OFFSET(Reclam_Conc!$E$10,12*($L160-1),4*(PlotControl!$C$4-1),12,1)) -> 0.0094838 | P160: =AVERAGE(OFFSET(LongTerm_Conc!$C$10,12*($L160-1),4*(PlotControl!$C$4-1),12,1)) -> 0.009771158333 | Q160: =AVERAGE(OFFSET(LongTerm_Conc!$D$10,12*($L160-1),4*(PlotControl!$C$4-1),12,1)) -> 0.009993616667 | R160: =AVERAGE(OFFSET(LongTerm_Conc!$E$10,12*($L160-1),4*(PlotControl!$C$4-1),12,1)) -> 0.01
L161: 157 | M161: =AVERAGE(OFFSET(Reclam_Conc!$C$10,12*($L161-1),4*(PlotControl!$C$4-1),12,1)) -> 0.0092846 | N161: =AVERAGE(OFFSET(Reclam_Conc!$D$10,12*($L161-1),4*(PlotControl!$C$4-1),12,1)) -> 0.0093816 | O161: =AVERAGE(OFFSET(Reclam_Conc!$E$10,12*($L161-1),4*(PlotControl!$C$4-1),12,1)) -> 0.0094838 | P161: =AVERAGE(OFFSET(LongTerm_Conc!$C$10,12*($L161-1),4*(PlotControl!$C$4-1),12,1)) -> 0.009758741667 | Q161: =AVERAGE(OFFSET(LongTerm_Conc!$D$10,12*($L161-1),4*(PlotControl!$C$4-1),12,1)) -> 0.009992708333 | R161: =AVERAGE(OFFSET(LongTerm_Conc!$E$10,12*($L161-1),4*(PlotControl!$C$4-1),12,1)) -> 0.01
L162: 158 | M162: =AVERAGE(OFFSET(Reclam_Conc!$C$10,12*($L162-1),4*(PlotControl!$C$4-1),12,1)) -> 0.0092846 | N162: =AVERAGE(OFFSET(Reclam_Conc!$D$10,12*($L162-1),4*(PlotControl!$C$4-1),12,1)) -> 0.0093816 | O162: =AVERAGE(OFFSET(Reclam_Conc!$E$10,12*($L162-1),4*(PlotControl!$C$4-1),12,1)) -> 0.0094838 | P162: =AVERAGE(OFFSET(LongTerm_Conc!$C$10,12*($L162-1),4*(PlotControl!$C$4-1),12,1)) -> 0.00975305 | Q162: =AVERAGE(OFFSET(LongTerm_Conc!$D$10,12*($L162-1),4*(PlotControl!$C$4-1),12,1)) -> 0.009991158333 | R162: =AVERAGE(OFFSET(LongTerm_Conc!$E$10,12*($L162-1),4*(PlotControl!$C$4-1),12,1)) -> 0.01
L163: 159 | M163: =AVERAGE(OFFSET(Reclam_Conc!$C$10,12*($L163-1),4*(PlotControl!$C$4-1),12,1)) -> 0.0092846 | N163: =AVERAGE(OFFSET(Reclam_Conc!$D$10,12*($L163-1),4*(PlotControl!$C$4-1),12,1)) -> 0.0093816 | O163: =AVERAGE(OFFSET(Reclam_Conc!$E$10,12*($L163-1),4*(PlotControl!$C$4-1),12,1)) -> 0.0094838 | P163: =AVERAGE(OFFSET(LongTerm_Conc!$C$10,12*($L163-1),4*(PlotControl!$C$4-1),12,1)) -> 0.009746583333 | Q163: =AVERAGE(OFFSET(LongTerm_Conc!$D$10,12*($L163-1),4*(PlotControl!$C$4-1),12,1)) -> 0.009992133333 | R163: =AVERAGE(OFFSET(LongTerm_Conc!$E$10,12*($L163-1),4*(PlotControl!$C$4-1),12,1)) -> 0.01
L164: 160 | M164: =AVERAGE(OFFSET(Reclam_Conc!$C$10,12*($L164-1),4*(PlotControl!$C$4-1),12,1)) -> 0.0092846 | N164: =AVERAGE(OFFSET(Reclam_Conc!$D$10,12*($L164-1),4*(PlotControl!$C$4-1),12,1)) -> 0.0093816 | O164: =AVERAGE(OFFSET(Reclam_Conc!$E$10,12*($L164-1),4*(PlotControl!$C$4-1),12,1)) -> 0.0094838 | P164: =AVERAGE(OFFSET(LongTerm_Conc!$C$10,12*($L164-1),4*(PlotControl!$C$4-1),12,1)) -> 0.0097624 | Q164: =AVERAGE(OFFSET(LongTerm_Conc!$D$10,12*($L164-1),4*(PlotControl!$C$4-1),12,1)) -> 0.009991966667 | R164: =AVERAGE(OFFSET(LongTerm_Conc!$E$10,12*($L164-1),4*(PlotControl!$C$4-1),12,1)) -> 0.01
L165: 161 | M165: =AVERAGE(OFFSET(Reclam_Conc!$C$10,12*($L165-1),4*(PlotControl!$C$4-1),12,1)) -> 0.0092846 | N165: =AVERAGE(OFFSET(Reclam_Conc!$D$10,12*($L165-1),4*(PlotControl!$C$4-1),12,1)) -> 0.0093816 | O165: =AVERAGE(OFFSET(Reclam_Conc!$E$10,12*($L165-1),4*(PlotControl!$C$4-1),12,1)) -> 0.0094838 | P165: =AVERAGE(OFFSET(LongTerm_Conc!$C$10,12*($L165-1),4*(PlotControl!$C$4-1),12,1)) -> 0.0097507 | Q165: =AVERAGE(OFFSET(LongTerm_Conc!$D$10,12*($L165-1),4*(PlotControl!$C$4-1),12,1)) -> 0.009992041667 | R165: =AVERAGE(OFFSET(LongTerm_Conc!$E$10,12*($L165-1),4*(PlotControl!$C$4-1),12,1)) -> 0.01
L166: 162 | M166: =AVERAGE(OFFSET(Reclam_Conc!$C$10,12*($L166-1),4*(PlotControl!$C$4-1),12,1)) -> 0.0092846 | N166: =AVERAGE(OFFSET(Reclam_Conc!$D$10,12*($L166-1),4*(PlotControl!$C$4-1),12,1)) -> 0.0093816 | O166: =AVERAGE(OFFSET(Reclam_Conc!$E$10,12*($L166-1),4*(PlotControl!$C$4-1),12,1)) -> 0.0094838 | P166: =AVERAGE(OFFSET(LongTerm_Conc!$C$10,12*($L166-1),4*(PlotControl!$C$4-1),12,1)) -> 0.009735875 | Q166: =AVERAGE(OFFSET(LongTerm_Conc!$D$10,12*($L166-1),4*(PlotControl!$C$4-1),12,1)) -> 0.009991066667 | R166: =AVERAGE(OFFSET(LongTerm_Conc!$E$10,12*($L166-1),4*(PlotControl!$C$4-1),12,1)) -> 0.01
L167: 163 | M167: =AVERAGE(OFFSET(Reclam_Conc!$C$10,12*($L167-1),4*(PlotControl!$C$4-1),12,1)) -> 0.0092846 | N167: =AVERAGE(OFFSET(Reclam_Conc!$D$10,12*($L167-1),4*(PlotControl!$C$4-1),12,1)) -> 0.0093816 | O167: =AVERAGE(OFFSET(Reclam_Conc!$E$10,12*($L167-1),4*(PlotControl!$C$4-1),12,1)) -> 0.0094838 | P167: =AVERAGE(OFFSET(LongTerm_Conc!$C$10,12*($L167-1),4*(PlotControl!$C$4-1),12,1)) -> 0.00974715 | Q167: =AVERAGE(OFFSET(LongTerm_Conc!$D$10,12*($L167-1),4*(PlotControl!$C$4-1),12,1)) -> 0.009991825 | R167: =AVERAGE(OFFSET(LongTerm_Conc!$E$10,12*($L167-1),4*(PlotControl!$C$4-1),12,1)) -> 0.01
L168: 164 | M168: =AVERAGE(OFFSET(Reclam_Conc!$C$10,12*($L168-1),4*(PlotControl!$C$4-1),12,1)) -> 0.0092846 | N168: =AVERAGE(OFFSET(Reclam_Conc!$D$10,12*($L168-1),4*(PlotControl!$C$4-1),12,1)) -> 0.0093816 | O168: =AVERAGE(OFFSET(Reclam_Conc!$E$10,12*($L168-1),4*(PlotControl!$C$4-1),12,1)) -> 0.0094838 | P168: =AVERAGE(OFFSET(LongTerm_Conc!$C$10,12*($L168-1),4*(PlotControl!$C$4-1),12,1)) -> 0.009759725 | Q168: =AVERAGE(OFFSET(LongTerm_Conc!$D$10,12*($L168-1),4*(PlotControl!$C$4-1),12,1)) -> 0.009992041667 | R168: =AVERAGE(OFFSET(LongTerm_Conc!$E$10,12*($L168-1),4*(PlotControl!$C$4-1),12,1)) -> 0.01
L169: 165 | M169: =AVERAGE(OFFSET(Reclam_Conc!$C$10,12*($L169-1),4*(PlotControl!$C$4-1),12,1)) -> 0.0092846 | N169: =AVERAGE(OFFSET(Reclam_Conc!$D$10,12*($L169-1),4*(PlotControl!$C$4-1),12,1)) -> 0.0093816 | O169: =AVERAGE(OFFSET(Reclam_Conc!$E$10,12*($L169-1),4*(PlotControl!$C$4-1),12,1)) -> 0.0094838 | P169: =AVERAGE(OFFSET(LongTerm_Conc!$C$10,12*($L169-1),4*(PlotControl!$C$4-1),12,1)) -> 0.009746158333 | Q169: =AVERAGE(OFFSET(LongTerm_Conc!$D$10,12*($L169-1),4*(PlotControl!$C$4-1),12,1)) -> 0.0099921 | R169: =AVERAGE(OFFSET(LongTerm_Conc!$E$10,12*($L169-1),4*(PlotControl!$C$4-1),12,1)) -> 0.01
L170: 166 | M170: =AVERAGE(OFFSET(Reclam_Conc!$C$10,12*($L170-1),4*(PlotControl!$C$4-1),12,1)) -> 0.0092846 | N170: =AVERAGE(OFFSET(Reclam_Conc!$D$10,12*($L170-1),4*(PlotControl!$C$4-1),12,1)) -> 0.0093816 | O170: =AVERAGE(OFFSET(Reclam_Conc!$E$10,12*($L170-1),4*(PlotControl!$C$4-1),12,1)) -> 0.0094838 | P170: =AVERAGE(OFFSET(LongTerm_Conc!$C$10,12*($L170-1),4*(PlotControl!$C$4-1),12,1)) -> 0.009740183333 | Q170: =AVERAGE(OFFSET(LongTerm_Conc!$D$10,12*($L170-1),4*(PlotControl!$C$4-1),12,1)) -> 0.009992733333 | R170: =AVERAGE(OFFSET(LongTerm_Conc!$E$10,12*($L170-1),4*(PlotControl!$C$4-1),12,1)) -> 0.01
L171: 167 | M171: =AVERAGE(OFFSET(Reclam_Conc!$C$10,12*($L171-1),4*(PlotControl!$C$4-1),12,1)) -> 0.0092846 | N171: =AVERAGE(OFFSET(Reclam_Conc!$D$10,12*($L171-1),4*(PlotControl!$C$4-1),12,1)) -> 0.0093816 | O171: =AVERAGE(OFFSET(Reclam_Conc!$E$10,12*($L171-1),4*(PlotControl!$C$4-1),12,1)) -> 0.0094838 | P171: =AVERAGE(OFFSET(LongTerm_Conc!$C$10,12*($L171-1),4*(PlotControl!$C$4-1),12,1)) -> 0.009735016667 | Q171: =AVERAGE(OFFSET(LongTerm_Conc!$D$10,12*($L171-1),4*(PlotControl!$C$4-1),12,1)) -> 0.009993541667 | R171: =AVERAGE(OFFSET(LongTerm_Conc!$E$10,12*($L171-1),4*(PlotControl!$C$4-1),12,1)) -> 0.01
L172: 168 | M172: =AVERAGE(OFFSET(Reclam_Conc!$C$10,12*($L172-1),4*(PlotControl!$C$4-1),12,1)) -> 0.0092846 | N172: =AVERAGE(OFFSET(Reclam_Conc!$D$10,12*($L172-1),4*(PlotControl!$C$4-1),12,1)) -> 0.0093816 | O172: =AVERAGE(OFFSET(Reclam_Conc!$E$10,12*($L172-1),4*(PlotControl!$C$4-1),12,1)) -> 0.0094838 | P172: =AVERAGE(OFFSET(LongTerm_Conc!$C$10,12*($L172-1),4*(PlotControl!$C$4-1),12,1)) -> 0.009715325 | Q172: =AVERAGE(OFFSET(LongTerm_Conc!$D$10,12*($L172-1),4*(PlotControl!$C$4-1),12,1)) -> 0.009993166667 | R172: =AVERAGE(OFFSET(LongTerm_Conc!$E$10,12*($L172-1),4*(PlotControl!$C$4-1),12,1)) -> 0.01
L173: 169 | M173: =AVERAGE(OFFSET(Reclam_Conc!$C$10,12*($L173-1),4*(PlotControl!$C$4-1),12,1)) -> 0.0092846 | N173: =AVERAGE(OFFSET(Reclam_Conc!$D$10,12*($L173-1),4*(PlotControl!$C$4-1),12,1)) -> 0.0093816 | O173: =AVERAGE(OFFSET(Reclam_Conc!$E$10,12*($L173-1),4*(PlotControl!$C$4-1),12,1)) -> 0.0094838 | P173: =AVERAGE(OFFSET(LongTerm_Conc!$C$10,12*($L173-1),4*(PlotControl!$C$4-1),12,1)) -> 0.009724316667 | Q173: =AVERAGE(OFFSET(LongTerm_Conc!$D$10,12*($L173-1),4*(PlotControl!$C$4-1),12,1)) -> 0.009992216667 | R173: =AVERAGE(OFFSET(LongTerm_Conc!$E$10,12*($L173-1),4*(PlotControl!$C$4-1),12,1)) -> 0.01
L174: 170 | M174: =AVERAGE(OFFSET(Reclam_Conc!$C$10,12*($L174-1),4*(PlotControl!$C$4-1),12,1)) -> 0.0092846 | N174: =AVERAGE(OFFSET(Reclam_Conc!$D$10,12*($L174-1),4*(PlotControl!$C$4-1),12,1)) -> 0.0093816 | O174: =AVERAGE(OFFSET(Reclam_Conc!$E$10,12*($L174-1),4*(PlotControl!$C$4-1),12,1)) -> 0.0094838 | P174: =AVERAGE(OFFSET(LongTerm_Conc!$C$10,12*($L174-1),4*(PlotControl!$C$4-1),12,1)) -> 0.009745391667 | Q174: =AVERAGE(OFFSET(LongTerm_Conc!$D$10,12*($L174-1),4*(PlotControl!$C$4-1),12,1)) -> 0.009992008333 | R174: =AVERAGE(OFFSET(LongTerm_Conc!$E$10,12*($L174-1),4*(PlotControl!$C$4-1),12,1)) -> 0.01
L175: 171 | M175: =AVERAGE(OFFSET(Reclam_Conc!$C$10,12*($L175-1),4*(PlotControl!$C$4-1),12,1)) -> 0.0092846 | N175: =AVERAGE(OFFSET(Reclam_Conc!$D$10,12*($L175-1),4*(PlotControl!$C$4-1),12,1)) -> 0.0093816 | O175: =AVERAGE(OFFSET(Reclam_Conc!$E$10,12*($L175-1),4*(PlotControl!$C$4-1),12,1)) -> 0.0094838 | P175: =AVERAGE(OFFSET(LongTerm_Conc!$C$10,12*($L175-1),4*(PlotControl!$C$4-1),12,1)) -> 0.009747241667 | Q175: =AVERAGE(OFFSET(LongTerm_Conc!$D$10,12*($L175-1),4*(PlotControl!$C$4-1),12,1)) -> 0.009992058333 | R175: =AVERAGE(OFFSET(LongTerm_Conc!$E$10,12*($L175-1),4*(PlotControl!$C$4-1),12,1)) -> 0.01
L176: 172 | M176: =AVERAGE(OFFSET(Reclam_Conc!$C$10,12*($L176-1),4*(PlotControl!$C$4-1),12,1)) -> 0.0092846 | N176: =AVERAGE(OFFSET(Reclam_Conc!$D$10,12*($L176-1),4*(PlotControl!$C$4-1),12,1)) -> 0.0093816 | O176: =AVERAGE(OFFSET(Reclam_Conc!$E$10,12*($L176-1),4*(PlotControl!$C$4-1),12,1)) -> 0.0094838 | P176: =AVERAGE(OFFSET(LongTerm_Conc!$C$10,12*($L176-1),4*(PlotControl!$C$4-1),12,1)) -> 0.009724425 | Q176: =AVERAGE(OFFSET(LongTerm_Conc!$D$10,12*($L176-1),4*(PlotControl!$C$4-1),12,1)) -> 0.009991483333 | R176: =AVERAGE(OFFSET(LongTerm_Conc!$E$10,12*($L176-1),4*(PlotControl!$C$4-1),12,1)) -> 0.01
L177: 173 | M177: =AVERAGE(OFFSET(Reclam_Conc!$C$10,12*($L177-1),4*(PlotControl!$C$4-1),12,1)) -> 0.0092846 | N177: =AVERAGE(OFFSET(Reclam_Conc!$D$10,12*($L177-1),4*(PlotControl!$C$4-1),12,1)) -> 0.0093816 | O177: =AVERAGE(OFFSET(Reclam_Conc!$E$10,12*($L177-1),4*(PlotControl!$C$4-1),12,1)) -> 0.0094838 | P177: =AVERAGE(OFFSET(LongTerm_Conc!$C$10,12*($L177-1),4*(PlotControl!$C$4-1),12,1)) -> 0.009726541667 | Q177: =AVERAGE(OFFSET(LongTerm_Conc!$D$10,12*($L177-1),4*(PlotControl!$C$4-1),12,1)) -> 0.009991966667 | R177: =AVERAGE(OFFSET(LongTerm_Conc!$E$10,12*($L177-1),4*(PlotControl!$C$4-1),12,1)) -> 0.01
L178: 174 | M178: =AVERAGE(OFFSET(Reclam_Conc!$C$10,12*($L178-1),4*(PlotControl!$C$4-1),12,1)) -> 0.0092846 | N178: =AVERAGE(OFFSET(Reclam_Conc!$D$10,12*($L178-1),4*(PlotControl!$C$4-1),12,1)) -> 0.0093816 | O178: =AVERAGE(OFFSET(Reclam_Conc!$E$10,12*($L178-1),4*(PlotControl!$C$4-1),12,1)) -> 0.0094838 | P178: =AVERAGE(OFFSET(LongTerm_Conc!$C$10,12*($L178-1),4*(PlotControl!$C$4-1),12,1)) -> 0.009711725 | Q178: =AVERAGE(OFFSET(LongTerm_Conc!$D$10,12*($L178-1),4*(PlotControl!$C$4-1),12,1)) -> 0.009992225 | R178: =AVERAGE(OFFSET(LongTerm_Conc!$E$10,12*($L178-1),4*(PlotControl!$C$4-1),12,1)) -> 0.01
L179: 175 | M179: =AVERAGE(OFFSET(Reclam_Conc!$C$10,12*($L179-1),4*(PlotControl!$C$4-1),12,1)) -> 0.0092846 | N179: =AVERAGE(OFFSET(Reclam_Conc!$D$10,12*($L179-1),4*(PlotControl!$C$4-1),12,1)) -> 0.0093816 | O179: =AVERAGE(OFFSET(Reclam_Conc!$E$10,12*($L179-1),4*(PlotControl!$C$4-1),12,1)) -> 0.0094838 | P179: =AVERAGE(OFFSET(LongTerm_Conc!$C$10,12*($L179-1),4*(PlotControl!$C$4-1),12,1)) -> 0.009715516667 | Q179: =AVERAGE(OFFSET(LongTerm_Conc!$D$10,12*($L179-1),4*(PlotControl!$C$4-1),12,1)) -> 0.009992616667 | R179: =AVERAGE(OFFSET(LongTerm_Conc!$E$10,12*($L179-1),4*(PlotControl!$C$4-1),12,1)) -> 0.01
L180: 176 | M180: =AVERAGE(OFFSET(Reclam_Conc!$C$10,12*($L180-1),4*(PlotControl!$C$4-1),12,1)) -> 0.0092846 | N180: =AVERAGE(OFFSET(Reclam_Conc!$D$10,12*($L180-1),4*(PlotControl!$C$4-1),12,1)) -> 0.0093816 | O180: =AVERAGE(OFFSET(Reclam_Conc!$E$10,12*($L180-1),4*(PlotControl!$C$4-1),12,1)) -> 0.0094838 | P180: =AVERAGE(OFFSET(LongTerm_Conc!$C$10,12*($L180-1),4*(PlotControl!$C$4-1),12,1)) -> 0.0097306 | Q180: =AVERAGE(OFFSET(LongTerm_Conc!$D$10,12*($L180-1),4*(PlotControl!$C$4-1),12,1)) -> 0.009993041667 | R180: =AVERAGE(OFFSET(LongTerm_Conc!$E$10,12*($L180-1),4*(PlotControl!$C$4-1),12,1)) -> 0.01
L181: 177 | M181: =AVERAGE(OFFSET(Reclam_Conc!$C$10,12*($L181-1),4*(PlotControl!$C$4-1),12,1)) -> 0.0092846 | N181: =AVERAGE(OFFSET(Reclam_Conc!$D$10,12*($L181-1),4*(PlotControl!$C$4-1),12,1)) -> 0.0093816 | O181: =AVERAGE(OFFSET(Reclam_Conc!$E$10,12*($L181-1),4*(PlotControl!$C$4-1),12,1)) -> 0.0094838 | P181: =AVERAGE(OFFSET(LongTerm_Conc!$C$10,12*($L181-1),4*(PlotControl!$C$4-1),12,1)) -> 0.009737991667 | Q181: =AVERAGE(OFFSET(LongTerm_Conc!$D$10,12*($L181-1),4*(PlotControl!$C$4-1),12,1)) -> 0.00999225 | R181: =AVERAGE(OFFSET(LongTerm_Conc!$E$10,12*($L181-1),4*(PlotControl!$C$4-1),12,1)) -> 0.01
L182: 178 | M182: =AVERAGE(OFFSET(Reclam_Conc!$C$10,12*($L182-1),4*(PlotControl!$C$4-1),12,1)) -> 0.0092846 | N182: =AVERAGE(OFFSET(Reclam_Conc!$D$10,12*($L182-1),4*(PlotControl!$C$4-1),12,1)) -> 0.0093816 | O182: =AVERAGE(OFFSET(Reclam_Conc!$E$10,12*($L182-1),4*(PlotControl!$C$4-1),12,1)) -> 0.0094838 | P182: =AVERAGE(OFFSET(LongTerm_Conc!$C$10,12*($L182-1),4*(PlotControl!$C$4-1),12,1)) -> 0.009701575 | Q182: =AVERAGE(OFFSET(LongTerm_Conc!$D$10,12*($L182-1),4*(PlotControl!$C$4-1),12,1)) -> 0.009992133333 | R182: =AVERAGE(OFFSET(LongTerm_Conc!$E$10,12*($L182-1),4*(PlotControl!$C$4-1),12,1)) -> 0.01
L183: 179 | M183: =AVERAGE(OFFSET(Reclam_Conc!$C$10,12*($L183-1),4*(PlotControl!$C$4-1),12,1)) -> 0.0092846 | N183: =AVERAGE(OFFSET(Reclam_Conc!$D$10,12*($L183-1),4*(PlotControl!$C$4-1),12,1)) -> 0.0093816 | O183: =AVERAGE(OFFSET(Reclam_Conc!$E$10,12*($L183-1),4*(PlotControl!$C$4-1),12,1)) -> 0.0094838 | P183: =AVERAGE(OFFSET(LongTerm_Conc!$C$10,12*($L183-1),4*(PlotControl!$C$4-1),12,1)) -> 0.009719891667 | Q183: =AVERAGE(OFFSET(LongTerm_Conc!$D$10,12*($L183-1),4*(PlotControl!$C$4-1),12,1)) -> 0.009991883333 | R183: =AVERAGE(OFFSET(LongTerm_Conc!$E$10,12*($L183-1),4*(PlotControl!$C$4-1),12,1)) -> 0.01
L184: 180 | M184: =AVERAGE(OFFSET(Reclam_Conc!$C$10,12*($L184-1),4*(PlotControl!$C$4-1),12,1)) -> 0.0092846 | N184: =AVERAGE(OFFSET(Reclam_Conc!$D$10,12*($L184-1),4*(PlotControl!$C$4-1),12,1)) -> 0.0093816 | O184: =AVERAGE(OFFSET(Reclam_Conc!$E$10,12*($L184-1),4*(PlotControl!$C$4-1),12,1)) -> 0.0094838 | P184: =AVERAGE(OFFSET(LongTerm_Conc!$C$10,12*($L184-1),4*(PlotControl!$C$4-1),12,1)) -> 0.009712133333 | Q184: =AVERAGE(OFFSET(LongTerm_Conc!$D$10,12*($L184-1),4*(PlotControl!$C$4-1),12,1)) -> 0.009991 | R184: =AVERAGE(OFFSET(LongTerm_Conc!$E$10,12*($L184-1),4*(PlotControl!$C$4-1),12,1)) -> 0.01
L185: 181 | M185: =AVERAGE(OFFSET(Reclam_Conc!$C$10,12*($L185-1),4*(PlotControl!$C$4-1),12,1)) -> 0.0092846 | N185: =AVERAGE(OFFSET(Reclam_Conc!$D$10,12*($L185-1),4*(PlotControl!$C$4-1),12,1)) -> 0.0093816 | O185: =AVERAGE(OFFSET(Reclam_Conc!$E$10,12*($L185-1),4*(PlotControl!$C$4-1),12,1)) -> 0.0094838 | P185: =AVERAGE(OFFSET(LongTerm_Conc!$C$10,12*($L185-1),4*(PlotControl!$C$4-1),12,1)) -> 0.009695833333 | Q185: =AVERAGE(OFFSET(LongTerm_Conc!$D$10,12*($L185-1),4*(PlotControl!$C$4-1),12,1)) -> 0.009992675 | R185: =AVERAGE(OFFSET(LongTerm_Conc!$E$10,12*($L185-1),4*(PlotControl!$C$4-1),12,1)) -> 0.01
L186: 182 | M186: =AVERAGE(OFFSET(Reclam_Conc!$C$10,12*($L186-1),4*(PlotControl!$C$4-1),12,1)) -> 0.0092846 | N186: =AVERAGE(OFFSET(Reclam_Conc!$D$10,12*($L186-1),4*(PlotControl!$C$4-1),12,1)) -> 0.0093816 | O186: =AVERAGE(OFFSET(Reclam_Conc!$E$10,12*($L186-1),4*(PlotControl!$C$4-1),12,1)) -> 0.0094838 | P186: =AVERAGE(OFFSET(LongTerm_Conc!$C$10,12*($L186-1),4*(PlotControl!$C$4-1),12,1)) -> 0.009723666667 | Q186: =AVERAGE(OFFSET(LongTerm_Conc!$D$10,12*($L186-1),4*(PlotControl!$C$4-1),12,1)) -> 0.009989958333 | R186: =AVERAGE(OFFSET(LongTerm_Conc!$E$10,12*($L186-1),4*(PlotControl!$C$4-1),12,1)) -> 0.01
L187: 183 | M187: =AVERAGE(OFFSET(Reclam_Conc!$C$10,12*($L187-1),4*(PlotControl!$C$4-1),12,1)) -> 0.0092846 | N187: =AVERAGE(OFFSET(Reclam_Conc!$D$10,12*($L187-1),4*(PlotControl!$C$4-1),12,1)) -> 0.0093816 | O187: =AVERAGE(OFFSET(Reclam_Conc!$E$10,12*($L187-1),4*(PlotControl!$C$4-1),12,1)) -> 0.0094838 | P187: =AVERAGE(OFFSET(LongTerm_Conc!$C$10,12*($L187-1),4*(PlotControl!$C$4-1),12,1)) -> 0.0097179 | Q187: =AVERAGE(OFFSET(LongTerm_Conc!$D$10,12*($L187-1),4*(PlotControl!$C$4-1),12,1)) -> 0.009989141667 | R187: =AVERAGE(OFFSET(LongTerm_Conc!$E$10,12*($L187-1),4*(PlotControl!$C$4-1),12,1)) -> 0.01
L188: 184 | M188: =AVERAGE(OFFSET(Reclam_Conc!$C$10,12*($L188-1),4*(PlotControl!$C$4-1),12,1)) -> 0.0092846 | N188: =AVERAGE(OFFSET(Reclam_Conc!$D$10,12*($L188-1),4*(PlotControl!$C$4-1),12,1)) -> 0.0093816 | O188: =AVERAGE(OFFSET(Reclam_Conc!$E$10,12*($L188-1),4*(PlotControl!$C$4-1),12,1)) -> 0.0094838 | P188: =AVERAGE(OFFSET(LongTerm_Conc!$C$10,12*($L188-1),4*(PlotControl!$C$4-1),12,1)) -> 0.009722858333 | Q188: =AVERAGE(OFFSET(LongTerm_Conc!$D$10,12*($L188-1),4*(PlotControl!$C$4-1),12,1)) -> 0.009991191667 | R188: =AVERAGE(OFFSET(LongTerm_Conc!$E$10,12*($L188-1),4*(PlotControl!$C$4-1),12,1)) -> 0.01
L189: 185 | M189: =AVERAGE(OFFSET(Reclam_Conc!$C$10,12*($L189-1),4*(PlotControl!$C$4-1),12,1)) -> 0.0092846 | N189: =AVERAGE(OFFSET(Reclam_Conc!$D$10,12*($L189-1),4*(PlotControl!$C$4-1),12,1)) -> 0.0093816 | O189: =AVERAGE(OFFSET(Reclam_Conc!$E$10,12*($L189-1),4*(PlotControl!$C$4-1),12,1)) -> 0.0094838 | P189: =AVERAGE(OFFSET(LongTerm_Conc!$C$10,12*($L189-1),4*(PlotControl!$C$4-1),12,1)) -> 0.009706766667 | Q189: =AVERAGE(OFFSET(LongTerm_Conc!$D$10,12*($L189-1),4*(PlotControl!$C$4-1),12,1)) -> 0.009991358333 | R189: =AVERAGE(OFFSET(LongTerm_Conc!$E$10,12*($L189-1),4*(PlotControl!$C$4-1),12,1)) -> 0.01
L190: 186 | M190: =AVERAGE(OFFSET(Reclam_Conc!$C$10,12*($L190-1),4*(PlotControl!$C$4-1),12,1)) -> 0.0092846 | N190: =AVERAGE(OFFSET(Reclam_Conc!$D$10,12*($L190-1),4*(PlotControl!$C$4-1),12,1)) -> 0.0093816 | O190: =AVERAGE(OFFSET(Reclam_Conc!$E$10,12*($L190-1),4*(PlotControl!$C$4-1),12,1)) -> 0.0094838 | P190: =AVERAGE(OFFSET(LongTerm_Conc!$C$10,12*($L190-1),4*(PlotControl!$C$4-1),12,1)) -> 0.009684508333 | Q190: =AVERAGE(OFFSET(LongTerm_Conc!$D$10,12*($L190-1),4*(PlotControl!$C$4-1),12,1)) -> 0.009988183333 | R190: =AVERAGE(OFFSET(LongTerm_Conc!$E$10,12*($L190-1),4*(PlotControl!$C$4-1),12,1)) -> 0.01
L191: 187 | M191: =AVERAGE(OFFSET(Reclam_Conc!$C$10,12*($L191-1),4*(PlotControl!$C$4-1),12,1)) -> 0.0092846 | N191: =AVERAGE(OFFSET(Reclam_Conc!$D$10,12*($L191-1),4*(PlotControl!$C$4-1),12,1)) -> 0.0093816 | O191: =AVERAGE(OFFSET(Reclam_Conc!$E$10,12*($L191-1),4*(PlotControl!$C$4-1),12,1)) -> 0.0094838 | P191: =AVERAGE(OFFSET(LongTerm_Conc!$C$10,12*($L191-1),4*(PlotControl!$C$4-1),12,1)) -> 0.009725616667 | Q191: =AVERAGE(OFFSET(LongTerm_Conc!$D$10,12*($L191-1),4*(PlotControl!$C$4-1),12,1)) -> 0.009988341667 | R191: =AVERAGE(OFFSET(LongTerm_Conc!$E$10,12*($L191-1),4*(PlotControl!$C$4-1),12,1)) -> 0.01
L192: 188 | M192: =AVERAGE(OFFSET(Reclam_Conc!$C$10,12*($L192-1),4*(PlotControl!$C$4-1),12,1)) -> 0.0092846 | N192: =AVERAGE(OFFSET(Reclam_Conc!$D$10,12*($L192-1),4*(PlotControl!$C$4-1),12,1)) -> 0.0093816 | O192: =AVERAGE(OFFSET(Reclam_Conc!$E$10,12*($L192-1),4*(PlotControl!$C$4-1),12,1)) -> 0.0094838 | P192: =AVERAGE(OFFSET(LongTerm_Conc!$C$10,12*($L192-1),4*(PlotControl!$C$4-1),12,1)) -> 0.009731783333 | Q192: =AVERAGE(OFFSET(LongTerm_Conc!$D$10,12*($L192-1),4*(PlotControl!$C$4-1),12,1)) -> 0.009989208333 | R192: =AVERAGE(OFFSET(LongTerm_Conc!$E$10,12*($L192-1),4*(PlotControl!$C$4-1),12,1)) -> 0.01
L193: 189 | M193: =AVERAGE(OFFSET(Reclam_Conc!$C$10,12*($L193-1),4*(PlotControl!$C$4-1),12,1)) -> 0.0092846 | N193: =AVERAGE(OFFSET(Reclam_Conc!$D$10,12*($L193-1),4*(PlotControl!$C$4-1),12,1)) -> 0.0093816 | O193: =AVERAGE(OFFSET(Reclam_Conc!$E$10,12*($L193-1),4*(PlotControl!$C$4-1),12,1)) -> 0.0094838 | P193: =AVERAGE(OFFSET(LongTerm_Conc!$C$10,12*($L193-1),4*(PlotControl!$C$4-1),12,1)) -> 0.009694508333 | Q193: =AVERAGE(OFFSET(LongTerm_Conc!$D$10,12*($L193-1),4*(PlotControl!$C$4-1),12,1)) -> 0.009989758333 | R193: =AVERAGE(OFFSET(LongTerm_Conc!$E$10,12*($L193-1),4*(PlotControl!$C$4-1),12,1)) -> 0.01
L194: 190 | M194: =AVERAGE(OFFSET(Reclam_Conc!$C$10,12*($L194-1),4*(PlotControl!$C$4-1),12,1)) -> 0.0092846 | N194: =AVERAGE(OFFSET(Reclam_Conc!$D$10,12*($L194-1),4*(PlotControl!$C$4-1),12,1)) -> 0.0093816 | O194: =AVERAGE(OFFSET(Reclam_Conc!$E$10,12*($L194-1),4*(PlotControl!$C$4-1),12,1)) -> 0.0094838 | P194: =AVERAGE(OFFSET(LongTerm_Conc!$C$10,12*($L194-1),4*(PlotControl!$C$4-1),12,1)) -> 0.009703933333 | Q194: =AVERAGE(OFFSET(LongTerm_Conc!$D$10,12*($L194-1),4*(PlotControl!$C$4-1),12,1)) -> 0.009989766667 | R194: =AVERAGE(OFFSET(LongTerm_Conc!$E$10,12*($L194-1),4*(PlotControl!$C$4-1),12,1)) -> 0.01
L195: 191 | M195: =AVERAGE(OFFSET(Reclam_Conc!$C$10,12*($L195-1),4*(PlotControl!$C$4-1),12,1)) -> 0.0092846 | N195: =AVERAGE(OFFSET(Reclam_Conc!$D$10,12*($L195-1),4*(PlotControl!$C$4-1),12,1)) -> 0.0093816 | O195: =AVERAGE(OFFSET(Reclam_Conc!$E$10,12*($L195-1),4*(PlotControl!$C$4-1),12,1)) -> 0.0094838 | P195: =AVERAGE(OFFSET(LongTerm_Conc!$C$10,12*($L195-1),4*(PlotControl!$C$4-1),12,1)) -> 0.009707375 | Q195: =AVERAGE(OFFSET(LongTerm_Conc!$D$10,12*($L195-1),4*(PlotControl!$C$4-1),12,1)) -> 0.009990016667 | R195: =AVERAGE(OFFSET(LongTerm_Conc!$E$10,12*($L195-1),4*(PlotControl!$C$4-1),12,1)) -> 0.01
L196: 192 | M196: =AVERAGE(OFFSET(Reclam_Conc!$C$10,12*($L196-1),4*(PlotControl!$C$4-1),12,1)) -> 0.0092846 | N196: =AVERAGE(OFFSET(Reclam_Conc!$D$10,12*($L196-1),4*(PlotControl!$C$4-1),12,1)) -> 0.0093816 | O196: =AVERAGE(OFFSET(Reclam_Conc!$E$10,12*($L196-1),4*(PlotControl!$C$4-1),12,1)) -> 0.0094838 | P196: =AVERAGE(OFFSET(LongTerm_Conc!$C$10,12*($L196-1),4*(PlotControl!$C$4-1),12,1)) -> 0.009688858333 | Q196: =AVERAGE(OFFSET(LongTerm_Conc!$D$10,12*($L196-1),4*(PlotControl!$C$4-1),12,1)) -> 0.009990291667 | R196: =AVERAGE(OFFSET(LongTerm_Conc!$E$10,12*($L196-1),4*(PlotControl!$C$4-1),12,1)) -> 0.01
L197: 193 | M197: =AVERAGE(OFFSET(Reclam_Conc!$C$10,12*($L197-1),4*(PlotControl!$C$4-1),12,1)) -> 0.0092846 | N197: =AVERAGE(OFFSET(Reclam_Conc!$D$10,12*($L197-1),4*(PlotControl!$C$4-1),12,1)) -> 0.0093816 | O197: =AVERAGE(OFFSET(Reclam_Conc!$E$10,12*($L197-1),4*(PlotControl!$C$4-1),12,1)) -> 0.0094838 | P197: =AVERAGE(OFFSET(LongTerm_Conc!$C$10,12*($L197-1),4*(PlotControl!$C$4-1),12,1)) -> 0.009699066667 | Q197: =AVERAGE(OFFSET(LongTerm_Conc!$D$10,12*($L197-1),4*(PlotControl!$C$4-1),12,1)) -> 0.0099882 | R197: =AVERAGE(OFFSET(LongTerm_Conc!$E$10,12*($L197-1),4*(PlotControl!$C$4-1),12,1)) -> 0.01
L198: 194 | M198: =AVERAGE(OFFSET(Reclam_Conc!$C$10,12*($L198-1),4*(PlotControl!$C$4-1),12,1)) -> 0.0092846 | N198: =AVERAGE(OFFSET(Reclam_Conc!$D$10,12*($L198-1),4*(PlotControl!$C$4-1),12,1)) -> 0.0093816 | O198: =AVERAGE(OFFSET(Reclam_Conc!$E$10,12*($L198-1),4*(PlotControl!$C$4-1),12,1)) -> 0.0094838 | P198: =AVERAGE(OFFSET(LongTerm_Conc!$C$10,12*($L198-1),4*(PlotControl!$C$4-1),12,1)) -> 0.009689141667 | Q198: =AVERAGE(OFFSET(LongTerm_Conc!$D$10,12*($L198-1),4*(PlotControl!$C$4-1),12,1)) -> 0.009988991667 | R198: =AVERAGE(OFFSET(LongTerm_Conc!$E$10,12*($L198-1),4*(PlotControl!$C$4-1),12,1)) -> 0.01
L199: 195 | M199: =AVERAGE(OFFSET(Reclam_Conc!$C$10,12*($L199-1),4*(PlotControl!$C$4-1),12,1)) -> 0.0092846 | N199: =AVERAGE(OFFSET(Reclam_Conc!$D$10,12*($L199-1),4*(PlotControl!$C$4-1),12,1)) -> 0.0093816 | O199: =AVERAGE(OFFSET(Reclam_Conc!$E$10,12*($L199-1),4*(PlotControl!$C$4-1),12,1)) -> 0.0094838 | P199: =AVERAGE(OFFSET(LongTerm_Conc!$C$10,12*($L199-1),4*(PlotControl!$C$4-1),12,1)) -> 0.009660508333 | Q199: =AVERAGE(OFFSET(LongTerm_Conc!$D$10,12*($L199-1),4*(PlotControl!$C$4-1),12,1)) -> 0.009989025 | R199: =AVERAGE(OFFSET(LongTerm_Conc!$E$10,12*($L199-1),4*(PlotControl!$C$4-1),12,1)) -> 0.01
L200: 196 | M200: =AVERAGE(OFFSET(Reclam_Conc!$C$10,12*($L200-1),4*(PlotControl!$C$4-1),12,1)) -> 0.0092846 | N200: =AVERAGE(OFFSET(Reclam_Conc!$D$10,12*($L200-1),4*(PlotControl!$C$4-1),12,1)) -> 0.0093816 | O200: =AVERAGE(OFFSET(Reclam_Conc!$E$10,12*($L200-1),4*(PlotControl!$C$4-1),12,1)) -> 0.0094838 | P200: =AVERAGE(OFFSET(LongTerm_Conc!$C$10,12*($L200-1),4*(PlotControl!$C$4-1),12,1)) -> 0.009664525 | Q200: =AVERAGE(OFFSET(LongTerm_Conc!$D$10,12*($L200-1),4*(PlotControl!$C$4-1),12,1)) -> 0.009989508333 | R200: =AVERAGE(OFFSET(LongTerm_Conc!$E$10,12*($L200-1),4*(PlotControl!$C$4-1),12,1)) -> 0.01
... 4 more rows

Sheet Flows_byYear
A1: Note: Values shown for each source for the selected year of mining: | E1: 14
E2: ="(" & (E1-1) & " <= time < " & E1 & " years)" -> (13 <= time < 14 years)
A3: Source: | F3: Realization: | G3: 1 | H3: 2 | I3: 3 | J3: 4 | K3: 5 | L3: 6 | M3: 7 | N3: 8 | O3: 9 | P3: 10 | Q3: 11 | R3: 12 | S3: 13 | T3: 14 | U3: 15 | V3: 16 | W3: 17 | X3: 18 | Y3: 19 | Z3: 20 | AA3: 21 | AB3: 22 | AC3: 23 | AD3: 24 | AE3: 25 | AF3: 26 | AG3: 27 | AH3: 28 | AI3: 29 | AJ3: 30 | AK3: 31 | AL3: 32 | AM3: 33 | AN3: 34 | AO3: 35 | AP3: 36 | AQ3: 37 | AR3: 38 | AS3: 39 | AT3: 40 | AU3: 41 | AV3: 42 | AW3: 43 | AX3: 44 | AY3: 45 | AZ3: 46 | BA3: 47 | BB3: 48 | BC3: 49 | BD3: 50 | BE3: 51 | BF3: 52 | BG3: 53 | BH3: 54 | BI3: 55 | BJ3: 56 | BK3: 57 | BL3: 58 | BM3: 59 | BN3: 60 | BO3: 61 | BP3: 62 | BQ3: 63 | BR3: 64 | BS3: 65 | BT3: 66 | BU3: 67 | BV3: 68 | BW3: 69 | BX3: 70 | BY3: 71 | BZ3: 72 | CA3: 73 | CB3: 74 | CC3: 75 | CD3: 76 | CE3: 77 | CF3: 78 | CG3: 79 | CH3: 80 | CI3: 81 | CJ3: 82 | CK3: 83 | CL3: 84 | CM3: 85 | CN3: 86 | CO3: 87 | CP3: 88 | CQ3: 89 | CR3: 90 | CS3: 91 | CT3: 92 | CU3: 93 | CV3: 94 | CW3: 95 | CX3: 96 | CY3: 97 | CZ3: 98 | DA3: 99 | DB3: 100
A4: Annual Average Flows (gpm) | B4: P10 | C4: P50 | D4: Average | E4: P90
A5: =Labels!$A$6 -> Category 1 Stockpile Seepage | B5: =PERCENTILE($G5:$DB5,0.1) -> 252.5012917 | C5: =PERCENTILE($G5:$DB5,0.5) -> 303.0130417 | D5: =AVERAGE($G5:$DB5) -> 308.8063475 | E5: =PERCENTILE($G5:$DB5,0.9) -> 372.9013333 | G5: =AVERAGE(OFFSET(Cat1SP_Flow!$B$10,12*($E$1-1),G$3-1,12)) -> 280.3996667 | H5: =AVERAGE(OFFSET(Cat1SP_Flow!$B$10,12*($E$1-1),H$3-1,12)) -> 285.418 | I5: =AVERAGE(OFFSET(Cat1SP_Flow!$B$10,12*($E$1-1),I$3-1,12)) -> 389.3858333 | J5: =AVERAGE(OFFSET(Cat1SP_Flow!$B$10,12*($E$1-1),J$3-1,12)) -> 377.5183333 | K5: =AVERAGE(OFFSET(Cat1SP_Flow!$B$10,12*($E$1-1),K$3-1,12)) -> 331.1166667 | L5: =AVERAGE(OFFSET(Cat1SP_Flow!$B$10,12*($E$1-1),L$3-1,12)) -> 261.1405 | M5: =AVERAGE(OFFSET(Cat1SP_Flow!$B$10,12*($E$1-1),M$3-1,12)) -> 348.1166667 | N5: =AVERAGE(OFFSET(Cat1SP_Flow!$B$10,12*($E$1-1),N$3-1,12)) -> 353.965 | O5: =AVERAGE(OFFSET(Cat1SP_Flow!$B$10,12*($E$1-1),O$3-1,12)) -> 290.0879167 | P5: =AVERAGE(OFFSET(Cat1SP_Flow!$B$10,12*($E$1-1),P$3-1,12)) -> 315.8744167 | Q5: =AVERAGE(OFFSET(Cat1SP_Flow!$B$10,12*($E$1-1),Q$3-1,12)) -> 356.3066667 | R5: =AVERAGE(OFFSET(Cat1SP_Flow!$B$10,12*($E$1-1),R$3-1,12)) -> 342.9325 | S5: =AVERAGE(OFFSET(Cat1SP_Flow!$B$10,12*($E$1-1),S$3-1,12)) -> 255.2746667 | T5: =AVERAGE(OFFSET(Cat1SP_Flow!$B$10,12*($E$1-1),T$3-1,12)) -> 337.1716667 | U5: =AVERAGE(OFFSET(Cat1SP_Flow!$B$10,12*($E$1-1),U$3-1,12)) -> 305.8915833 | V5: =AVERAGE(OFFSET(Cat1SP_Flow!$B$10,12*($E$1-1),V$3-1,12)) -> 271.0650833 | W5: =AVERAGE(OFFSET(Cat1SP_Flow!$B$10,12*($E$1-1),W$3-1,12)) -> 270.6289167 | X5: =AVERAGE(OFFSET(Cat1SP_Flow!$B$10,12*($E$1-1),X$3-1,12)) -> 359.535 | Y5: =AVERAGE(OFFSET(Cat1SP_Flow!$B$10,12*($E$1-1),Y$3-1,12)) -> 280.4275833 | Z5: =AVERAGE(OFFSET(Cat1SP_Flow!$B$10,12*($E$1-1),Z$3-1,12)) -> 326.3081667 | AA5: =AVERAGE(OFFSET(Cat1SP_Flow!$B$10,12*($E$1-1),AA$3-1,12)) -> 252.72675 | AB5: =AVERAGE(OFFSET(Cat1SP_Flow!$B$10,12*($E$1-1),AB$3-1,12)) -> 332.02 | AC5: =AVERAGE(OFFSET(Cat1SP_Flow!$B$10,12*($E$1-1),AC$3-1,12)) -> 293.082 | AD5: =AVERAGE(OFFSET(Cat1SP_Flow!$B$10,12*($E$1-1),AD$3-1,12)) -> 288.2593333 | AE5: =AVERAGE(OFFSET(Cat1SP_Flow!$B$10,12*($E$1-1),AE$3-1,12)) -> 298.5038333 | AF5: =AVERAGE(OFFSET(Cat1SP_Flow!$B$10,12*($E$1-1),AF$3-1,12)) -> 302.8695 | AG5: =AVERAGE(OFFSET(Cat1SP_Flow!$B$10,12*($E$1-1),AG$3-1,12)) -> 378.0608333 | AH5: =AVERAGE(OFFSET(Cat1SP_Flow!$B$10,12*($E$1-1),AH$3-1,12)) -> 289.9736667 | AI5: =AVERAGE(OFFSET(Cat1SP_Flow!$B$10,12*($E$1-1),AI$3-1,12)) -> 270.4591667 | AJ5: =AVERAGE(OFFSET(Cat1SP_Flow!$B$10,12*($E$1-1),AJ$3-1,12)) -> 280.7161667 | AK5: =AVERAGE(OFFSET(Cat1SP_Flow!$B$10,12*($E$1-1),AK$3-1,12)) -> 350.0333333 | AL5: =AVERAGE(OFFSET(Cat1SP_Flow!$B$10,12*($E$1-1),AL$3-1,12)) -> 331.5391667 | AM5: =AVERAGE(OFFSET(Cat1SP_Flow!$B$10,12*($E$1-1),AM$3-1,12)) -> 269.0665833 | AN5: =AVERAGE(OFFSET(Cat1SP_Flow!$B$10,12*($E$1-1),AN$3-1,12)) -> 240.5704167 | AO5: =AVERAGE(OFFSET(Cat1SP_Flow!$B$10,12*($E$1-1),AO$3-1,12)) -> 359.19 | AP5: =AVERAGE(OFFSET(Cat1SP_Flow!$B$10,12*($E$1-1),AP$3-1,12)) -> 383.76 | AQ5: =AVERAGE(OFFSET(Cat1SP_Flow!$B$10,12*($E$1-1),AQ$3-1,12)) -> 300.97675 | AR5: =AVERAGE(OFFSET(Cat1SP_Flow!$B$10,12*($E$1-1),AR$3-1,12)) -> 343.0375 | AS5: =AVERAGE(OFFSET(Cat1SP_Flow!$B$10,12*($E$1-1),AS$3-1,12)) -> 279.61125 | AT5: =AVERAGE(OFFSET(Cat1SP_Flow!$B$10,12*($E$1-1),AT$3-1,12)) -> 356.585 | AU5: =AVERAGE(OFFSET(Cat1SP_Flow!$B$10,12*($E$1-1),AU$3-1,12)) -> 221.69975 | AV5: =AVERAGE(OFFSET(Cat1SP_Flow!$B$10,12*($E$1-1),AV$3-1,12)) -> 322.0003333 | AW5: =AVERAGE(OFFSET(Cat1SP_Flow!$B$10,12*($E$1-1),AW$3-1,12)) -> 312.8888333 | AX5: =AVERAGE(OFFSET(Cat1SP_Flow!$B$10,12*($E$1-1),AX$3-1,12)) -> 276.2763333 | AY5: =AVERAGE(OFFSET(Cat1SP_Flow!$B$10,12*($E$1-1),AY$3-1,12)) -> 306.28125 | AZ5: =AVERAGE(OFFSET(Cat1SP_Flow!$B$10,12*($E$1-1),AZ$3-1,12)) -> 261.2036667 | BA5: =AVERAGE(OFFSET(Cat1SP_Flow!$B$10,12*($E$1-1),BA$3-1,12)) -> 264.8179167 | BB5: =AVERAGE(OFFSET(Cat1SP_Flow!$B$10,12*($E$1-1),BB$3-1,12)) -> 388.7966667 | BC5: =AVERAGE(OFFSET(Cat1SP_Flow!$B$10,12*($E$1-1),BC$3-1,12)) -> 297.66875 | BD5: =AVERAGE(OFFSET(Cat1SP_Flow!$B$10,12*($E$1-1),BD$3-1,12)) -> 286.48725 | BE5: =AVERAGE(OFFSET(Cat1SP_Flow!$B$10,12*($E$1-1),BE$3-1,12)) -> 292.1235 | BF5: =AVERAGE(OFFSET(Cat1SP_Flow!$B$10,12*($E$1-1),BF$3-1,12)) -> 255.4529167 | BG5: =AVERAGE(OFFSET(Cat1SP_Flow!$B$10,12*($E$1-1),BG$3-1,12)) -> 261.12525 | BH5: =AVERAGE(OFFSET(Cat1SP_Flow!$B$10,12*($E$1-1),BH$3-1,12)) -> 266.6291667 | BI5: =AVERAGE(OFFSET(Cat1SP_Flow!$B$10,12*($E$1-1),BI$3-1,12)) -> 243.76225 | BJ5: =AVERAGE(OFFSET(Cat1SP_Flow!$B$10,12*($E$1-1),BJ$3-1,12)) -> 344.31 | BK5: =AVERAGE(OFFSET(Cat1SP_Flow!$B$10,12*($E$1-1),BK$3-1,12)) -> 267.246 | BL5: =AVERAGE(OFFSET(Cat1SP_Flow!$B$10,12*($E$1-1),BL$3-1,12)) -> 270.0309167 | BM5: =AVERAGE(OFFSET(Cat1SP_Flow!$B$10,12*($E$1-1),BM$3-1,12)) -> 314.92125 | BN5: =AVERAGE(OFFSET(Cat1SP_Flow!$B$10,12*($E$1-1),BN$3-1,12)) -> 381.7833333 | BO5: =AVERAGE(OFFSET(Cat1SP_Flow!$B$10,12*($E$1-1),BO$3-1,12)) -> 351.8441667 | BP5: =AVERAGE(OFFSET(Cat1SP_Flow!$B$10,12*($E$1-1),BP$3-1,12)) -> 268.3736667 | BQ5: =AVERAGE(OFFSET(Cat1SP_Flow!$B$10,12*($E$1-1),BQ$3-1,12)) -> 330.6591667 | BR5: =AVERAGE(OFFSET(Cat1SP_Flow!$B$10,12*($E$1-1),BR$3-1,12)) -> 261.0015833 | BS5: =AVERAGE(OFFSET(Cat1SP_Flow!$B$10,12*($E$1-1),BS$3-1,12)) -> 342.8691667 | BT5: =AVERAGE(OFFSET(Cat1SP_Flow!$B$10,12*($E$1-1),BT$3-1,12)) -> 381.7358333 | BU5: =AVERAGE(OFFSET(Cat1SP_Flow!$B$10,12*($E$1-1),BU$3-1,12)) -> 303.1565833 | BV5: =AVERAGE(OFFSET(Cat1SP_Flow!$B$10,12*($E$1-1),BV$3-1,12)) -> 231.4651667 | BW5: =AVERAGE(OFFSET(Cat1SP_Flow!$B$10,12*($E$1-1),BW$3-1,12)) -> 237.0385 | BX5: =AVERAGE(OFFSET(Cat1SP_Flow!$B$10,12*($E$1-1),BX$3-1,12)) -> 189.0635 | BY5: =AVERAGE(OFFSET(Cat1SP_Flow!$B$10,12*($E$1-1),BY$3-1,12)) -> 372.3883333 | BZ5: =AVERAGE(OFFSET(Cat1SP_Flow!$B$10,12*($E$1-1),BZ$3-1,12)) -> 365.8525 | CA5: =AVERAGE(OFFSET(Cat1SP_Flow!$B$10,12*($E$1-1),CA$3-1,12)) -> 312.2529167 | CB5: =AVERAGE(OFFSET(Cat1SP_Flow!$B$10,12*($E$1-1),CB$3-1,12)) -> 407.9883333 | CC5: =AVERAGE(OFFSET(Cat1SP_Flow!$B$10,12*($E$1-1),CC$3-1,12)) -> 257.4130833 | CD5: =AVERAGE(OFFSET(Cat1SP_Flow!$B$10,12*($E$1-1),CD$3-1,12)) -> 283.62425 | CE5: =AVERAGE(OFFSET(Cat1SP_Flow!$B$10,12*($E$1-1),CE$3-1,12)) -> 351.54 | CF5: =AVERAGE(OFFSET(Cat1SP_Flow!$B$10,12*($E$1-1),CF$3-1,12)) -> 363.6083333 | CG5: =AVERAGE(OFFSET(Cat1SP_Flow!$B$10,12*($E$1-1),CG$3-1,12)) -> 351.7791667 | CH5: =AVERAGE(OFFSET(Cat1SP_Flow!$B$10,12*($E$1-1),CH$3-1,12)) -> 351.1041667 | CI5: =AVERAGE(OFFSET(Cat1SP_Flow!$B$10,12*($E$1-1),CI$3-1,12)) -> 251.5161667 | CJ5: =AVERAGE(OFFSET(Cat1SP_Flow!$B$10,12*($E$1-1),CJ$3-1,12)) -> 284.5176667 | CK5: =AVERAGE(OFFSET(Cat1SP_Flow!$B$10,12*($E$1-1),CK$3-1,12)) -> 358.3591667 | CL5: =AVERAGE(OFFSET(Cat1SP_Flow!$B$10,12*($E$1-1),CL$3-1,12)) -> 298.408 | CM5: =AVERAGE(OFFSET(Cat1SP_Flow!$B$10,12*($E$1-1),CM$3-1,12)) -> 331.3008333 | CN5: =AVERAGE(OFFSET(Cat1SP_Flow!$B$10,12*($E$1-1),CN$3-1,12)) -> 334.6041667 | CO5: =AVERAGE(OFFSET(Cat1SP_Flow!$B$10,12*($E$1-1),CO$3-1,12)) -> 343.7658333 | CP5: =AVERAGE(OFFSET(Cat1SP_Flow!$B$10,12*($E$1-1),CP$3-1,12)) -> 295.0396667 | CQ5: =AVERAGE(OFFSET(Cat1SP_Flow!$B$10,12*($E$1-1),CQ$3-1,12)) -> 353.4858333 | CR5: =AVERAGE(OFFSET(Cat1SP_Flow!$B$10,12*($E$1-1),CR$3-1,12)) -> 247.3665 | CS5: =AVERAGE(OFFSET(Cat1SP_Flow!$B$10,12*($E$1-1),CS$3-1,12)) -> 327.90925 | CT5: =AVERAGE(OFFSET(Cat1SP_Flow!$B$10,12*($E$1-1),CT$3-1,12)) -> 431.5441667 | CU5: =AVERAGE(OFFSET(Cat1SP_Flow!$B$10,12*($E$1-1),CU$3-1,12)) -> 276.6724167 | CV5: =AVERAGE(OFFSET(Cat1SP_Flow!$B$10,12*($E$1-1),CV$3-1,12)) -> 250.3961667 | CW5: =AVERAGE(OFFSET(Cat1SP_Flow!$B$10,12*($E$1-1),CW$3-1,12)) -> 315.31925 | CX5: =AVERAGE(OFFSET(Cat1SP_Flow!$B$10,12*($E$1-1),CX$3-1,12)) -> 402.6766667 | CY5: =AVERAGE(OFFSET(Cat1SP_Flow!$B$10,12*($E$1-1),CY$3-1,12)) -> 231.4555833 | CZ5: =AVERAGE(OFFSET(Cat1SP_Flow!$B$10,12*($E$1-1),CZ$3-1,12)) -> 336.7341667 | DA5: =AVERAGE(OFFSET(Cat1SP_Flow!$B$10,12*($E$1-1),DA$3-1,12)) -> 252.61075 | DB5: =AVERAGE(OFFSET(Cat1SP_Flow!$B$10,12*($E$1-1),DB$3-1,12)) -> 267.0826667
A6: =Labels!$A$7 -> Category 2/3 Stockpile Seepage | B6: 97.26713333 | C6: 120.4777083 | D6: 119.7927142 | E6: 143.7618333 | G6: =IF($E$1<=25,AVERAGE(OFFSET(Cat23SP_Flow!$B$10,12*($E$1-1),G$3-1,12)),NA()) -> 106.349 | H6: =IF($E$1<=25,AVERAGE(OFFSET(Cat23SP_Flow!$B$10,12*($E$1-1),H$3-1,12)),NA()) -> 121.7113333 | I6: =IF($E$1<=25,AVERAGE(OFFSET(Cat23SP_Flow!$B$10,12*($E$1-1),I$3-1,12)),NA()) -> 157.6601667 | J6: =IF($E$1<=25,AVERAGE(OFFSET(Cat23SP_Flow!$B$10,12*($E$1-1),J$3-1,12)),NA()) -> 156.37325 | K6: =IF($E$1<=25,AVERAGE(OFFSET(Cat23SP_Flow!$B$10,12*($E$1-1),K$3-1,12)),NA()) -> 121.4503333 | L6: =IF($E$1<=25,AVERAGE(OFFSET(Cat23SP_Flow!$B$10,12*($E$1-1),L$3-1,12)),NA()) -> 96.93758333 | M6: =IF($E$1<=25,AVERAGE(OFFSET(Cat23SP_Flow!$B$10,12*($E$1-1),M$3-1,12)),NA()) -> 150.0053333 | N6: =IF($E$1<=25,AVERAGE(OFFSET(Cat23SP_Flow!$B$10,12*($E$1-1),N$3-1,12)),NA()) -> 127.5690833 | O6: =IF($E$1<=25,AVERAGE(OFFSET(Cat23SP_Flow!$B$10,12*($E$1-1),O$3-1,12)),NA()) -> 114.0525 | P6: =IF($E$1<=25,AVERAGE(OFFSET(Cat23SP_Flow!$B$10,12*($E$1-1),P$3-1,12)),NA()) -> 128.03375 | Q6: =IF($E$1<=25,AVERAGE(OFFSET(Cat23SP_Flow!$B$10,12*($E$1-1),Q$3-1,12)),NA()) -> 136.6363333 | R6: =IF($E$1<=25,AVERAGE(OFFSET(Cat23SP_Flow!$B$10,12*($E$1-1),R$3-1,12)),NA()) -> 132.19625 | S6: =IF($E$1<=25,AVERAGE(OFFSET(Cat23SP_Flow!$B$10,12*($E$1-1),S$3-1,12)),NA()) -> 104.12775 | T6: =IF($E$1<=25,AVERAGE(OFFSET(Cat23SP_Flow!$B$10,12*($E$1-1),T$3-1,12)),NA()) -> 131.5420833 | U6: =IF($E$1<=25,AVERAGE(OFFSET(Cat23SP_Flow!$B$10,12*($E$1-1),U$3-1,12)),NA()) -> 105.4189167 | V6: =IF($E$1<=25,AVERAGE(OFFSET(Cat23SP_Flow!$B$10,12*($E$1-1),V$3-1,12)),NA()) -> 112.6211667 | W6: =IF($E$1<=25,AVERAGE(OFFSET(Cat23SP_Flow!$B$10,12*($E$1-1),W$3-1,12)),NA()) -> 96.84825 | X6: =IF($E$1<=25,AVERAGE(OFFSET(Cat23SP_Flow!$B$10,12*($E$1-1),X$3-1,12)),NA()) -> 142.7280833 | Y6: =IF($E$1<=25,AVERAGE(OFFSET(Cat23SP_Flow!$B$10,12*($E$1-1),Y$3-1,12)),NA()) -> 111.88 | Z6: =IF($E$1<=25,AVERAGE(OFFSET(Cat23SP_Flow!$B$10,12*($E$1-1),Z$3-1,12)),NA()) -> 130.0684167 | AA6: =IF($E$1<=25,AVERAGE(OFFSET(Cat23SP_Flow!$B$10,12*($E$1-1),AA$3-1,12)),NA()) -> 102.54225 | AB6: =IF($E$1<=25,AVERAGE(OFFSET(Cat23SP_Flow!$B$10,12*($E$1-1),AB$3-1,12)),NA()) -> 118.8476667 | AC6: =IF($E$1<=25,AVERAGE(OFFSET(Cat23SP_Flow!$B$10,12*($E$1-1),AC$3-1,12)),NA()) -> 115.0968333 | AD6: =IF($E$1<=25,AVERAGE(OFFSET(Cat23SP_Flow!$B$10,12*($E$1-1),AD$3-1,12)),NA()) -> 110.85925 | AE6: =IF($E$1<=25,AVERAGE(OFFSET(Cat23SP_Flow!$B$10,12*($E$1-1),AE$3-1,12)),NA()) -> 116.8530833 | AF6: =IF($E$1<=25,AVERAGE(OFFSET(Cat23SP_Flow!$B$10,12*($E$1-1),AF$3-1,12)),NA()) -> 120.07675 | AG6: =IF($E$1<=25,AVERAGE(OFFSET(Cat23SP_Flow!$B$10,12*($E$1-1),AG$3-1,12)),NA()) -> 128.8411667 | AH6: =IF($E$1<=25,AVERAGE(OFFSET(Cat23SP_Flow!$B$10,12*($E$1-1),AH$3-1,12)),NA()) -> 120.64825 | AI6: =IF($E$1<=25,AVERAGE(OFFSET(Cat23SP_Flow!$B$10,12*($E$1-1),AI$3-1,12)),NA()) -> 109.0175 | AJ6: =IF($E$1<=25,AVERAGE(OFFSET(Cat23SP_Flow!$B$10,12*($E$1-1),AJ$3-1,12)),NA()) -> 121.14825 | AK6: =IF($E$1<=25,AVERAGE(OFFSET(Cat23SP_Flow!$B$10,12*($E$1-1),AK$3-1,12)),NA()) -> 136.64625 | AL6: =IF($E$1<=25,AVERAGE(OFFSET(Cat23SP_Flow!$B$10,12*($E$1-1),AL$3-1,12)),NA()) -> 131.058 | AM6: =IF($E$1<=25,AVERAGE(OFFSET(Cat23SP_Flow!$B$10,12*($E$1-1),AM$3-1,12)),NA()) -> 98.32541667 | AN6: =IF($E$1<=25,AVERAGE(OFFSET(Cat23SP_Flow!$B$10,12*($E$1-1),AN$3-1,12)),NA()) -> 96.21775 | AO6: =IF($E$1<=25,AVERAGE(OFFSET(Cat23SP_Flow!$B$10,12*($E$1-1),AO$3-1,12)),NA()) -> 148.21425 | AP6: =IF($E$1<=25,AVERAGE(OFFSET(Cat23SP_Flow!$B$10,12*($E$1-1),AP$3-1,12)),NA()) -> 160.06025 | AQ6: =IF($E$1<=25,AVERAGE(OFFSET(Cat23SP_Flow!$B$10,12*($E$1-1),AQ$3-1,12)),NA()) -> 116.41325 | AR6: =IF($E$1<=25,AVERAGE(OFFSET(Cat23SP_Flow!$B$10,12*($E$1-1),AR$3-1,12)),NA()) -> 136.9445 | AS6: =IF($E$1<=25,AVERAGE(OFFSET(Cat23SP_Flow!$B$10,12*($E$1-1),AS$3-1,12)),NA()) -> 92.31925 | AT6: =IF($E$1<=25,AVERAGE(OFFSET(Cat23SP_Flow!$B$10,12*($E$1-1),AT$3-1,12)),NA()) -> 129.4111667 | AU6: =IF($E$1<=25,AVERAGE(OFFSET(Cat23SP_Flow!$B$10,12*($E$1-1),AU$3-1,12)),NA()) -> 81.36133333 | AV6: =IF($E$1<=25,AVERAGE(OFFSET(Cat23SP_Flow!$B$10,12*($E$1-1),AV$3-1,12)),NA()) -> 121.1189167 | AW6: =IF($E$1<=25,AVERAGE(OFFSET(Cat23SP_Flow!$B$10,12*($E$1-1),AW$3-1,12)),NA()) -> 114.9275 | AX6: =IF($E$1<=25,AVERAGE(OFFSET(Cat23SP_Flow!$B$10,12*($E$1-1),AX$3-1,12)),NA()) -> 105.2341667 | AY6: =IF($E$1<=25,AVERAGE(OFFSET(Cat23SP_Flow!$B$10,12*($E$1-1),AY$3-1,12)),NA()) -> 129.9421667 | AZ6: =IF($E$1<=25,AVERAGE(OFFSET(Cat23SP_Flow!$B$10,12*($E$1-1),AZ$3-1,12)),NA()) -> 102.6311667 | BA6: =IF($E$1<=25,AVERAGE(OFFSET(Cat23SP_Flow!$B$10,12*($E$1-1),BA$3-1,12)),NA()) -> 102.8486667 | BB6: =IF($E$1<=25,AVERAGE(OFFSET(Cat23SP_Flow!$B$10,12*($E$1-1),BB$3-1,12)),NA()) -> 159.8438333 | BC6: =IF($E$1<=25,AVERAGE(OFFSET(Cat23SP_Flow!$B$10,12*($E$1-1),BC$3-1,12)),NA()) -> 126.59475 | BD6: =IF($E$1<=25,AVERAGE(OFFSET(Cat23SP_Flow!$B$10,12*($E$1-1),BD$3-1,12)),NA()) -> 101.4295 | BE6: =IF($E$1<=25,AVERAGE(OFFSET(Cat23SP_Flow!$B$10,12*($E$1-1),BE$3-1,12)),NA()) -> 103.5171667 | BF6: =IF($E$1<=25,AVERAGE(OFFSET(Cat23SP_Flow!$B$10,12*($E$1-1),BF$3-1,12)),NA()) -> 104.62125 | BG6: =IF($E$1<=25,AVERAGE(OFFSET(Cat23SP_Flow!$B$10,12*($E$1-1),BG$3-1,12)),NA()) -> 102.2830833 | BH6: =IF($E$1<=25,AVERAGE(OFFSET(Cat23SP_Flow!$B$10,12*($E$1-1),BH$3-1,12)),NA()) -> 99.33483333 | BI6: =IF($E$1<=25,AVERAGE(OFFSET(Cat23SP_Flow!$B$10,12*($E$1-1),BI$3-1,12)),NA()) -> 105.00775 | BJ6: =IF($E$1<=25,AVERAGE(OFFSET(Cat23SP_Flow!$B$10,12*($E$1-1),BJ$3-1,12)),NA()) -> 123.7915833 | BK6: =IF($E$1<=25,AVERAGE(OFFSET(Cat23SP_Flow!$B$10,12*($E$1-1),BK$3-1,12)),NA()) -> 106.9860833 | BL6: =IF($E$1<=25,AVERAGE(OFFSET(Cat23SP_Flow!$B$10,12*($E$1-1),BL$3-1,12)),NA()) -> 107.6895 | BM6: =IF($E$1<=25,AVERAGE(OFFSET(Cat23SP_Flow!$B$10,12*($E$1-1),BM$3-1,12)),NA()) -> 123.6929167 | BN6: =IF($E$1<=25,AVERAGE(OFFSET(Cat23SP_Flow!$B$10,12*($E$1-1),BN$3-1,12)),NA()) -> 136.0854167 | BO6: =IF($E$1<=25,AVERAGE(OFFSET(Cat23SP_Flow!$B$10,12*($E$1-1),BO$3-1,12)),NA()) -> 141.7783333 | BP6: =IF($E$1<=25,AVERAGE(OFFSET(Cat23SP_Flow!$B$10,12*($E$1-1),BP$3-1,12)),NA()) -> 100.7391667 | BQ6: =IF($E$1<=25,AVERAGE(OFFSET(Cat23SP_Flow!$B$10,12*($E$1-1),BQ$3-1,12)),NA()) -> 121.40675 | BR6: =IF($E$1<=25,AVERAGE(OFFSET(Cat23SP_Flow!$B$10,12*($E$1-1),BR$3-1,12)),NA()) -> 101.5823333 | BS6: =IF($E$1<=25,AVERAGE(OFFSET(Cat23SP_Flow!$B$10,12*($E$1-1),BS$3-1,12)),NA()) -> 129.1505 | BT6: =IF($E$1<=25,AVERAGE(OFFSET(Cat23SP_Flow!$B$10,12*($E$1-1),BT$3-1,12)),NA()) -> 140.457 | BU6: =IF($E$1<=25,AVERAGE(OFFSET(Cat23SP_Flow!$B$10,12*($E$1-1),BU$3-1,12)),NA()) -> 126.7315 | BV6: =IF($E$1<=25,AVERAGE(OFFSET(Cat23SP_Flow!$B$10,12*($E$1-1),BV$3-1,12)),NA()) -> 86.11133333 | BW6: =IF($E$1<=25,AVERAGE(OFFSET(Cat23SP_Flow!$B$10,12*($E$1-1),BW$3-1,12)),NA()) -> 95.67625 | BX6: =IF($E$1<=25,AVERAGE(OFFSET(Cat23SP_Flow!$B$10,12*($E$1-1),BX$3-1,12)),NA()) -> 72.88608333 | BY6: =IF($E$1<=25,AVERAGE(OFFSET(Cat23SP_Flow!$B$10,12*($E$1-1),BY$3-1,12)),NA()) -> 143.3875833 | BZ6: =IF($E$1<=25,AVERAGE(OFFSET(Cat23SP_Flow!$B$10,12*($E$1-1),BZ$3-1,12)),NA()) -> 143.4745 | CA6: =IF($E$1<=25,AVERAGE(OFFSET(Cat23SP_Flow!$B$10,12*($E$1-1),CA$3-1,12)),NA()) -> 115.0205 | CB6: =IF($E$1<=25,AVERAGE(OFFSET(Cat23SP_Flow!$B$10,12*($E$1-1),CB$3-1,12)),NA()) -> 167.999 | CC6: =IF($E$1<=25,AVERAGE(OFFSET(Cat23SP_Flow!$B$10,12*($E$1-1),CC$3-1,12)),NA()) -> 97.30375 | CD6: =IF($E$1<=25,AVERAGE(OFFSET(Cat23SP_Flow!$B$10,12*($E$1-1),CD$3-1,12)),NA()) -> 96.00041667 | CE6: =IF($E$1<=25,AVERAGE(OFFSET(Cat23SP_Flow!$B$10,12*($E$1-1),CE$3-1,12)),NA()) -> 139.22975 | CF6: =IF($E$1<=25,AVERAGE(OFFSET(Cat23SP_Flow!$B$10,12*($E$1-1),CF$3-1,12)),NA()) -> 137.9286667 | CG6: =IF($E$1<=25,AVERAGE(OFFSET(Cat23SP_Flow!$B$10,12*($E$1-1),CG$3-1,12)),NA()) -> 137.531 | CH6: =IF($E$1<=25,AVERAGE(OFFSET(Cat23SP_Flow!$B$10,12*($E$1-1),CH$3-1,12)),NA()) -> 146.3478333 | CI6: =IF($E$1<=25,AVERAGE(OFFSET(Cat23SP_Flow!$B$10,12*($E$1-1),CI$3-1,12)),NA()) -> 104.8070833 | CJ6: =IF($E$1<=25,AVERAGE(OFFSET(Cat23SP_Flow!$B$10,12*($E$1-1),CJ$3-1,12)),NA()) -> 120.3071667 | CK6: =IF($E$1<=25,AVERAGE(OFFSET(Cat23SP_Flow!$B$10,12*($E$1-1),CK$3-1,12)),NA()) -> 121.7246667 | CL6: =IF($E$1<=25,AVERAGE(OFFSET(Cat23SP_Flow!$B$10,12*($E$1-1),CL$3-1,12)),NA()) -> 113.0973333 | CM6: =IF($E$1<=25,AVERAGE(OFFSET(Cat23SP_Flow!$B$10,12*($E$1-1),CM$3-1,12)),NA()) -> 133.5528333 | CN6: =IF($E$1<=25,AVERAGE(OFFSET(Cat23SP_Flow!$B$10,12*($E$1-1),CN$3-1,12)),NA()) -> 128.092 | CO6: =IF($E$1<=25,AVERAGE(OFFSET(Cat23SP_Flow!$B$10,12*($E$1-1),CO$3-1,12)),NA()) -> 132.9425 | CP6: =IF($E$1<=25,AVERAGE(OFFSET(Cat23SP_Flow!$B$10,12*($E$1-1),CP$3-1,12)),NA()) -> 112.4540833 | CQ6: =IF($E$1<=25,AVERAGE(OFFSET(Cat23SP_Flow!$B$10,12*($E$1-1),CQ$3-1,12)),NA()) -> 141.3015833 | CR6: =IF($E$1<=25,AVERAGE(OFFSET(Cat23SP_Flow!$B$10,12*($E$1-1),CR$3-1,12)),NA()) -> 103.6775833 | CS6: =IF($E$1<=25,AVERAGE(OFFSET(Cat23SP_Flow!$B$10,12*($E$1-1),CS$3-1,12)),NA()) -> 124.3270833 | CT6: =IF($E$1<=25,AVERAGE(OFFSET(Cat23SP_Flow!$B$10,12*($E$1-1),CT$3-1,12)),NA()) -> 151.15125 | CU6: =IF($E$1<=25,AVERAGE(OFFSET(Cat23SP_Flow!$B$10,12*($E$1-1),CU$3-1,12)),NA()) -> 105.2101667 | CV6: =IF($E$1<=25,AVERAGE(OFFSET(Cat23SP_Flow!$B$10,12*($E$1-1),CV$3-1,12)),NA()) -> 100.3686667 | CW6: =IF($E$1<=25,AVERAGE(OFFSET(Cat23SP_Flow!$B$10,12*($E$1-1),CW$3-1,12)),NA()) -> 122.0674167 | CX6: =IF($E$1<=25,AVERAGE(OFFSET(Cat23SP_Flow!$B$10,12*($E$1-1),CX$3-1,12)),NA()) -> 155.31275 | CY6: =IF($E$1<=25,AVERAGE(OFFSET(Cat23SP_Flow!$B$10,12*($E$1-1),CY$3-1,12)),NA()) -> 90.03275 | CZ6: =IF($E$1<=25,AVERAGE(OFFSET(Cat23SP_Flow!$B$10,12*($E$1-1),CZ$3-1,12)),NA()) -> 124.5889167 | DA6: =IF($E$1<=25,AVERAGE(OFFSET(Cat23SP_Flow!$B$10,12*($E$1-1),DA$3-1,12)),NA()) -> 98.64391667 | DB6: =IF($E$1<=25,AVERAGE(OFFSET(Cat23SP_Flow!$B$10,12*($E$1-1),DB$3-1,12)),NA()) -> 102.1771667
A7: =Labels!$A$8 -> Ore Surge Pile Seepage | B7: 16.08881 | C7: 19.93334167 | D7: 19.818127 | E7: 23.78817583 | G7: =IF($E$1<=25,AVERAGE(OFFSET(OSP_Flow!$B$10,12*($E$1-1),G$3-1,12)),NA()) -> 17.58969167 | H7: =IF($E$1<=25,AVERAGE(OFFSET(OSP_Flow!$B$10,12*($E$1-1),H$3-1,12)),NA()) -> 20.130575 | I7: =IF($E$1<=25,AVERAGE(OFFSET(OSP_Flow!$B$10,12*($E$1-1),I$3-1,12)),NA()) -> 26.07806667 | J7: =IF($E$1<=25,AVERAGE(OFFSET(OSP_Flow!$B$10,12*($E$1-1),J$3-1,12)),NA()) -> 25.86993333 | K7: =IF($E$1<=25,AVERAGE(OFFSET(OSP_Flow!$B$10,12*($E$1-1),K$3-1,12)),NA()) -> 20.09700833 | L7: =IF($E$1<=25,AVERAGE(OFFSET(OSP_Flow!$B$10,12*($E$1-1),L$3-1,12)),NA()) -> 16.0367 | M7: =IF($E$1<=25,AVERAGE(OFFSET(OSP_Flow!$B$10,12*($E$1-1),M$3-1,12)),NA()) -> 24.8151 | N7: =IF($E$1<=25,AVERAGE(OFFSET(OSP_Flow!$B$10,12*($E$1-1),N$3-1,12)),NA()) -> 21.10165 | O7: =IF($E$1<=25,AVERAGE(OFFSET(OSP_Flow!$B$10,12*($E$1-1),O$3-1,12)),NA()) -> 18.870975 | P7: =IF($E$1<=25,AVERAGE(OFFSET(OSP_Flow!$B$10,12*($E$1-1),P$3-1,12)),NA()) -> 21.20714167 | Q7: =IF($E$1<=25,AVERAGE(OFFSET(OSP_Flow!$B$10,12*($E$1-1),Q$3-1,12)),NA()) -> 22.60221667 | R7: =IF($E$1<=25,AVERAGE(OFFSET(OSP_Flow!$B$10,12*($E$1-1),R$3-1,12)),NA()) -> 21.872975 | S7: =IF($E$1<=25,AVERAGE(OFFSET(OSP_Flow!$B$10,12*($E$1-1),S$3-1,12)),NA()) -> 17.21503333 | T7: =IF($E$1<=25,AVERAGE(OFFSET(OSP_Flow!$B$10,12*($E$1-1),T$3-1,12)),NA()) -> 21.76265 | U7: =IF($E$1<=25,AVERAGE(OFFSET(OSP_Flow!$B$10,12*($E$1-1),U$3-1,12)),NA()) -> 17.43734167 | V7: =IF($E$1<=25,AVERAGE(OFFSET(OSP_Flow!$B$10,12*($E$1-1),V$3-1,12)),NA()) -> 18.6301 | W7: =IF($E$1<=25,AVERAGE(OFFSET(OSP_Flow!$B$10,12*($E$1-1),W$3-1,12)),NA()) -> 16.022175 | X7: =IF($E$1<=25,AVERAGE(OFFSET(OSP_Flow!$B$10,12*($E$1-1),X$3-1,12)),NA()) -> 23.6152 | Y7: =IF($E$1<=25,AVERAGE(OFFSET(OSP_Flow!$B$10,12*($E$1-1),Y$3-1,12)),NA()) -> 18.51725833 | Z7: =IF($E$1<=25,AVERAGE(OFFSET(OSP_Flow!$B$10,12*($E$1-1),Z$3-1,12)),NA()) -> 21.516125 | AA7: =IF($E$1<=25,AVERAGE(OFFSET(OSP_Flow!$B$10,12*($E$1-1),AA$3-1,12)),NA()) -> 16.96274167 | AB7: =IF($E$1<=25,AVERAGE(OFFSET(OSP_Flow!$B$10,12*($E$1-1),AB$3-1,12)),NA()) -> 19.6586 | AC7: =IF($E$1<=25,AVERAGE(OFFSET(OSP_Flow!$B$10,12*($E$1-1),AC$3-1,12)),NA()) -> 19.03681667 | AD7: =IF($E$1<=25,AVERAGE(OFFSET(OSP_Flow!$B$10,12*($E$1-1),AD$3-1,12)),NA()) -> 18.33856667 | AE7: =IF($E$1<=25,AVERAGE(OFFSET(OSP_Flow!$B$10,12*($E$1-1),AE$3-1,12)),NA()) -> 19.33653333 | AF7: =IF($E$1<=25,AVERAGE(OFFSET(OSP_Flow!$B$10,12*($E$1-1),AF$3-1,12)),NA()) -> 19.87400833 | AG7: =IF($E$1<=25,AVERAGE(OFFSET(OSP_Flow!$B$10,12*($E$1-1),AG$3-1,12)),NA()) -> 21.3139 | AH7: =IF($E$1<=25,AVERAGE(OFFSET(OSP_Flow!$B$10,12*($E$1-1),AH$3-1,12)),NA()) -> 19.959725 | AI7: =IF($E$1<=25,AVERAGE(OFFSET(OSP_Flow!$B$10,12*($E$1-1),AI$3-1,12)),NA()) -> 18.03129167 | AJ7: =IF($E$1<=25,AVERAGE(OFFSET(OSP_Flow!$B$10,12*($E$1-1),AJ$3-1,12)),NA()) -> 20.03599167 | AK7: =IF($E$1<=25,AVERAGE(OFFSET(OSP_Flow!$B$10,12*($E$1-1),AK$3-1,12)),NA()) -> 22.6224 | AL7: =IF($E$1<=25,AVERAGE(OFFSET(OSP_Flow!$B$10,12*($E$1-1),AL$3-1,12)),NA()) -> 21.67593333 | AM7: =IF($E$1<=25,AVERAGE(OFFSET(OSP_Flow!$B$10,12*($E$1-1),AM$3-1,12)),NA()) -> 16.26666667 | AN7: =IF($E$1<=25,AVERAGE(OFFSET(OSP_Flow!$B$10,12*($E$1-1),AN$3-1,12)),NA()) -> 15.91379167 | AO7: =IF($E$1<=25,AVERAGE(OFFSET(OSP_Flow!$B$10,12*($E$1-1),AO$3-1,12)),NA()) -> 24.520275 | AP7: =IF($E$1<=25,AVERAGE(OFFSET(OSP_Flow!$B$10,12*($E$1-1),AP$3-1,12)),NA()) -> 26.48476667 | AQ7: =IF($E$1<=25,AVERAGE(OFFSET(OSP_Flow!$B$10,12*($E$1-1),AQ$3-1,12)),NA()) -> 19.25649167 | AR7: =IF($E$1<=25,AVERAGE(OFFSET(OSP_Flow!$B$10,12*($E$1-1),AR$3-1,12)),NA()) -> 22.65454167 | AS7: =IF($E$1<=25,AVERAGE(OFFSET(OSP_Flow!$B$10,12*($E$1-1),AS$3-1,12)),NA()) -> 15.271525 | AT7: =IF($E$1<=25,AVERAGE(OFFSET(OSP_Flow!$B$10,12*($E$1-1),AT$3-1,12)),NA()) -> 21.41081667 | AU7: =IF($E$1<=25,AVERAGE(OFFSET(OSP_Flow!$B$10,12*($E$1-1),AU$3-1,12)),NA()) -> 13.46256667 | AV7: =IF($E$1<=25,AVERAGE(OFFSET(OSP_Flow!$B$10,12*($E$1-1),AV$3-1,12)),NA()) -> 20.036275 | AW7: =IF($E$1<=25,AVERAGE(OFFSET(OSP_Flow!$B$10,12*($E$1-1),AW$3-1,12)),NA()) -> 19.00993333 | AX7: =IF($E$1<=25,AVERAGE(OFFSET(OSP_Flow!$B$10,12*($E$1-1),AX$3-1,12)),NA()) -> 17.41246667 | AY7: =IF($E$1<=25,AVERAGE(OFFSET(OSP_Flow!$B$10,12*($E$1-1),AY$3-1,12)),NA()) -> 21.49621667 | AZ7: =IF($E$1<=25,AVERAGE(OFFSET(OSP_Flow!$B$10,12*($E$1-1),AZ$3-1,12)),NA()) -> 16.980075 | BA7: =IF($E$1<=25,AVERAGE(OFFSET(OSP_Flow!$B$10,12*($E$1-1),BA$3-1,12)),NA()) -> 17.01325833 | BB7: =IF($E$1<=25,AVERAGE(OFFSET(OSP_Flow!$B$10,12*($E$1-1),BB$3-1,12)),NA()) -> 26.45441667 | BC7: =IF($E$1<=25,AVERAGE(OFFSET(OSP_Flow!$B$10,12*($E$1-1),BC$3-1,12)),NA()) -> 20.94054167 | BD7: =IF($E$1<=25,AVERAGE(OFFSET(OSP_Flow!$B$10,12*($E$1-1),BD$3-1,12)),NA()) -> 16.77681667 | BE7: =IF($E$1<=25,AVERAGE(OFFSET(OSP_Flow!$B$10,12*($E$1-1),BE$3-1,12)),NA()) -> 17.12273333 | BF7: =IF($E$1<=25,AVERAGE(OFFSET(OSP_Flow!$B$10,12*($E$1-1),BF$3-1,12)),NA()) -> 17.31318333 | BG7: =IF($E$1<=25,AVERAGE(OFFSET(OSP_Flow!$B$10,12*($E$1-1),BG$3-1,12)),NA()) -> 16.918425 | BH7: =IF($E$1<=25,AVERAGE(OFFSET(OSP_Flow!$B$10,12*($E$1-1),BH$3-1,12)),NA()) -> 16.43778333 | BI7: =IF($E$1<=25,AVERAGE(OFFSET(OSP_Flow!$B$10,12*($E$1-1),BI$3-1,12)),NA()) -> 17.369925 | BJ7: =IF($E$1<=25,AVERAGE(OFFSET(OSP_Flow!$B$10,12*($E$1-1),BJ$3-1,12)),NA()) -> 20.47489167 | BK7: =IF($E$1<=25,AVERAGE(OFFSET(OSP_Flow!$B$10,12*($E$1-1),BK$3-1,12)),NA()) -> 17.70688333 | BL7: =IF($E$1<=25,AVERAGE(OFFSET(OSP_Flow!$B$10,12*($E$1-1),BL$3-1,12)),NA()) -> 17.8155 | BM7: =IF($E$1<=25,AVERAGE(OFFSET(OSP_Flow!$B$10,12*($E$1-1),BM$3-1,12)),NA()) -> 20.46338333 | BN7: =IF($E$1<=25,AVERAGE(OFFSET(OSP_Flow!$B$10,12*($E$1-1),BN$3-1,12)),NA()) -> 22.51125833 | BO7: =IF($E$1<=25,AVERAGE(OFFSET(OSP_Flow!$B$10,12*($E$1-1),BO$3-1,12)),NA()) -> 23.44729167 | BP7: =IF($E$1<=25,AVERAGE(OFFSET(OSP_Flow!$B$10,12*($E$1-1),BP$3-1,12)),NA()) -> 16.682625 | BQ7: =IF($E$1<=25,AVERAGE(OFFSET(OSP_Flow!$B$10,12*($E$1-1),BQ$3-1,12)),NA()) -> 20.08209167 | BR7: =IF($E$1<=25,AVERAGE(OFFSET(OSP_Flow!$B$10,12*($E$1-1),BR$3-1,12)),NA()) -> 16.80161667 | BS7: =IF($E$1<=25,AVERAGE(OFFSET(OSP_Flow!$B$10,12*($E$1-1),BS$3-1,12)),NA()) -> 21.36234167 | BT7: =IF($E$1<=25,AVERAGE(OFFSET(OSP_Flow!$B$10,12*($E$1-1),BT$3-1,12)),NA()) -> 23.23335833 | BU7: =IF($E$1<=25,AVERAGE(OFFSET(OSP_Flow!$B$10,12*($E$1-1),BU$3-1,12)),NA()) -> 20.96410833 | BV7: =IF($E$1<=25,AVERAGE(OFFSET(OSP_Flow!$B$10,12*($E$1-1),BV$3-1,12)),NA()) -> 14.24445 | BW7: =IF($E$1<=25,AVERAGE(OFFSET(OSP_Flow!$B$10,12*($E$1-1),BW$3-1,12)),NA()) -> 15.829625 | BX7: =IF($E$1<=25,AVERAGE(OFFSET(OSP_Flow!$B$10,12*($E$1-1),BX$3-1,12)),NA()) -> 12.05754167 | BY7: =IF($E$1<=25,AVERAGE(OFFSET(OSP_Flow!$B$10,12*($E$1-1),BY$3-1,12)),NA()) -> 23.72320833 | BZ7: =IF($E$1<=25,AVERAGE(OFFSET(OSP_Flow!$B$10,12*($E$1-1),BZ$3-1,12)),NA()) -> 23.74086667 | CA7: =IF($E$1<=25,AVERAGE(OFFSET(OSP_Flow!$B$10,12*($E$1-1),CA$3-1,12)),NA()) -> 19.02550833 | CB7: =IF($E$1<=25,AVERAGE(OFFSET(OSP_Flow!$B$10,12*($E$1-1),CB$3-1,12)),NA()) -> 27.794875 | CC7: =IF($E$1<=25,AVERAGE(OFFSET(OSP_Flow!$B$10,12*($E$1-1),CC$3-1,12)),NA()) -> 16.0946 | CD7: =IF($E$1<=25,AVERAGE(OFFSET(OSP_Flow!$B$10,12*($E$1-1),CD$3-1,12)),NA()) -> 15.881 | CE7: =IF($E$1<=25,AVERAGE(OFFSET(OSP_Flow!$B$10,12*($E$1-1),CE$3-1,12)),NA()) -> 23.030925 | CF7: =IF($E$1<=25,AVERAGE(OFFSET(OSP_Flow!$B$10,12*($E$1-1),CF$3-1,12)),NA()) -> 22.814075 | CG7: =IF($E$1<=25,AVERAGE(OFFSET(OSP_Flow!$B$10,12*($E$1-1),CG$3-1,12)),NA()) -> 22.75534167 | CH7: =IF($E$1<=25,AVERAGE(OFFSET(OSP_Flow!$B$10,12*($E$1-1),CH$3-1,12)),NA()) -> 24.21395833 | CI7: =IF($E$1<=25,AVERAGE(OFFSET(OSP_Flow!$B$10,12*($E$1-1),CI$3-1,12)),NA()) -> 17.33598333 | CJ7: =IF($E$1<=25,AVERAGE(OFFSET(OSP_Flow!$B$10,12*($E$1-1),CJ$3-1,12)),NA()) -> 19.90695833 | CK7: =IF($E$1<=25,AVERAGE(OFFSET(OSP_Flow!$B$10,12*($E$1-1),CK$3-1,12)),NA()) -> 20.13754167 | CL7: =IF($E$1<=25,AVERAGE(OFFSET(OSP_Flow!$B$10,12*($E$1-1),CL$3-1,12)),NA()) -> 18.70626667 | CM7: =IF($E$1<=25,AVERAGE(OFFSET(OSP_Flow!$B$10,12*($E$1-1),CM$3-1,12)),NA()) -> 22.10576667 | CN7: =IF($E$1<=25,AVERAGE(OFFSET(OSP_Flow!$B$10,12*($E$1-1),CN$3-1,12)),NA()) -> 21.19 | CO7: =IF($E$1<=25,AVERAGE(OFFSET(OSP_Flow!$B$10,12*($E$1-1),CO$3-1,12)),NA()) -> 21.99044167 | CP7: =IF($E$1<=25,AVERAGE(OFFSET(OSP_Flow!$B$10,12*($E$1-1),CP$3-1,12)),NA()) -> 18.60351667 | CQ7: =IF($E$1<=25,AVERAGE(OFFSET(OSP_Flow!$B$10,12*($E$1-1),CQ$3-1,12)),NA()) -> 23.37050833 | CR7: =IF($E$1<=25,AVERAGE(OFFSET(OSP_Flow!$B$10,12*($E$1-1),CR$3-1,12)),NA()) -> 17.1495 | CS7: =IF($E$1<=25,AVERAGE(OFFSET(OSP_Flow!$B$10,12*($E$1-1),CS$3-1,12)),NA()) -> 20.56621667 | CT7: =IF($E$1<=25,AVERAGE(OFFSET(OSP_Flow!$B$10,12*($E$1-1),CT$3-1,12)),NA()) -> 25.00234167 | CU7: =IF($E$1<=25,AVERAGE(OFFSET(OSP_Flow!$B$10,12*($E$1-1),CU$3-1,12)),NA()) -> 17.402825 | CV7: =IF($E$1<=25,AVERAGE(OFFSET(OSP_Flow!$B$10,12*($E$1-1),CV$3-1,12)),NA()) -> 16.616525 | CW7: =IF($E$1<=25,AVERAGE(OFFSET(OSP_Flow!$B$10,12*($E$1-1),CW$3-1,12)),NA()) -> 20.18976667 | CX7: =IF($E$1<=25,AVERAGE(OFFSET(OSP_Flow!$B$10,12*($E$1-1),CX$3-1,12)),NA()) -> 25.70244167 | CY7: =IF($E$1<=25,AVERAGE(OFFSET(OSP_Flow!$B$10,12*($E$1-1),CY$3-1,12)),NA()) -> 14.89293333 | CZ7: =IF($E$1<=25,AVERAGE(OFFSET(OSP_Flow!$B$10,12*($E$1-1),CZ$3-1,12)),NA()) -> 20.60865833 | DA7: =IF($E$1<=25,AVERAGE(OFFSET(OSP_Flow!$B$10,12*($E$1-1),DA$3-1,12)),NA()) -> 16.317675 | DB7: =IF($E$1<=25,AVERAGE(OFFSET(OSP_Flow!$B$10,12*($E$1-1),DB$3-1,12)),NA()) -> 16.90759167
A8: =Labels!$A$9 -> Category 4 Stockpile Seepage | B8: 0 | C8: 0 | D8: 0 | E8: 0 | G8: =IF($E$1<=25,AVERAGE(OFFSET(Cat4SP_Flow!$B$10,12*($E$1-1),G$3-1,12)),NA()) -> 0 | H8: =IF($E$1<=25,AVERAGE(OFFSET(Cat4SP_Flow!$B$10,12*($E$1-1),H$3-1,12)),NA()) -> 0 | I8: =IF($E$1<=25,AVERAGE(OFFSET(Cat4SP_Flow!$B$10,12*($E$1-1),I$3-1,12)),NA()) -> 0 | J8: =IF($E$1<=25,AVERAGE(OFFSET(Cat4SP_Flow!$B$10,12*($E$1-1),J$3-1,12)),NA()) -> 0 | K8: =IF($E$1<=25,AVERAGE(OFFSET(Cat4SP_Flow!$B$10,12*($E$1-1),K$3-1,12)),NA()) -> 0 | L8: =IF($E$1<=25,AVERAGE(OFFSET(Cat4SP_Flow!$B$10,12*($E$1-1),L$3-1,12)),NA()) -> 0 | M8: =IF($E$1<=25,AVERAGE(OFFSET(Cat4SP_Flow!$B$10,12*($E$1-1),M$3-1,12)),NA()) -> 0 | N8: =IF($E$1<=25,AVERAGE(OFFSET(Cat4SP_Flow!$B$10,12*($E$1-1),N$3-1,12)),NA()) -> 0 | O8: =IF($E$1<=25,AVERAGE(OFFSET(Cat4SP_Flow!$B$10,12*($E$1-1),O$3-1,12)),NA()) -> 0 | P8: =IF($E$1<=25,AVERAGE(OFFSET(Cat4SP_Flow!$B$10,12*($E$1-1),P$3-1,12)),NA()) -> 0 | Q8: =IF($E$1<=25,AVERAGE(OFFSET(Cat4SP_Flow!$B$10,12*($E$1-1),Q$3-1,12)),NA()) -> 0 | R8: =IF($E$1<=25,AVERAGE(OFFSET(Cat4SP_Flow!$B$10,12*($E$1-1),R$3-1,12)),NA()) -> 0 | S8: =IF($E$1<=25,AVERAGE(OFFSET(Cat4SP_Flow!$B$10,12*($E$1-1),S$3-1,12)),NA()) -> 0 | T8: =IF($E$1<=25,AVERAGE(OFFSET(Cat4SP_Flow!$B$10,12*($E$1-1),T$3-1,12)),NA()) -> 0 | U8: =IF($E$1<=25,AVERAGE(OFFSET(Cat4SP_Flow!$B$10,12*($E$1-1),U$3-1,12)),NA()) -> 0 | V8: =IF($E$1<=25,AVERAGE(OFFSET(Cat4SP_Flow!$B$10,12*($E$1-1),V$3-1,12)),NA()) -> 0 | W8: =IF($E$1<=25,AVERAGE(OFFSET(Cat4SP_Flow!$B$10,12*($E$1-1),W$3-1,12)),NA()) -> 0 | X8: =IF($E$1<=25,AVERAGE(OFFSET(Cat4SP_Flow!$B$10,12*($E$1-1),X$3-1,12)),NA()) -> 0 | Y8: =IF($E$1<=25,AVERAGE(OFFSET(Cat4SP_Flow!$B$10,12*($E$1-1),Y$3-1,12)),NA()) -> 0 | Z8: =IF($E$1<=25,AVERAGE(OFFSET(Cat4SP_Flow!$B$10,12*($E$1-1),Z$3-1,12)),NA()) -> 0 | AA8: =IF($E$1<=25,AVERAGE(OFFSET(Cat4SP_Flow!$B$10,12*($E$1-1),AA$3-1,12)),NA()) -> 0 | AB8: =IF($E$1<=25,AVERAGE(OFFSET(Cat4SP_Flow!$B$10,12*($E$1-1),AB$3-1,12)),NA()) -> 0 | AC8: =IF($E$1<=25,AVERAGE(OFFSET(Cat4SP_Flow!$B$10,12*($E$1-1),AC$3-1,12)),NA()) -> 0 | AD8: =IF($E$1<=25,AVERAGE(OFFSET(Cat4SP_Flow!$B$10,12*($E$1-1),AD$3-1,12)),NA()) -> 0 | AE8: =IF($E$1<=25,AVERAGE(OFFSET(Cat4SP_Flow!$B$10,12*($E$1-1),AE$3-1,12)),NA()) -> 0 | AF8: =IF($E$1<=25,AVERAGE(OFFSET(Cat4SP_Flow!$B$10,12*($E$1-1),AF$3-1,12)),NA()) -> 0 | AG8: =IF($E$1<=25,AVERAGE(OFFSET(Cat4SP_Flow!$B$10,12*($E$1-1),AG$3-1,12)),NA()) -> 0 | AH8: =IF($E$1<=25,AVERAGE(OFFSET(Cat4SP_Flow!$B$10,12*($E$1-1),AH$3-1,12)),NA()) -> 0 | AI8: =IF($E$1<=25,AVERAGE(OFFSET(Cat4SP_Flow!$B$10,12*($E$1-1),AI$3-1,12)),NA()) -> 0 | AJ8: =IF($E$1<=25,AVERAGE(OFFSET(Cat4SP_Flow!$B$10,12*($E$1-1),AJ$3-1,12)),NA()) -> 0 | AK8: =IF($E$1<=25,AVERAGE(OFFSET(Cat4SP_Flow!$B$10,12*($E$1-1),AK$3-1,12)),NA()) -> 0 | AL8: =IF($E$1<=25,AVERAGE(OFFSET(Cat4SP_Flow!$B$10,12*($E$1-1),AL$3-1,12)),NA()) -> 0 | AM8: =IF($E$1<=25,AVERAGE(OFFSET(Cat4SP_Flow!$B$10,12*($E$1-1),AM$3-1,12)),NA()) -> 0 | AN8: =IF($E$1<=25,AVERAGE(OFFSET(Cat4SP_Flow!$B$10,12*($E$1-1),AN$3-1,12)),NA()) -> 0 | AO8: =IF($E$1<=25,AVERAGE(OFFSET(Cat4SP_Flow!$B$10,12*($E$1-1),AO$3-1,12)),NA()) -> 0 | AP8: =IF($E$1<=25,AVERAGE(OFFSET(Cat4SP_Flow!$B$10,12*($E$1-1),AP$3-1,12)),NA()) -> 0 | AQ8: =IF($E$1<=25,AVERAGE(OFFSET(Cat4SP_Flow!$B$10,12*($E$1-1),AQ$3-1,12)),NA()) -> 0 | AR8: =IF($E$1<=25,AVERAGE(OFFSET(Cat4SP_Flow!$B$10,12*($E$1-1),AR$3-1,12)),NA()) -> 0 | AS8: =IF($E$1<=25,AVERAGE(OFFSET(Cat4SP_Flow!$B$10,12*($E$1-1),AS$3-1,12)),NA()) -> 0 | AT8: =IF($E$1<=25,AVERAGE(OFFSET(Cat4SP_Flow!$B$10,12*($E$1-1),AT$3-1,12)),NA()) -> 0 | AU8: =IF($E$1<=25,AVERAGE(OFFSET(Cat4SP_Flow!$B$10,12*($E$1-1),AU$3-1,12)),NA()) -> 0 | AV8: =IF($E$1<=25,AVERAGE(OFFSET(Cat4SP_Flow!$B$10,12*($E$1-1),AV$3-1,12)),NA()) -> 0 | AW8: =IF($E$1<=25,AVERAGE(OFFSET(Cat4SP_Flow!$B$10,12*($E$1-1),AW$3-1,12)),NA()) -> 0 | AX8: =IF($E$1<=25,AVERAGE(OFFSET(Cat4SP_Flow!$B$10,12*($E$1-1),AX$3-1,12)),NA()) -> 0 | AY8: =IF($E$1<=25,AVERAGE(OFFSET(Cat4SP_Flow!$B$10,12*($E$1-1),AY$3-1,12)),NA()) -> 0 | AZ8: =IF($E$1<=25,AVERAGE(OFFSET(Cat4SP_Flow!$B$10,12*($E$1-1),AZ$3-1,12)),NA()) -> 0 | BA8: =IF($E$1<=25,AVERAGE(OFFSET(Cat4SP_Flow!$B$10,12*($E$1-1),BA$3-1,12)),NA()) -> 0 | BB8: =IF($E$1<=25,AVERAGE(OFFSET(Cat4SP_Flow!$B$10,12*($E$1-1),BB$3-1,12)),NA()) -> 0 | BC8: =IF($E$1<=25,AVERAGE(OFFSET(Cat4SP_Flow!$B$10,12*($E$1-1),BC$3-1,12)),NA()) -> 0 | BD8: =IF($E$1<=25,AVERAGE(OFFSET(Cat4SP_Flow!$B$10,12*($E$1-1),BD$3-1,12)),NA()) -> 0 | BE8: =IF($E$1<=25,AVERAGE(OFFSET(Cat4SP_Flow!$B$10,12*($E$1-1),BE$3-1,12)),NA()) -> 0 | BF8: =IF($E$1<=25,AVERAGE(OFFSET(Cat4SP_Flow!$B$10,12*($E$1-1),BF$3-1,12)),NA()) -> 0 | BG8: =IF($E$1<=25,AVERAGE(OFFSET(Cat4SP_Flow!$B$10,12*($E$1-1),BG$3-1,12)),NA()) -> 0 | BH8: =IF($E$1<=25,AVERAGE(OFFSET(Cat4SP_Flow!$B$10,12*($E$1-1),BH$3-1,12)),NA()) -> 0 | BI8: =IF($E$1<=25,AVERAGE(OFFSET(Cat4SP_Flow!$B$10,12*($E$1-1),BI$3-1,12)),NA()) -> 0 | BJ8: =IF($E$1<=25,AVERAGE(OFFSET(Cat4SP_Flow!$B$10,12*($E$1-1),BJ$3-1,12)),NA()) -> 0 | BK8: =IF($E$1<=25,AVERAGE(OFFSET(Cat4SP_Flow!$B$10,12*($E$1-1),BK$3-1,12)),NA()) -> 0 | BL8: =IF($E$1<=25,AVERAGE(OFFSET(Cat4SP_Flow!$B$10,12*($E$1-1),BL$3-1,12)),NA()) -> 0 | BM8: =IF($E$1<=25,AVERAGE(OFFSET(Cat4SP_Flow!$B$10,12*($E$1-1),BM$3-1,12)),NA()) -> 0 | BN8: =IF($E$1<=25,AVERAGE(OFFSET(Cat4SP_Flow!$B$10,12*($E$1-1),BN$3-1,12)),NA()) -> 0 | BO8: =IF($E$1<=25,AVERAGE(OFFSET(Cat4SP_Flow!$B$10,12*($E$1-1),BO$3-1,12)),NA()) -> 0 | BP8: =IF($E$1<=25,AVERAGE(OFFSET(Cat4SP_Flow!$B$10,12*($E$1-1),BP$3-1,12)),NA()) -> 0 | BQ8: =IF($E$1<=25,AVERAGE(OFFSET(Cat4SP_Flow!$B$10,12*($E$1-1),BQ$3-1,12)),NA()) -> 0 | BR8: =IF($E$1<=25,AVERAGE(OFFSET(Cat4SP_Flow!$B$10,12*($E$1-1),BR$3-1,12)),NA()) -> 0 | BS8: =IF($E$1<=25,AVERAGE(OFFSET(Cat4SP_Flow!$B$10,12*($E$1-1),BS$3-1,12)),NA()) -> 0 | BT8: =IF($E$1<=25,AVERAGE(OFFSET(Cat4SP_Flow!$B$10,12*($E$1-1),BT$3-1,12)),NA()) -> 0 | BU8: =IF($E$1<=25,AVERAGE(OFFSET(Cat4SP_Flow!$B$10,12*($E$1-1),BU$3-1,12)),NA()) -> 0 | BV8: =IF($E$1<=25,AVERAGE(OFFSET(Cat4SP_Flow!$B$10,12*($E$1-1),BV$3-1,12)),NA()) -> 0 | BW8: =IF($E$1<=25,AVERAGE(OFFSET(Cat4SP_Flow!$B$10,12*($E$1-1),BW$3-1,12)),NA()) -> 0 | BX8: =IF($E$1<=25,AVERAGE(OFFSET(Cat4SP_Flow!$B$10,12*($E$1-1),BX$3-1,12)),NA()) -> 0 | BY8: =IF($E$1<=25,AVERAGE(OFFSET(Cat4SP_Flow!$B$10,12*($E$1-1),BY$3-1,12)),NA()) -> 0 | BZ8: =IF($E$1<=25,AVERAGE(OFFSET(Cat4SP_Flow!$B$10,12*($E$1-1),BZ$3-1,12)),NA()) -> 0 | CA8: =IF($E$1<=25,AVERAGE(OFFSET(Cat4SP_Flow!$B$10,12*($E$1-1),CA$3-1,12)),NA()) -> 0 | CB8: =IF($E$1<=25,AVERAGE(OFFSET(Cat4SP_Flow!$B$10,12*($E$1-1),CB$3-1,12)),NA()) -> 0 | CC8: =IF($E$1<=25,AVERAGE(OFFSET(Cat4SP_Flow!$B$10,12*($E$1-1),CC$3-1,12)),NA()) -> 0 | CD8: =IF($E$1<=25,AVERAGE(OFFSET(Cat4SP_Flow!$B$10,12*($E$1-1),CD$3-1,12)),NA()) -> 0 | CE8: =IF($E$1<=25,AVERAGE(OFFSET(Cat4SP_Flow!$B$10,12*($E$1-1),CE$3-1,12)),NA()) -> 0 | CF8: =IF($E$1<=25,AVERAGE(OFFSET(Cat4SP_Flow!$B$10,12*($E$1-1),CF$3-1,12)),NA()) -> 0 | CG8: =IF($E$1<=25,AVERAGE(OFFSET(Cat4SP_Flow!$B$10,12*($E$1-1),CG$3-1,12)),NA()) -> 0 | CH8: =IF($E$1<=25,AVERAGE(OFFSET(Cat4SP_Flow!$B$10,12*($E$1-1),CH$3-1,12)),NA()) -> 0 | CI8: =IF($E$1<=25,AVERAGE(OFFSET(Cat4SP_Flow!$B$10,12*($E$1-1),CI$3-1,12)),NA()) -> 0 | CJ8: =IF($E$1<=25,AVERAGE(OFFSET(Cat4SP_Flow!$B$10,12*($E$1-1),CJ$3-1,12)),NA()) -> 0 | CK8: =IF($E$1<=25,AVERAGE(OFFSET(Cat4SP_Flow!$B$10,12*($E$1-1),CK$3-1,12)),NA()) -> 0 | CL8: =IF($E$1<=25,AVERAGE(OFFSET(Cat4SP_Flow!$B$10,12*($E$1-1),CL$3-1,12)),NA()) -> 0 | CM8: =IF($E$1<=25,AVERAGE(OFFSET(Cat4SP_Flow!$B$10,12*($E$1-1),CM$3-1,12)),NA()) -> 0 | CN8: =IF($E$1<=25,AVERAGE(OFFSET(Cat4SP_Flow!$B$10,12*($E$1-1),CN$3-1,12)),NA()) -> 0 | CO8: =IF($E$1<=25,AVERAGE(OFFSET(Cat4SP_Flow!$B$10,12*($E$1-1),CO$3-1,12)),NA()) -> 0 | CP8: =IF($E$1<=25,AVERAGE(OFFSET(Cat4SP_Flow!$B$10,12*($E$1-1),CP$3-1,12)),NA()) -> 0 | CQ8: =IF($E$1<=25,AVERAGE(OFFSET(Cat4SP_Flow!$B$10,12*($E$1-1),CQ$3-1,12)),NA()) -> 0 | CR8: =IF($E$1<=25,AVERAGE(OFFSET(Cat4SP_Flow!$B$10,12*($E$1-1),CR$3-1,12)),NA()) -> 0 | CS8: =IF($E$1<=25,AVERAGE(OFFSET(Cat4SP_Flow!$B$10,12*($E$1-1),CS$3-1,12)),NA()) -> 0 | CT8: =IF($E$1<=25,AVERAGE(OFFSET(Cat4SP_Flow!$B$10,12*($E$1-1),CT$3-1,12)),NA()) -> 0 | CU8: =IF($E$1<=25,AVERAGE(OFFSET(Cat4SP_Flow!$B$10,12*($E$1-1),CU$3-1,12)),NA()) -> 0 | CV8: =IF($E$1<=25,AVERAGE(OFFSET(Cat4SP_Flow!$B$10,12*($E$1-1),CV$3-1,12)),NA()) -> 0 | CW8: =IF($E$1<=25,AVERAGE(OFFSET(Cat4SP_Flow!$B$10,12*($E$1-1),CW$3-1,12)),NA()) -> 0 | CX8: =IF($E$1<=25,AVERAGE(OFFSET(Cat4SP_Flow!$B$10,12*($E$1-1),CX$3-1,12)),NA()) -> 0 | CY8: =IF($E$1<=25,AVERAGE(OFFSET(Cat4SP_Flow!$B$10,12*($E$1-1),CY$3-1,12)),NA()) -> 0 | CZ8: =IF($E$1<=25,AVERAGE(OFFSET(Cat4SP_Flow!$B$10,12*($E$1-1),CZ$3-1,12)),NA()) -> 0 | DA8: =IF($E$1<=25,AVERAGE(OFFSET(Cat4SP_Flow!$B$10,12*($E$1-1),DA$3-1,12)),NA()) -> 0 | DB8: =IF($E$1<=25,AVERAGE(OFFSET(Cat4SP_Flow!$B$10,12*($E$1-1),DB$3-1,12)),NA()) -> 0
A9: =Labels!$A$10 -> East Pit operations | B9: 684.422 | C9: 780.7129167 | D9: =AVERAGE($G9:$DB9) -> 848.7416333 | E9: =PERCENTILE($G9:$DB9,0.9) -> 1075.487417 | G9: =IF($E$1<=20,AVERAGE(OFFSET(EP_Flow!$B$10,12*($E$1-1),G$3-1,12)),NA()) -> 829.3041667 | H9: =IF($E$1<=20,AVERAGE(OFFSET(EP_Flow!$B$10,12*($E$1-1),H$3-1,12)),NA()) -> 785.1208333 | I9: =IF($E$1<=20,AVERAGE(OFFSET(EP_Flow!$B$10,12*($E$1-1),I$3-1,12)),NA()) -> 714.0175 | J9: =IF($E$1<=20,AVERAGE(OFFSET(EP_Flow!$B$10,12*($E$1-1),J$3-1,12)),NA()) -> 726.6416667 | K9: =IF($E$1<=20,AVERAGE(OFFSET(EP_Flow!$B$10,12*($E$1-1),K$3-1,12)),NA()) -> 724.93 | L9: =IF($E$1<=20,AVERAGE(OFFSET(EP_Flow!$B$10,12*($E$1-1),L$3-1,12)),NA()) -> 1123.265833 | M9: =IF($E$1<=20,AVERAGE(OFFSET(EP_Flow!$B$10,12*($E$1-1),M$3-1,12)),NA()) -> 880.9741667 | N9: =IF($E$1<=20,AVERAGE(OFFSET(EP_Flow!$B$10,12*($E$1-1),N$3-1,12)),NA()) -> 1023.5575 | O9: =IF($E$1<=20,AVERAGE(OFFSET(EP_Flow!$B$10,12*($E$1-1),O$3-1,12)),NA()) -> 792.4233333 | P9: =IF($E$1<=20,AVERAGE(OFFSET(EP_Flow!$B$10,12*($E$1-1),P$3-1,12)),NA()) -> 985.1891667 | Q9: =IF($E$1<=20,AVERAGE(OFFSET(EP_Flow!$B$10,12*($E$1-1),Q$3-1,12)),NA()) -> 811.2408333 | R9: =IF($E$1<=20,AVERAGE(OFFSET(EP_Flow!$B$10,12*($E$1-1),R$3-1,12)),NA()) -> 745.1958333 | S9: =IF($E$1<=20,AVERAGE(OFFSET(EP_Flow!$B$10,12*($E$1-1),S$3-1,12)),NA()) -> 700.03 | T9: =IF($E$1<=20,AVERAGE(OFFSET(EP_Flow!$B$10,12*($E$1-1),T$3-1,12)),NA()) -> 746.6166667 | U9: =IF($E$1<=20,AVERAGE(OFFSET(EP_Flow!$B$10,12*($E$1-1),U$3-1,12)),NA()) -> 1469.85 | V9: =IF($E$1<=20,AVERAGE(OFFSET(EP_Flow!$B$10,12*($E$1-1),V$3-1,12)),NA()) -> 760.9266667 | W9: =IF($E$1<=20,AVERAGE(OFFSET(EP_Flow!$B$10,12*($E$1-1),W$3-1,12)),NA()) -> 643.9416667 | X9: =IF($E$1<=20,AVERAGE(OFFSET(EP_Flow!$B$10,12*($E$1-1),X$3-1,12)),NA()) -> 799.245 | Y9: =IF($E$1<=20,AVERAGE(OFFSET(EP_Flow!$B$10,12*($E$1-1),Y$3-1,12)),NA()) -> 700.4041667 | Z9: =IF($E$1<=20,AVERAGE(OFFSET(EP_Flow!$B$10,12*($E$1-1),Z$3-1,12)),NA()) -> 915.4991667 | AA9: =IF($E$1<=20,AVERAGE(OFFSET(EP_Flow!$B$10,12*($E$1-1),AA$3-1,12)),NA()) -> 1033.84 | AB9: =IF($E$1<=20,AVERAGE(OFFSET(EP_Flow!$B$10,12*($E$1-1),AB$3-1,12)),NA()) -> 718.4066667 | AC9: =IF($E$1<=20,AVERAGE(OFFSET(EP_Flow!$B$10,12*($E$1-1),AC$3-1,12)),NA()) -> 655.2116667 | AD9: =IF($E$1<=20,AVERAGE(OFFSET(EP_Flow!$B$10,12*($E$1-1),AD$3-1,12)),NA()) -> 841.285 | AE9: =IF($E$1<=20,AVERAGE(OFFSET(EP_Flow!$B$10,12*($E$1-1),AE$3-1,12)),NA()) -> 929.5858333 | AF9: =IF($E$1<=20,AVERAGE(OFFSET(EP_Flow!$B$10,12*($E$1-1),AF$3-1,12)),NA()) -> 872.5925 | AG9: =IF($E$1<=20,AVERAGE(OFFSET(EP_Flow!$B$10,12*($E$1-1),AG$3-1,12)),NA()) -> 769.42 | AH9: =IF($E$1<=20,AVERAGE(OFFSET(EP_Flow!$B$10,12*($E$1-1),AH$3-1,12)),NA()) -> 1583.875 | AI9: =IF($E$1<=20,AVERAGE(OFFSET(EP_Flow!$B$10,12*($E$1-1),AI$3-1,12)),NA()) -> 773.3191667 | AJ9: =IF($E$1<=20,AVERAGE(OFFSET(EP_Flow!$B$10,12*($E$1-1),AJ$3-1,12)),NA()) -> 1041.044167 | AK9: =IF($E$1<=20,AVERAGE(OFFSET(EP_Flow!$B$10,12*($E$1-1),AK$3-1,12)),NA()) -> 962.1433333 | AL9: =IF($E$1<=20,AVERAGE(OFFSET(EP_Flow!$B$10,12*($E$1-1),AL$3-1,12)),NA()) -> 776.305 | AM9: =IF($E$1<=20,AVERAGE(OFFSET(EP_Flow!$B$10,12*($E$1-1),AM$3-1,12)),NA()) -> 682.9016667 | AN9: =IF($E$1<=20,AVERAGE(OFFSET(EP_Flow!$B$10,12*($E$1-1),AN$3-1,12)),NA()) -> 866.6991667 | AO9: =IF($E$1<=20,AVERAGE(OFFSET(EP_Flow!$B$10,12*($E$1-1),AO$3-1,12)),NA()) -> 769.785 | AP9: =IF($E$1<=20,AVERAGE(OFFSET(EP_Flow!$B$10,12*($E$1-1),AP$3-1,12)),NA()) -> 716.9041667 | AQ9: =IF($E$1<=20,AVERAGE(OFFSET(EP_Flow!$B$10,12*($E$1-1),AQ$3-1,12)),NA()) -> 824.755 | AR9: =IF($E$1<=20,AVERAGE(OFFSET(EP_Flow!$B$10,12*($E$1-1),AR$3-1,12)),NA()) -> 929.4791667 | AS9: =IF($E$1<=20,AVERAGE(OFFSET(EP_Flow!$B$10,12*($E$1-1),AS$3-1,12)),NA()) -> 1116.690833 | AT9: =IF($E$1<=20,AVERAGE(OFFSET(EP_Flow!$B$10,12*($E$1-1),AT$3-1,12)),NA()) -> 747.9341667 | AU9: =IF($E$1<=20,AVERAGE(OFFSET(EP_Flow!$B$10,12*($E$1-1),AU$3-1,12)),NA()) -> 621.5166667 | AV9: =IF($E$1<=20,AVERAGE(OFFSET(EP_Flow!$B$10,12*($E$1-1),AV$3-1,12)),NA()) -> 804.2591667 | AW9: =IF($E$1<=20,AVERAGE(OFFSET(EP_Flow!$B$10,12*($E$1-1),AW$3-1,12)),NA()) -> 710.0658333 | AX9: =IF($E$1<=20,AVERAGE(OFFSET(EP_Flow!$B$10,12*($E$1-1),AX$3-1,12)),NA()) -> 810.6216667 | AY9: =IF($E$1<=20,AVERAGE(OFFSET(EP_Flow!$B$10,12*($E$1-1),AY$3-1,12)),NA()) -> 1302.1 | AZ9: =IF($E$1<=20,AVERAGE(OFFSET(EP_Flow!$B$10,12*($E$1-1),AZ$3-1,12)),NA()) -> 836.675 | BA9: =IF($E$1<=20,AVERAGE(OFFSET(EP_Flow!$B$10,12*($E$1-1),BA$3-1,12)),NA()) -> 698.735 | BB9: =IF($E$1<=20,AVERAGE(OFFSET(EP_Flow!$B$10,12*($E$1-1),BB$3-1,12)),NA()) -> 706.5375 | BC9: =IF($E$1<=20,AVERAGE(OFFSET(EP_Flow!$B$10,12*($E$1-1),BC$3-1,12)),NA()) -> 708.345 | BD9: =IF($E$1<=20,AVERAGE(OFFSET(EP_Flow!$B$10,12*($E$1-1),BD$3-1,12)),NA()) -> 711.7658333 | BE9: =IF($E$1<=20,AVERAGE(OFFSET(EP_Flow!$B$10,12*($E$1-1),BE$3-1,12)),NA()) -> 788.6791667 | BF9: =IF($E$1<=20,AVERAGE(OFFSET(EP_Flow!$B$10,12*($E$1-1),BF$3-1,12)),NA()) -> 848.0491667 | BG9: =IF($E$1<=20,AVERAGE(OFFSET(EP_Flow!$B$10,12*($E$1-1),BG$3-1,12)),NA()) -> 652.6925 | BH9: =IF($E$1<=20,AVERAGE(OFFSET(EP_Flow!$B$10,12*($E$1-1),BH$3-1,12)),NA()) -> 1207.483333 | BI9: =IF($E$1<=20,AVERAGE(OFFSET(EP_Flow!$B$10,12*($E$1-1),BI$3-1,12)),NA()) -> 922.03 | BJ9: =IF($E$1<=20,AVERAGE(OFFSET(EP_Flow!$B$10,12*($E$1-1),BJ$3-1,12)),NA()) -> 814.625 | BK9: =IF($E$1<=20,AVERAGE(OFFSET(EP_Flow!$B$10,12*($E$1-1),BK$3-1,12)),NA()) -> 1086.286667 | BL9: =IF($E$1<=20,AVERAGE(OFFSET(EP_Flow!$B$10,12*($E$1-1),BL$3-1,12)),NA()) -> 753.8858333 | BM9: =IF($E$1<=20,AVERAGE(OFFSET(EP_Flow!$B$10,12*($E$1-1),BM$3-1,12)),NA()) -> 754.2616667 | BN9: =IF($E$1<=20,AVERAGE(OFFSET(EP_Flow!$B$10,12*($E$1-1),BN$3-1,12)),NA()) -> 986.6725 | BO9: =IF($E$1<=20,AVERAGE(OFFSET(EP_Flow!$B$10,12*($E$1-1),BO$3-1,12)),NA()) -> 713.8408333 | BP9: =IF($E$1<=20,AVERAGE(OFFSET(EP_Flow!$B$10,12*($E$1-1),BP$3-1,12)),NA()) -> 669.475 | BQ9: =IF($E$1<=20,AVERAGE(OFFSET(EP_Flow!$B$10,12*($E$1-1),BQ$3-1,12)),NA()) -> 839.2441667 | BR9: =IF($E$1<=20,AVERAGE(OFFSET(EP_Flow!$B$10,12*($E$1-1),BR$3-1,12)),NA()) -> 696.6375 | BS9: =IF($E$1<=20,AVERAGE(OFFSET(EP_Flow!$B$10,12*($E$1-1),BS$3-1,12)),NA()) -> 1371.716667 | BT9: =IF($E$1<=20,AVERAGE(OFFSET(EP_Flow!$B$10,12*($E$1-1),BT$3-1,12)),NA()) -> 1042.244167 | BU9: =IF($E$1<=20,AVERAGE(OFFSET(EP_Flow!$B$10,12*($E$1-1),BU$3-1,12)),NA()) -> 741.6325 | BV9: =IF($E$1<=20,AVERAGE(OFFSET(EP_Flow!$B$10,12*($E$1-1),BV$3-1,12)),NA()) -> 738.5483333 | BW9: =IF($E$1<=20,AVERAGE(OFFSET(EP_Flow!$B$10,12*($E$1-1),BW$3-1,12)),NA()) -> 757.3491667 | BX9: =IF($E$1<=20,AVERAGE(OFFSET(EP_Flow!$B$10,12*($E$1-1),BX$3-1,12)),NA()) -> 683.345 | BY9: =IF($E$1<=20,AVERAGE(OFFSET(EP_Flow!$B$10,12*($E$1-1),BY$3-1,12)),NA()) -> 934.965 | BZ9: =IF($E$1<=20,AVERAGE(OFFSET(EP_Flow!$B$10,12*($E$1-1),BZ$3-1,12)),NA()) -> 698.2458333 | CA9: =IF($E$1<=20,AVERAGE(OFFSET(EP_Flow!$B$10,12*($E$1-1),CA$3-1,12)),NA()) -> 647.9308333 | CB9: =IF($E$1<=20,AVERAGE(OFFSET(EP_Flow!$B$10,12*($E$1-1),CB$3-1,12)),NA()) -> 867.0275 | CC9: =IF($E$1<=20,AVERAGE(OFFSET(EP_Flow!$B$10,12*($E$1-1),CC$3-1,12)),NA()) -> 687.9733333 | CD9: =IF($E$1<=20,AVERAGE(OFFSET(EP_Flow!$B$10,12*($E$1-1),CD$3-1,12)),NA()) -> 1074.2875 | CE9: =IF($E$1<=20,AVERAGE(OFFSET(EP_Flow!$B$10,12*($E$1-1),CE$3-1,12)),NA()) -> 771.4708333 | CF9: =IF($E$1<=20,AVERAGE(OFFSET(EP_Flow!$B$10,12*($E$1-1),CF$3-1,12)),NA()) -> 761.4325 | CG9: =IF($E$1<=20,AVERAGE(OFFSET(EP_Flow!$B$10,12*($E$1-1),CG$3-1,12)),NA()) -> 1930.258333 | CH9: =IF($E$1<=20,AVERAGE(OFFSET(EP_Flow!$B$10,12*($E$1-1),CH$3-1,12)),NA()) -> 689.4158333 | CI9: =IF($E$1<=20,AVERAGE(OFFSET(EP_Flow!$B$10,12*($E$1-1),CI$3-1,12)),NA()) -> 685.88 | CJ9: =IF($E$1<=20,AVERAGE(OFFSET(EP_Flow!$B$10,12*($E$1-1),CJ$3-1,12)),NA()) -> 1195.883333 | CK9: =IF($E$1<=20,AVERAGE(OFFSET(EP_Flow!$B$10,12*($E$1-1),CK$3-1,12)),NA()) -> 678.3658333 | CL9: =IF($E$1<=20,AVERAGE(OFFSET(EP_Flow!$B$10,12*($E$1-1),CL$3-1,12)),NA()) -> 858.5441667 | CM9: =IF($E$1<=20,AVERAGE(OFFSET(EP_Flow!$B$10,12*($E$1-1),CM$3-1,12)),NA()) -> 881.0608333 | CN9: =IF($E$1<=20,AVERAGE(OFFSET(EP_Flow!$B$10,12*($E$1-1),CN$3-1,12)),NA()) -> 935.9033333 | CO9: =IF($E$1<=20,AVERAGE(OFFSET(EP_Flow!$B$10,12*($E$1-1),CO$3-1,12)),NA()) -> 660.78 | CP9: =IF($E$1<=20,AVERAGE(OFFSET(EP_Flow!$B$10,12*($E$1-1),CP$3-1,12)),NA()) -> 898.6291667 | CQ9: =IF($E$1<=20,AVERAGE(OFFSET(EP_Flow!$B$10,12*($E$1-1),CQ$3-1,12)),NA()) -> 819.4466667 | CR9: =IF($E$1<=20,AVERAGE(OFFSET(EP_Flow!$B$10,12*($E$1-1),CR$3-1,12)),NA()) -> 960.1583333 | CS9: =IF($E$1<=20,AVERAGE(OFFSET(EP_Flow!$B$10,12*($E$1-1),CS$3-1,12)),NA()) -> 765.9941667 | CT9: =IF($E$1<=20,AVERAGE(OFFSET(EP_Flow!$B$10,12*($E$1-1),CT$3-1,12)),NA()) -> 760.0866667 | CU9: =IF($E$1<=20,AVERAGE(OFFSET(EP_Flow!$B$10,12*($E$1-1),CU$3-1,12)),NA()) -> 815.2183333 | CV9: =IF($E$1<=20,AVERAGE(OFFSET(EP_Flow!$B$10,12*($E$1-1),CV$3-1,12)),NA()) -> 715.9033333 | CW9: =IF($E$1<=20,AVERAGE(OFFSET(EP_Flow!$B$10,12*($E$1-1),CW$3-1,12)),NA()) -> 828.2091667 | CX9: =IF($E$1<=20,AVERAGE(OFFSET(EP_Flow!$B$10,12*($E$1-1),CX$3-1,12)),NA()) -> 740.3283333 | CY9: =IF($E$1<=20,AVERAGE(OFFSET(EP_Flow!$B$10,12*($E$1-1),CY$3-1,12)),NA()) -> 684.5416667 | CZ9: =IF($E$1<=20,AVERAGE(OFFSET(EP_Flow!$B$10,12*($E$1-1),CZ$3-1,12)),NA()) -> 990.3316667 | DA9: =IF($E$1<=20,AVERAGE(OFFSET(EP_Flow!$B$10,12*($E$1-1),DA$3-1,12)),NA()) -> 762.0125 | DB9: =IF($E$1<=20,AVERAGE(OFFSET(EP_Flow!$B$10,12*($E$1-1),DB$3-1,12)),NA()) -> 704.0058333
A10: =Labels!$A$11 -> Central Pit operations | B10: 39.21368333 | C10: 48.09610417 | D10: 48.02744917 | E10: 56.18916667 | G10: =IF($E$1<=20,AVERAGE(OFFSET(CP_Flow!$B$10,12*($E$1-1),G$3-1,12)),NA()) -> 47.41825 | H10: =IF($E$1<=20,AVERAGE(OFFSET(CP_Flow!$B$10,12*($E$1-1),H$3-1,12)),NA()) -> 51.72270833 | I10: =IF($E$1<=20,AVERAGE(OFFSET(CP_Flow!$B$10,12*($E$1-1),I$3-1,12)),NA()) -> 48.54820833 | J10: =IF($E$1<=20,AVERAGE(OFFSET(CP_Flow!$B$10,12*($E$1-1),J$3-1,12)),NA()) -> 62.83391667 | K10: =IF($E$1<=20,AVERAGE(OFFSET(CP_Flow!$B$10,12*($E$1-1),K$3-1,12)),NA()) -> 55.12458333 | L10: =IF($E$1<=20,AVERAGE(OFFSET(CP_Flow!$B$10,12*($E$1-1),L$3-1,12)),NA()) -> 45.8775 | M10: =IF($E$1<=20,AVERAGE(OFFSET(CP_Flow!$B$10,12*($E$1-1),M$3-1,12)),NA()) -> 50.56858333 | N10: =IF($E$1<=20,AVERAGE(OFFSET(CP_Flow!$B$10,12*($E$1-1),N$3-1,12)),NA()) -> 61.80575 | O10: =IF($E$1<=20,AVERAGE(OFFSET(CP_Flow!$B$10,12*($E$1-1),O$3-1,12)),NA()) -> 46.82925 | P10: =IF($E$1<=20,AVERAGE(OFFSET(CP_Flow!$B$10,12*($E$1-1),P$3-1,12)),NA()) -> 52.05458333 | Q10: =IF($E$1<=20,AVERAGE(OFFSET(CP_Flow!$B$10,12*($E$1-1),Q$3-1,12)),NA()) -> 47.953 | R10: =IF($E$1<=20,AVERAGE(OFFSET(CP_Flow!$B$10,12*($E$1-1),R$3-1,12)),NA()) -> 43.029875 | S10: =IF($E$1<=20,AVERAGE(OFFSET(CP_Flow!$B$10,12*($E$1-1),S$3-1,12)),NA()) -> 40.18258333 | T10: =IF($E$1<=20,AVERAGE(OFFSET(CP_Flow!$B$10,12*($E$1-1),T$3-1,12)),NA()) -> 51.74045833 | U10: =IF($E$1<=20,AVERAGE(OFFSET(CP_Flow!$B$10,12*($E$1-1),U$3-1,12)),NA()) -> 52.60391667 | V10: =IF($E$1<=20,AVERAGE(OFFSET(CP_Flow!$B$10,12*($E$1-1),V$3-1,12)),NA()) -> 45.02645833 | W10: =IF($E$1<=20,AVERAGE(OFFSET(CP_Flow!$B$10,12*($E$1-1),W$3-1,12)),NA()) -> 33.90441667 | X10: =IF($E$1<=20,AVERAGE(OFFSET(CP_Flow!$B$10,12*($E$1-1),X$3-1,12)),NA()) -> 52.3085 | Y10: =IF($E$1<=20,AVERAGE(OFFSET(CP_Flow!$B$10,12*($E$1-1),Y$3-1,12)),NA()) -> 49.72745833 | Z10: =IF($E$1<=20,AVERAGE(OFFSET(CP_Flow!$B$10,12*($E$1-1),Z$3-1,12)),NA()) -> 55.46266667 | AA10: =IF($E$1<=20,AVERAGE(OFFSET(CP_Flow!$B$10,12*($E$1-1),AA$3-1,12)),NA()) -> 40.43391667 | AB10: =IF($E$1<=20,AVERAGE(OFFSET(CP_Flow!$B$10,12*($E$1-1),AB$3-1,12)),NA()) -> 39.33366667 | AC10: =IF($E$1<=20,AVERAGE(OFFSET(CP_Flow!$B$10,12*($E$1-1),AC$3-1,12)),NA()) -> 42.90104167 | AD10: =IF($E$1<=20,AVERAGE(OFFSET(CP_Flow!$B$10,12*($E$1-1),AD$3-1,12)),NA()) -> 48.013375 | AE10: =IF($E$1<=20,AVERAGE(OFFSET(CP_Flow!$B$10,12*($E$1-1),AE$3-1,12)),NA()) -> 45.07433333 | AF10: =IF($E$1<=20,AVERAGE(OFFSET(CP_Flow!$B$10,12*($E$1-1),AF$3-1,12)),NA()) -> 43.8865 | AG10: =IF($E$1<=20,AVERAGE(OFFSET(CP_Flow!$B$10,12*($E$1-1),AG$3-1,12)),NA()) -> 46.643125 | AH10: =IF($E$1<=20,AVERAGE(OFFSET(CP_Flow!$B$10,12*($E$1-1),AH$3-1,12)),NA()) -> 56.68191667 | AI10: =IF($E$1<=20,AVERAGE(OFFSET(CP_Flow!$B$10,12*($E$1-1),AI$3-1,12)),NA()) -> 41.88704167 | AJ10: =IF($E$1<=20,AVERAGE(OFFSET(CP_Flow!$B$10,12*($E$1-1),AJ$3-1,12)),NA()) -> 54.39691667 | AK10: =IF($E$1<=20,AVERAGE(OFFSET(CP_Flow!$B$10,12*($E$1-1),AK$3-1,12)),NA()) -> 46.19591667 | AL10: =IF($E$1<=20,AVERAGE(OFFSET(CP_Flow!$B$10,12*($E$1-1),AL$3-1,12)),NA()) -> 55.08583333 | AM10: =IF($E$1<=20,AVERAGE(OFFSET(CP_Flow!$B$10,12*($E$1-1),AM$3-1,12)),NA()) -> 39.39145833 | AN10: =IF($E$1<=20,AVERAGE(OFFSET(CP_Flow!$B$10,12*($E$1-1),AN$3-1,12)),NA()) -> 43.26208333 | AO10: =IF($E$1<=20,AVERAGE(OFFSET(CP_Flow!$B$10,12*($E$1-1),AO$3-1,12)),NA()) -> 51.716125 | AP10: =IF($E$1<=20,AVERAGE(OFFSET(CP_Flow!$B$10,12*($E$1-1),AP$3-1,12)),NA()) -> 59.275 | AQ10: =IF($E$1<=20,AVERAGE(OFFSET(CP_Flow!$B$10,12*($E$1-1),AQ$3-1,12)),NA()) -> 53.75833333 | AR10: =IF($E$1<=20,AVERAGE(OFFSET(CP_Flow!$B$10,12*($E$1-1),AR$3-1,12)),NA()) -> 56.13441667 | AS10: =IF($E$1<=20,AVERAGE(OFFSET(CP_Flow!$B$10,12*($E$1-1),AS$3-1,12)),NA()) -> 52.44933333 | AT10: =IF($E$1<=20,AVERAGE(OFFSET(CP_Flow!$B$10,12*($E$1-1),AT$3-1,12)),NA()) -> 47.80158333 | AU10: =IF($E$1<=20,AVERAGE(OFFSET(CP_Flow!$B$10,12*($E$1-1),AU$3-1,12)),NA()) -> 35.09529167 | AV10: =IF($E$1<=20,AVERAGE(OFFSET(CP_Flow!$B$10,12*($E$1-1),AV$3-1,12)),NA()) -> 48.52941667 | AW10: =IF($E$1<=20,AVERAGE(OFFSET(CP_Flow!$B$10,12*($E$1-1),AW$3-1,12)),NA()) -> 39.781875 | AX10: =IF($E$1<=20,AVERAGE(OFFSET(CP_Flow!$B$10,12*($E$1-1),AX$3-1,12)),NA()) -> 43.36754167 | AY10: =IF($E$1<=20,AVERAGE(OFFSET(CP_Flow!$B$10,12*($E$1-1),AY$3-1,12)),NA()) -> 48.37866667 | AZ10: =IF($E$1<=20,AVERAGE(OFFSET(CP_Flow!$B$10,12*($E$1-1),AZ$3-1,12)),NA()) -> 39.26641667 | BA10: =IF($E$1<=20,AVERAGE(OFFSET(CP_Flow!$B$10,12*($E$1-1),BA$3-1,12)),NA()) -> 40.989125 | BB10: =IF($E$1<=20,AVERAGE(OFFSET(CP_Flow!$B$10,12*($E$1-1),BB$3-1,12)),NA()) -> 60.058875 | BC10: =IF($E$1<=20,AVERAGE(OFFSET(CP_Flow!$B$10,12*($E$1-1),BC$3-1,12)),NA()) -> 53.96441667 | BD10: =IF($E$1<=20,AVERAGE(OFFSET(CP_Flow!$B$10,12*($E$1-1),BD$3-1,12)),NA()) -> 44.595875 | BE10: =IF($E$1<=20,AVERAGE(OFFSET(CP_Flow!$B$10,12*($E$1-1),BE$3-1,12)),NA()) -> 49.04025 | BF10: =IF($E$1<=20,AVERAGE(OFFSET(CP_Flow!$B$10,12*($E$1-1),BF$3-1,12)),NA()) -> 44.77841667 | BG10: =IF($E$1<=20,AVERAGE(OFFSET(CP_Flow!$B$10,12*($E$1-1),BG$3-1,12)),NA()) -> 37.27066667 | BH10: =IF($E$1<=20,AVERAGE(OFFSET(CP_Flow!$B$10,12*($E$1-1),BH$3-1,12)),NA()) -> 48.85916667 | BI10: =IF($E$1<=20,AVERAGE(OFFSET(CP_Flow!$B$10,12*($E$1-1),BI$3-1,12)),NA()) -> 49.29775 | BJ10: =IF($E$1<=20,AVERAGE(OFFSET(CP_Flow!$B$10,12*($E$1-1),BJ$3-1,12)),NA()) -> 48.17883333 | BK10: =IF($E$1<=20,AVERAGE(OFFSET(CP_Flow!$B$10,12*($E$1-1),BK$3-1,12)),NA()) -> 49.18833333 | BL10: =IF($E$1<=20,AVERAGE(OFFSET(CP_Flow!$B$10,12*($E$1-1),BL$3-1,12)),NA()) -> 45.502625 | BM10: =IF($E$1<=20,AVERAGE(OFFSET(CP_Flow!$B$10,12*($E$1-1),BM$3-1,12)),NA()) -> 46.2005 | BN10: =IF($E$1<=20,AVERAGE(OFFSET(CP_Flow!$B$10,12*($E$1-1),BN$3-1,12)),NA()) -> 63.49841667 | BO10: =IF($E$1<=20,AVERAGE(OFFSET(CP_Flow!$B$10,12*($E$1-1),BO$3-1,12)),NA()) -> 47.09891667 | BP10: =IF($E$1<=20,AVERAGE(OFFSET(CP_Flow!$B$10,12*($E$1-1),BP$3-1,12)),NA()) -> 37.78275 | BQ10: =IF($E$1<=20,AVERAGE(OFFSET(CP_Flow!$B$10,12*($E$1-1),BQ$3-1,12)),NA()) -> 55.13145833 | BR10: =IF($E$1<=20,AVERAGE(OFFSET(CP_Flow!$B$10,12*($E$1-1),BR$3-1,12)),NA()) -> 34.622 | BS10: =IF($E$1<=20,AVERAGE(OFFSET(CP_Flow!$B$10,12*($E$1-1),BS$3-1,12)),NA()) -> 62.51908333 | BT10: =IF($E$1<=20,AVERAGE(OFFSET(CP_Flow!$B$10,12*($E$1-1),BT$3-1,12)),NA()) -> 59.61266667 | BU10: =IF($E$1<=20,AVERAGE(OFFSET(CP_Flow!$B$10,12*($E$1-1),BU$3-1,12)),NA()) -> 45.60208333 | BV10: =IF($E$1<=20,AVERAGE(OFFSET(CP_Flow!$B$10,12*($E$1-1),BV$3-1,12)),NA()) -> 32.96945833 | BW10: =IF($E$1<=20,AVERAGE(OFFSET(CP_Flow!$B$10,12*($E$1-1),BW$3-1,12)),NA()) -> 37.45141667 | BX10: =IF($E$1<=20,AVERAGE(OFFSET(CP_Flow!$B$10,12*($E$1-1),BX$3-1,12)),NA()) -> 30.34770833 | BY10: =IF($E$1<=20,AVERAGE(OFFSET(CP_Flow!$B$10,12*($E$1-1),BY$3-1,12)),NA()) -> 59.58425 | BZ10: =IF($E$1<=20,AVERAGE(OFFSET(CP_Flow!$B$10,12*($E$1-1),BZ$3-1,12)),NA()) -> 51.53854167 | CA10: =IF($E$1<=20,AVERAGE(OFFSET(CP_Flow!$B$10,12*($E$1-1),CA$3-1,12)),NA()) -> 46.21208333 | CB10: =IF($E$1<=20,AVERAGE(OFFSET(CP_Flow!$B$10,12*($E$1-1),CB$3-1,12)),NA()) -> 52.40333333 | CC10: =IF($E$1<=20,AVERAGE(OFFSET(CP_Flow!$B$10,12*($E$1-1),CC$3-1,12)),NA()) -> 38.73908333 | CD10: =IF($E$1<=20,AVERAGE(OFFSET(CP_Flow!$B$10,12*($E$1-1),CD$3-1,12)),NA()) -> 50.80175 | CE10: =IF($E$1<=20,AVERAGE(OFFSET(CP_Flow!$B$10,12*($E$1-1),CE$3-1,12)),NA()) -> 51.75854167 | CF10: =IF($E$1<=20,AVERAGE(OFFSET(CP_Flow!$B$10,12*($E$1-1),CF$3-1,12)),NA()) -> 51.88195833 | CG10: =IF($E$1<=20,AVERAGE(OFFSET(CP_Flow!$B$10,12*($E$1-1),CG$3-1,12)),NA()) -> 69.78975 | CH10: =IF($E$1<=20,AVERAGE(OFFSET(CP_Flow!$B$10,12*($E$1-1),CH$3-1,12)),NA()) -> 42.96479167 | CI10: =IF($E$1<=20,AVERAGE(OFFSET(CP_Flow!$B$10,12*($E$1-1),CI$3-1,12)),NA()) -> 44.71316667 | CJ10: =IF($E$1<=20,AVERAGE(OFFSET(CP_Flow!$B$10,12*($E$1-1),CJ$3-1,12)),NA()) -> 46.55158333 | CK10: =IF($E$1<=20,AVERAGE(OFFSET(CP_Flow!$B$10,12*($E$1-1),CK$3-1,12)),NA()) -> 50.67595833 | CL10: =IF($E$1<=20,AVERAGE(OFFSET(CP_Flow!$B$10,12*($E$1-1),CL$3-1,12)),NA()) -> 52.65891667 | CM10: =IF($E$1<=20,AVERAGE(OFFSET(CP_Flow!$B$10,12*($E$1-1),CM$3-1,12)),NA()) -> 49.48075 | CN10: =IF($E$1<=20,AVERAGE(OFFSET(CP_Flow!$B$10,12*($E$1-1),CN$3-1,12)),NA()) -> 51.09125 | CO10: =IF($E$1<=20,AVERAGE(OFFSET(CP_Flow!$B$10,12*($E$1-1),CO$3-1,12)),NA()) -> 43.35816667 | CP10: =IF($E$1<=20,AVERAGE(OFFSET(CP_Flow!$B$10,12*($E$1-1),CP$3-1,12)),NA()) -> 52.58133333 | CQ10: =IF($E$1<=20,AVERAGE(OFFSET(CP_Flow!$B$10,12*($E$1-1),CQ$3-1,12)),NA()) -> 54.13695833 | CR10: =IF($E$1<=20,AVERAGE(OFFSET(CP_Flow!$B$10,12*($E$1-1),CR$3-1,12)),NA()) -> 48.8295 | CS10: =IF($E$1<=20,AVERAGE(OFFSET(CP_Flow!$B$10,12*($E$1-1),CS$3-1,12)),NA()) -> 44.17779167 | CT10: =IF($E$1<=20,AVERAGE(OFFSET(CP_Flow!$B$10,12*($E$1-1),CT$3-1,12)),NA()) -> 53.7895 | CU10: =IF($E$1<=20,AVERAGE(OFFSET(CP_Flow!$B$10,12*($E$1-1),CU$3-1,12)),NA()) -> 49.40708333 | CV10: =IF($E$1<=20,AVERAGE(OFFSET(CP_Flow!$B$10,12*($E$1-1),CV$3-1,12)),NA()) -> 42.45679167 | CW10: =IF($E$1<=20,AVERAGE(OFFSET(CP_Flow!$B$10,12*($E$1-1),CW$3-1,12)),NA()) -> 43.89708333 | CX10: =IF($E$1<=20,AVERAGE(OFFSET(CP_Flow!$B$10,12*($E$1-1),CX$3-1,12)),NA()) -> 52.79145833 | CY10: =IF($E$1<=20,AVERAGE(OFFSET(CP_Flow!$B$10,12*($E$1-1),CY$3-1,12)),NA()) -> 43.19741667 | CZ10: =IF($E$1<=20,AVERAGE(OFFSET(CP_Flow!$B$10,12*($E$1-1),CZ$3-1,12)),NA()) -> 42.94766667 | DA10: =IF($E$1<=20,AVERAGE(OFFSET(CP_Flow!$B$10,12*($E$1-1),DA$3-1,12)),NA()) -> 36.616125 | DB10: =IF($E$1<=20,AVERAGE(OFFSET(CP_Flow!$B$10,12*($E$1-1),DB$3-1,12)),NA()) -> 45.68775
A11: =Labels!$A$12 -> East/Central Pit operations | B11: 0 | C11: 0 | D11: 0 | E11: 0 | G11: =IF($E$1<=20,AVERAGE(OFFSET(EPCP_Flow!$B$10,12*($E$1-1),G$3-1,12)),NA()) -> 0 | H11: =IF($E$1<=20,AVERAGE(OFFSET(EPCP_Flow!$B$10,12*($E$1-1),H$3-1,12)),NA()) -> 0 | I11: =IF($E$1<=20,AVERAGE(OFFSET(EPCP_Flow!$B$10,12*($E$1-1),I$3-1,12)),NA()) -> 0 | J11: =IF($E$1<=20,AVERAGE(OFFSET(EPCP_Flow!$B$10,12*($E$1-1),J$3-1,12)),NA()) -> 0 | K11: =IF($E$1<=20,AVERAGE(OFFSET(EPCP_Flow!$B$10,12*($E$1-1),K$3-1,12)),NA()) -> 0 | L11: =IF($E$1<=20,AVERAGE(OFFSET(EPCP_Flow!$B$10,12*($E$1-1),L$3-1,12)),NA()) -> 0 | M11: =IF($E$1<=20,AVERAGE(OFFSET(EPCP_Flow!$B$10,12*($E$1-1),M$3-1,12)),NA()) -> 0 | N11: =IF($E$1<=20,AVERAGE(OFFSET(EPCP_Flow!$B$10,12*($E$1-1),N$3-1,12)),NA()) -> 0 | O11: =IF($E$1<=20,AVERAGE(OFFSET(EPCP_Flow!$B$10,12*($E$1-1),O$3-1,12)),NA()) -> 0 | P11: =IF($E$1<=20,AVERAGE(OFFSET(EPCP_Flow!$B$10,12*($E$1-1),P$3-1,12)),NA()) -> 0 | Q11: =IF($E$1<=20,AVERAGE(OFFSET(EPCP_Flow!$B$10,12*($E$1-1),Q$3-1,12)),NA()) -> 0 | R11: =IF($E$1<=20,AVERAGE(OFFSET(EPCP_Flow!$B$10,12*($E$1-1),R$3-1,12)),NA()) -> 0 | S11: =IF($E$1<=20,AVERAGE(OFFSET(EPCP_Flow!$B$10,12*($E$1-1),S$3-1,12)),NA()) -> 0 | T11: =IF($E$1<=20,AVERAGE(OFFSET(EPCP_Flow!$B$10,12*($E$1-1),T$3-1,12)),NA()) -> 0 | U11: =IF($E$1<=20,AVERAGE(OFFSET(EPCP_Flow!$B$10,12*($E$1-1),U$3-1,12)),NA()) -> 0 | V11: =IF($E$1<=20,AVERAGE(OFFSET(EPCP_Flow!$B$10,12*($E$1-1),V$3-1,12)),NA()) -> 0 | W11: =IF($E$1<=20,AVERAGE(OFFSET(EPCP_Flow!$B$10,12*($E$1-1),W$3-1,12)),NA()) -> 0 | X11: =IF($E$1<=20,AVERAGE(OFFSET(EPCP_Flow!$B$10,12*($E$1-1),X$3-1,12)),NA()) -> 0 | Y11: =IF($E$1<=20,AVERAGE(OFFSET(EPCP_Flow!$B$10,12*($E$1-1),Y$3-1,12)),NA()) -> 0 | Z11: =IF($E$1<=20,AVERAGE(OFFSET(EPCP_Flow!$B$10,12*($E$1-1),Z$3-1,12)),NA()) -> 0 | AA11: =IF($E$1<=20,AVERAGE(OFFSET(EPCP_Flow!$B$10,12*($E$1-1),AA$3-1,12)),NA()) -> 0 | AB11: =IF($E$1<=20,AVERAGE(OFFSET(EPCP_Flow!$B$10,12*($E$1-1),AB$3-1,12)),NA()) -> 0 | AC11: =IF($E$1<=20,AVERAGE(OFFSET(EPCP_Flow!$B$10,12*($E$1-1),AC$3-1,12)),NA()) -> 0 | AD11: =IF($E$1<=20,AVERAGE(OFFSET(EPCP_Flow!$B$10,12*($E$1-1),AD$3-1,12)),NA()) -> 0 | AE11: =IF($E$1<=20,AVERAGE(OFFSET(EPCP_Flow!$B$10,12*($E$1-1),AE$3-1,12)),NA()) -> 0 | AF11: =IF($E$1<=20,AVERAGE(OFFSET(EPCP_Flow!$B$10,12*($E$1-1),AF$3-1,12)),NA()) -> 0 | AG11: =IF($E$1<=20,AVERAGE(OFFSET(EPCP_Flow!$B$10,12*($E$1-1),AG$3-1,12)),NA()) -> 0 | AH11: =IF($E$1<=20,AVERAGE(OFFSET(EPCP_Flow!$B$10,12*($E$1-1),AH$3-1,12)),NA()) -> 0 | AI11: =IF($E$1<=20,AVERAGE(OFFSET(EPCP_Flow!$B$10,12*($E$1-1),AI$3-1,12)),NA()) -> 0 | AJ11: =IF($E$1<=20,AVERAGE(OFFSET(EPCP_Flow!$B$10,12*($E$1-1),AJ$3-1,12)),NA()) -> 0 | AK11: =IF($E$1<=20,AVERAGE(OFFSET(EPCP_Flow!$B$10,12*($E$1-1),AK$3-1,12)),NA()) -> 0 | AL11: =IF($E$1<=20,AVERAGE(OFFSET(EPCP_Flow!$B$10,12*($E$1-1),AL$3-1,12)),NA()) -> 0 | AM11: =IF($E$1<=20,AVERAGE(OFFSET(EPCP_Flow!$B$10,12*($E$1-1),AM$3-1,12)),NA()) -> 0 | AN11: =IF($E$1<=20,AVERAGE(OFFSET(EPCP_Flow!$B$10,12*($E$1-1),AN$3-1,12)),NA()) -> 0 | AO11: =IF($E$1<=20,AVERAGE(OFFSET(EPCP_Flow!$B$10,12*($E$1-1),AO$3-1,12)),NA()) -> 0 | AP11: =IF($E$1<=20,AVERAGE(OFFSET(EPCP_Flow!$B$10,12*($E$1-1),AP$3-1,12)),NA()) -> 0 | AQ11: =IF($E$1<=20,AVERAGE(OFFSET(EPCP_Flow!$B$10,12*($E$1-1),AQ$3-1,12)),NA()) -> 0 | AR11: =IF($E$1<=20,AVERAGE(OFFSET(EPCP_Flow!$B$10,12*($E$1-1),AR$3-1,12)),NA()) -> 0 | AS11: =IF($E$1<=20,AVERAGE(OFFSET(EPCP_Flow!$B$10,12*($E$1-1),AS$3-1,12)),NA()) -> 0 | AT11: =IF($E$1<=20,AVERAGE(OFFSET(EPCP_Flow!$B$10,12*($E$1-1),AT$3-1,12)),NA()) -> 0 | AU11: =IF($E$1<=20,AVERAGE(OFFSET(EPCP_Flow!$B$10,12*($E$1-1),AU$3-1,12)),NA()) -> 0 | AV11: =IF($E$1<=20,AVERAGE(OFFSET(EPCP_Flow!$B$10,12*($E$1-1),AV$3-1,12)),NA()) -> 0 | AW11: =IF($E$1<=20,AVERAGE(OFFSET(EPCP_Flow!$B$10,12*($E$1-1),AW$3-1,12)),NA()) -> 0 | AX11: =IF($E$1<=20,AVERAGE(OFFSET(EPCP_Flow!$B$10,12*($E$1-1),AX$3-1,12)),NA()) -> 0 | AY11: =IF($E$1<=20,AVERAGE(OFFSET(EPCP_Flow!$B$10,12*($E$1-1),AY$3-1,12)),NA()) -> 0 | AZ11: =IF($E$1<=20,AVERAGE(OFFSET(EPCP_Flow!$B$10,12*($E$1-1),AZ$3-1,12)),NA()) -> 0 | BA11: =IF($E$1<=20,AVERAGE(OFFSET(EPCP_Flow!$B$10,12*($E$1-1),BA$3-1,12)),NA()) -> 0 | BB11: =IF($E$1<=20,AVERAGE(OFFSET(EPCP_Flow!$B$10,12*($E$1-1),BB$3-1,12)),NA()) -> 0 | BC11: =IF($E$1<=20,AVERAGE(OFFSET(EPCP_Flow!$B$10,12*($E$1-1),BC$3-1,12)),NA()) -> 0 | BD11: =IF($E$1<=20,AVERAGE(OFFSET(EPCP_Flow!$B$10,12*($E$1-1),BD$3-1,12)),NA()) -> 0 | BE11: =IF($E$1<=20,AVERAGE(OFFSET(EPCP_Flow!$B$10,12*($E$1-1),BE$3-1,12)),NA()) -> 0 | BF11: =IF($E$1<=20,AVERAGE(OFFSET(EPCP_Flow!$B$10,12*($E$1-1),BF$3-1,12)),NA()) -> 0 | BG11: =IF($E$1<=20,AVERAGE(OFFSET(EPCP_Flow!$B$10,12*($E$1-1),BG$3-1,12)),NA()) -> 0 | BH11: =IF($E$1<=20,AVERAGE(OFFSET(EPCP_Flow!$B$10,12*($E$1-1),BH$3-1,12)),NA()) -> 0 | BI11: =IF($E$1<=20,AVERAGE(OFFSET(EPCP_Flow!$B$10,12*($E$1-1),BI$3-1,12)),NA()) -> 0 | BJ11: =IF($E$1<=20,AVERAGE(OFFSET(EPCP_Flow!$B$10,12*($E$1-1),BJ$3-1,12)),NA()) -> 0 | BK11: =IF($E$1<=20,AVERAGE(OFFSET(EPCP_Flow!$B$10,12*($E$1-1),BK$3-1,12)),NA()) -> 0 | BL11: =IF($E$1<=20,AVERAGE(OFFSET(EPCP_Flow!$B$10,12*($E$1-1),BL$3-1,12)),NA()) -> 0 | BM11: =IF($E$1<=20,AVERAGE(OFFSET(EPCP_Flow!$B$10,12*($E$1-1),BM$3-1,12)),NA()) -> 0 | BN11: =IF($E$1<=20,AVERAGE(OFFSET(EPCP_Flow!$B$10,12*($E$1-1),BN$3-1,12)),NA()) -> 0 | BO11: =IF($E$1<=20,AVERAGE(OFFSET(EPCP_Flow!$B$10,12*($E$1-1),BO$3-1,12)),NA()) -> 0 | BP11: =IF($E$1<=20,AVERAGE(OFFSET(EPCP_Flow!$B$10,12*($E$1-1),BP$3-1,12)),NA()) -> 0 | BQ11: =IF($E$1<=20,AVERAGE(OFFSET(EPCP_Flow!$B$10,12*($E$1-1),BQ$3-1,12)),NA()) -> 0 | BR11: =IF($E$1<=20,AVERAGE(OFFSET(EPCP_Flow!$B$10,12*($E$1-1),BR$3-1,12)),NA()) -> 0 | BS11: =IF($E$1<=20,AVERAGE(OFFSET(EPCP_Flow!$B$10,12*($E$1-1),BS$3-1,12)),NA()) -> 0 | BT11: =IF($E$1<=20,AVERAGE(OFFSET(EPCP_Flow!$B$10,12*($E$1-1),BT$3-1,12)),NA()) -> 0 | BU11: =IF($E$1<=20,AVERAGE(OFFSET(EPCP_Flow!$B$10,12*($E$1-1),BU$3-1,12)),NA()) -> 0 | BV11: =IF($E$1<=20,AVERAGE(OFFSET(EPCP_Flow!$B$10,12*($E$1-1),BV$3-1,12)),NA()) -> 0 | BW11: =IF($E$1<=20,AVERAGE(OFFSET(EPCP_Flow!$B$10,12*($E$1-1),BW$3-1,12)),NA()) -> 0 | BX11: =IF($E$1<=20,AVERAGE(OFFSET(EPCP_Flow!$B$10,12*($E$1-1),BX$3-1,12)),NA()) -> 0 | BY11: =IF($E$1<=20,AVERAGE(OFFSET(EPCP_Flow!$B$10,12*($E$1-1),BY$3-1,12)),NA()) -> 0 | BZ11: =IF($E$1<=20,AVERAGE(OFFSET(EPCP_Flow!$B$10,12*($E$1-1),BZ$3-1,12)),NA()) -> 0 | CA11: =IF($E$1<=20,AVERAGE(OFFSET(EPCP_Flow!$B$10,12*($E$1-1),CA$3-1,12)),NA()) -> 0 | CB11: =IF($E$1<=20,AVERAGE(OFFSET(EPCP_Flow!$B$10,12*($E$1-1),CB$3-1,12)),NA()) -> 0 | CC11: =IF($E$1<=20,AVERAGE(OFFSET(EPCP_Flow!$B$10,12*($E$1-1),CC$3-1,12)),NA()) -> 0 | CD11: =IF($E$1<=20,AVERAGE(OFFSET(EPCP_Flow!$B$10,12*($E$1-1),CD$3-1,12)),NA()) -> 0 | CE11: =IF($E$1<=20,AVERAGE(OFFSET(EPCP_Flow!$B$10,12*($E$1-1),CE$3-1,12)),NA()) -> 0 | CF11: =IF($E$1<=20,AVERAGE(OFFSET(EPCP_Flow!$B$10,12*($E$1-1),CF$3-1,12)),NA()) -> 0 | CG11: =IF($E$1<=20,AVERAGE(OFFSET(EPCP_Flow!$B$10,12*($E$1-1),CG$3-1,12)),NA()) -> 0 | CH11: =IF($E$1<=20,AVERAGE(OFFSET(EPCP_Flow!$B$10,12*($E$1-1),CH$3-1,12)),NA()) -> 0 | CI11: =IF($E$1<=20,AVERAGE(OFFSET(EPCP_Flow!$B$10,12*($E$1-1),CI$3-1,12)),NA()) -> 0 | CJ11: =IF($E$1<=20,AVERAGE(OFFSET(EPCP_Flow!$B$10,12*($E$1-1),CJ$3-1,12)),NA()) -> 0 | CK11: =IF($E$1<=20,AVERAGE(OFFSET(EPCP_Flow!$B$10,12*($E$1-1),CK$3-1,12)),NA()) -> 0 | CL11: =IF($E$1<=20,AVERAGE(OFFSET(EPCP_Flow!$B$10,12*($E$1-1),CL$3-1,12)),NA()) -> 0 | CM11: =IF($E$1<=20,AVERAGE(OFFSET(EPCP_Flow!$B$10,12*($E$1-1),CM$3-1,12)),NA()) -> 0 | CN11: =IF($E$1<=20,AVERAGE(OFFSET(EPCP_Flow!$B$10,12*($E$1-1),CN$3-1,12)),NA()) -> 0 | CO11: =IF($E$1<=20,AVERAGE(OFFSET(EPCP_Flow!$B$10,12*($E$1-1),CO$3-1,12)),NA()) -> 0 | CP11: =IF($E$1<=20,AVERAGE(OFFSET(EPCP_Flow!$B$10,12*($E$1-1),CP$3-1,12)),NA()) -> 0 | CQ11: =IF($E$1<=20,AVERAGE(OFFSET(EPCP_Flow!$B$10,12*($E$1-1),CQ$3-1,12)),NA()) -> 0 | CR11: =IF($E$1<=20,AVERAGE(OFFSET(EPCP_Flow!$B$10,12*($E$1-1),CR$3-1,12)),NA()) -> 0 | CS11: =IF($E$1<=20,AVERAGE(OFFSET(EPCP_Flow!$B$10,12*($E$1-1),CS$3-1,12)),NA()) -> 0 | CT11: =IF($E$1<=20,AVERAGE(OFFSET(EPCP_Flow!$B$10,12*($E$1-1),CT$3-1,12)),NA()) -> 0 | CU11: =IF($E$1<=20,AVERAGE(OFFSET(EPCP_Flow!$B$10,12*($E$1-1),CU$3-1,12)),NA()) -> 0 | CV11: =IF($E$1<=20,AVERAGE(OFFSET(EPCP_Flow!$B$10,12*($E$1-1),CV$3-1,12)),NA()) -> 0 | CW11: =IF($E$1<=20,AVERAGE(OFFSET(EPCP_Flow!$B$10,12*($E$1-1),CW$3-1,12)),NA()) -> 0 | CX11: =IF($E$1<=20,AVERAGE(OFFSET(EPCP_Flow!$B$10,12*($E$1-1),CX$3-1,12)),NA()) -> 0 | CY11: =IF($E$1<=20,AVERAGE(OFFSET(EPCP_Flow!$B$10,12*($E$1-1),CY$3-1,12)),NA()) -> 0 | CZ11: =IF($E$1<=20,AVERAGE(OFFSET(EPCP_Flow!$B$10,12*($E$1-1),CZ$3-1,12)),NA()) -> 0 | DA11: =IF($E$1<=20,AVERAGE(OFFSET(EPCP_Flow!$B$10,12*($E$1-1),DA$3-1,12)),NA()) -> 0 | DB11: =IF($E$1<=20,AVERAGE(OFFSET(EPCP_Flow!$B$10,12*($E$1-1),DB$3-1,12)),NA()) -> 0
A12: =Labels!$A$13 -> East Pit upper porewater | G12: =IF($E$1>20,AVERAGE(OFFSET(EPupper_Flow!$B$10,12*($E$1-1),G$3-1,12)),NA()) ->  | H12: =IF($E$1>20,AVERAGE(OFFSET(EPupper_Flow!$B$10,12*($E$1-1),H$3-1,12)),NA()) ->  | I12: =IF($E$1>20,AVERAGE(OFFSET(EPupper_Flow!$B$10,12*($E$1-1),I$3-1,12)),NA()) ->  | J12: =IF($E$1>20,AVERAGE(OFFSET(EPupper_Flow!$B$10,12*($E$1-1),J$3-1,12)),NA()) ->  | K12: =IF($E$1>20,AVERAGE(OFFSET(EPupper_Flow!$B$10,12*($E$1-1),K$3-1,12)),NA()) ->  | L12: =IF($E$1>20,AVERAGE(OFFSET(EPupper_Flow!$B$10,12*($E$1-1),L$3-1,12)),NA()) ->  | M12: =IF($E$1>20,AVERAGE(OFFSET(EPupper_Flow!$B$10,12*($E$1-1),M$3-1,12)),NA()) ->  | N12: =IF($E$1>20,AVERAGE(OFFSET(EPupper_Flow!$B$10,12*($E$1-1),N$3-1,12)),NA()) ->  | O12: =IF($E$1>20,AVERAGE(OFFSET(EPupper_Flow!$B$10,12*($E$1-1),O$3-1,12)),NA()) ->  | P12: =IF($E$1>20,AVERAGE(OFFSET(EPupper_Flow!$B$10,12*($E$1-1),P$3-1,12)),NA()) ->  | Q12: =IF($E$1>20,AVERAGE(OFFSET(EPupper_Flow!$B$10,12*($E$1-1),Q$3-1,12)),NA()) ->  | R12: =IF($E$1>20,AVERAGE(OFFSET(EPupper_Flow!$B$10,12*($E$1-1),R$3-1,12)),NA()) ->  | S12: =IF($E$1>20,AVERAGE(OFFSET(EPupper_Flow!$B$10,12*($E$1-1),S$3-1,12)),NA()) ->  | T12: =IF($E$1>20,AVERAGE(OFFSET(EPupper_Flow!$B$10,12*($E$1-1),T$3-1,12)),NA()) ->  | U12: =IF($E$1>20,AVERAGE(OFFSET(EPupper_Flow!$B$10,12*($E$1-1),U$3-1,12)),NA()) ->  | V12: =IF($E$1>20,AVERAGE(OFFSET(EPupper_Flow!$B$10,12*($E$1-1),V$3-1,12)),NA()) ->  | W12: =IF($E$1>20,AVERAGE(OFFSET(EPupper_Flow!$B$10,12*($E$1-1),W$3-1,12)),NA()) ->  | X12: =IF($E$1>20,AVERAGE(OFFSET(EPupper_Flow!$B$10,12*($E$1-1),X$3-1,12)),NA()) ->  | Y12: =IF($E$1>20,AVERAGE(OFFSET(EPupper_Flow!$B$10,12*($E$1-1),Y$3-1,12)),NA()) ->  | Z12: =IF($E$1>20,AVERAGE(OFFSET(EPupper_Flow!$B$10,12*($E$1-1),Z$3-1,12)),NA()) ->  | AA12: =IF($E$1>20,AVERAGE(OFFSET(EPupper_Flow!$B$10,12*($E$1-1),AA$3-1,12)),NA()) ->  | AB12: =IF($E$1>20,AVERAGE(OFFSET(EPupper_Flow!$B$10,12*($E$1-1),AB$3-1,12)),NA()) ->  | AC12: =IF($E$1>20,AVERAGE(OFFSET(EPupper_Flow!$B$10,12*($E$1-1),AC$3-1,12)),NA()) ->  | AD12: =IF($E$1>20,AVERAGE(OFFSET(EPupper_Flow!$B$10,12*($E$1-1),AD$3-1,12)),NA()) ->  | AE12: =IF($E$1>20,AVERAGE(OFFSET(EPupper_Flow!$B$10,12*($E$1-1),AE$3-1,12)),NA()) ->  | AF12: =IF($E$1>20,AVERAGE(OFFSET(EPupper_Flow!$B$10,12*($E$1-1),AF$3-1,12)),NA()) ->  | AG12: =IF($E$1>20,AVERAGE(OFFSET(EPupper_Flow!$B$10,12*($E$1-1),AG$3-1,12)),NA()) ->  | AH12: =IF($E$1>20,AVERAGE(OFFSET(EPupper_Flow!$B$10,12*($E$1-1),AH$3-1,12)),NA()) ->  | AI12: =IF($E$1>20,AVERAGE(OFFSET(EPupper_Flow!$B$10,12*($E$1-1),AI$3-1,12)),NA()) ->  | AJ12: =IF($E$1>20,AVERAGE(OFFSET(EPupper_Flow!$B$10,12*($E$1-1),AJ$3-1,12)),NA()) ->  | AK12: =IF($E$1>20,AVERAGE(OFFSET(EPupper_Flow!$B$10,12*($E$1-1),AK$3-1,12)),NA()) ->  | AL12: =IF($E$1>20,AVERAGE(OFFSET(EPupper_Flow!$B$10,12*($E$1-1),AL$3-1,12)),NA()) ->  | AM12: =IF($E$1>20,AVERAGE(OFFSET(EPupper_Flow!$B$10,12*($E$1-1),AM$3-1,12)),NA()) ->  | AN12: =IF($E$1>20,AVERAGE(OFFSET(EPupper_Flow!$B$10,12*($E$1-1),AN$3-1,12)),NA()) ->  | AO12: =IF($E$1>20,AVERAGE(OFFSET(EPupper_Flow!$B$10,12*($E$1-1),AO$3-1,12)),NA()) ->  | AP12: =IF($E$1>20,AVERAGE(OFFSET(EPupper_Flow!$B$10,12*($E$1-1),AP$3-1,12)),NA()) ->  | AQ12: =IF($E$1>20,AVERAGE(OFFSET(EPupper_Flow!$B$10,12*($E$1-1),AQ$3-1,12)),NA()) ->  | AR12: =IF($E$1>20,AVERAGE(OFFSET(EPupper_Flow!$B$10,12*($E$1-1),AR$3-1,12)),NA()) ->  | AS12: =IF($E$1>20,AVERAGE(OFFSET(EPupper_Flow!$B$10,12*($E$1-1),AS$3-1,12)),NA()) ->  | AT12: =IF($E$1>20,AVERAGE(OFFSET(EPupper_Flow!$B$10,12*($E$1-1),AT$3-1,12)),NA()) ->  | AU12: =IF($E$1>20,AVERAGE(OFFSET(EPupper_Flow!$B$10,12*($E$1-1),AU$3-1,12)),NA()) ->  | AV12: =IF($E$1>20,AVERAGE(OFFSET(EPupper_Flow!$B$10,12*($E$1-1),AV$3-1,12)),NA()) ->  | AW12: =IF($E$1>20,AVERAGE(OFFSET(EPupper_Flow!$B$10,12*($E$1-1),AW$3-1,12)),NA()) ->  | AX12: =IF($E$1>20,AVERAGE(OFFSET(EPupper_Flow!$B$10,12*($E$1-1),AX$3-1,12)),NA()) ->  | AY12: =IF($E$1>20,AVERAGE(OFFSET(EPupper_Flow!$B$10,12*($E$1-1),AY$3-1,12)),NA()) ->  | AZ12: =IF($E$1>20,AVERAGE(OFFSET(EPupper_Flow!$B$10,12*($E$1-1),AZ$3-1,12)),NA()) ->  | BA12: =IF($E$1>20,AVERAGE(OFFSET(EPupper_Flow!$B$10,12*($E$1-1),BA$3-1,12)),NA()) ->  | BB12: =IF($E$1>20,AVERAGE(OFFSET(EPupper_Flow!$B$10,12*($E$1-1),BB$3-1,12)),NA()) ->  | BC12: =IF($E$1>20,AVERAGE(OFFSET(EPupper_Flow!$B$10,12*($E$1-1),BC$3-1,12)),NA()) ->  | BD12: =IF($E$1>20,AVERAGE(OFFSET(EPupper_Flow!$B$10,12*($E$1-1),BD$3-1,12)),NA()) ->  | BE12: =IF($E$1>20,AVERAGE(OFFSET(EPupper_Flow!$B$10,12*($E$1-1),BE$3-1,12)),NA()) ->  | BF12: =IF($E$1>20,AVERAGE(OFFSET(EPupper_Flow!$B$10,12*($E$1-1),BF$3-1,12)),NA()) ->  | BG12: =IF($E$1>20,AVERAGE(OFFSET(EPupper_Flow!$B$10,12*($E$1-1),BG$3-1,12)),NA()) ->  | BH12: =IF($E$1>20,AVERAGE(OFFSET(EPupper_Flow!$B$10,12*($E$1-1),BH$3-1,12)),NA()) ->  | BI12: =IF($E$1>20,AVERAGE(OFFSET(EPupper_Flow!$B$10,12*($E$1-1),BI$3-1,12)),NA()) ->  | BJ12: =IF($E$1>20,AVERAGE(OFFSET(EPupper_Flow!$B$10,12*($E$1-1),BJ$3-1,12)),NA()) ->  | BK12: =IF($E$1>20,AVERAGE(OFFSET(EPupper_Flow!$B$10,12*($E$1-1),BK$3-1,12)),NA()) ->  | BL12: =IF($E$1>20,AVERAGE(OFFSET(EPupper_Flow!$B$10,12*($E$1-1),BL$3-1,12)),NA()) ->  | BM12: =IF($E$1>20,AVERAGE(OFFSET(EPupper_Flow!$B$10,12*($E$1-1),BM$3-1,12)),NA()) ->  | BN12: =IF($E$1>20,AVERAGE(OFFSET(EPupper_Flow!$B$10,12*($E$1-1),BN$3-1,12)),NA()) ->  | BO12: =IF($E$1>20,AVERAGE(OFFSET(EPupper_Flow!$B$10,12*($E$1-1),BO$3-1,12)),NA()) ->  | BP12: =IF($E$1>20,AVERAGE(OFFSET(EPupper_Flow!$B$10,12*($E$1-1),BP$3-1,12)),NA()) ->  | BQ12: =IF($E$1>20,AVERAGE(OFFSET(EPupper_Flow!$B$10,12*($E$1-1),BQ$3-1,12)),NA()) ->  | BR12: =IF($E$1>20,AVERAGE(OFFSET(EPupper_Flow!$B$10,12*($E$1-1),BR$3-1,12)),NA()) ->  | BS12: =IF($E$1>20,AVERAGE(OFFSET(EPupper_Flow!$B$10,12*($E$1-1),BS$3-1,12)),NA()) ->  | BT12: =IF($E$1>20,AVERAGE(OFFSET(EPupper_Flow!$B$10,12*($E$1-1),BT$3-1,12)),NA()) ->  | BU12: =IF($E$1>20,AVERAGE(OFFSET(EPupper_Flow!$B$10,12*($E$1-1),BU$3-1,12)),NA()) ->  | BV12: =IF($E$1>20,AVERAGE(OFFSET(EPupper_Flow!$B$10,12*($E$1-1),BV$3-1,12)),NA()) ->  | BW12: =IF($E$1>20,AVERAGE(OFFSET(EPupper_Flow!$B$10,12*($E$1-1),BW$3-1,12)),NA()) ->  | BX12: =IF($E$1>20,AVERAGE(OFFSET(EPupper_Flow!$B$10,12*($E$1-1),BX$3-1,12)),NA()) ->  | BY12: =IF($E$1>20,AVERAGE(OFFSET(EPupper_Flow!$B$10,12*($E$1-1),BY$3-1,12)),NA()) ->  | BZ12: =IF($E$1>20,AVERAGE(OFFSET(EPupper_Flow!$B$10,12*($E$1-1),BZ$3-1,12)),NA()) ->  | CA12: =IF($E$1>20,AVERAGE(OFFSET(EPupper_Flow!$B$10,12*($E$1-1),CA$3-1,12)),NA()) ->  | CB12: =IF($E$1>20,AVERAGE(OFFSET(EPupper_Flow!$B$10,12*($E$1-1),CB$3-1,12)),NA()) ->  | CC12: =IF($E$1>20,AVERAGE(OFFSET(EPupper_Flow!$B$10,12*($E$1-1),CC$3-1,12)),NA()) ->  | CD12: =IF($E$1>20,AVERAGE(OFFSET(EPupper_Flow!$B$10,12*($E$1-1),CD$3-1,12)),NA()) ->  | CE12: =IF($E$1>20,AVERAGE(OFFSET(EPupper_Flow!$B$10,12*($E$1-1),CE$3-1,12)),NA()) ->  | CF12: =IF($E$1>20,AVERAGE(OFFSET(EPupper_Flow!$B$10,12*($E$1-1),CF$3-1,12)),NA()) ->  | CG12: =IF($E$1>20,AVERAGE(OFFSET(EPupper_Flow!$B$10,12*($E$1-1),CG$3-1,12)),NA()) ->  | CH12: =IF($E$1>20,AVERAGE(OFFSET(EPupper_Flow!$B$10,12*($E$1-1),CH$3-1,12)),NA()) ->  | CI12: =IF($E$1>20,AVERAGE(OFFSET(EPupper_Flow!$B$10,12*($E$1-1),CI$3-1,12)),NA()) ->  | CJ12: =IF($E$1>20,AVERAGE(OFFSET(EPupper_Flow!$B$10,12*($E$1-1),CJ$3-1,12)),NA()) ->  | CK12: =IF($E$1>20,AVERAGE(OFFSET(EPupper_Flow!$B$10,12*($E$1-1),CK$3-1,12)),NA()) ->  | CL12: =IF($E$1>20,AVERAGE(OFFSET(EPupper_Flow!$B$10,12*($E$1-1),CL$3-1,12)),NA()) ->  | CM12: =IF($E$1>20,AVERAGE(OFFSET(EPupper_Flow!$B$10,12*($E$1-1),CM$3-1,12)),NA()) ->  | CN12: =IF($E$1>20,AVERAGE(OFFSET(EPupper_Flow!$B$10,12*($E$1-1),CN$3-1,12)),NA()) ->  | CO12: =IF($E$1>20,AVERAGE(OFFSET(EPupper_Flow!$B$10,12*($E$1-1),CO$3-1,12)),NA()) ->  | CP12: =IF($E$1>20,AVERAGE(OFFSET(EPupper_Flow!$B$10,12*($E$1-1),CP$3-1,12)),NA()) ->  | CQ12: =IF($E$1>20,AVERAGE(OFFSET(EPupper_Flow!$B$10,12*($E$1-1),CQ$3-1,12)),NA()) ->  | CR12: =IF($E$1>20,AVERAGE(OFFSET(EPupper_Flow!$B$10,12*($E$1-1),CR$3-1,12)),NA()) ->  | CS12: =IF($E$1>20,AVERAGE(OFFSET(EPupper_Flow!$B$10,12*($E$1-1),CS$3-1,12)),NA()) ->  | CT12: =IF($E$1>20,AVERAGE(OFFSET(EPupper_Flow!$B$10,12*($E$1-1),CT$3-1,12)),NA()) ->  | CU12: =IF($E$1>20,AVERAGE(OFFSET(EPupper_Flow!$B$10,12*($E$1-1),CU$3-1,12)),NA()) ->  | CV12: =IF($E$1>20,AVERAGE(OFFSET(EPupper_Flow!$B$10,12*($E$1-1),CV$3-1,12)),NA()) ->  | CW12: =IF($E$1>20,AVERAGE(OFFSET(EPupper_Flow!$B$10,12*($E$1-1),CW$3-1,12)),NA()) ->  | CX12: =IF($E$1>20,AVERAGE(OFFSET(EPupper_Flow!$B$10,12*($E$1-1),CX$3-1,12)),NA()) ->  | CY12: =IF($E$1>20,AVERAGE(OFFSET(EPupper_Flow!$B$10,12*($E$1-1),CY$3-1,12)),NA()) ->  | CZ12: =IF($E$1>20,AVERAGE(OFFSET(EPupper_Flow!$B$10,12*($E$1-1),CZ$3-1,12)),NA()) ->  | DA12: =IF($E$1>20,AVERAGE(OFFSET(EPupper_Flow!$B$10,12*($E$1-1),DA$3-1,12)),NA()) ->  | DB12: =IF($E$1>20,AVERAGE(OFFSET(EPupper_Flow!$B$10,12*($E$1-1),DB$3-1,12)),NA()) -> 
A13: =Labels!$A$14 -> East Pit lower porewater | G13: =IF($E$1>20,AVERAGE(OFFSET(EPlower_Flow!$B$10,12*($E$1-1),G$3-1,12)),NA()) ->  | H13: =IF($E$1>20,AVERAGE(OFFSET(EPlower_Flow!$B$10,12*($E$1-1),H$3-1,12)),NA()) ->  | I13: =IF($E$1>20,AVERAGE(OFFSET(EPlower_Flow!$B$10,12*($E$1-1),I$3-1,12)),NA()) ->  | J13: =IF($E$1>20,AVERAGE(OFFSET(EPlower_Flow!$B$10,12*($E$1-1),J$3-1,12)),NA()) ->  | K13: =IF($E$1>20,AVERAGE(OFFSET(EPlower_Flow!$B$10,12*($E$1-1),K$3-1,12)),NA()) ->  | L13: =IF($E$1>20,AVERAGE(OFFSET(EPlower_Flow!$B$10,12*($E$1-1),L$3-1,12)),NA()) ->  | M13: =IF($E$1>20,AVERAGE(OFFSET(EPlower_Flow!$B$10,12*($E$1-1),M$3-1,12)),NA()) ->  | N13: =IF($E$1>20,AVERAGE(OFFSET(EPlower_Flow!$B$10,12*($E$1-1),N$3-1,12)),NA()) ->  | O13: =IF($E$1>20,AVERAGE(OFFSET(EPlower_Flow!$B$10,12*($E$1-1),O$3-1,12)),NA()) ->  | P13: =IF($E$1>20,AVERAGE(OFFSET(EPlower_Flow!$B$10,12*($E$1-1),P$3-1,12)),NA()) ->  | Q13: =IF($E$1>20,AVERAGE(OFFSET(EPlower_Flow!$B$10,12*($E$1-1),Q$3-1,12)),NA()) ->  | R13: =IF($E$1>20,AVERAGE(OFFSET(EPlower_Flow!$B$10,12*($E$1-1),R$3-1,12)),NA()) ->  | S13: =IF($E$1>20,AVERAGE(OFFSET(EPlower_Flow!$B$10,12*($E$1-1),S$3-1,12)),NA()) ->  | T13: =IF($E$1>20,AVERAGE(OFFSET(EPlower_Flow!$B$10,12*($E$1-1),T$3-1,12)),NA()) ->  | U13: =IF($E$1>20,AVERAGE(OFFSET(EPlower_Flow!$B$10,12*($E$1-1),U$3-1,12)),NA()) ->  | V13: =IF($E$1>20,AVERAGE(OFFSET(EPlower_Flow!$B$10,12*($E$1-1),V$3-1,12)),NA()) ->  | W13: =IF($E$1>20,AVERAGE(OFFSET(EPlower_Flow!$B$10,12*($E$1-1),W$3-1,12)),NA()) ->  | X13: =IF($E$1>20,AVERAGE(OFFSET(EPlower_Flow!$B$10,12*($E$1-1),X$3-1,12)),NA()) ->  | Y13: =IF($E$1>20,AVERAGE(OFFSET(EPlower_Flow!$B$10,12*($E$1-1),Y$3-1,12)),NA()) ->  | Z13: =IF($E$1>20,AVERAGE(OFFSET(EPlower_Flow!$B$10,12*($E$1-1),Z$3-1,12)),NA()) ->  | AA13: =IF($E$1>20,AVERAGE(OFFSET(EPlower_Flow!$B$10,12*($E$1-1),AA$3-1,12)),NA()) ->  | AB13: =IF($E$1>20,AVERAGE(OFFSET(EPlower_Flow!$B$10,12*($E$1-1),AB$3-1,12)),NA()) ->  | AC13: =IF($E$1>20,AVERAGE(OFFSET(EPlower_Flow!$B$10,12*($E$1-1),AC$3-1,12)),NA()) ->  | AD13: =IF($E$1>20,AVERAGE(OFFSET(EPlower_Flow!$B$10,12*($E$1-1),AD$3-1,12)),NA()) ->  | AE13: =IF($E$1>20,AVERAGE(OFFSET(EPlower_Flow!$B$10,12*($E$1-1),AE$3-1,12)),NA()) ->  | AF13: =IF($E$1>20,AVERAGE(OFFSET(EPlower_Flow!$B$10,12*($E$1-1),AF$3-1,12)),NA()) ->  | AG13: =IF($E$1>20,AVERAGE(OFFSET(EPlower_Flow!$B$10,12*($E$1-1),AG$3-1,12)),NA()) ->  | AH13: =IF($E$1>20,AVERAGE(OFFSET(EPlower_Flow!$B$10,12*($E$1-1),AH$3-1,12)),NA()) ->  | AI13: =IF($E$1>20,AVERAGE(OFFSET(EPlower_Flow!$B$10,12*($E$1-1),AI$3-1,12)),NA()) ->  | AJ13: =IF($E$1>20,AVERAGE(OFFSET(EPlower_Flow!$B$10,12*($E$1-1),AJ$3-1,12)),NA()) ->  | AK13: =IF($E$1>20,AVERAGE(OFFSET(EPlower_Flow!$B$10,12*($E$1-1),AK$3-1,12)),NA()) ->  | AL13: =IF($E$1>20,AVERAGE(OFFSET(EPlower_Flow!$B$10,12*($E$1-1),AL$3-1,12)),NA()) ->  | AM13: =IF($E$1>20,AVERAGE(OFFSET(EPlower_Flow!$B$10,12*($E$1-1),AM$3-1,12)),NA()) ->  | AN13: =IF($E$1>20,AVERAGE(OFFSET(EPlower_Flow!$B$10,12*($E$1-1),AN$3-1,12)),NA()) ->  | AO13: =IF($E$1>20,AVERAGE(OFFSET(EPlower_Flow!$B$10,12*($E$1-1),AO$3-1,12)),NA()) ->  | AP13: =IF($E$1>20,AVERAGE(OFFSET(EPlower_Flow!$B$10,12*($E$1-1),AP$3-1,12)),NA()) ->  | AQ13: =IF($E$1>20,AVERAGE(OFFSET(EPlower_Flow!$B$10,12*($E$1-1),AQ$3-1,12)),NA()) ->  | AR13: =IF($E$1>20,AVERAGE(OFFSET(EPlower_Flow!$B$10,12*($E$1-1),AR$3-1,12)),NA()) ->  | AS13: =IF($E$1>20,AVERAGE(OFFSET(EPlower_Flow!$B$10,12*($E$1-1),AS$3-1,12)),NA()) ->  | AT13: =IF($E$1>20,AVERAGE(OFFSET(EPlower_Flow!$B$10,12*($E$1-1),AT$3-1,12)),NA()) ->  | AU13: =IF($E$1>20,AVERAGE(OFFSET(EPlower_Flow!$B$10,12*($E$1-1),AU$3-1,12)),NA()) ->  | AV13: =IF($E$1>20,AVERAGE(OFFSET(EPlower_Flow!$B$10,12*($E$1-1),AV$3-1,12)),NA()) ->  | AW13: =IF($E$1>20,AVERAGE(OFFSET(EPlower_Flow!$B$10,12*($E$1-1),AW$3-1,12)),NA()) ->  | AX13: =IF($E$1>20,AVERAGE(OFFSET(EPlower_Flow!$B$10,12*($E$1-1),AX$3-1,12)),NA()) ->  | AY13: =IF($E$1>20,AVERAGE(OFFSET(EPlower_Flow!$B$10,12*($E$1-1),AY$3-1,12)),NA()) ->  | AZ13: =IF($E$1>20,AVERAGE(OFFSET(EPlower_Flow!$B$10,12*($E$1-1),AZ$3-1,12)),NA()) ->  | BA13: =IF($E$1>20,AVERAGE(OFFSET(EPlower_Flow!$B$10,12*($E$1-1),BA$3-1,12)),NA()) ->  | BB13: =IF($E$1>20,AVERAGE(OFFSET(EPlower_Flow!$B$10,12*($E$1-1),BB$3-1,12)),NA()) ->  | BC13: =IF($E$1>20,AVERAGE(OFFSET(EPlower_Flow!$B$10,12*($E$1-1),BC$3-1,12)),NA()) ->  | BD13: =IF($E$1>20,AVERAGE(OFFSET(EPlower_Flow!$B$10,12*($E$1-1),BD$3-1,12)),NA()) ->  | BE13: =IF($E$1>20,AVERAGE(OFFSET(EPlower_Flow!$B$10,12*($E$1-1),BE$3-1,12)),NA()) ->  | BF13: =IF($E$1>20,AVERAGE(OFFSET(EPlower_Flow!$B$10,12*($E$1-1),BF$3-1,12)),NA()) ->  | BG13: =IF($E$1>20,AVERAGE(OFFSET(EPlower_Flow!$B$10,12*($E$1-1),BG$3-1,12)),NA()) ->  | BH13: =IF($E$1>20,AVERAGE(OFFSET(EPlower_Flow!$B$10,12*($E$1-1),BH$3-1,12)),NA()) ->  | BI13: =IF($E$1>20,AVERAGE(OFFSET(EPlower_Flow!$B$10,12*($E$1-1),BI$3-1,12)),NA()) ->  | BJ13: =IF($E$1>20,AVERAGE(OFFSET(EPlower_Flow!$B$10,12*($E$1-1),BJ$3-1,12)),NA()) ->  | BK13: =IF($E$1>20,AVERAGE(OFFSET(EPlower_Flow!$B$10,12*($E$1-1),BK$3-1,12)),NA()) ->  | BL13: =IF($E$1>20,AVERAGE(OFFSET(EPlower_Flow!$B$10,12*($E$1-1),BL$3-1,12)),NA()) ->  | BM13: =IF($E$1>20,AVERAGE(OFFSET(EPlower_Flow!$B$10,12*($E$1-1),BM$3-1,12)),NA()) ->  | BN13: =IF($E$1>20,AVERAGE(OFFSET(EPlower_Flow!$B$10,12*($E$1-1),BN$3-1,12)),NA()) ->  | BO13: =IF($E$1>20,AVERAGE(OFFSET(EPlower_Flow!$B$10,12*($E$1-1),BO$3-1,12)),NA()) ->  | BP13: =IF($E$1>20,AVERAGE(OFFSET(EPlower_Flow!$B$10,12*($E$1-1),BP$3-1,12)),NA()) ->  | BQ13: =IF($E$1>20,AVERAGE(OFFSET(EPlower_Flow!$B$10,12*($E$1-1),BQ$3-1,12)),NA()) ->  | BR13: =IF($E$1>20,AVERAGE(OFFSET(EPlower_Flow!$B$10,12*($E$1-1),BR$3-1,12)),NA()) ->  | BS13: =IF($E$1>20,AVERAGE(OFFSET(EPlower_Flow!$B$10,12*($E$1-1),BS$3-1,12)),NA()) ->  | BT13: =IF($E$1>20,AVERAGE(OFFSET(EPlower_Flow!$B$10,12*($E$1-1),BT$3-1,12)),NA()) ->  | BU13: =IF($E$1>20,AVERAGE(OFFSET(EPlower_Flow!$B$10,12*($E$1-1),BU$3-1,12)),NA()) ->  | BV13: =IF($E$1>20,AVERAGE(OFFSET(EPlower_Flow!$B$10,12*($E$1-1),BV$3-1,12)),NA()) ->  | BW13: =IF($E$1>20,AVERAGE(OFFSET(EPlower_Flow!$B$10,12*($E$1-1),BW$3-1,12)),NA()) ->  | BX13: =IF($E$1>20,AVERAGE(OFFSET(EPlower_Flow!$B$10,12*($E$1-1),BX$3-1,12)),NA()) ->  | BY13: =IF($E$1>20,AVERAGE(OFFSET(EPlower_Flow!$B$10,12*($E$1-1),BY$3-1,12)),NA()) ->  | BZ13: =IF($E$1>20,AVERAGE(OFFSET(EPlower_Flow!$B$10,12*($E$1-1),BZ$3-1,12)),NA()) ->  | CA13: =IF($E$1>20,AVERAGE(OFFSET(EPlower_Flow!$B$10,12*($E$1-1),CA$3-1,12)),NA()) ->  | CB13: =IF($E$1>20,AVERAGE(OFFSET(EPlower_Flow!$B$10,12*($E$1-1),CB$3-1,12)),NA()) ->  | CC13: =IF($E$1>20,AVERAGE(OFFSET(EPlower_Flow!$B$10,12*($E$1-1),CC$3-1,12)),NA()) ->  | CD13: =IF($E$1>20,AVERAGE(OFFSET(EPlower_Flow!$B$10,12*($E$1-1),CD$3-1,12)),NA()) ->  | CE13: =IF($E$1>20,AVERAGE(OFFSET(EPlower_Flow!$B$10,12*($E$1-1),CE$3-1,12)),NA()) ->  | CF13: =IF($E$1>20,AVERAGE(OFFSET(EPlower_Flow!$B$10,12*($E$1-1),CF$3-1,12)),NA()) ->  | CG13: =IF($E$1>20,AVERAGE(OFFSET(EPlower_Flow!$B$10,12*($E$1-1),CG$3-1,12)),NA()) ->  | CH13: =IF($E$1>20,AVERAGE(OFFSET(EPlower_Flow!$B$10,12*($E$1-1),CH$3-1,12)),NA()) ->  | CI13: =IF($E$1>20,AVERAGE(OFFSET(EPlower_Flow!$B$10,12*($E$1-1),CI$3-1,12)),NA()) ->  | CJ13: =IF($E$1>20,AVERAGE(OFFSET(EPlower_Flow!$B$10,12*($E$1-1),CJ$3-1,12)),NA()) ->  | CK13: =IF($E$1>20,AVERAGE(OFFSET(EPlower_Flow!$B$10,12*($E$1-1),CK$3-1,12)),NA()) ->  | CL13: =IF($E$1>20,AVERAGE(OFFSET(EPlower_Flow!$B$10,12*($E$1-1),CL$3-1,12)),NA()) ->  | CM13: =IF($E$1>20,AVERAGE(OFFSET(EPlower_Flow!$B$10,12*($E$1-1),CM$3-1,12)),NA()) ->  | CN13: =IF($E$1>20,AVERAGE(OFFSET(EPlower_Flow!$B$10,12*($E$1-1),CN$3-1,12)),NA()) ->  | CO13: =IF($E$1>20,AVERAGE(OFFSET(EPlower_Flow!$B$10,12*($E$1-1),CO$3-1,12)),NA()) ->  | CP13: =IF($E$1>20,AVERAGE(OFFSET(EPlower_Flow!$B$10,12*($E$1-1),CP$3-1,12)),NA()) ->  | CQ13: =IF($E$1>20,AVERAGE(OFFSET(EPlower_Flow!$B$10,12*($E$1-1),CQ$3-1,12)),NA()) ->  | CR13: =IF($E$1>20,AVERAGE(OFFSET(EPlower_Flow!$B$10,12*($E$1-1),CR$3-1,12)),NA()) ->  | CS13: =IF($E$1>20,AVERAGE(OFFSET(EPlower_Flow!$B$10,12*($E$1-1),CS$3-1,12)),NA()) ->  | CT13: =IF($E$1>20,AVERAGE(OFFSET(EPlower_Flow!$B$10,12*($E$1-1),CT$3-1,12)),NA()) ->  | CU13: =IF($E$1>20,AVERAGE(OFFSET(EPlower_Flow!$B$10,12*($E$1-1),CU$3-1,12)),NA()) ->  | CV13: =IF($E$1>20,AVERAGE(OFFSET(EPlower_Flow!$B$10,12*($E$1-1),CV$3-1,12)),NA()) ->  | CW13: =IF($E$1>20,AVERAGE(OFFSET(EPlower_Flow!$B$10,12*($E$1-1),CW$3-1,12)),NA()) ->  | CX13: =IF($E$1>20,AVERAGE(OFFSET(EPlower_Flow!$B$10,12*($E$1-1),CX$3-1,12)),NA()) ->  | CY13: =IF($E$1>20,AVERAGE(OFFSET(EPlower_Flow!$B$10,12*($E$1-1),CY$3-1,12)),NA()) ->  | CZ13: =IF($E$1>20,AVERAGE(OFFSET(EPlower_Flow!$B$10,12*($E$1-1),CZ$3-1,12)),NA()) ->  | DA13: =IF($E$1>20,AVERAGE(OFFSET(EPlower_Flow!$B$10,12*($E$1-1),DA$3-1,12)),NA()) ->  | DB13: =IF($E$1>20,AVERAGE(OFFSET(EPlower_Flow!$B$10,12*($E$1-1),DB$3-1,12)),NA()) -> 
